Workbook

Sheet Sample Report (hidden)
A2: Date
A3: Hen
A4: Program
A5: Start at 999999
A6: Sequence component 1 | B6: Time 1 | C6: Seqeunce Component 2 | D6: Time 2 | E6: Seqeunce Component 3 | F6: Time 3 | G6: Correct 0 = No 1=Yes | J6: Seqeunce | K6: Time
A7: 12 | B7: 7 | C7: 12 | D7: 42 | E7: 13 | F7: 18 | G7: if 77 new line, if 31 or 41 = yes new line on 77, | J7: =string of Seqeunce compponent 1, 2 & 3 | K7: =time 3
A8: This continues until ther is a 1 on its own to indicate start of summary data
J9: 10-19 =1
A10: Summary Data | J10: 20-29 =2
A11: Correct | B11: Incorrect | C11: Rft | D11: total | E11: Av Correct | F11: Av Incorrect | G11: Percent correct | H11: Time | J11: in this example the seqeunce would be 111
A12: 40 | B12: 33 | C12: 40 | D12: 73 | E12: 23.95 | F12: 15 | G12: 54 | H12: 806

Sheet Summary
A2: Day | B2: Date | C2: Average Response Rate | D2: Target % | E2: RF for non correct sequence | F2: U Value | K2: Block 1 | L2: Block 2 | M2: Block 3 | N2: Block 4 | O2: Block 5 | P2: Block 6
A3: 1 | B3: ='!MB29B40.105'!B2:C2 -> <date> | C3: =('!MB29B40.105'!D7/60)/'!MB29B40.105'!Q3 -> 0.0008912655971 | D3: ='!MB29B40.105'!N20/'!MB29B40.105'!Q3 -> 0.08556149733 | E3: =SUM('!MB29B40.105'!L20:Q20)/'!MB29B40.105'!Q3 -> 0.5347593583 | F3: ='!MB29B40.105'!Q16 -> 0.2017316219 | J3: Average Response Rate | K3: =AVERAGE(C3:C7) -> 0.003401540606 | L3: =AVERAGE(C8:C12) -> 0.005490406827 | M3: =AVERAGE(C13:C17) -> 0.01044450037 | N3: =AVERAGE(C18:C22) -> 0.01141672058 | O3: =AVERAGE(C23:C27) -> 0.01296084705 | P3: =AVERAGE(C28:C32) -> 0.01582806136
A4: 2 | B4: ='!MB30C20.105'!B2:C2 -> <date> | C4: =('!MB30C20.105'!D7/60)/'!MB30C20.105'!Q3 -> 0.002432432432 | D4: ='!MB30C20.105'!N20/'!MB30C20.105'!Q3 -> 0.1297297297 | E4: =SUM('!MB30C20.105'!L20:Q20)/'!MB30C20.105'!Q3 -> 0.5783783784 | F4: ='!MB30C20.105'!Q16 -> 0.2075689517 | J4: Target % | K4: =AVERAGE(D3:D7) -> 0.2608569802 | L4: =AVERAGE(D8:D12) -> 0.5937778168 | M4: =AVERAGE(D13:D17) -> 0.6802976124 | N4: =AVERAGE(D18:D22) -> 0.8789721365 | O4: =AVERAGE(D23:D27) -> 0.8596040788 | P4: =AVERAGE(D28:D32) -> 0.8222574007
A5: 3 | B5: ='!MC01B50.105'!B2:C2 -> <date> | C5: =('!MC01B50.105'!D7/60)/'!MC01B50.105'!Q3 -> 0.0025 | D5: ='!MC01B50.105'!N20/'!MC01B50.105'!Q3 -> 0.24375 | E5: =SUM('!MC01B50.105'!L20:Q20)/'!MC01B50.105'!Q3 -> 0.70625 | F5: ='!MC01B50.105'!Q16 -> 0.2309321461 | J5: CCRF | K5: =AVERAGE(E3:E7) -> 0.7581137235 | L5: =AVERAGE(E8:E12) -> 1.178009605 | M5: =AVERAGE(E13:E17) -> 1.21718055 | N5: =AVERAGE(E18:E22) -> 1.517831214 | O5: =AVERAGE(E23:E27) -> 1.454648974 | P5: =AVERAGE(E28:E32) -> 1.407418174
A6: 4 | B6: ='!MC02B50.105'!B2:C2 -> <date> | C6: =('!MC02B50.105'!D7/60)/'!MC02B50.105'!Q3 -> 0.003608247423 | D6: ='!MC02B50.105'!N20/'!MC02B50.105'!Q3 -> 0.4020618557 | E6: =SUM('!MC02B50.105'!L20:Q20)/'!MC02B50.105'!Q3 -> 0.9484536082 | F6: ='!MC02B50.105'!Q16 -> 0.2663557472 | J6: U Value | K6: =AVERAGE(F3:F7) -> 0.2296018921 | L6: =AVERAGE(F8:F12) -> 0.241431837 | M6: =AVERAGE(F13:F17) -> 0.2194148405 | N6: =AVERAGE(F18:F22) -> 0.1108170618 | O6: =AVERAGE(F23:F27) -> 0.114794203 | P6: =AVERAGE(F28:F32) -> 0.1322354472
A7: 5 | B7: ='!MC03950.105'!B2:C2 -> <date> | C7: =('!MC03950.105'!D7/60)/'!MC03950.105'!Q3 -> 0.007575757576 | D7: ='!MC03950.105'!N20/'!MC03950.105'!Q3 -> 0.4431818182 | E7: =SUM('!MC03950.105'!L20:Q20)/'!MC03950.105'!Q3 -> 1.022727273 | F7: ='!MC03950.105'!Q16 -> 0.2414209934
A8: 6 | B8: ='!MC04B40.105'!B2:C2 -> <date> | C8: =('!MC04B40.105'!D7/60)/'!MC04B40.105'!Q3 -> 0.003546099291 | D8: ='!MC04B40.105'!N20/'!MC04B40.105'!Q3 -> 0.414893617 | E8: =SUM('!MC04B40.105'!L20:Q20)/'!MC04B40.105'!Q3 -> 0.9680851064 | F8: ='!MC04B40.105'!Q16 -> 0.2662373818
A9: 7 | B9: ='!MC05A10.105'!B2:C2 -> <date> | C9: =('!MC05A10.105'!D7/60)/'!MC05A10.105'!Q3 -> 0.007383966245 | D9: ='!MC05A10.105'!N20/'!MC05A10.105'!Q3 -> 0.4936708861 | E9: =SUM('!MC05A10.105'!L20:Q20)/'!MC05A10.105'!Q3 -> 1.088607595 | F9: ='!MC05A10.105'!Q16 -> 0.2683703566 | G9: =K3 -> 0.003401540606 | H9: 0.005490406827 | I9: 0.01044450037 | J9: 0.01141672058 | K9: 0.01296084705 | L9: 0.01582806136 | M9: =K4 -> 0.2608569802 | N9: 0.5937778168 | O9: 0.6802976124 | P9: 0.8789721365 | Q9: 0.8596040788 | R9: 0.8222574007 | S9: =K6 -> 0.2296018921 | T9: 0.241431837 | U9: 0.2194148405 | V9: 0.1108170618 | W9: 0.114794203 | X9: 0.1322354472
A10: 8 | B10: ='!MC06B10.105'!B2:C2 -> <date> | C10: =('!MC06B10.105'!D7/60)/'!MC06B10.105'!Q3 -> 0.003846153846 | D10: ='!MC06B10.105'!N20/'!MC06B10.105'!Q3 -> 0.6153846154 | E10: =SUM('!MC06B10.105'!L20:Q20)/'!MC06B10.105'!Q3 -> 1.276923077 | F10: ='!MC06B10.105'!Q16 -> 0.2588258823
A11: 9 | B11: ='!MC07B30.105'!B2:C2 -> <date> | C11: =('!MC07B30.105'!D7/60)/'!MC07B30.105'!Q3 -> 0.006918238994 | D11: ='!MC07B30.105'!N20/'!MC07B30.105'!Q3 -> 0.7358490566 | E11: =SUM('!MC07B30.105'!L20:Q20)/'!MC07B30.105'!Q3 -> 1.301886792 | F11: ='!MC07B30.105'!Q16 -> 0.2122326681
A12: 10 | B12: ='!MC08B20.105'!B2:C2 -> <date> | C12: =('!MC08B20.105'!D7/60)/'!MC08B20.105'!Q3 -> 0.005757575758 | D12: ='!MC08B20.105'!N20/'!MC08B20.105'!Q3 -> 0.7090909091 | E12: =SUM('!MC08B20.105'!L20:Q20)/'!MC08B20.105'!Q3 -> 1.254545455 | F12: ='!MC08B20.105'!Q16 -> 0.2014928962
A13: 11 | B13: ='!MC09B20.105'!B2:C2 -> <date> | C13: =('!MC09B20.105'!D7/60)/'!MC09B20.105'!Q3 -> 0.00730994152 | D13: ='!MC09B20.105'!N20/'!MC09B20.105'!Q3 -> 0.6842105263 | E13: =SUM('!MC09B20.105'!L20:Q20)/'!MC09B20.105'!Q3 -> 1.210526316 | F13: ='!MC09B20.105'!Q16 -> 0.2352211207
A14: 12 | B14: ='!MC10C10.105'!B2:C2 -> <date> | C14: =('!MC10C10.105'!D7/60)/'!MC10C10.105'!Q3 -> 0.008743169399 | D14: ='!MC10C10.105'!N20/'!MC10C10.105'!Q3 -> 0.6393442623 | E14: =SUM('!MC10C10.105'!L20:Q20)/'!MC10C10.105'!Q3 -> 1.163934426 | F14: ='!MC10C10.105'!Q16 -> 0.2552451879
A15: 13 | B15: ='!MC11B10.105'!B2:C2 -> <date> | C15: =('!MC11B10.105'!D7/60)/'!MC11B10.105'!Q3 -> 0.009393939394 | D15: ='!MC11B10.105'!N20/'!MC11B10.105'!Q3 -> 0.7090909091 | E15: =SUM('!MC11B10.105'!L20:Q20)/'!MC11B10.105'!Q3 -> 1.254545455 | F15: ='!MC11B10.105'!Q16 -> 0.1941612494
A16: 14 | B16: ='!MC12A10.105'!B2:C2 -> <date> | C16: =('!MC12A10.105'!D7/60)/'!MC12A10.105'!Q3 -> 0.009821428571 | D16: ='!MC12A10.105'!N20/'!MC12A10.105'!Q3 -> 0.6964285714 | E16: =SUM('!MC12A10.105'!L20:Q20)/'!MC12A10.105'!Q3 -> 1.25 | F16: ='!MC12A10.105'!Q16 -> 0.2035916541
A17: 15 | B17: ='!MC13B30.105'!B2:C2 -> <date> | C17: =('!MC13B30.105'!D7/60)/'!MC13B30.105'!Q3 -> 0.01695402299 | D17: ='!MC13B30.105'!N20/'!MC13B30.105'!Q3 -> 0.6724137931 | E17: =SUM('!MC13B30.105'!L20:Q20)/'!MC13B30.105'!Q3 -> 1.206896552 | F17: ='!MC13B30.105'!Q16 -> 0.2088549903
A18: 16 | B18: ='!MC14B00.105'!B2:C2 -> <date> | C18: =('!MC14B00.105'!D7/60)/'!MC14B00.105'!Q3 -> 0.01054421769 | D18: ='!MC14B00.105'!N20/'!MC14B00.105'!Q3 -> 0.7755102041 | E18: =SUM('!MC14B00.105'!L20:Q20)/'!MC14B00.105'!Q3 -> 1.530612245 | F18: ='!MC14B00.105'!Q16 -> 0.1765774325
A19: 17 | B19: ='!MC15C20.105'!B2:C2 -> <date> | C19: =('!MC15C20.105'!D7/60)/'!MC15C20.105'!Q3 -> 0.008914728682 | D19: ='!MC15C20.105'!N20/'!MC15C20.105'!Q3 -> 0.9069767442 | E19: =SUM('!MC15C20.105'!L20:Q20)/'!MC15C20.105'!Q3 -> 1.511627907 | F19: ='!MC15C20.105'!Q16 -> 0.09618938681
A20: 18 | B20: ='!MC16A20.105'!B2:C2 -> <date> | C20: =('!MC16A20.105'!D7/60)/'!MC16A20.105'!Q3 -> 0.01007751938 | D20: ='!MC16A20.105'!N20/'!MC16A20.105'!Q3 -> 0.9069767442 | E20: =SUM('!MC16A20.105'!L20:Q20)/'!MC16A20.105'!Q3 -> 1.511627907 | F20: ='!MC16A20.105'!Q16 -> 0.09942467371
A21: 19 | B21: ='!MC17950.105'!B2:C2 -> <date> | C21: =('!MC17950.105'!D7/60)/'!MC17950.105'!Q3 -> 0.01453900709 | D21: ='!MC17950.105'!N20/'!MC17950.105'!Q3 -> 0.829787234 | E21: =SUM('!MC17950.105'!L20:Q20)/'!MC17950.105'!Q3 -> 1.425531915 | F21: ='!MC17950.105'!Q16 -> 0.151016461
A22: 20 | B22: ='!MC18B40.105'!B2:C2 -> <date> | C22: =('!MC18B40.105'!D7/60)/'!MC18B40.105'!Q3 -> 0.01300813008 | D22: ='!MC18B40.105'!N20/'!MC18B40.105'!Q3 -> 0.9756097561 | E22: =SUM('!MC18B40.105'!L20:Q20)/'!MC18B40.105'!Q3 -> 1.609756098 | F22: ='!MC18B40.105'!Q16 -> 0.03087735478
A23: 21 | B23: ='!MC19B20.105'!B2:C2 -> <date> | C23: =('!MC19B20.105'!D7/60)/'!MC19B20.105'!Q3 -> 0.01014492754 | D23: ='!MC19B20.105'!N20/'!MC19B20.105'!Q3 -> 0.847826087 | E23: =SUM('!MC19B20.105'!L20:Q20)/'!MC19B20.105'!Q3 -> 1.434782609 | F23: ='!MC19B20.105'!Q16 -> 0.1385301582
A24: 22 | B24: ='!MC20B00.105'!B2:C2 -> <date> | C24: =('!MC20B00.105'!D7/60)/'!MC20B00.105'!Q3 -> 0.01507936508 | D24: ='!MC20B00.105'!N20/'!MC20B00.105'!Q3 -> 0.9285714286 | E24: =SUM('!MC20B00.105'!L20:Q20)/'!MC20B00.105'!Q3 -> 1.547619048 | F24: ='!MC20B00.105'!Q16 -> 0.08100874855
A25: 23 | B25: ='!MC21B50.105'!B2:C2 -> <date> | C25: =('!MC21B50.105'!D7/60)/'!MC21B50.105'!Q3 -> 0.01818181818 | D25: ='!MC21B50.105'!N20/'!MC21B50.105'!Q3 -> 0.9090909091 | E25: =SUM('!MC21B50.105'!L20:Q20)/'!MC21B50.105'!Q3 -> 1.522727273 | F25: ='!MC21B50.105'!Q16 -> 0.08050233387
A26: 24 | B26: ='!MC22A30.105'!B2:C2 -> <date> | C26: =('!MC22A30.105'!D7/60)/'!MC22A30.105'!Q3 -> 0.009803921569 | D26: ='!MC22A30.105'!N20/'!MC22A30.105'!Q3 -> 0.7647058824 | E26: =SUM('!MC22A30.105'!L20:Q20)/'!MC22A30.105'!Q3 -> 1.333333333 | F26: ='!MC22A30.105'!Q16 -> 0.1387636749
A27: 25 | B27: ='!MC23A50.105'!B2:C2 -> <date> | C27: =('!MC23A50.105'!D7/60)/'!MC23A50.105'!Q3 -> 0.0115942029 | D27: ='!MC23A50.105'!N20/'!MC23A50.105'!Q3 -> 0.847826087 | E27: =SUM('!MC23A50.105'!L20:Q20)/'!MC23A50.105'!Q3 -> 1.434782609 | F27: ='!MC23A50.105'!Q16 -> 0.1351660996
A28: 26 | B28: ='!MC24A40.105'!B2:C2 -> <date> | C28: =('!MC24A40.105'!D7/60)/'!MC24A40.105'!Q3 -> 0.01477272727 | D28: ='!MC24A40.105'!N20/'!MC24A40.105'!Q3 -> 0.8863636364 | E28: =SUM('!MC24A40.105'!L20:Q20)/'!MC24A40.105'!Q3 -> 1.5 | F28: ='!MC24A40.105'!Q16 -> 0.09356062291
A29: 27 | B29: ='!MC27A50.105'!B2:C2 -> <date> | C29: =('!MC27A50.105'!D7/60)/'!MC27A50.105'!Q3 -> 0.01180555556 | D29: ='!MC27A50.105'!N20/'!MC27A50.105'!Q3 -> 0.8125 | E29: =SUM('!MC27A50.105'!L20:Q20)/'!MC27A50.105'!Q3 -> 1.395833333 | F29: ='!MC27A50.105'!Q16 -> 0.1503144569
A30: 28 | B30: ='!MC28A20.105'!B2:C2 -> <date> | C30: =('!MC28A20.105'!D7/60)/'!MC28A20.105'!Q3 -> 0.01124031008 | D30: ='!MC28A20.105'!N20/'!MC28A20.105'!Q3 -> 0.9069767442 | E30: =SUM('!MC28A20.105'!L20:Q20)/'!MC28A20.105'!Q3 -> 1.511627907 | F30: ='!MC28A20.105'!Q16 -> 0.09618938681
A31: 29 | B31: ='!MC29A00.105'!B2:C2 -> <date> | C31: =('!MC29A00.105'!D7/60)/'!MC29A00.105'!Q3 -> 0.02156862745 | D31: ='!MC29A00.105'!N20/'!MC29A00.105'!Q3 -> 0.7647058824 | E31: =SUM('!MC29A00.105'!L20:Q20)/'!MC29A00.105'!Q3 -> 1.333333333 | F31: ='!MC29A00.105'!Q16 -> 0.1387636749
A32: 30 | B32: ='!MC30A00.105'!B2:C2 -> <date> | C32: =('!MC30A00.105'!D7/60)/'!MC30A00.105'!Q3 -> 0.01975308642 | D32: ='!MC30A00.105'!N20/'!MC30A00.105'!Q3 -> 0.7407407407 | E32: =SUM('!MC30A00.105'!L20:Q20)/'!MC30A00.105'!Q3 -> 1.296296296 | F32: ='!MC30A00.105'!Q16 -> 0.1823490946
B33: ='!MC31A00.105'!B2:C2 -> <date> | C33: =('!MC31A00.105'!D98/60)/'!MC31A00.105'!Q3 -> 4.043478261 | D33: ='!MC31A00.105'!N20/'!MC31A00.105'!Q3 -> 0.402173913 | E33: =SUM('!MC31A00.105'!L20:Q20)/'!MC31A00.105'!Q3 -> 0.8695652174 | F33: ='!MC31A00.105'!Q16 -> 0.271071186
B34: ='!N102A20.105'!B2:C2 -> <date> | C34: =('!N102A20.105'!D63/60)/'!N102A20.105'!Q3 -> 6.450287356 | D34: ='!N102A20.105'!N20/'!N102A20.105'!Q3 -> 0.3103448276 | E34: =SUM('!N102A20.105'!L20:Q20)/'!N102A20.105'!Q3 -> 0.8275862069 | F34: ='!N102A20.105'!Q16 -> 0.3249673073
B35: ='!N103A10.105'!B2:C2 -> <date> | C35: =('!N103A10.105'!D7/60)/'!N103A10.105'!Q3 -> 0.4 | D35: ='!N103A10.105'!N20/'!N103A10.105'!Q3 -> 1 | E35: =SUM('!N103A10.105'!L20:Q20)/'!N103A10.105'!Q3 -> 1 | F35: ='!N103A10.105'!Q16 -> 
B36: ='!N103A30.105'!B2:C2 -> <date> | C36: =('!N103A30.105'!D87/60)/'!N103A30.105'!Q3 -> 4.877777778 | D36: ='!N103A30.105'!N20/'!N103A30.105'!Q3 -> 0.2469135802 | E36: =SUM('!N103A30.105'!L20:Q20)/'!N103A30.105'!Q3 -> 0.7160493827 | F36: ='!N103A30.105'!Q16 -> 0.2704105543
B37: ='!N104B30.105'!B2:C2 -> <date> | C37: =('!N104B30.105'!D64/60)/'!N104B30.105'!Q3 -> 6.007344633 | D37: ='!N104B30.105'!N20/'!N104B30.105'!Q3 -> 0.3559322034 | E37: =SUM('!N104B30.105'!L20:Q20)/'!N104B30.105'!Q3 -> 0.8813559322 | F37: ='!N104B30.105'!Q16 -> 0.2984329398
B38: ='!N105A10.105'!B2:C2 -> <date> | C38: =('!N105A10.105'!D26/60)/'!N105A10.105'!Q3 -> 19.13416667 | D38: ='!N105A10.105'!N20/'!N105A10.105'!Q3 -> 0.5 | E38: =SUM('!N105A10.105'!L20:Q20)/'!N105A10.105'!Q3 -> 1.95 | F38: ='!N105A10.105'!Q16 -> 0.4032315231
B39: ='!N106840.105'!B2:C2 -> <date> | C39: =('!N106840.105'!D17/60)/'!N106840.105'!Q3 -> 31.9530303 | D39: ='!N106840.105'!N20/'!N106840.105'!Q3 -> 0.4545454545 | E39: =SUM('!N106840.105'!L20:Q20)/'!N106840.105'!Q3 -> 0.8181818182 | F39: ='!N106840.105'!Q16 -> 0.5174055373
B40: ='!N107910.105'!B2:C2 -> <date> | C40: =('!N107910.105'!D38/60)/'!N107910.105'!Q3 -> 11.73229167 | D40: ='!N107910.105'!N20/'!N107910.105'!Q3 -> 0.3125 | E40: =SUM('!N107910.105'!L20:Q20)/'!N107910.105'!Q3 -> 1 | F40: ='!N107910.105'!Q16 -> 0.3767326599
B41: ='!N108A10.105'!B2:C2 -> <date> | C41: =('!N108A10.105'!D46/60)/'!N108A10.105'!Q3 -> 8.470833333 | D41: ='!N108A10.105'!N20/'!N108A10.105'!Q3 -> 0.375 | E41: =SUM('!N108A10.105'!L20:Q20)/'!N108A10.105'!Q3 -> 1.225 | F41: ='!N108A10.105'!Q16 -> 0.3523193792
B42: ='!N109900.105'!B2:C2 -> <date> | C42: =('!N109900.105'!D33/60)/'!N109900.105'!Q3 -> 12.6191358 | D42: ='!N109900.105'!N20/'!N109900.105'!Q3 -> 0.4444444444 | E42: =SUM('!N109900.105'!L20:Q20)/'!N109900.105'!Q3 -> 1.222222222 | F42: ='!N109900.105'!Q16 -> 0.321877869
B43: ='!N110A10.105'!B2:C2 -> <date> | C43: =('!N110A10.105'!D32/60)/'!N110A10.105'!Q3 -> 15.17115385 | D43: ='!N110A10.105'!N20/'!N110A10.105'!Q3 -> 0.5 | E43: =SUM('!N110A10.105'!L20:Q20)/'!N110A10.105'!Q3 -> 1.307692308 | F43: ='!N110A10.105'!Q16 -> 0.3750962805
B44: ='!N111C00.105'!B2:C2 -> <date> | C44: =('!N111C00.105'!D17/60)/'!N111C00.105'!Q3 -> 14.42638889 | D44: ='!N111C00.105'!N20/'!N111C00.105'!Q3 -> 0.25 | E44: =SUM('!N111C00.105'!L20:Q20)/'!N111C00.105'!Q3 -> 0.5833333333 | F44: ='!N111C00.105'!Q16 -> 0.4326678928
B45: ='!N112850.105'!B2:C2 -> <date> | C45: =('!N112850.105'!D12/60)/'!N112850.105'!Q3 -> 38.25277778 | D45: ='!N112850.105'!N20/'!N112850.105'!Q3 -> 0 | E45: =SUM('!N112850.105'!L20:Q20)/'!N112850.105'!Q3 -> 0.3333333333 | F45: ='!N112850.105'!Q16 -> 0
B46: ='!N113A30.105'!B2:C2 -> <date> | C46: =('!N113A30.105'!D14/60)/'!N113A30.105'!Q3 -> 38.37708333 | D46: ='!N113A30.105'!N20/'!N113A30.105'!Q3 -> 0.5 | E46: =SUM('!N113A30.105'!L20:Q20)/'!N113A30.105'!Q3 -> 0.875 | F46: ='!N113A30.105'!Q16 -> 0.4685463541
B47: ='!N114920.105'!B2:C2 -> <date> | C47: =('!N114920.105'!D9/60)/'!N114920.105'!Q3 -> 4.361111111 | D47: ='!N114920.105'!N20/'!N114920.105'!Q3 -> 0 | E47: =SUM('!N114920.105'!L20:Q20)/'!N114920.105'!Q3 -> 0.3333333333 | F47: ='!N114920.105'!Q16 -> 0
B48: ='!N115940.105'!B2:C2 -> <date> | C48: =('!N115940.105'!D12/60)/'!N115940.105'!Q3 -> 60.59444444 | D48: ='!N115940.105'!N20/'!N115940.105'!Q3 -> 0.3333333333 | E48: =SUM('!N115940.105'!L20:Q20)/'!N115940.105'!Q3 -> 0.6666666667 | F48: ='!N115940.105'!Q16 -> 0.7420981285
B49: ='!N116920.105'!B2:C2 -> <date> | C49: =('!N116920.105'!D26/60)/'!N116920.105'!Q3 -> 16.77166667 | D49: ='!N116920.105'!N20/'!N116920.105'!Q3 -> 0.2 | E49: =SUM('!N116920.105'!L20:Q20)/'!N116920.105'!Q3 -> 1.1 | F49: ='!N116920.105'!Q16 -> 0.4272258363
B50: ='!N117B40.105'!B2:C2 -> <date> | C50: =('!N117B40.105'!D13/60)/'!N117B40.105'!Q3 -> 51.61904762 | D50: ='!N117B40.105'!N20/'!N117B40.105'!Q3 -> 0.2857142857 | E50: =SUM('!N117B40.105'!L20:Q20)/'!N117B40.105'!Q3 -> 0.5714285714 | F50: ='!N117B40.105'!Q16 -> 0.5544923071
B51: ='!N118B10.105'!B2:C2 -> <date> | C51: =('!N118B10.105'!D18/60)/'!N118B10.105'!Q3 -> 22.56527778 | D51: ='!N118B10.105'!N20/'!N118B10.105'!Q3 -> 0.1666666667 | E51: =SUM('!N118B10.105'!L20:Q20)/'!N118B10.105'!Q3 -> 0.5 | F51: ='!N118B10.105'!Q16 -> 0.4976786026
B52: ='!N119930.105'!B2:C2 -> <date> | C52: =('!N119930.105'!D11/60)/'!N119930.105'!Q3 -> 71.67333333 | D52: ='!N119930.105'!N20/'!N119930.105'!Q3 -> 0.2 | E52: =SUM('!N119930.105'!L20:Q20)/'!N119930.105'!Q3 -> 0.6 | F52: ='!N119930.105'!Q16 -> 0.6554587535
B53: ='!N120A40.105'!B2:C2 -> <date> | C53: =('!N120A40.105'!D10/60)/'!N120A40.105'!Q3 -> 18.68333333 | D53: ='!N120A40.105'!N20/'!N120A40.105'!Q3 -> 0.25 | E53: =SUM('!N120A40.105'!L20:Q20)/'!N120A40.105'!Q3 -> 0.5 | F53: ='!N120A40.105'!Q16 -> 0.75
B54: ='!N121B10.105'!B2:C2 -> <date> | C54: =('!N121B10.105'!D34/60)/'!N121B10.105'!Q3 -> 13.12873563 | D54: ='!N121B10.105'!N20/'!N121B10.105'!Q3 -> 0.1379310345 | E54: =SUM('!N121B10.105'!L20:Q20)/'!N121B10.105'!Q3 -> 1.206896552 | F54: ='!N121B10.105'!Q16 -> 0.3723631812
B55: ='!N122930.105'!B2:C2 -> <date> | C55: =('!N122930.105'!D11/60)/'!N122930.105'!Q3 -> 47.28888889 | D55: ='!N122930.105'!N20/'!N122930.105'!Q3 -> 0.1666666667 | E55: =SUM('!N122930.105'!L20:Q20)/'!N122930.105'!Q3 -> 0.5 | F55: ='!N122930.105'!Q16 -> 0.5644754679
B56: ='!N123B00.105'!B2:C2 -> <date> | C56: =('!N123B00.105'!D20/60)/'!N123B00.105'!Q3 -> 14.69642857 | D56: ='!N123B00.105'!N20/'!N123B00.105'!Q3 -> 0.1428571429 | E56: =SUM('!N123B00.105'!L20:Q20)/'!N123B00.105'!Q3 -> 1.285714286 | F56: ='!N123B00.105'!Q16 -> 0.3621368435
B57: ='!N124950.105'!B2:C2 -> <date> | C57: =('!N124950.105'!D12/60)/'!N124950.105'!Q3 -> 41.53333333 | D57: ='!N124950.105'!N20/'!N124950.105'!Q3 -> 0.1666666667 | E57: =SUM('!N124950.105'!L20:Q20)/'!N124950.105'!Q3 -> 0.5 | F57: ='!N124950.105'!Q16 -> 0.5644754679
B58: ='!N125A20.105'!B2:C2 -> <date> | C58: =('!N125A20.105'!D24/60)/'!N125A20.105'!Q3 -> 19.51296296 | D58: ='!N125A20.105'!N20/'!N125A20.105'!Q3 -> 0.3888888889 | E58: =SUM('!N125A20.105'!L20:Q20)/'!N125A20.105'!Q3 -> 1.388888889 | F58: ='!N125A20.105'!Q16 -> 0.4249662172
B59: ='!N127A30.105'!B2:C2 -> <date> | C59: =('!N127A30.105'!D15/60)/'!N127A30.105'!Q3 -> 12.43148148 | D59: ='!N127A30.105'!N20/'!N127A30.105'!Q3 -> 0.2222222222 | E59: =SUM('!N127A30.105'!L20:Q20)/'!N127A30.105'!Q3 -> 0.5555555556 | F59: ='!N127A30.105'!Q16 -> 0.5965633607
B60: ='!N128900.105'!B2:C2 -> <date> | C60: =('!N128900.105'!D10/60)/'!N128900.105'!Q3 -> 2.491666667 | D60: ='!N128900.105'!N20/'!N128900.105'!Q3 -> 1 | E60: =SUM('!N128900.105'!L20:Q20)/'!N128900.105'!Q3 -> 1.25 | F60: ='!N128900.105'!Q16 -> 0
B61: ='!N129A40.105'!B2:C2 -> <date> | C61: =('!N129A40.105'!D36/60)/'!N129A40.105'!Q3 -> 11.06989247 | D61: ='!N129A40.105'!N20/'!N129A40.105'!Q3 -> 0.5483870968 | E61: =SUM('!N129A40.105'!L20:Q20)/'!N129A40.105'!Q3 -> 1.258064516 | F61: ='!N129A40.105'!Q16 -> 0.3097009102
B62: ='!N130A40.105'!B2:C2 -> <date> | C62: =('!N130A40.105'!D23/60)/'!N130A40.105'!Q3 -> 19.38055556 | D62: ='!N130A40.105'!N20/'!N130A40.105'!Q3 -> 0.2777777778 | E62: =SUM('!N130A40.105'!L20:Q20)/'!N130A40.105'!Q3 -> 1.222222222 | F62: ='!N130A40.105'!Q16 -> 0.3935693676

Sheet Start
F1: Use Folder 51 | H1: Auto Clean Up | J1: Correct sequence
F2: FALSE | H2: TRUE | J2: 12
A4: Working with Folder | G4: Process All/Or Pick A number: ALL or an integer
A5: E:\Hen Data\Raw Data\105_185\phase 4 var\ | G5: ALL
A6: Filenames:
A7: !MC11B10.105 | G7: Paint Cells
A8: !MC12A10.105 | G8: FALSE
A9: !MC13B30.105
A10: !MC14B00.105
A11: !MC15C20.105
A12: !MC16A20.105
A13: !MC17950.105
A14: !MC18B40.105
A15: !MC19B20.105
A16: !MC20B00.105
A17: !MC21B50.105
A18: !MC22A30.105
A19: !MC23A50.105
A20: !MC24A40.105
A21: !MC27A50.105
A22: !MC28A20.105
A23: !MC29A00.105
A24: !MC30A00.105
A25: !MC31A00.105
A26: !N102A20.105
A27: !N103A10.105
A28: !N103A30.105
A29: !N104B30.105
A30: !N105A10.105
A31: !N106840.105
A32: !N107910.105
A33: !N108A10.105
A34: !N109900.105
A35: !N110A10.105
A36: !N111C00.105
A37: !N112850.105
A38: !N113A30.105
A39: !N114920.105
A40: !N115940.105
A41: !N116920.105
A42: !N117B40.105
A43: !N118B10.105
A44: !N119930.105
A45: !N120A40.105
A46: !N121B10.105
A47: !N122930.105
A48: !N123B00.105
A49: !N124950.105
A50: !N125A20.105
A51: !N127A30.105
A52: !N128900.105
A53: !N129A40.105
A54: !N130A40.105
A55: !MB29B40.105
A56: !MB30C20.105
A57: !MC01B50.105
A58: !MC02B50.105
A59: !MC03950.105
A60: !MC04B40.105
A61: !MC05A10.105
A62: !MC06B10.105
A63: !MC07B30.105
A64: !MC08B20.105
A65: !MC09B20.105
A66: !MC10C10.105

Sheet !MB29B40.105
A1: Report for:!MB29B40.105
A2: Date: | B2: <date>
A3: Hen: | B3: <hen> | F3: Correct Sequence | G3: =Start!J2 -> 12 | P3: Total Sequences in Data | Q3: =4994-COUNTBLANK(L7:L5000) -> 187 | V3: Total Sequences in Block Data | W3: =COUNTA(L7:L37) -> 31 | AA3: Total Sequences in Block Data | AB3: =COUNTA(L38:L68) -> 31 | AF3: Total Sequences in Block Data | AG3: =COUNTA(L69:L100) -> 32 | AK3: Total Sequences in Block Data | AL3: =COUNTA(L101:L131) -> 31 | AP3: Total Sequences in Block Data | AQ3: =COUNTA(L132:L162) -> 31 | AU3: Total Sequences in Block Data | AV3: =COUNTA(L163:L193) -> 31
P4: Total Sequences in Summary | Q4: =SUM(O7:O14) -> 187 | V4: Total Sequences in Block Summary | W4: =SUM(U7:U14) -> 31 | AA4: Total Sequences in Block Summary | AB4: =SUM(Z7:Z14) -> 31 | AF4: Total Sequences in Block Summary | AG4: =SUM(AE7:AE14) -> 32 | AK4: Total Sequences in Block Summary | AL4: =SUM(AJ7:AJ14) -> 31 | AP4: Total Sequences in Block Summary | AQ4: =SUM(AO7:AO14) -> 31 | AU4: Total Sequences in Block Summary | AV4: =SUM(AT7:AT14) -> 31
T5: Block 1 | Y5: Block 2 | AD5: Block 3 | AI5: Block 4 | AN5: Block 5 | AS5: Block 6
A6: Sequence Component 1 | B6: Time 1 | C6: Sequence Component 2 | D6: Time 2 | E6: Sequence Component 3 | F6: Time 3 | G6: Sequence Component 4 | H6: Time 4 | I6: Sequence Component 5 | J6: Time 5 | K6: Correct? 0=No 1=Yes | L6: Sequence | N6: Frequency | P6: Relative Frequency | Q6: Variability | T6: Frequency | V6: Relative Frequency | W6: Variability | Y6: Frequency | AA6: Relative Frequency | AB6: Variability | AD6: Frequency | AF6: Relative Frequency | AG6: Variability | AI6: Frequency | AK6: Relative Frequency | AL6: Variability | AN6: Frequency | AP6: Relative Frequency | AQ6: Variability | AS6: Frequency | AU6: Relative Frequency | AV6: Variability
A7: 22 | B7: 1 | C7: 23 | D7: 10 | K7: 0 | L7: 22 | N7: 11 | O7: =COUNTIF($L$7:$L$500,N7) -> 7 | P7: =O7/$Q$4 -> 0.03743315508 | Q7: =IF(P7=0,0,(P7*((LOG(P7))/LOG(2)))) -> -0.1774159185 | T7: =N7 -> 11 | U7: =COUNTIF(L7:L37,T7) -> 0 | V7: =U7/(W4-U8) -> 0 | W7: =IF(V7=0,0,(V7*((LOG(V7))/LOG(2)))) -> 0 | Y7: =N7 -> 11 | Z7: =COUNTIF(L38:L68,Y7) -> 0 | AA7: =Z7/(AB4-Z8) -> 0 | AB7: =IF(AA7=0,0,(AA7*((LOG(AA7))/LOG(2)))) -> 0 | AD7: =N7 -> 11 | AE7: =COUNTIF(L69:L100,AD7) -> 0 | AF7: =AE7/(AG4-AE8) -> 0 | AG7: =IF(AF7=0,0,(AF7*((LOG(AF7))/LOG(2)))) -> 0 | AI7: =N7 -> 11 | AJ7: =COUNTIF(L101:L131,AI7) -> 3 | AK7: =AJ7/(AL4-AJ8) -> 0.1071428571 | AL7: =IF(AK7=0,0,(AK7*((LOG(AK7))/LOG(2)))) -> -0.3452563309 | AN7: =N7 -> 11 | AO7: =COUNTIF(L132:L162,AN7) -> 3 | AP7: =AO7/(AQ4-AO8) -> 0.1111111111 | AQ7: =IF(AP7=0,0,(AP7*((LOG(AP7))/LOG(2)))) -> -0.352213889 | AS7: =N7 -> 11 | AT7: =COUNTIF(L163:L193,AS7) -> 1 | AU7: =AT7/(AV4-AT8) -> 0.03333333333 | AV7: =IF(AU7=0,0,(AU7*((LOG(AU7))/LOG(2)))) -> -0.1635630199
A8: 22 | B8: 116 | C8: 14 | D8: 136 | K8: 0 | L8: 21 | N8: 12 | O8: =COUNTIF($L$7:$L$500,N8) -> 16 | P8: =O8/$Q$4 -> 0.08556149733 | Q8: =IF(P8=0,0,(P8*((LOG(P8))/LOG(2)))) -> -0.3034776008 | T8: =N8 -> 12 | U8: =COUNTIF(L7:L37,T8) -> 1 | Y8: =N8 -> 12 | Z8: =COUNTIF(L38:L68,Y8) -> 3 | AD8: =N8 -> 12 | AE8: =COUNTIF(L69:L100,AD8) -> 4 | AI8: =N8 -> 12 | AJ8: =COUNTIF(L101:L131,AI8) -> 3 | AN8: =N8 -> 12 | AO8: =COUNTIF(L132:L162,AN8) -> 4 | AS8: =N8 -> 12 | AT8: =COUNTIF(L163:L193,AS8) -> 1
A9: 22 | B9: 246 | C9: 23 | D9: 275 | K9: 0 | L9: 22 | N9: 21 | O9: =COUNTIF($L$7:$L$500,N9) -> 78 | P9: =O9/$Q$4 -> 0.4171122995 | Q9: =IF(P9=0,0,(P9*((LOG(P9))/LOG(2)))) -> -0.5261839294 | T9: =N9 -> 21 | U9: =COUNTIF(L7:L37,T9) -> 13 | V9: =U9/(W4-U8) -> 0.4333333333 | W9: =IF(V9=0,0,(V9*((LOG(V9))/LOG(2)))) -> -0.5227953802 | Y9: =N9 -> 21 | Z9: =COUNTIF(L38:L68,Y9) -> 10 | AA9: =Z9/(AB4-Z8) -> 0.3571428571 | AB9: =IF(AA9=0,0,(AA9*((LOG(AA9))/LOG(2)))) -> -0.5305095811 | AD9: =N9 -> 21 | AE9: =COUNTIF(L69:L100,AD9) -> 15 | AF9: =AE9/(AG4-AE8) -> 0.5357142857 | AG9: =IF(AF9=0,0,(AF9*((LOG(AF9))/LOG(2)))) -> -0.4823916035 | AI9: =N9 -> 21 | AJ9: =COUNTIF(L101:L131,AI9) -> 11 | AK9: =AJ9/(AL4-AJ8) -> 0.3928571429 | AL9: =IF(AK9=0,0,(AK9*((LOG(AK9))/LOG(2)))) -> -0.5295412978 | AN9: =N9 -> 21 | AO9: =COUNTIF(L132:L162,AN9) -> 17 | AP9: =AO9/(AQ4-AO8) -> 0.6296296296 | AQ9: =IF(AP9=0,0,(AP9*((LOG(AP9))/LOG(2)))) -> -0.4202303421 | AS9: =N9 -> 21 | AT9: =COUNTIF(L163:L193,AS9) -> 12 | AU9: =AT9/(AV4-AT8) -> 0.4 | AV9: =IF(AU9=0,0,(AU9*((LOG(AU9))/LOG(2)))) -> -0.528771238
A10: 22 | B10: 390 | C10: 23 | D10: 413 | K10: 0 | L10: 22 | N10: 22 | O10: =COUNTIF($L$7:$L$500,N10) -> 86 | P10: =O10/$Q$4 -> 0.4598930481 | Q10: =IF(P10=0,0,(P10*((LOG(P10))/LOG(2)))) -> -0.5153698109 | T10: =N10 -> 22 | U10: =COUNTIF(L7:L37,T10) -> 17 | V10: =U10/(W4-U8) -> 0.5666666667 | W10: =IF(V10=0,0,(V10*((LOG(V10))/LOG(2)))) -> -0.4643423941 | Y10: =N10 -> 22 | Z10: =COUNTIF(L38:L68,Y10) -> 18 | AA10: =Z10/(AB4-Z8) -> 0.6428571429 | AB10: =IF(AA10=0,0,(AA10*((LOG(AA10))/LOG(2)))) -> -0.4097763775 | AD10: =N10 -> 22 | AE10: =COUNTIF(L69:L100,AD10) -> 13 | AF10: =AE10/(AG4-AE8) -> 0.4642857143 | AG10: =IF(AF10=0,0,(AF10*((LOG(AF10))/LOG(2)))) -> -0.5139249161 | AI10: =N10 -> 22 | AJ10: =COUNTIF(L101:L131,AI10) -> 14 | AK10: =AJ10/(AL4-AJ8) -> 0.5 | AL10: =IF(AK10=0,0,(AK10*((LOG(AK10))/LOG(2)))) -> -0.5 | AN10: =N10 -> 22 | AO10: =COUNTIF(L132:L162,AN10) -> 7 | AP10: =AO10/(AQ4-AO8) -> 0.2592592593 | AQ10: =IF(AP10=0,0,(AP10*((LOG(AP10))/LOG(2)))) -> -0.5049158541 | AS10: =N10 -> 22 | AT10: =COUNTIF(L163:L193,AS10) -> 17 | AU10: =AT10/(AV4-AT8) -> 0.5666666667 | AV10: =IF(AU10=0,0,(AU10*((LOG(AU10))/LOG(2)))) -> -0.4643423941
A11: 22 | B11: 525 | C11: 23 | D11: 529 | K11: 0 | L11: 22 | T11: =N11 -> 0 | U11: =COUNTIF(L7:L37,T11) -> 0 | V11: =U11/(W4-U8) -> 0 | W11: =IF(V11=0,0,(V11*((LOG(V11))/LOG(2)))) -> 0 | Y11: =N11 -> 0 | Z11: =COUNTIF(L38:L68,Y11) -> 0 | AA11: =Z11/(AB4-Z8) -> 0 | AB11: =IF(AA11=0,0,(AA11*((LOG(AA11))/LOG(2)))) -> 0 | AD11: =N11 -> 0 | AE11: =COUNTIF(L69:L100,AD11) -> 0 | AF11: =AE11/(AG4-AE8) -> 0 | AG11: =IF(AF11=0,0,(AF11*((LOG(AF11))/LOG(2)))) -> 0 | AI11: =N11 -> 0 | AJ11: =COUNTIF(L101:L131,AI11) -> 0 | AK11: =AJ11/(AL4-AJ8) -> 0 | AL11: =IF(AK11=0,0,(AK11*((LOG(AK11))/LOG(2)))) -> 0 | AN11: =N11 -> 0 | AO11: =COUNTIF(L132:L162,AN11) -> 0 | AP11: =AO11/(AQ4-AO8) -> 0 | AQ11: =IF(AP11=0,0,(AP11*((LOG(AP11))/LOG(2)))) -> 0 | AS11: =N11 -> 0 | AT11: =COUNTIF(L163:L193,AS11) -> 0 | AU11: =AT11/(AV4-AT8) -> 0 | AV11: =IF(AU11=0,0,(AU11*((LOG(AU11))/LOG(2)))) -> 0
A12: 22 | B12: 646 | C12: 23 | D12: 670 | K12: 0 | L12: 22 | T12: =N12 -> 0 | U12: =COUNTIF(L7:L37,T12) -> 0 | V12: =U12/(W4-U8) -> 0 | W12: =IF(V12=0,0,(V12*((LOG(V12))/LOG(2)))) -> 0 | Y12: =N12 -> 0 | Z12: =COUNTIF(L38:L68,Y12) -> 0 | AA12: =Z12/(AB4-Z8) -> 0 | AB12: =IF(AA12=0,0,(AA12*((LOG(AA12))/LOG(2)))) -> 0 | AD12: =N12 -> 0 | AE12: =COUNTIF(L69:L100,AD12) -> 0 | AF12: =AE12/(AG4-AE8) -> 0 | AG12: =IF(AF12=0,0,(AF12*((LOG(AF12))/LOG(2)))) -> 0 | AI12: =N12 -> 0 | AJ12: =COUNTIF(L101:L131,AI12) -> 0 | AK12: =AJ12/(AL4-AJ8) -> 0 | AL12: =IF(AK12=0,0,(AK12*((LOG(AK12))/LOG(2)))) -> 0 | AN12: =N12 -> 0 | AO12: =COUNTIF(L132:L162,AN12) -> 0 | AP12: =AO12/(AQ4-AO8) -> 0 | AQ12: =IF(AP12=0,0,(AP12*((LOG(AP12))/LOG(2)))) -> 0 | AS12: =N12 -> 0 | AT12: =COUNTIF(L163:L193,AS12) -> 0 | AU12: =AT12/(AV4-AT8) -> 0 | AV12: =IF(AU12=0,0,(AU12*((LOG(AU12))/LOG(2)))) -> 0
A13: 22 | B13: 782 | C13: 14 | D13: 792 | K13: 0 | L13: 21 | T13: =N13 -> 0 | U13: =COUNTIF(L7:L37,T13) -> 0 | V13: =U13/(W4-U8) -> 0 | W13: =IF(V13=0,0,(V13*((LOG(V13))/LOG(2)))) -> 0 | Y13: =N13 -> 0 | Z13: =COUNTIF(L38:L68,Y13) -> 0 | AA13: =Z13/(AB4-Z8) -> 0 | AB13: =IF(AA13=0,0,(AA13*((LOG(AA13))/LOG(2)))) -> 0 | AD13: =N13 -> 0 | AE13: =COUNTIF(L69:L100,AD13) -> 0 | AF13: =AE13/(AG4-AE8) -> 0 | AG13: =IF(AF13=0,0,(AF13*((LOG(AF13))/LOG(2)))) -> 0 | AI13: =N13 -> 0 | AJ13: =COUNTIF(L101:L131,AI13) -> 0 | AK13: =AJ13/(AL4-AJ8) -> 0 | AL13: =IF(AK13=0,0,(AK13*((LOG(AK13))/LOG(2)))) -> 0 | AN13: =N13 -> 0 | AO13: =COUNTIF(L132:L162,AN13) -> 0 | AP13: =AO13/(AQ4-AO8) -> 0 | AQ13: =IF(AP13=0,0,(AP13*((LOG(AP13))/LOG(2)))) -> 0 | AS13: =N13 -> 0 | AT13: =COUNTIF(L163:L193,AS13) -> 0 | AU13: =AT13/(AV4-AT8) -> 0 | AV13: =IF(AU13=0,0,(AU13*((LOG(AU13))/LOG(2)))) -> 0
A14: 22 | B14: 902 | C14: 14 | D14: 922 | K14: 0 | L14: 21 | T14: =N14 -> 0 | U14: =COUNTIF(L7:L37,T14) -> 0 | V14: =U14/(W4-U8) -> 0 | W14: =IF(V14=0,0,(V14*((LOG(V14))/LOG(2)))) -> 0 | Y14: =N14 -> 0 | Z14: =COUNTIF(L38:L68,Y14) -> 0 | AA14: =Z14/(AB4-Z8) -> 0 | AB14: =IF(AA14=0,0,(AA14*((LOG(AA14))/LOG(2)))) -> 0 | AD14: =N14 -> 0 | AE14: =COUNTIF(L69:L100,AD14) -> 0 | AF14: =AE14/(AG4-AE8) -> 0 | AG14: =IF(AF14=0,0,(AF14*((LOG(AF14))/LOG(2)))) -> 0 | AI14: =N14 -> 0 | AJ14: =COUNTIF(L101:L131,AI14) -> 0 | AK14: =AJ14/(AL4-AJ8) -> 0 | AL14: =IF(AK14=0,0,(AK14*((LOG(AK14))/LOG(2)))) -> 0 | AN14: =N14 -> 0 | AO14: =COUNTIF(L132:L162,AN14) -> 0 | AP14: =AO14/(AQ4-AO8) -> 0 | AQ14: =IF(AP14=0,0,(AP14*((LOG(AP14))/LOG(2)))) -> 0 | AS14: =N14 -> 0 | AT14: =COUNTIF(L163:L193,AS14) -> 0 | AU14: =AT14/(AV4-AT8) -> 0 | AV14: =IF(AU14=0,0,(AU14*((LOG(AU14))/LOG(2)))) -> 0
A15: 22 | B15: 1031 | C15: 14 | D15: 1050 | K15: 0 | L15: 21 | P15: =SUM(P7:P14) -> 1 | Q15: =-SUM(Q7:Q14) -> 1.52244726 | V15: =SUM(V7:V14) -> 1 | W15: =-SUM(W7:W14) -> 0.9871377744 | AA15: =SUM(AA7:AA14) -> 1 | AB15: =-SUM(AB7:AB14) -> 0.9402859587 | AF15: =SUM(AF7:AF14) -> 1 | AG15: =-SUM(AG7:AG14) -> 0.9963165196 | AK15: =SUM(AK7:AK14) -> 1 | AL15: =-SUM(AL7:AL14) -> 1.374797629 | AP15: =SUM(AP7:AP14) -> 1 | AQ15: =-SUM(AQ7:AQ14) -> 1.277360085 | AU15: =SUM(AU7:AU14) -> 1 | AV15: =-SUM(AV7:AV14) -> 1.156676652
A16: 22 | B16: 1162 | C16: 23 | D16: 1197 | K16: 0 | L16: 22 | P16: U= | Q16: =Q15/(LOG(Q4)/LOG(2)) -> 0.2017316219 | V16: U1= | W16: =W15/(LOG(W4)/LOG(2)) -> 0.1992528581 | AA16: U2= | AB16: =AB15/(LOG(AB4)/LOG(2)) -> 0.1897958619 | AF16: U3= | AG16: =AG15/(LOG(AG4)/LOG(2)) -> 0.1992633039 | AK16: U4= | AL16: =AL15/(LOG(AL4)/LOG(2)) -> 0.2775016456 | AP16: U5= | AQ16: =AQ15/(LOG(AQ4)/LOG(2)) -> 0.2578339664 | AU16: U6= | AV16: =AV15/(LOG(AV4)/LOG(2)) -> 0.2334741257
A17: 22 | B17: 1316 | C17: 14 | D17: 1332 | K17: 0 | L17: 21
A18: 22 | B18: 1436 | C18: 23 | D18: 1440 | K18: 0 | L18: 22
A19: 22 | B19: 1548 | C19: 14 | D19: 1557 | K19: 0 | L19: 21 | N19: Total Target Seq
A20: 22 | B20: 1664 | C20: 23 | D20: 1668 | K20: 0 | L20: 22 | N20: =COUNTIF(L7:L193,G3) -> 16 | P20: 31 | Q20: 31 | R20: 32 | S20: 31 | T20: 31 | U20: 31
A21: 22 | B21: 1782 | C21: 14 | D21: 1800 | K21: 0 | L21: 21 | P21: % of reinforcement given in 6 equal intervals based on number of trials
A22: 22 | B22: 1905 | C22: 14 | D22: 1920 | K22: 0 | L22: 21 | P22: %_1 | Q22: %_2 | R22: %_3 | S22: %_4 | T22: %_5 | U22: %_6
A23: 22 | B23: 2029 | C23: 14 | D23: 2054 | K23: 0 | L23: 21 | O23: target sequence | P23: =$G$3 -> 12 | Q23: =$G$3 -> 12 | R23: =$G$3 -> 12 | S23: =$G$3 -> 12 | T23: =$G$3 -> 12 | U23: =$G$3 -> 12
A24: 22 | B24: 2162 | C24: 14 | D24: 2176 | K24: 0 | L24: 21 | O24: total reinforcement | P24: =U8 -> 1 | Q24: =Z8 -> 3 | R24: =AE8 -> 4 | S24: =AJ8 -> 3 | T24: =AO8 -> 4 | U24: =AT8 -> 1
A25: 22 | B25: 2279 | C25: 23 | D25: 2284 | K25: 0 | L25: 22 | O25: % target
A26: 22 | B26: 2392 | C26: 23 | D26: 2400 | K26: 0 | L26: 22 | O26: CCRF
A27: 11 | B27: 2508 | C27: 21 | D27: 2573 | K27: 0 | L27: 12 | O27: % CCRf
A28: 22 | B28: 2683 | C28: 23 | D28: 2726 | K28: 0 | L28: 22 | O28: average response rate | P28: =D37/P20 -> 123.3870968 | Q28: =(D68-D37)/Q20 -> 123.6129032 | R28: =(D100-D68)/R20 -> 132.03125 | S28: =(D131-D100)/S20 -> 131.2258065 | T28: =(D162-D131)/T20 -> 130.8064516 | U28: =(D193-D162)/U20 -> 128.1612903
A29: 22 | B29: 2831 | C29: 23 | D29: 2835 | K29: 0 | L29: 22
A30: 22 | B30: 2945 | C30: 23 | D30: 2980 | K30: 0 | L30: 22
A31: 22 | B31: 3092 | C31: 14 | D31: 3113 | K31: 0 | L31: 21
A32: 22 | B32: 3214 | C32: 23 | D32: 3219 | K32: 0 | L32: 22
A33: 22 | B33: 3322 | C33: 23 | D33: 3331 | K33: 0 | L33: 22
A34: 22 | B34: 3441 | C34: 23 | D34: 3445 | K34: 0 | L34: 22
A35: 22 | B35: 3553 | C35: 14 | D35: 3583 | K35: 0 | L35: 21
A36: 22 | B36: 3696 | C36: 14 | D36: 3717 | K36: 0 | L36: 21
A37: 22 | B37: 3821 | C37: 23 | D37: 3825 | K37: 0 | L37: 22
A38: 22 | B38: 3934 | C38: 23 | D38: 3938 | K38: 0 | L38: 22
A39: 22 | B39: 4050 | C39: 23 | D39: 4058 | K39: 0 | L39: 22
A40: 22 | B40: 4168 | C40: 14 | D40: 4189 | K40: 0 | L40: 21
A41: 22 | B41: 4294 | C41: 23 | D41: 4301 | K41: 0 | L41: 22
A42: 22 | B42: 4416 | C42: 23 | D42: 4429 | K42: 0 | L42: 22
A43: 11 | B43: 4561 | C43: 21 | D43: 4573 | K43: 0 | L43: 12
A44: 22 | B44: 4676 | C44: 14 | D44: 4697 | K44: 0 | L44: 21
A45: 22 | B45: 4805 | C45: 23 | D45: 4823 | K45: 0 | L45: 22
A46: 22 | B46: 4937 | C46: 14 | D46: 4948 | K46: 0 | L46: 21
A47: 22 | B47: 5061 | C47: 14 | D47: 5074 | K47: 0 | L47: 21
A48: 11 | B48: 5222 | C48: 21 | D48: 5234 | K48: 0 | L48: 12
A49: 22 | B49: 5336 | C49: 23 | D49: 5345 | K49: 0 | L49: 22
A50: 22 | B50: 5454 | C50: 23 | D50: 5460 | K50: 0 | L50: 22
A51: 22 | B51: 5564 | C51: 23 | D51: 5569 | K51: 0 | L51: 22
A52: 22 | B52: 5682 | C52: 23 | D52: 5687 | K52: 0 | L52: 22
A53: 22 | B53: 5795 | C53: 14 | D53: 5817 | K53: 0 | L53: 21
A54: 22 | B54: 5929 | C54: 23 | D54: 5940 | K54: 0 | L54: 22
A55: 22 | B55: 6049 | C55: 23 | D55: 6061 | K55: 0 | L55: 22
A56: 22 | B56: 6177 | C56: 14 | D56: 6190 | K56: 0 | L56: 21
A57: 22 | B57: 6301 | C57: 23 | D57: 6308 | K57: 0 | L57: 22
A58: 22 | B58: 6415 | C58: 23 | D58: 6419 | K58: 0 | L58: 22
A59: 22 | B59: 6529 | C59: 23 | D59: 6534 | K59: 0 | L59: 22
A60: 22 | B60: 6643 | C60: 14 | D60: 6660 | K60: 0 | L60: 21
A61: 22 | B61: 6767 | C61: 23 | D61: 6772 | K61: 0 | L61: 22
A62: 22 | B62: 6882 | C62: 14 | D62: 6905 | K62: 0 | L62: 21
A63: 22 | B63: 7014 | C63: 23 | D63: 7019 | K63: 0 | L63: 22
A64: 22 | B64: 7128 | C64: 23 | D64: 7133 | K64: 0 | L64: 22
A65: 22 | B65: 7245 | C65: 14 | D65: 7259 | K65: 0 | L65: 21
A66: 22 | B66: 7365 | C66: 23 | D66: 7369 | K66: 0 | L66: 22
A67: 22 | B67: 7484 | C67: 14 | D67: 7498 | K67: 0 | L67: 21
A68: 11 | B68: 7640 | C68: 21 | D68: 7657 | K68: 0 | L68: 12
A69: 11 | B69: 7786 | C69: 21 | D69: 7797 | K69: 0 | L69: 12
A70: 22 | B70: 7901 | C70: 23 | D70: 7912 | K70: 0 | L70: 22
A71: 22 | B71: 8025 | C71: 14 | D71: 8039 | K71: 0 | L71: 21
A72: 22 | B72: 8149 | C72: 23 | D72: 8158 | K72: 0 | L72: 22
A73: 22 | B73: 8264 | C73: 23 | D73: 8269 | K73: 0 | L73: 22
A74: 22 | B74: 8377 | C74: 23 | D74: 8382 | K74: 0 | L74: 22
A75: 22 | B75: 8500 | C75: 23 | D75: 8544 | K75: 0 | L75: 22
A76: 22 | B76: 8659 | C76: 23 | D76: 8673 | K76: 0 | L76: 22
A77: 22 | B77: 8817 | C77: 14 | D77: 8850 | K77: 0 | L77: 21
A78: 22 | B78: 8960 | C78: 14 | D78: 8973 | K78: 0 | L78: 21
A79: 22 | B79: 9084 | C79: 23 | D79: 9100 | K79: 0 | L79: 22
A80: 22 | B80: 9207 | C80: 23 | D80: 9218 | K80: 0 | L80: 22
A81: 22 | B81: 9329 | C81: 23 | D81: 9339 | K81: 0 | L81: 22
A82: 22 | B82: 9450 | C82: 23 | D82: 9459 | K82: 0 | L82: 22
A83: 22 | B83: 9570 | C83: 14 | D83: 9594 | K83: 0 | L83: 21
A84: 22 | B84: 9704 | C84: 14 | D84: 9723 | K84: 0 | L84: 21
A85: 22 | B85: 9837 | C85: 14 | D85: 9850 | K85: 0 | L85: 21
A86: 11 | B86: 9980 | C86: 21 | D86: 9995 | K86: 0 | L86: 12
A87: 11 | B87: 10115 | C87: 21 | D87: 10129 | K87: 0 | L87: 12
A88: 22 | B88: 10227 | C88: 14 | D88: 10252 | K88: 0 | L88: 21
A89: 22 | B89: 10357 | C89: 23 | D89: 10376 | K89: 0 | L89: 22
A90: 22 | B90: 10493 | C90: 14 | D90: 10507 | K90: 0 | L90: 21
A91: 22 | B91: 10620 | C91: 14 | D91: 10631 | K91: 0 | L91: 21
A92: 22 | B92: 10736 | C92: 23 | D92: 10740 | K92: 0 | L92: 22
A93: 22 | B93: 10848 | C93: 14 | D93: 10865 | K93: 0 | L93: 21
A94: 22 | B94: 10973 | C94: 23 | D94: 11018 | K94: 0 | L94: 22
A95: 22 | B95: 11133 | C95: 14 | D95: 11199 | K95: 0 | L95: 21
A96: 22 | B96: 11315 | C96: 14 | D96: 11328 | K96: 0 | L96: 21
A97: 22 | B97: 11453 | C97: 14 | D97: 11469 | K97: 0 | L97: 21
A98: 22 | B98: 11583 | C98: 14 | D98: 11614 | K98: 0 | L98: 21
A99: 11 | B99: 11744 | C99: 21 | D99: 11766 | K99: 0 | L99: 12
A100: 22 | B100: 11860 | C100: 14 | D100: 11882 | K100: 0 | L100: 21
A101: 22 | B101: 11991 | C101: 14 | D101: 12013 | K101: 0 | L101: 21
A102: 22 | B102: 12117 | C102: 23 | D102: 12163 | K102: 0 | L102: 22
A103: 22 | B103: 12274 | C103: 23 | D103: 12311 | K103: 0 | L103: 22
A104: 11 | B104: 12448 | C104: 21 | D104: 12468 | K104: 0 | L104: 12
A105: 22 | B105: 12570 | C105: 23 | D105: 12613 | K105: 0 | L105: 22
A106: 22 | B106: 12720 | C106: 23 | D106: 12730 | K106: 0 | L106: 22
A107: 22 | B107: 12843 | C107: 23 | D107: 12852 | K107: 0 | L107: 22
A108: 22 | B108: 12962 | C108: 23 | D108: 12978 | K108: 0 | L108: 22
A109: 22 | B109: 13085 | C109: 23 | D109: 13090 | K109: 0 | L109: 22
A110: 22 | B110: 13203 | C110: 14 | D110: 13216 | K110: 0 | L110: 21
A111: 22 | B111: 13324 | C111: 14 | D111: 13340 | K111: 0 | L111: 21
A112: 22 | B112: 13452 | C112: 14 | D112: 13473 | K112: 0 | L112: 21
A113: 22 | B113: 13583 | C113: 14 | D113: 13597 | K113: 0 | L113: 21
A114: 22 | B114: 13712 | C114: 14 | D114: 13730 | K114: 0 | L114: 21
A115: 22 | B115: 13849 | C115: 14 | D115: 13862 | K115: 0 | L115: 21
A116: 22 | B116: 13979 | C116: 14 | D116: 13989 | K116: 0 | L116: 21
A117: 22 | B117: 14101 | C117: 14 | D117: 14115 | K117: 0 | L117: 21
A118: 11 | B118: 14245 | C118: 12 | D118: 14307 | K118: 0 | L118: 11
A119: 11 | B119: 14431 | C119: 21 | D119: 14445 | K119: 0 | L119: 12
A120: 22 | B120: 14545 | C120: 23 | D120: 14573 | K120: 0 | L120: 22
A121: 22 | B121: 14678 | C121: 23 | D121: 14687 | K121: 0 | L121: 22
A122: 11 | B122: 14811 | C122: 12 | D122: 14826 | K122: 0 | L122: 11
A123: 11 | B123: 14949 | C123: 21 | D123: 14974 | K123: 0 | L123: 12
A124: 22 | B124: 15080 | C124: 14 | D124: 15110 | K124: 0 | L124: 21
A125: 22 | B125: 15221 | C125: 23 | D125: 15225 | K125: 0 | L125: 22
A126: 22 | B126: 15333 | C126: 23 | D126: 15349 | K126: 0 | L126: 22
A127: 22 | B127: 15462 | C127: 23 | D127: 15474 | K127: 0 | L127: 22
A128: 22 | B128: 15584 | C128: 23 | D128: 15595 | K128: 0 | L128: 22
A129: 22 | B129: 15700 | C129: 14 | D129: 15713 | K129: 0 | L129: 21
A130: 22 | B130: 15824 | C130: 23 | D130: 15835 | K130: 0 | L130: 22
A131: 11 | B131: 15942 | C131: 12 | D131: 15950 | K131: 0 | L131: 11
A132: 22 | B132: 16059 | C132: 14 | D132: 16079 | K132: 0 | L132: 21
A133: 22 | B133: 16185 | C133: 14 | D133: 16208 | K133: 0 | L133: 21
A134: 22 | B134: 16319 | C134: 14 | D134: 16343 | K134: 0 | L134: 21
A135: 22 | B135: 16455 | C135: 14 | D135: 16466 | K135: 0 | L135: 21
A136: 22 | B136: 16572 | C136: 23 | D136: 16577 | K136: 0 | L136: 22
A137: 11 | B137: 16722 | C137: 12 | D137: 16738 | K137: 0 | L137: 11
A138: 22 | B138: 16846 | C138: 14 | D138: 16872 | K138: 0 | L138: 21
A139: 11 | B139: 17001 | C139: 21 | D139: 17012 | K139: 0 | L139: 12
A140: 11 | B140: 17130 | C140: 12 | D140: 17151 | K140: 0 | L140: 11
A141: 22 | B141: 17256 | C141: 14 | D141: 17276 | K141: 0 | L141: 21
A142: 22 | B142: 17397 | C142: 23 | D142: 17411 | K142: 0 | L142: 22
A143: 22 | B143: 17525 | C143: 14 | D143: 17535 | K143: 0 | L143: 21
A144: 22 | B144: 17648 | C144: 14 | D144: 17663 | K144: 0 | L144: 21
A145: 22 | B145: 17771 | C145: 23 | D145: 17781 | K145: 0 | L145: 22
A146: 22 | B146: 17890 | C146: 14 | D146: 17929 | K146: 0 | L146: 21
A147: 22 | B147: 18042 | C147: 23 | D147: 18049 | K147: 0 | L147: 22
A148: 22 | B148: 18159 | C148: 14 | D148: 18184 | K148: 0 | L148: 21
A149: 22 | B149: 18293 | C149: 23 | D149: 18304 | K149: 0 | L149: 22
A150: 22 | B150: 18420 | C150: 14 | D150: 18435 | K150: 0 | L150: 21
A151: 22 | B151: 18543 | C151: 23 | D151: 18554 | K151: 0 | L151: 22
A152: 22 | B152: 18664 | C152: 14 | D152: 18690 | K152: 0 | L152: 21
A153: 22 | B153: 18801 | C153: 14 | D153: 18824 | K153: 0 | L153: 21
A154: 22 | B154: 18929 | C154: 14 | D154: 18951 | K154: 0 | L154: 21
A155: 11 | B155: 19070 | C155: 12 | D155: 19102 | K155: 0 | L155: 11
A156: 11 | B156: 19242 | C156: 21 | D156: 19254 | K156: 0 | L156: 12
A157: 22 | B157: 19356 | C157: 14 | D157: 19367 | K157: 0 | L157: 21
A158: 22 | B158: 19480 | C158: 14 | D158: 19491 | K158: 0 | L158: 21
A159: 11 | B159: 19624 | C159: 21 | D159: 19651 | K159: 0 | L159: 12
A160: 11 | B160: 19765 | C160: 21 | D160: 19784 | K160: 0 | L160: 12
A161: 22 | B161: 19880 | C161: 14 | D161: 19894 | K161: 0 | L161: 21
A162: 22 | B162: 20001 | C162: 23 | D162: 20005 | K162: 0 | L162: 22
A163: 22 | B163: 20112 | C163: 14 | D163: 20127 | K163: 0 | L163: 21
A164: 22 | B164: 20245 | C164: 23 | D164: 20264 | K164: 0 | L164: 22
A165: 22 | B165: 20374 | C165: 23 | D165: 20384 | K165: 0 | L165: 22
A166: 22 | B166: 20497 | C166: 14 | D166: 20507 | K166: 0 | L166: 21
A167: 22 | B167: 20615 | C167: 23 | D167: 20625 | K167: 0 | L167: 22
A168: 22 | B168: 20736 | C168: 14 | D168: 20751 | K168: 0 | L168: 21
A169: 11 | B169: 20874 | C169: 12 | D169: 20893 | K169: 0 | L169: 11
A170: 22 | B170: 21002 | C170: 23 | D170: 21015 | K170: 0 | L170: 22
A171: 22 | B171: 21128 | C171: 14 | D171: 21144 | K171: 0 | L171: 21
A172: 22 | B172: 21253 | C172: 14 | D172: 21268 | K172: 0 | L172: 21
A173: 22 | B173: 21379 | C173: 23 | D173: 21387 | K173: 0 | L173: 22
A174: 22 | B174: 21497 | C174: 23 | D174: 21507 | K174: 0 | L174: 22
A175: 22 | B175: 21614 | C175: 14 | D175: 21628 | K175: 0 | L175: 21
A176: 22 | B176: 21736 | C176: 23 | D176: 21752 | K176: 0 | L176: 22
A177: 22 | B177: 21858 | C177: 14 | D177: 21868 | K177: 0 | L177: 21
A178: 22 | B178: 21990 | C178: 23 | D178: 22001 | K178: 0 | L178: 22
A179: 22 | B179: 22113 | C179: 14 | D179: 22123 | K179: 0 | L179: 21
A180: 22 | B180: 22229 | C180: 14 | D180: 22255 | K180: 0 | L180: 21
A181: 22 | B181: 22367 | C181: 23 | D181: 22384 | K181: 0 | L181: 22
A182: 22 | B182: 22492 | C182: 23 | D182: 22504 | K182: 0 | L182: 22
A183: 22 | B183: 22610 | C183: 23 | D183: 22626 | K183: 0 | L183: 22
A184: 22 | B184: 22735 | C184: 14 | D184: 22763 | K184: 0 | L184: 21
A185: 22 | B185: 22875 | C185: 23 | D185: 22890 | K185: 0 | L185: 22
A186: 11 | B186: 23011 | C186: 21 | D186: 23046 | K186: 0 | L186: 12
A187: 22 | B187: 23148 | C187: 23 | D187: 23160 | K187: 0 | L187: 22
A188: 22 | B188: 23276 | C188: 14 | D188: 23291 | K188: 0 | L188: 21
A189: 22 | B189: 23437 | C189: 23 | D189: 23475 | K189: 0 | L189: 22
A190: 22 | B190: 23593 | C190: 14 | D190: 23609 | K190: 0 | L190: 21
A191: 22 | B191: 23723 | C191: 23 | D191: 23737 | K191: 0 | L191: 22
A192: 22 | B192: 23846 | C192: 23 | D192: 23856 | K192: 0 | L192: 22
A193: 22 | B193: 23965 | C193: 23 | D193: 23978 | L193: 22

Sheet !MB30C20.105
A1: Report for:!MB30C20.105
A2: Date: | B2: <date>
A3: Hen: | B3: <hen> | F3: Correct Sequence | G3: =Start!J2 -> 12 | P3: Total Sequences in Data | Q3: =4994-COUNTBLANK(L7:L5000) -> 185 | V3: Total Sequences in Block Data | W3: =COUNTA(L7:L37) -> 31 | AA3: Total Sequences in Block Data | AB3: =COUNTA(L38:L68) -> 31 | AF3: Total Sequences in Block Data | AG3: =COUNTA(L69:L98) -> 30 | AK3: Total Sequences in Block Data | AL3: =COUNTA(L99:L129) -> 31 | AP3: Total Sequences in Block Data | AQ3: =COUNTA(L130:L160) -> 31 | AU3: Total Sequences in Block Data | AV3: =COUNTA(L161:L191) -> 31
P4: Total Sequences in Summary | Q4: =SUM(O7:O14) -> 185 | V4: Total Sequences in Block Summary | W4: =SUM(U7:U14) -> 31 | AA4: Total Sequences in Block Summary | AB4: =SUM(Z7:Z14) -> 31 | AF4: Total Sequences in Block Summary | AG4: =SUM(AE7:AE14) -> 30 | AK4: Total Sequences in Block Summary | AL4: =SUM(AJ7:AJ14) -> 31 | AP4: Total Sequences in Block Summary | AQ4: =SUM(AO7:AO14) -> 31 | AU4: Total Sequences in Block Summary | AV4: =SUM(AT7:AT14) -> 31
T5: Block 1 | Y5: Block 2 | AD5: Block 3 | AI5: Block 4 | AN5: Block 5 | AS5: Block 6
A6: Sequence Component 1 | B6: Time 1 | C6: Sequence Component 2 | D6: Time 2 | E6: Sequence Component 3 | F6: Time 3 | G6: Sequence Component 4 | H6: Time 4 | I6: Sequence Component 5 | J6: Time 5 | K6: Correct? 0=No 1=Yes | L6: Sequence | N6: Frequency | P6: Relative Frequency | Q6: Variability | T6: Frequency | V6: Relative Frequency | W6: Variability | Y6: Frequency | AA6: Relative Frequency | AB6: Variability | AD6: Frequency | AF6: Relative Frequency | AG6: Variability | AI6: Frequency | AK6: Relative Frequency | AL6: Variability | AN6: Frequency | AP6: Relative Frequency | AQ6: Variability | AS6: Frequency | AU6: Relative Frequency | AV6: Variability
A7: 11 | B7: 13 | C7: 21 | D7: 27 | K7: 0 | L7: 12 | N7: 11 | O7: =COUNTIF($L$7:$L$500,N7) -> 6 | P7: =O7/$Q$4 -> 0.03243243243 | Q7: =IF(P7=0,0,(P7*((LOG(P7))/LOG(2)))) -> -0.1604243987 | T7: =N7 -> 11 | U7: =COUNTIF(L7:L37,T7) -> 0 | V7: =U7/(W4-U8) -> 0 | W7: =IF(V7=0,0,(V7*((LOG(V7))/LOG(2)))) -> 0 | Y7: =N7 -> 11 | Z7: =COUNTIF(L38:L68,Y7) -> 1 | AA7: =Z7/(AB4-Z8) -> 0.03571428571 | AB7: =IF(AA7=0,0,(AA7*((LOG(AA7))/LOG(2)))) -> -0.1716912472 | AD7: =N7 -> 11 | AE7: =COUNTIF(L69:L98,AD7) -> 0 | AF7: =AE7/(AG4-AE8) -> 0 | AG7: =IF(AF7=0,0,(AF7*((LOG(AF7))/LOG(2)))) -> 0 | AI7: =N7 -> 11 | AJ7: =COUNTIF(L99:L129,AI7) -> 0 | AK7: =AJ7/(AL4-AJ8) -> 0 | AL7: =IF(AK7=0,0,(AK7*((LOG(AK7))/LOG(2)))) -> 0 | AN7: =N7 -> 11 | AO7: =COUNTIF(L130:L160,AN7) -> 2 | AP7: =AO7/(AQ4-AO8) -> 0.07407407407 | AQ7: =IF(AP7=0,0,(AP7*((LOG(AP7))/LOG(2)))) -> -0.278139815 | AS7: =N7 -> 11 | AT7: =COUNTIF(L161:L191,AS7) -> 3 | AU7: =AT7/(AV4-AT8) -> 0.12 | AV7: =IF(AU7=0,0,(AU7*((LOG(AU7))/LOG(2)))) -> -0.3670672427
A8: 22 | B8: 126 | C8: 23 | D8: 138 | K8: 0 | L8: 22 | N8: 12 | O8: =COUNTIF($L$7:$L$500,N8) -> 24 | P8: =O8/$Q$4 -> 0.1297297297 | Q8: =IF(P8=0,0,(P8*((LOG(P8))/LOG(2)))) -> -0.3822381353 | T8: =N8 -> 12 | U8: =COUNTIF(L7:L37,T8) -> 2 | Y8: =N8 -> 12 | Z8: =COUNTIF(L38:L68,Y8) -> 3 | AD8: =N8 -> 12 | AE8: =COUNTIF(L69:L98,AD8) -> 5 | AI8: =N8 -> 12 | AJ8: =COUNTIF(L99:L129,AI8) -> 4 | AN8: =N8 -> 12 | AO8: =COUNTIF(L130:L160,AN8) -> 4 | AS8: =N8 -> 12 | AT8: =COUNTIF(L161:L191,AS8) -> 6
A9: 11 | B9: 235 | C9: 21 | D9: 247 | K9: 0 | L9: 12 | N9: 21 | O9: =COUNTIF($L$7:$L$500,N9) -> 95 | P9: =O9/$Q$4 -> 0.5135135135 | Q9: =IF(P9=0,0,(P9*((LOG(P9))/LOG(2)))) -> -0.4937565187 | T9: =N9 -> 21 | U9: =COUNTIF(L7:L37,T9) -> 12 | V9: =U9/(W4-U8) -> 0.4137931034 | W9: =IF(V9=0,0,(V9*((LOG(V9))/LOG(2)))) -> -0.5267662735 | Y9: =N9 -> 21 | Z9: =COUNTIF(L38:L68,Y9) -> 13 | AA9: =Z9/(AB4-Z8) -> 0.4642857143 | AB9: =IF(AA9=0,0,(AA9*((LOG(AA9))/LOG(2)))) -> -0.5139249161 | AD9: =N9 -> 21 | AE9: =COUNTIF(L69:L98,AD9) -> 14 | AF9: =AE9/(AG4-AE8) -> 0.56 | AG9: =IF(AF9=0,0,(AF9*((LOG(AF9))/LOG(2)))) -> -0.4684407099 | AI9: =N9 -> 21 | AJ9: =COUNTIF(L99:L129,AI9) -> 17 | AK9: =AJ9/(AL4-AJ8) -> 0.6296296296 | AL9: =IF(AK9=0,0,(AK9*((LOG(AK9))/LOG(2)))) -> -0.4202303421 | AN9: =N9 -> 21 | AO9: =COUNTIF(L130:L160,AN9) -> 23 | AP9: =AO9/(AQ4-AO8) -> 0.8518518519 | AQ9: =IF(AP9=0,0,(AP9*((LOG(AP9))/LOG(2)))) -> -0.1970550948 | AS9: =N9 -> 21 | AT9: =COUNTIF(L161:L191,AS9) -> 16 | AU9: =AT9/(AV4-AT8) -> 0.64 | AV9: =IF(AU9=0,0,(AU9*((LOG(AU9))/LOG(2)))) -> -0.4120679615
A10: 22 | B10: 350 | C10: 23 | D10: 373 | K10: 0 | L10: 22 | N10: 22 | O10: =COUNTIF($L$7:$L$500,N10) -> 60 | P10: =O10/$Q$4 -> 0.3243243243 | Q10: =IF(P10=0,0,(P10*((LOG(P10))/LOG(2)))) -> -0.5268619021 | T10: =N10 -> 22 | U10: =COUNTIF(L7:L37,T10) -> 17 | V10: =U10/(W4-U8) -> 0.5862068966 | W10: =IF(V10=0,0,(V10*((LOG(V10))/LOG(2)))) -> -0.4516830557 | Y10: =N10 -> 22 | Z10: =COUNTIF(L38:L68,Y10) -> 14 | AA10: =Z10/(AB4-Z8) -> 0.5 | AB10: =IF(AA10=0,0,(AA10*((LOG(AA10))/LOG(2)))) -> -0.5 | AD10: =N10 -> 22 | AE10: =COUNTIF(L69:L98,AD10) -> 11 | AF10: =AE10/(AG4-AE8) -> 0.44 | AG10: =IF(AF10=0,0,(AF10*((LOG(AF10))/LOG(2)))) -> -0.5211468113 | AI10: =N10 -> 22 | AJ10: =COUNTIF(L99:L129,AI10) -> 10 | AK10: =AJ10/(AL4-AJ8) -> 0.3703703704 | AL10: =IF(AK10=0,0,(AK10*((LOG(AK10))/LOG(2)))) -> -0.5307257064 | AN10: =N10 -> 22 | AO10: =COUNTIF(L130:L160,AN10) -> 2 | AP10: =AO10/(AQ4-AO8) -> 0.07407407407 | AQ10: =IF(AP10=0,0,(AP10*((LOG(AP10))/LOG(2)))) -> -0.278139815 | AS10: =N10 -> 22 | AT10: =COUNTIF(L161:L191,AS10) -> 6 | AU10: =AT10/(AV4-AT8) -> 0.24 | AV10: =IF(AU10=0,0,(AU10*((LOG(AU10))/LOG(2)))) -> -0.4941344854
A11: 22 | B11: 478 | C11: 23 | D11: 486 | K11: 0 | L11: 22 | T11: =N11 -> 0 | U11: =COUNTIF(L7:L37,T11) -> 0 | V11: =U11/(W4-U8) -> 0 | W11: =IF(V11=0,0,(V11*((LOG(V11))/LOG(2)))) -> 0 | Y11: =N11 -> 0 | Z11: =COUNTIF(L38:L68,Y11) -> 0 | AA11: =Z11/(AB4-Z8) -> 0 | AB11: =IF(AA11=0,0,(AA11*((LOG(AA11))/LOG(2)))) -> 0 | AD11: =N11 -> 0 | AE11: =COUNTIF(L69:L98,AD11) -> 0 | AF11: =AE11/(AG4-AE8) -> 0 | AG11: =IF(AF11=0,0,(AF11*((LOG(AF11))/LOG(2)))) -> 0 | AI11: =N11 -> 0 | AJ11: =COUNTIF(L99:L129,AI11) -> 0 | AK11: =AJ11/(AL4-AJ8) -> 0 | AL11: =IF(AK11=0,0,(AK11*((LOG(AK11))/LOG(2)))) -> 0 | AN11: =N11 -> 0 | AO11: =COUNTIF(L130:L160,AN11) -> 0 | AP11: =AO11/(AQ4-AO8) -> 0 | AQ11: =IF(AP11=0,0,(AP11*((LOG(AP11))/LOG(2)))) -> 0 | AS11: =N11 -> 0 | AT11: =COUNTIF(L161:L191,AS11) -> 0 | AU11: =AT11/(AV4-AT8) -> 0 | AV11: =IF(AU11=0,0,(AU11*((LOG(AU11))/LOG(2)))) -> 0
A12: 22 | B12: 609 | C12: 23 | D12: 622 | K12: 0 | L12: 22 | T12: =N12 -> 0 | U12: =COUNTIF(L7:L37,T12) -> 0 | V12: =U12/(W4-U8) -> 0 | W12: =IF(V12=0,0,(V12*((LOG(V12))/LOG(2)))) -> 0 | Y12: =N12 -> 0 | Z12: =COUNTIF(L38:L68,Y12) -> 0 | AA12: =Z12/(AB4-Z8) -> 0 | AB12: =IF(AA12=0,0,(AA12*((LOG(AA12))/LOG(2)))) -> 0 | AD12: =N12 -> 0 | AE12: =COUNTIF(L69:L98,AD12) -> 0 | AF12: =AE12/(AG4-AE8) -> 0 | AG12: =IF(AF12=0,0,(AF12*((LOG(AF12))/LOG(2)))) -> 0 | AI12: =N12 -> 0 | AJ12: =COUNTIF(L99:L129,AI12) -> 0 | AK12: =AJ12/(AL4-AJ8) -> 0 | AL12: =IF(AK12=0,0,(AK12*((LOG(AK12))/LOG(2)))) -> 0 | AN12: =N12 -> 0 | AO12: =COUNTIF(L130:L160,AN12) -> 0 | AP12: =AO12/(AQ4-AO8) -> 0 | AQ12: =IF(AP12=0,0,(AP12*((LOG(AP12))/LOG(2)))) -> 0 | AS12: =N12 -> 0 | AT12: =COUNTIF(L161:L191,AS12) -> 0 | AU12: =AT12/(AV4-AT8) -> 0 | AV12: =IF(AU12=0,0,(AU12*((LOG(AU12))/LOG(2)))) -> 0
A13: 22 | B13: 726 | C13: 23 | D13: 734 | K13: 0 | L13: 22 | T13: =N13 -> 0 | U13: =COUNTIF(L7:L37,T13) -> 0 | V13: =U13/(W4-U8) -> 0 | W13: =IF(V13=0,0,(V13*((LOG(V13))/LOG(2)))) -> 0 | Y13: =N13 -> 0 | Z13: =COUNTIF(L38:L68,Y13) -> 0 | AA13: =Z13/(AB4-Z8) -> 0 | AB13: =IF(AA13=0,0,(AA13*((LOG(AA13))/LOG(2)))) -> 0 | AD13: =N13 -> 0 | AE13: =COUNTIF(L69:L98,AD13) -> 0 | AF13: =AE13/(AG4-AE8) -> 0 | AG13: =IF(AF13=0,0,(AF13*((LOG(AF13))/LOG(2)))) -> 0 | AI13: =N13 -> 0 | AJ13: =COUNTIF(L99:L129,AI13) -> 0 | AK13: =AJ13/(AL4-AJ8) -> 0 | AL13: =IF(AK13=0,0,(AK13*((LOG(AK13))/LOG(2)))) -> 0 | AN13: =N13 -> 0 | AO13: =COUNTIF(L130:L160,AN13) -> 0 | AP13: =AO13/(AQ4-AO8) -> 0 | AQ13: =IF(AP13=0,0,(AP13*((LOG(AP13))/LOG(2)))) -> 0 | AS13: =N13 -> 0 | AT13: =COUNTIF(L161:L191,AS13) -> 0 | AU13: =AT13/(AV4-AT8) -> 0 | AV13: =IF(AU13=0,0,(AU13*((LOG(AU13))/LOG(2)))) -> 0
A14: 22 | B14: 843 | C14: 23 | D14: 867 | K14: 0 | L14: 22 | T14: =N14 -> 0 | U14: =COUNTIF(L7:L37,T14) -> 0 | V14: =U14/(W4-U8) -> 0 | W14: =IF(V14=0,0,(V14*((LOG(V14))/LOG(2)))) -> 0 | Y14: =N14 -> 0 | Z14: =COUNTIF(L38:L68,Y14) -> 0 | AA14: =Z14/(AB4-Z8) -> 0 | AB14: =IF(AA14=0,0,(AA14*((LOG(AA14))/LOG(2)))) -> 0 | AD14: =N14 -> 0 | AE14: =COUNTIF(L69:L98,AD14) -> 0 | AF14: =AE14/(AG4-AE8) -> 0 | AG14: =IF(AF14=0,0,(AF14*((LOG(AF14))/LOG(2)))) -> 0 | AI14: =N14 -> 0 | AJ14: =COUNTIF(L99:L129,AI14) -> 0 | AK14: =AJ14/(AL4-AJ8) -> 0 | AL14: =IF(AK14=0,0,(AK14*((LOG(AK14))/LOG(2)))) -> 0 | AN14: =N14 -> 0 | AO14: =COUNTIF(L130:L160,AN14) -> 0 | AP14: =AO14/(AQ4-AO8) -> 0 | AQ14: =IF(AP14=0,0,(AP14*((LOG(AP14))/LOG(2)))) -> 0 | AS14: =N14 -> 0 | AT14: =COUNTIF(L161:L191,AS14) -> 0 | AU14: =AT14/(AV4-AT8) -> 0 | AV14: =IF(AU14=0,0,(AU14*((LOG(AU14))/LOG(2)))) -> 0
A15: 22 | B15: 975 | C15: 23 | D15: 999 | K15: 0 | L15: 22 | P15: =SUM(P7:P14) -> 1 | Q15: =-SUM(Q7:Q14) -> 1.563280955 | V15: =SUM(V7:V14) -> 1 | W15: =-SUM(W7:W14) -> 0.9784493293 | AA15: =SUM(AA7:AA14) -> 1 | AB15: =-SUM(AB7:AB14) -> 1.185616163 | AF15: =SUM(AF7:AF14) -> 1 | AG15: =-SUM(AG7:AG14) -> 0.9895875212 | AK15: =SUM(AK7:AK14) -> 1 | AL15: =-SUM(AL7:AL14) -> 0.9509560485 | AP15: =SUM(AP7:AP14) -> 1 | AQ15: =-SUM(AQ7:AQ14) -> 0.7533347248 | AU15: =SUM(AU7:AU14) -> 1 | AV15: =-SUM(AV7:AV14) -> 1.27326969
A16: 22 | B16: 1107 | C16: 14 | D16: 1116 | K16: 0 | L16: 21 | P16: U= | Q16: =Q15/(LOG(Q4)/LOG(2)) -> 0.2075689517 | V16: U1= | W16: =W15/(LOG(W4)/LOG(2)) -> 0.1974991034 | AA16: U2= | AB16: =AB15/(LOG(AB4)/LOG(2)) -> 0.2393155396 | AF16: U3= | AG16: =AG15/(LOG(AG4)/LOG(2)) -> 0.2016730355 | AK16: U4= | AL16: =AL15/(LOG(AL4)/LOG(2)) -> 0.1919496098 | AP16: U5= | AQ16: =AQ15/(LOG(AQ4)/LOG(2)) -> 0.1520599261 | AU16: U6= | AV16: =AV15/(LOG(AV4)/LOG(2)) -> 0.2570083238
A17: 22 | B17: 1222 | C17: 14 | D17: 1233 | K17: 0 | L17: 21
A18: 22 | B18: 1339 | C18: 23 | D18: 1350 | K18: 0 | L18: 22
A19: 22 | B19: 1456 | C19: 23 | D19: 1464 | K19: 0 | L19: 22 | N19: Total Target Seq
A20: 22 | B20: 1567 | C20: 14 | D20: 1593 | K20: 0 | L20: 21 | N20: =COUNTIF(L7:L191,G3) -> 24 | P20: 31 | Q20: 31 | R20: 30 | S20: 31 | T20: 31 | U20: 31
A21: 22 | B21: 1701 | C21: 23 | D21: 1718 | K21: 0 | L21: 22 | P21: % of reinforcement given in 6 equal intervals based on number of trials
A22: 22 | B22: 1830 | C22: 14 | D22: 1849 | K22: 0 | L22: 21 | P22: %_1 | Q22: %_2 | R22: %_3 | S22: %_4 | T22: %_5 | U22: %_6
A23: 22 | B23: 1962 | C23: 14 | D23: 1974 | K23: 0 | L23: 21 | O23: target sequence | P23: =$G$3 -> 12 | Q23: =$G$3 -> 12 | R23: =$G$3 -> 12 | S23: =$G$3 -> 12 | T23: =$G$3 -> 12 | U23: =$G$3 -> 12
A24: 22 | B24: 2082 | C24: 23 | D24: 2112 | K24: 0 | L24: 22 | O24: total reinforcement | P24: =U8 -> 2 | Q24: =Z8 -> 3 | R24: =AE8 -> 5 | S24: =AJ8 -> 4 | T24: =AO8 -> 4 | U24: =AT8 -> 6
A25: 22 | B25: 2225 | C25: 14 | D25: 2235 | K25: 0 | L25: 21 | O25: % target
A26: 22 | B26: 2347 | C26: 14 | D26: 2362 | K26: 0 | L26: 21 | O26: CCRF
A27: 22 | B27: 2470 | C27: 14 | D27: 2479 | K27: 0 | L27: 21 | O27: % CCRf
A28: 22 | B28: 2586 | C28: 14 | D28: 2604 | K28: 0 | L28: 21 | O28: average response rate | P28: =D37/P20 -> 118.516129 | Q28: =(D68-D37)/Q20 -> 131.2580645 | R28: =(D98-D68)/R20 -> 132.4 | S28: =(D129-D98)/S20 -> 129.6774194 | T28: =(D160-D129)/T20 -> 130.5483871 | U28: =(D191-D160)/U20 -> 132.7419355
A29: 22 | B29: 2710 | C29: 23 | D29: 2718 | K29: 0 | L29: 22
A30: 22 | B30: 2823 | C30: 23 | D30: 2838 | K30: 0 | L30: 22
A31: 22 | B31: 2952 | C31: 14 | D31: 2963 | K31: 0 | L31: 21
A32: 22 | B32: 3071 | C32: 14 | D32: 3092 | K32: 0 | L32: 21
A33: 22 | B33: 3200 | C33: 23 | D33: 3210 | K33: 0 | L33: 22
A34: 22 | B34: 3317 | C34: 23 | D34: 3328 | K34: 0 | L34: 22
A35: 22 | B35: 3437 | C35: 23 | D35: 3444 | K35: 0 | L35: 22
A36: 22 | B36: 3550 | C36: 23 | D36: 3554 | K36: 0 | L36: 22
A37: 22 | B37: 3665 | C37: 14 | D37: 3674 | K37: 0 | L37: 21
A38: 22 | B38: 3781 | C38: 23 | D38: 3786 | K38: 0 | L38: 22
A39: 22 | B39: 3897 | C39: 23 | D39: 3911 | K39: 0 | L39: 22
A40: 22 | B40: 4020 | C40: 23 | D40: 4027 | K40: 0 | L40: 22
A41: 22 | B41: 4143 | C41: 14 | D41: 4158 | K41: 0 | L41: 21
A42: 22 | B42: 4274 | C42: 14 | D42: 4287 | K42: 0 | L42: 21
A43: 22 | B43: 4393 | C43: 23 | D43: 4403 | K43: 0 | L43: 22
A44: 22 | B44: 4510 | C44: 23 | D44: 4522 | K44: 0 | L44: 22
A45: 22 | B45: 4632 | C45: 14 | D45: 4658 | K45: 0 | L45: 21
A46: 22 | B46: 4773 | C46: 14 | D46: 4783 | K46: 0 | L46: 21
A47: 22 | B47: 4894 | C47: 23 | D47: 4899 | K47: 0 | L47: 22
A48: 22 | B48: 5010 | C48: 14 | D48: 5025 | K48: 0 | L48: 21
A49: 11 | B49: 5150 | C49: 12 | D49: 5180 | K49: 0 | L49: 11
A50: 11 | B50: 5297 | C50: 21 | D50: 5312 | K50: 0 | L50: 12
A51: 22 | B51: 5412 | C51: 14 | D51: 5422 | K51: 0 | L51: 21
A52: 22 | B52: 5546 | C52: 23 | D52: 5582 | K52: 0 | L52: 22
A53: 22 | B53: 5705 | C53: 23 | D53: 5733 | K53: 0 | L53: 22
A54: 22 | B54: 5843 | C54: 23 | D54: 5848 | K54: 0 | L54: 22
A55: 22 | B55: 5958 | C55: 23 | D55: 5968 | K55: 0 | L55: 22
A56: 11 | B56: 6091 | C56: 21 | D56: 6105 | K56: 0 | L56: 12
A57: 22 | B57: 6243 | C57: 23 | D57: 6272 | K57: 0 | L57: 22
A58: 22 | B58: 6383 | C58: 23 | D58: 6392 | K58: 0 | L58: 22
A59: 22 | B59: 6506 | C59: 14 | D59: 6516 | K59: 0 | L59: 21
A60: 22 | B60: 6627 | C60: 23 | D60: 6687 | K60: 0 | L60: 22
A61: 22 | B61: 6803 | C61: 14 | D61: 6813 | K61: 0 | L61: 21
A62: 22 | B62: 6949 | C62: 14 | D62: 6992 | K62: 0 | L62: 21
A63: 11 | B63: 7114 | C63: 21 | D63: 7128 | K63: 0 | L63: 12
A64: 22 | B64: 7232 | C64: 14 | D64: 7242 | K64: 0 | L64: 21
A65: 22 | B65: 7352 | C65: 14 | D65: 7362 | K65: 0 | L65: 21
A66: 22 | B66: 7473 | C66: 14 | D66: 7485 | K66: 0 | L66: 21
A67: 22 | B67: 7593 | C67: 23 | D67: 7620 | K67: 0 | L67: 22
A68: 22 | B68: 7734 | C68: 14 | D68: 7743 | K68: 0 | L68: 21
A69: 11 | B69: 7864 | C69: 21 | D69: 7889 | K69: 0 | L69: 12
A70: 22 | B70: 8018 | C70: 23 | D70: 8038 | K70: 0 | L70: 22
A71: 22 | B71: 8173 | C71: 23 | D71: 8227 | K71: 0 | L71: 22
A72: 22 | B72: 8337 | C72: 14 | D72: 8347 | K72: 0 | L72: 21
A73: 22 | B73: 8458 | C73: 14 | D73: 8473 | K73: 0 | L73: 21
A74: 22 | B74: 8583 | C74: 14 | D74: 8593 | K74: 0 | L74: 21
A75: 22 | B75: 8705 | C75: 14 | D75: 8716 | K75: 0 | L75: 21
A76: 22 | B76: 8826 | C76: 14 | D76: 8836 | K76: 0 | L76: 21
A77: 22 | B77: 8947 | C77: 23 | D77: 8951 | K77: 0 | L77: 22
A78: 22 | B78: 9070 | C78: 14 | D78: 9083 | K78: 0 | L78: 21
A79: 22 | B79: 9193 | C79: 14 | D79: 9203 | K79: 0 | L79: 21
A80: 22 | B80: 9316 | C80: 14 | D80: 9327 | K80: 0 | L80: 21
A81: 22 | B81: 9438 | C81: 14 | D81: 9449 | K81: 0 | L81: 21
A82: 22 | B82: 9559 | C82: 14 | D82: 9570 | K82: 0 | L82: 21
A83: 11 | B83: 9692 | C83: 21 | D83: 9705 | K83: 0 | L83: 12
A84: 11 | B84: 9821 | C84: 21 | D84: 9835 | K84: 0 | L84: 12
A85: 22 | B85: 9970 | C85: 23 | D85: 10029 | K85: 0 | L85: 22
A86: 22 | B86: 10140 | C86: 23 | D86: 10150 | K86: 0 | L86: 22
A87: 22 | B87: 10267 | C87: 23 | D87: 10293 | K87: 0 | L87: 22
A88: 22 | B88: 10411 | C88: 23 | D88: 10438 | K88: 0 | L88: 22
A89: 22 | B89: 10549 | C89: 14 | D89: 10560 | K89: 0 | L89: 21
A90: 22 | B90: 10671 | C90: 23 | D90: 10679 | K90: 0 | L90: 22
A91: 22 | B91: 10786 | C91: 23 | D91: 10791 | K91: 0 | L91: 22
A92: 22 | B92: 10902 | C92: 14 | D92: 10915 | K92: 0 | L92: 21
A93: 11 | B93: 11046 | C93: 21 | D93: 11061 | K93: 0 | L93: 12
A94: 22 | B94: 11161 | C94: 23 | D94: 11192 | K94: 0 | L94: 22
A95: 22 | B95: 11300 | C95: 23 | D95: 11308 | K95: 0 | L95: 22
A96: 22 | B96: 11425 | C96: 14 | D96: 11449 | K96: 0 | L96: 21
A97: 11 | B97: 11576 | C97: 21 | D97: 11600 | K97: 0 | L97: 12
A98: 22 | B98: 11703 | C98: 14 | D98: 11715 | K98: 0 | L98: 21
A99: 22 | B99: 11820 | C99: 14 | D99: 11835 | K99: 0 | L99: 21
A100: 22 | B100: 11945 | C100: 14 | D100: 11956 | K100: 0 | L100: 21
A101: 22 | B101: 12063 | C101: 14 | D101: 12074 | K101: 0 | L101: 21
A102: 22 | B102: 12183 | C102: 14 | D102: 12198 | K102: 0 | L102: 21
A103: 22 | B103: 12307 | C103: 23 | D103: 12314 | K103: 0 | L103: 22
A104: 22 | B104: 12435 | C104: 14 | D104: 12450 | K104: 0 | L104: 21
A105: 22 | B105: 12560 | C105: 14 | D105: 12584 | K105: 0 | L105: 21
A106: 22 | B106: 12694 | C106: 14 | D106: 12705 | K106: 0 | L106: 21
A107: 22 | B107: 12813 | C107: 14 | D107: 12823 | K107: 0 | L107: 21
A108: 11 | B108: 12943 | C108: 21 | D108: 12953 | K108: 0 | L108: 12
A109: 22 | B109: 13055 | C109: 14 | D109: 13065 | K109: 0 | L109: 21
A110: 22 | B110: 13175 | C110: 14 | D110: 13186 | K110: 0 | L110: 21
A111: 22 | B111: 13294 | C111: 14 | D111: 13304 | K111: 0 | L111: 21
A112: 22 | B112: 13412 | C112: 14 | D112: 13423 | K112: 0 | L112: 21
A113: 22 | B113: 13534 | C113: 14 | D113: 13547 | K113: 0 | L113: 21
A114: 22 | B114: 13657 | C114: 14 | D114: 13673 | K114: 0 | L114: 21
A115: 22 | B115: 13785 | C115: 23 | D115: 13813 | K115: 0 | L115: 22
A116: 22 | B116: 13922 | C116: 14 | D116: 13947 | K116: 0 | L116: 21
A117: 11 | B117: 14065 | C117: 21 | D117: 14079 | K117: 0 | L117: 12
A118: 22 | B118: 14216 | C118: 23 | D118: 14245 | K118: 0 | L118: 22
A119: 22 | B119: 14361 | C119: 14 | D119: 14372 | K119: 0 | L119: 21
A120: 11 | B120: 14496 | C120: 21 | D120: 14538 | K120: 0 | L120: 12
A121: 22 | B121: 14649 | C121: 23 | D121: 14680 | K121: 0 | L121: 22
A122: 22 | B122: 14793 | C122: 23 | D122: 14814 | K122: 0 | L122: 22
A123: 22 | B123: 14924 | C123: 23 | D123: 14951 | K123: 0 | L123: 22
A124: 22 | B124: 15065 | C124: 14 | D124: 15076 | K124: 0 | L124: 21
A125: 22 | B125: 15183 | C125: 23 | D125: 15193 | K125: 0 | L125: 22
A126: 11 | B126: 15318 | C126: 21 | D126: 15334 | K126: 0 | L126: 12
A127: 22 | B127: 15433 | C127: 23 | D127: 15445 | K127: 0 | L127: 22
A128: 22 | B128: 15571 | C128: 23 | D128: 15596 | K128: 0 | L128: 22
A129: 22 | B129: 15708 | C129: 23 | D129: 15735 | K129: 0 | L129: 22
A130: 22 | B130: 15850 | C130: 23 | D130: 15876 | K130: 0 | L130: 22
A131: 22 | B131: 15987 | C131: 14 | D131: 16000 | K131: 0 | L131: 21
A132: 22 | B132: 16110 | C132: 14 | D132: 16123 | K132: 0 | L132: 21
A133: 22 | B133: 16248 | C133: 23 | D133: 16278 | K133: 0 | L133: 22
A134: 11 | B134: 16406 | C134: 21 | D134: 16419 | K134: 0 | L134: 12
A135: 22 | B135: 16523 | C135: 14 | D135: 16536 | K135: 0 | L135: 21
A136: 22 | B136: 16649 | C136: 14 | D136: 16661 | K136: 0 | L136: 21
A137: 11 | B137: 16784 | C137: 21 | D137: 16805 | K137: 0 | L137: 12
A138: 11 | B138: 16919 | C138: 21 | D138: 16937 | K138: 0 | L138: 12
A139: 22 | B139: 17051 | C139: 14 | D139: 17065 | K139: 0 | L139: 21
A140: 22 | B140: 17186 | C140: 14 | D140: 17206 | K140: 0 | L140: 21
A141: 22 | B141: 17336 | C141: 14 | D141: 17352 | K141: 0 | L141: 21
A142: 22 | B142: 17471 | C142: 14 | D142: 17486 | K142: 0 | L142: 21
A143: 22 | B143: 17596 | C143: 14 | D143: 17606 | K143: 0 | L143: 21
A144: 22 | B144: 17715 | C144: 14 | D144: 17730 | K144: 0 | L144: 21
A145: 11 | B145: 17861 | C145: 12 | D145: 17878 | K145: 0 | L145: 11
A146: 22 | B146: 17988 | C146: 14 | D146: 17999 | K146: 0 | L146: 21
A147: 22 | B147: 18107 | C147: 14 | D147: 18126 | K147: 0 | L147: 21
A148: 22 | B148: 18236 | C148: 14 | D148: 18247 | K148: 0 | L148: 21
A149: 22 | B149: 18367 | C149: 14 | D149: 18382 | K149: 0 | L149: 21
A150: 22 | B150: 18497 | C150: 14 | D150: 18508 | K150: 0 | L150: 21
A151: 22 | B151: 18615 | C151: 14 | D151: 18629 | K151: 0 | L151: 21
A152: 11 | B152: 18761 | C152: 21 | D152: 18778 | K152: 0 | L152: 12
A153: 22 | B153: 18879 | C153: 14 | D153: 18892 | K153: 0 | L153: 21
A154: 22 | B154: 19002 | C154: 14 | D154: 19013 | K154: 0 | L154: 21
A155: 22 | B155: 19120 | C155: 14 | D155: 19132 | K155: 0 | L155: 21
A156: 11 | B156: 19266 | C156: 12 | D156: 19286 | K156: 0 | L156: 11
A157: 22 | B157: 19395 | C157: 14 | D157: 19406 | K157: 0 | L157: 21
A158: 22 | B158: 19517 | C158: 14 | D158: 19538 | K158: 0 | L158: 21
A159: 22 | B159: 19647 | C159: 14 | D159: 19660 | K159: 0 | L159: 21
A160: 22 | B160: 19768 | C160: 14 | D160: 19782 | K160: 0 | L160: 21
A161: 11 | B161: 19906 | C161: 21 | D161: 19922 | K161: 0 | L161: 12
A162: 22 | B162: 20021 | C162: 14 | D162: 20031 | K162: 0 | L162: 21
A163: 11 | B163: 20161 | C163: 12 | D163: 20176 | K163: 0 | L163: 11
A164: 22 | B164: 20287 | C164: 14 | D164: 20301 | K164: 0 | L164: 21
A165: 22 | B165: 20409 | C165: 14 | D165: 20420 | K165: 0 | L165: 21
A166: 11 | B166: 20541 | C166: 21 | D166: 20560 | K166: 0 | L166: 12
A167: 22 | B167: 20664 | C167: 14 | D167: 20675 | K167: 0 | L167: 21
A168: 11 | B168: 20810 | C168: 12 | D168: 20828 | K168: 0 | L168: 11
A169: 22 | B169: 20936 | C169: 14 | D169: 20962 | K169: 0 | L169: 21
A170: 11 | B170: 21085 | C170: 21 | D170: 21102 | K170: 0 | L170: 12
A171: 22 | B171: 21201 | C171: 14 | D171: 21212 | K171: 0 | L171: 21
A172: 22 | B172: 21327 | C172: 14 | D172: 21342 | K172: 0 | L172: 21
A173: 11 | B173: 21465 | C173: 21 | D173: 21493 | K173: 0 | L173: 12
A174: 22 | B174: 21591 | C174: 23 | D174: 21605 | K174: 0 | L174: 22
A175: 22 | B175: 21713 | C175: 14 | D175: 21734 | K175: 0 | L175: 21
A176: 22 | B176: 21845 | C176: 14 | D176: 21862 | K176: 0 | L176: 21
A177: 22 | B177: 21971 | C177: 23 | D177: 21985 | K177: 0 | L177: 22
A178: 22 | B178: 22098 | C178: 14 | D178: 22113 | K178: 0 | L178: 21
A179: 22 | B179: 22237 | C179: 14 | D179: 22272 | K179: 0 | L179: 21
A180: 22 | B180: 22378 | C180: 14 | D180: 22408 | K180: 0 | L180: 21
A181: 22 | B181: 22542 | C181: 14 | D181: 22559 | K181: 0 | L181: 21
A182: 11 | B182: 22687 | C182: 21 | D182: 22700 | K182: 0 | L182: 12
A183: 11 | B183: 22812 | C183: 12 | D183: 22845 | K183: 0 | L183: 11
A184: 22 | B184: 22978 | C184: 14 | D184: 22998 | K184: 0 | L184: 21
A185: 22 | B185: 23107 | C185: 14 | D185: 23147 | K185: 0 | L185: 21
A186: 22 | B186: 23251 | C186: 23 | D186: 23262 | K186: 0 | L186: 22
A187: 22 | B187: 23369 | C187: 23 | D187: 23382 | K187: 0 | L187: 22
A188: 11 | B188: 23508 | C188: 21 | D188: 23521 | K188: 0 | L188: 12
A189: 22 | B189: 23621 | C189: 23 | D189: 23639 | K189: 0 | L189: 22
A190: 22 | B190: 23753 | C190: 14 | D190: 23772 | K190: 0 | L190: 21
A191: 22 | B191: 23882 | C191: 23 | D191: 23897 | K191: 0 | L191: 22

Sheet !MC01B50.105
A1: Report for:!MC01B50.105
A2: Date: | B2: <date>
A3: Hen: | B3: <hen> | F3: Correct Sequence | G3: =Start!J2 -> 12 | P3: Total Sequences in Data | Q3: =4994-COUNTBLANK(L7:L5000) -> 160 | V3: Total Sequences in Block Data | W3: =COUNTA(L7:L33) -> 27 | AA3: Total Sequences in Block Data | AB3: =COUNTA(L34:L59) -> 26 | AF3: Total Sequences in Block Data | AG3: =COUNTA(L60:L86) -> 27 | AK3: Total Sequences in Block Data | AL3: =COUNTA(L87:L113) -> 27 | AP3: Total Sequences in Block Data | AQ3: =COUNTA(L114:L139) -> 26 | AU3: Total Sequences in Block Data | AV3: =COUNTA(L140:L166) -> 27
P4: Total Sequences in Summary | Q4: =SUM(O7:O14) -> 160 | V4: Total Sequences in Block Summary | W4: =SUM(U7:U14) -> 27 | AA4: Total Sequences in Block Summary | AB4: =SUM(Z7:Z14) -> 26 | AF4: Total Sequences in Block Summary | AG4: =SUM(AE7:AE14) -> 27 | AK4: Total Sequences in Block Summary | AL4: =SUM(AJ7:AJ14) -> 27 | AP4: Total Sequences in Block Summary | AQ4: =SUM(AO7:AO14) -> 26 | AU4: Total Sequences in Block Summary | AV4: =SUM(AT7:AT14) -> 27
T5: Block 1 | Y5: Block 2 | AD5: Block 3 | AI5: Block 4 | AN5: Block 5 | AS5: Block 6
A6: Sequence Component 1 | B6: Time 1 | C6: Sequence Component 2 | D6: Time 2 | E6: Sequence Component 3 | F6: Time 3 | G6: Sequence Component 4 | H6: Time 4 | I6: Sequence Component 5 | J6: Time 5 | K6: Correct? 0=No 1=Yes | L6: Sequence | N6: Frequency | P6: Relative Frequency | Q6: Variability | T6: Frequency | V6: Relative Frequency | W6: Variability | Y6: Frequency | AA6: Relative Frequency | AB6: Variability | AD6: Frequency | AF6: Relative Frequency | AG6: Variability | AI6: Frequency | AK6: Relative Frequency | AL6: Variability | AN6: Frequency | AP6: Relative Frequency | AQ6: Variability | AS6: Frequency | AU6: Relative Frequency | AV6: Variability
A7: 22 | B7: 14 | C7: 14 | D7: 24 | K7: 0 | L7: 21 | N7: 11 | O7: =COUNTIF($L$7:$L$500,N7) -> 4 | P7: =O7/$Q$4 -> 0.025 | Q7: =IF(P7=0,0,(P7*((LOG(P7))/LOG(2)))) -> -0.1330482024 | T7: =N7 -> 11 | U7: =COUNTIF(L7:L33,T7) -> 0 | V7: =U7/(W4-U8) -> 0 | W7: =IF(V7=0,0,(V7*((LOG(V7))/LOG(2)))) -> 0 | Y7: =N7 -> 11 | Z7: =COUNTIF(L34:L59,Y7) -> 0 | AA7: =Z7/(AB4-Z8) -> 0 | AB7: =IF(AA7=0,0,(AA7*((LOG(AA7))/LOG(2)))) -> 0 | AD7: =N7 -> 11 | AE7: =COUNTIF(L60:L86,AD7) -> 0 | AF7: =AE7/(AG4-AE8) -> 0 | AG7: =IF(AF7=0,0,(AF7*((LOG(AF7))/LOG(2)))) -> 0 | AI7: =N7 -> 11 | AJ7: =COUNTIF(L87:L113,AI7) -> 2 | AK7: =AJ7/(AL4-AJ8) -> 0.09523809524 | AL7: =IF(AK7=0,0,(AK7*((LOG(AK7))/LOG(2)))) -> -0.3230778498 | AN7: =N7 -> 11 | AO7: =COUNTIF(L114:L139,AN7) -> 0 | AP7: =AO7/(AQ4-AO8) -> 0 | AQ7: =IF(AP7=0,0,(AP7*((LOG(AP7))/LOG(2)))) -> 0 | AS7: =N7 -> 11 | AT7: =COUNTIF(L140:L166,AS7) -> 2 | AU7: =AT7/(AV4-AT8) -> 0.1333333333 | AV7: =IF(AU7=0,0,(AU7*((LOG(AU7))/LOG(2)))) -> -0.3875854127
A8: 22 | B8: 164 | C8: 23 | D8: 170 | K8: 0 | L8: 22 | N8: 12 | O8: =COUNTIF($L$7:$L$500,N8) -> 39 | P8: =O8/$Q$4 -> 0.24375 | Q8: =IF(P8=0,0,(P8*((LOG(P8))/LOG(2)))) -> -0.4964031823 | T8: =N8 -> 12 | U8: =COUNTIF(L7:L33,T8) -> 2 | Y8: =N8 -> 12 | Z8: =COUNTIF(L34:L59,Y8) -> 6 | AD8: =N8 -> 12 | AE8: =COUNTIF(L60:L86,AD8) -> 3 | AI8: =N8 -> 12 | AJ8: =COUNTIF(L87:L113,AI8) -> 6 | AN8: =N8 -> 12 | AO8: =COUNTIF(L114:L139,AN8) -> 10 | AS8: =N8 -> 12 | AT8: =COUNTIF(L140:L166,AS8) -> 12
A9: 22 | B9: 281 | C9: 23 | D9: 294 | K9: 0 | L9: 22 | N9: 21 | O9: =COUNTIF($L$7:$L$500,N9) -> 58 | P9: =O9/$Q$4 -> 0.3625 | Q9: =IF(P9=0,0,(P9*((LOG(P9))/LOG(2)))) -> -0.5306808237 | T9: =N9 -> 21 | U9: =COUNTIF(L7:L33,T9) -> 7 | V9: =U9/(W4-U8) -> 0.28 | W9: =IF(V9=0,0,(V9*((LOG(V9))/LOG(2)))) -> -0.514220355 | Y9: =N9 -> 21 | Z9: =COUNTIF(L34:L59,Y9) -> 10 | AA9: =Z9/(AB4-Z8) -> 0.5 | AB9: =IF(AA9=0,0,(AA9*((LOG(AA9))/LOG(2)))) -> -0.5 | AD9: =N9 -> 21 | AE9: =COUNTIF(L60:L86,AD9) -> 12 | AF9: =AE9/(AG4-AE8) -> 0.5 | AG9: =IF(AF9=0,0,(AF9*((LOG(AF9))/LOG(2)))) -> -0.5 | AI9: =N9 -> 21 | AJ9: =COUNTIF(L87:L113,AI9) -> 12 | AK9: =AJ9/(AL4-AJ8) -> 0.5714285714 | AL9: =IF(AK9=0,0,(AK9*((LOG(AK9))/LOG(2)))) -> -0.4613456697 | AN9: =N9 -> 21 | AO9: =COUNTIF(L114:L139,AN9) -> 8 | AP9: =AO9/(AQ4-AO8) -> 0.5 | AQ9: =IF(AP9=0,0,(AP9*((LOG(AP9))/LOG(2)))) -> -0.5 | AS9: =N9 -> 21 | AT9: =COUNTIF(L140:L166,AS9) -> 9 | AU9: =AT9/(AV4-AT8) -> 0.6 | AV9: =IF(AU9=0,0,(AU9*((LOG(AU9))/LOG(2)))) -> -0.4421793565
A10: 22 | B10: 405 | C10: 23 | D10: 428 | K10: 0 | L10: 22 | N10: 22 | O10: =COUNTIF($L$7:$L$500,N10) -> 59 | P10: =O10/$Q$4 -> 0.36875 | Q10: =IF(P10=0,0,(P10*((LOG(P10))/LOG(2)))) -> -0.5307363605 | T10: =N10 -> 22 | U10: =COUNTIF(L7:L33,T10) -> 18 | V10: =U10/(W4-U8) -> 0.72 | W10: =IF(V10=0,0,(V10*((LOG(V10))/LOG(2)))) -> -0.3412304556 | Y10: =N10 -> 22 | Z10: =COUNTIF(L34:L59,Y10) -> 10 | AA10: =Z10/(AB4-Z8) -> 0.5 | AB10: =IF(AA10=0,0,(AA10*((LOG(AA10))/LOG(2)))) -> -0.5 | AD10: =N10 -> 22 | AE10: =COUNTIF(L60:L86,AD10) -> 12 | AF10: =AE10/(AG4-AE8) -> 0.5 | AG10: =IF(AF10=0,0,(AF10*((LOG(AF10))/LOG(2)))) -> -0.5 | AI10: =N10 -> 22 | AJ10: =COUNTIF(L87:L113,AI10) -> 7 | AK10: =AJ10/(AL4-AJ8) -> 0.3333333333 | AL10: =IF(AK10=0,0,(AK10*((LOG(AK10))/LOG(2)))) -> -0.5283208336 | AN10: =N10 -> 22 | AO10: =COUNTIF(L114:L139,AN10) -> 8 | AP10: =AO10/(AQ4-AO8) -> 0.5 | AQ10: =IF(AP10=0,0,(AP10*((LOG(AP10))/LOG(2)))) -> -0.5 | AS10: =N10 -> 22 | AT10: =COUNTIF(L140:L166,AS10) -> 4 | AU10: =AT10/(AV4-AT8) -> 0.2666666667 | AV10: =IF(AU10=0,0,(AU10*((LOG(AU10))/LOG(2)))) -> -0.5085041588
A11: 22 | B11: 546 | C11: 23 | D11: 569 | K11: 0 | L11: 22 | T11: =N11 -> 0 | U11: =COUNTIF(L7:L33,T11) -> 0 | V11: =U11/(W4-U8) -> 0 | W11: =IF(V11=0,0,(V11*((LOG(V11))/LOG(2)))) -> 0 | Y11: =N11 -> 0 | Z11: =COUNTIF(L34:L59,Y11) -> 0 | AA11: =Z11/(AB4-Z8) -> 0 | AB11: =IF(AA11=0,0,(AA11*((LOG(AA11))/LOG(2)))) -> 0 | AD11: =N11 -> 0 | AE11: =COUNTIF(L60:L86,AD11) -> 0 | AF11: =AE11/(AG4-AE8) -> 0 | AG11: =IF(AF11=0,0,(AF11*((LOG(AF11))/LOG(2)))) -> 0 | AI11: =N11 -> 0 | AJ11: =COUNTIF(L87:L113,AI11) -> 0 | AK11: =AJ11/(AL4-AJ8) -> 0 | AL11: =IF(AK11=0,0,(AK11*((LOG(AK11))/LOG(2)))) -> 0 | AN11: =N11 -> 0 | AO11: =COUNTIF(L114:L139,AN11) -> 0 | AP11: =AO11/(AQ4-AO8) -> 0 | AQ11: =IF(AP11=0,0,(AP11*((LOG(AP11))/LOG(2)))) -> 0 | AS11: =N11 -> 0 | AT11: =COUNTIF(L140:L166,AS11) -> 0 | AU11: =AT11/(AV4-AT8) -> 0 | AV11: =IF(AU11=0,0,(AU11*((LOG(AU11))/LOG(2)))) -> 0
A12: 22 | B12: 678 | C12: 23 | D12: 707 | K12: 0 | L12: 22 | T12: =N12 -> 0 | U12: =COUNTIF(L7:L33,T12) -> 0 | V12: =U12/(W4-U8) -> 0 | W12: =IF(V12=0,0,(V12*((LOG(V12))/LOG(2)))) -> 0 | Y12: =N12 -> 0 | Z12: =COUNTIF(L34:L59,Y12) -> 0 | AA12: =Z12/(AB4-Z8) -> 0 | AB12: =IF(AA12=0,0,(AA12*((LOG(AA12))/LOG(2)))) -> 0 | AD12: =N12 -> 0 | AE12: =COUNTIF(L60:L86,AD12) -> 0 | AF12: =AE12/(AG4-AE8) -> 0 | AG12: =IF(AF12=0,0,(AF12*((LOG(AF12))/LOG(2)))) -> 0 | AI12: =N12 -> 0 | AJ12: =COUNTIF(L87:L113,AI12) -> 0 | AK12: =AJ12/(AL4-AJ8) -> 0 | AL12: =IF(AK12=0,0,(AK12*((LOG(AK12))/LOG(2)))) -> 0 | AN12: =N12 -> 0 | AO12: =COUNTIF(L114:L139,AN12) -> 0 | AP12: =AO12/(AQ4-AO8) -> 0 | AQ12: =IF(AP12=0,0,(AP12*((LOG(AP12))/LOG(2)))) -> 0 | AS12: =N12 -> 0 | AT12: =COUNTIF(L140:L166,AS12) -> 0 | AU12: =AT12/(AV4-AT8) -> 0 | AV12: =IF(AU12=0,0,(AU12*((LOG(AU12))/LOG(2)))) -> 0
A13: 22 | B13: 817 | C13: 23 | D13: 831 | K13: 0 | L13: 22 | T13: =N13 -> 0 | U13: =COUNTIF(L7:L33,T13) -> 0 | V13: =U13/(W4-U8) -> 0 | W13: =IF(V13=0,0,(V13*((LOG(V13))/LOG(2)))) -> 0 | Y13: =N13 -> 0 | Z13: =COUNTIF(L34:L59,Y13) -> 0 | AA13: =Z13/(AB4-Z8) -> 0 | AB13: =IF(AA13=0,0,(AA13*((LOG(AA13))/LOG(2)))) -> 0 | AD13: =N13 -> 0 | AE13: =COUNTIF(L60:L86,AD13) -> 0 | AF13: =AE13/(AG4-AE8) -> 0 | AG13: =IF(AF13=0,0,(AF13*((LOG(AF13))/LOG(2)))) -> 0 | AI13: =N13 -> 0 | AJ13: =COUNTIF(L87:L113,AI13) -> 0 | AK13: =AJ13/(AL4-AJ8) -> 0 | AL13: =IF(AK13=0,0,(AK13*((LOG(AK13))/LOG(2)))) -> 0 | AN13: =N13 -> 0 | AO13: =COUNTIF(L114:L139,AN13) -> 0 | AP13: =AO13/(AQ4-AO8) -> 0 | AQ13: =IF(AP13=0,0,(AP13*((LOG(AP13))/LOG(2)))) -> 0 | AS13: =N13 -> 0 | AT13: =COUNTIF(L140:L166,AS13) -> 0 | AU13: =AT13/(AV4-AT8) -> 0 | AV13: =IF(AU13=0,0,(AU13*((LOG(AU13))/LOG(2)))) -> 0
A14: 22 | B14: 944 | C14: 23 | D14: 956 | K14: 0 | L14: 22 | T14: =N14 -> 0 | U14: =COUNTIF(L7:L33,T14) -> 0 | V14: =U14/(W4-U8) -> 0 | W14: =IF(V14=0,0,(V14*((LOG(V14))/LOG(2)))) -> 0 | Y14: =N14 -> 0 | Z14: =COUNTIF(L34:L59,Y14) -> 0 | AA14: =Z14/(AB4-Z8) -> 0 | AB14: =IF(AA14=0,0,(AA14*((LOG(AA14))/LOG(2)))) -> 0 | AD14: =N14 -> 0 | AE14: =COUNTIF(L60:L86,AD14) -> 0 | AF14: =AE14/(AG4-AE8) -> 0 | AG14: =IF(AF14=0,0,(AF14*((LOG(AF14))/LOG(2)))) -> 0 | AI14: =N14 -> 0 | AJ14: =COUNTIF(L87:L113,AI14) -> 0 | AK14: =AJ14/(AL4-AJ8) -> 0 | AL14: =IF(AK14=0,0,(AK14*((LOG(AK14))/LOG(2)))) -> 0 | AN14: =N14 -> 0 | AO14: =COUNTIF(L114:L139,AN14) -> 0 | AP14: =AO14/(AQ4-AO8) -> 0 | AQ14: =IF(AP14=0,0,(AP14*((LOG(AP14))/LOG(2)))) -> 0 | AS14: =N14 -> 0 | AT14: =COUNTIF(L140:L166,AS14) -> 0 | AU14: =AT14/(AV4-AT8) -> 0 | AV14: =IF(AU14=0,0,(AU14*((LOG(AU14))/LOG(2)))) -> 0
A15: 22 | B15: 1075 | C15: 14 | D15: 1091 | K15: 0 | L15: 21 | P15: =SUM(P7:P14) -> 1 | Q15: =-SUM(Q7:Q14) -> 1.690868569 | V15: =SUM(V7:V14) -> 1 | W15: =-SUM(W7:W14) -> 0.8554508106 | AA15: =SUM(AA7:AA14) -> 1 | AB15: =-SUM(AB7:AB14) -> 1 | AF15: =SUM(AF7:AF14) -> 1 | AG15: =-SUM(AG7:AG14) -> 1 | AK15: =SUM(AK7:AK14) -> 1 | AL15: =-SUM(AL7:AL14) -> 1.312744353 | AP15: =SUM(AP7:AP14) -> 1 | AQ15: =-SUM(AQ7:AQ14) -> 1 | AU15: =SUM(AU7:AU14) -> 1 | AV15: =-SUM(AV7:AV14) -> 1.338268928
A16: 22 | B16: 1199 | C16: 23 | D16: 1206 | K16: 0 | L16: 22 | P16: U= | Q16: =Q15/(LOG(Q4)/LOG(2)) -> 0.2309321461 | V16: U1= | W16: =W15/(LOG(W4)/LOG(2)) -> 0.1799097897 | AA16: U2= | AB16: =AB15/(LOG(AB4)/LOG(2)) -> 0.2127460536 | AF16: U3= | AG16: =AG15/(LOG(AG4)/LOG(2)) -> 0.2103099179 | AK16: U4= | AL16: =AL15/(LOG(AL4)/LOG(2)) -> 0.2760831571 | AP16: U5= | AQ16: =AQ15/(LOG(AQ4)/LOG(2)) -> 0.2127460536 | AU16: U6= | AV16: =AV15/(LOG(AV4)/LOG(2)) -> 0.2814512283
A17: 22 | B17: 1317 | C17: 23 | D17: 1351 | K17: 0 | L17: 22
A18: 22 | B18: 1461 | C18: 23 | D18: 1470 | K18: 0 | L18: 22
A19: 22 | B19: 1578 | C19: 23 | D19: 1590 | K19: 0 | L19: 22 | N19: Total Target Seq
A20: 22 | B20: 1702 | C20: 14 | D20: 1721 | K20: 0 | L20: 21 | N20: =COUNTIF(L7:L166,G3) -> 39 | P20: 27 | Q20: 26 | R20: 27 | S20: 27 | T20: 26 | U20: 27
A21: 22 | B21: 1829 | C21: 23 | D21: 1860 | K21: 0 | L21: 22 | P21: % of reinforcement given in 6 equal intervals based on number of trials
A22: 22 | B22: 1971 | C22: 23 | D22: 1984 | K22: 0 | L22: 22 | P22: %_1 | Q22: %_2 | R22: %_3 | S22: %_4 | T22: %_5 | U22: %_6
A23: 22 | B23: 2097 | C23: 23 | D23: 2126 | K23: 0 | L23: 22 | O23: target sequence | P23: =$G$3 -> 12 | Q23: =$G$3 -> 12 | R23: =$G$3 -> 12 | S23: =$G$3 -> 12 | T23: =$G$3 -> 12 | U23: =$G$3 -> 12
A24: 22 | B24: 2235 | C24: 23 | D24: 2245 | K24: 0 | L24: 22 | O24: total reinforcement | P24: =U8 -> 2 | Q24: =Z8 -> 6 | R24: =AE8 -> 3 | S24: =AJ8 -> 6 | T24: =AO8 -> 10 | U24: =AT8 -> 12
A25: 22 | B25: 2351 | C25: 23 | D25: 2358 | K25: 0 | L25: 22 | O25: % target
A26: 22 | B26: 2504 | C26: 23 | D26: 2555 | K26: 0 | L26: 22 | O26: CCRF
A27: 22 | B27: 2701 | C27: 14 | D27: 2726 | K27: 0 | L27: 21 | O27: % CCRf
A28: 22 | B28: 2839 | C28: 14 | D28: 2849 | K28: 0 | L28: 21 | O28: average response rate | P28: =D33/P20 -> 129.6666667 | Q28: =(D59-D33)/Q20 -> 133.5 | R28: =(D86-D59)/R20 -> 136.962963 | S28: =(D113-D86)/S20 -> 135.4444444 | T28: =(D139-D113)/T20 -> 142.5 | U28: =(D166-D139)/U20 -> 146.4444444
A29: 22 | B29: 2963 | C29: 14 | D29: 2975 | K29: 0 | L29: 21
A30: 22 | B30: 3086 | C30: 23 | D30: 3117 | K30: 0 | L30: 22
A31: 11 | B31: 3239 | C31: 21 | D31: 3257 | K31: 0 | L31: 12
A32: 11 | B32: 3373 | C32: 21 | D32: 3391 | K32: 0 | L32: 12
A33: 22 | B33: 3487 | C33: 14 | D33: 3501 | K33: 0 | L33: 21
A34: 22 | B34: 3629 | C34: 23 | D34: 3660 | K34: 0 | L34: 22
A35: 11 | B35: 3780 | C35: 21 | D35: 3797 | K35: 0 | L35: 12
A36: 22 | B36: 3900 | C36: 23 | D36: 3960 | K36: 0 | L36: 22
A37: 22 | B37: 4073 | C37: 14 | D37: 4118 | K37: 0 | L37: 21
A38: 22 | B38: 4231 | C38: 23 | D38: 4259 | K38: 0 | L38: 22
A39: 11 | B39: 4380 | C39: 21 | D39: 4397 | K39: 0 | L39: 12
A40: 22 | B40: 4496 | C40: 23 | D40: 4503 | K40: 0 | L40: 22
A41: 22 | B41: 4609 | C41: 23 | D41: 4617 | K41: 0 | L41: 22
A42: 22 | B42: 4727 | C42: 14 | D42: 4740 | K42: 0 | L42: 21
A43: 22 | B43: 4848 | C43: 23 | D43: 4856 | K43: 0 | L43: 22
A44: 22 | B44: 4966 | C44: 23 | D44: 4998 | K44: 0 | L44: 22
A45: 11 | B45: 5119 | C45: 21 | D45: 5149 | K45: 0 | L45: 12
A46: 11 | B46: 5265 | C46: 21 | D46: 5282 | K46: 0 | L46: 12
A47: 22 | B47: 5384 | C47: 23 | D47: 5414 | K47: 0 | L47: 22
A48: 22 | B48: 5525 | C48: 23 | D48: 5535 | K48: 0 | L48: 22
A49: 22 | B49: 5644 | C49: 14 | D49: 5666 | K49: 0 | L49: 21
A50: 22 | B50: 5778 | C50: 14 | D50: 5789 | K50: 0 | L50: 21
A51: 22 | B51: 5904 | C51: 14 | D51: 5914 | K51: 0 | L51: 21
A52: 11 | B52: 6036 | C52: 21 | D52: 6052 | K52: 0 | L52: 12
A53: 22 | B53: 6158 | C53: 14 | D53: 6170 | K53: 0 | L53: 21
A54: 22 | B54: 6278 | C54: 23 | D54: 6331 | K54: 0 | L54: 22
A55: 22 | B55: 6444 | C55: 14 | D55: 6455 | K55: 0 | L55: 21
A56: 22 | B56: 6567 | C56: 14 | D56: 6577 | K56: 0 | L56: 21
A57: 22 | B57: 6689 | C57: 14 | D57: 6704 | K57: 0 | L57: 21
A58: 22 | B58: 6817 | C58: 14 | D58: 6830 | K58: 0 | L58: 21
A59: 11 | B59: 6956 | C59: 21 | D59: 6972 | K59: 0 | L59: 12
A60: 22 | B60: 7082 | C60: 14 | D60: 7092 | K60: 0 | L60: 21
A61: 22 | B61: 7281 | C61: 14 | D61: 7313 | K61: 0 | L61: 21
A62: 22 | B62: 7424 | C62: 14 | D62: 7435 | K62: 0 | L62: 21
A63: 22 | B63: 7550 | C63: 23 | D63: 7591 | K63: 0 | L63: 22
A64: 22 | B64: 7701 | C64: 14 | D64: 7713 | K64: 0 | L64: 21
A65: 22 | B65: 7826 | C65: 23 | D65: 7849 | K65: 0 | L65: 22
A66: 22 | B66: 7968 | C66: 23 | D66: 8000 | K66: 0 | L66: 22
A67: 22 | B67: 8203 | C67: 14 | D67: 8221 | K67: 0 | L67: 21
A68: 22 | B68: 8334 | C68: 23 | D68: 8358 | K68: 0 | L68: 22
A69: 22 | B69: 8463 | C69: 23 | D69: 8473 | K69: 0 | L69: 22
A70: 22 | B70: 8582 | C70: 14 | D70: 8596 | K70: 0 | L70: 21
A71: 11 | B71: 8721 | C71: 21 | D71: 8733 | K71: 0 | L71: 12
A72: 22 | B72: 8841 | C72: 14 | D72: 8869 | K72: 0 | L72: 21
A73: 22 | B73: 8978 | C73: 23 | D73: 8987 | K73: 0 | L73: 22
A74: 22 | B74: 9094 | C74: 23 | D74: 9098 | K74: 0 | L74: 22
A75: 22 | B75: 9207 | C75: 14 | D75: 9221 | K75: 0 | L75: 21
A76: 22 | B76: 9328 | C76: 23 | D76: 9339 | K76: 0 | L76: 22
A77: 22 | B77: 9462 | C77: 14 | D77: 9476 | K77: 0 | L77: 21
A78: 11 | B78: 9598 | C78: 21 | D78: 9615 | K78: 0 | L78: 12
A79: 22 | B79: 9717 | C79: 23 | D79: 9729 | K79: 0 | L79: 22
A80: 22 | B80: 9837 | C80: 14 | D80: 9863 | K80: 0 | L80: 21
A81: 22 | B81: 9981 | C81: 14 | D81: 9995 | K81: 0 | L81: 21
A82: 11 | B82: 10129 | C82: 21 | D82: 10151 | K82: 0 | L82: 12
A83: 22 | B83: 10256 | C83: 23 | D83: 10269 | K83: 0 | L83: 22
A84: 22 | B84: 10375 | C84: 23 | D84: 10384 | K84: 0 | L84: 22
A85: 22 | B85: 10505 | C85: 14 | D85: 10518 | K85: 0 | L85: 21
A86: 22 | B86: 10636 | C86: 23 | D86: 10670 | K86: 0 | L86: 22
A87: 22 | B87: 10788 | C87: 14 | D87: 10804 | K87: 0 | L87: 21
A88: 22 | B88: 10919 | C88: 14 | D88: 10936 | K88: 0 | L88: 21
A89: 22 | B89: 11045 | C89: 14 | D89: 11057 | K89: 0 | L89: 21
A90: 22 | B90: 11166 | C90: 23 | D90: 11172 | K90: 0 | L90: 22
A91: 22 | B91: 11279 | C91: 23 | D91: 11307 | K91: 0 | L91: 22
A92: 11 | B92: 11435 | C92: 21 | D92: 11455 | K92: 0 | L92: 12
A93: 11 | B93: 11580 | C93: 12 | D93: 11605 | K93: 0 | L93: 11
A94: 22 | B94: 11705 | C94: 14 | D94: 11725 | K94: 0 | L94: 21
A95: 22 | B95: 11838 | C95: 23 | D95: 11854 | K95: 0 | L95: 22
A96: 22 | B96: 11968 | C96: 14 | D96: 11983 | K96: 0 | L96: 21
A97: 22 | B97: 12104 | C97: 23 | D97: 12132 | K97: 0 | L97: 22
A98: 22 | B98: 12247 | C98: 23 | D98: 12262 | K98: 0 | L98: 22
A99: 22 | B99: 12369 | C99: 14 | D99: 12378 | K99: 0 | L99: 21
A100: 22 | B100: 12491 | C100: 14 | D100: 12513 | K100: 0 | L100: 21
A101: 22 | B101: 12624 | C101: 14 | D101: 12638 | K101: 0 | L101: 21
A102: 22 | B102: 12748 | C102: 23 | D102: 12763 | K102: 0 | L102: 22
A103: 11 | B103: 12890 | C103: 21 | D103: 12906 | K103: 0 | L103: 12
A104: 22 | B104: 13006 | C104: 14 | D104: 13019 | K104: 0 | L104: 21
A105: 11 | B105: 13144 | C105: 21 | D105: 13158 | K105: 0 | L105: 12
A106: 22 | B106: 13267 | C106: 14 | D106: 13287 | K106: 0 | L106: 21
A107: 22 | B107: 13394 | C107: 14 | D107: 13426 | K107: 0 | L107: 21
A108: 11 | B108: 13563 | C108: 21 | D108: 13642 | K108: 0 | L108: 12
A109: 11 | B109: 13756 | C109: 12 | D109: 13802 | K109: 0 | L109: 11
A110: 11 | B110: 13927 | C110: 21 | D110: 13944 | K110: 0 | L110: 12
A111: 11 | B111: 14059 | C111: 21 | D111: 14085 | K111: 0 | L111: 12
A112: 22 | B112: 14195 | C112: 14 | D112: 14211 | K112: 0 | L112: 21
A113: 22 | B113: 14320 | C113: 23 | D113: 14327 | K113: 0 | L113: 22
A114: 22 | B114: 14442 | C114: 14 | D114: 14464 | K114: 0 | L114: 21
A115: 11 | B115: 14598 | C115: 21 | D115: 14622 | K115: 0 | L115: 12
A116: 22 | B116: 14721 | C116: 23 | D116: 14731 | K116: 0 | L116: 22
A117: 22 | B117: 14835 | C117: 23 | D117: 14878 | K117: 0 | L117: 22
A118: 22 | B118: 15025 | C118: 14 | D118: 15045 | K118: 0 | L118: 21
A119: 11 | B119: 15166 | C119: 21 | D119: 15181 | K119: 0 | L119: 12
A120: 22 | B120: 15280 | C120: 14 | D120: 15306 | K120: 0 | L120: 21
A121: 22 | B121: 15415 | C121: 14 | D121: 15434 | K121: 0 | L121: 21
A122: 22 | B122: 15545 | C122: 23 | D122: 15561 | K122: 0 | L122: 22
A123: 22 | B123: 15666 | C123: 14 | D123: 15680 | K123: 0 | L123: 21
A124: 22 | B124: 15790 | C124: 23 | D124: 15801 | K124: 0 | L124: 22
A125: 22 | B125: 15908 | C125: 14 | D125: 15922 | K125: 0 | L125: 21
A126: 11 | B126: 16044 | C126: 21 | D126: 16059 | K126: 0 | L126: 12
A127: 11 | B127: 16184 | C127: 21 | D127: 16201 | K127: 0 | L127: 12
A128: 22 | B128: 16303 | C128: 23 | D128: 16329 | K128: 0 | L128: 22
A129: 22 | B129: 16436 | C129: 23 | D129: 16480 | K129: 0 | L129: 22
A130: 11 | B130: 16607 | C130: 21 | D130: 16624 | K130: 0 | L130: 12
A131: 22 | B131: 16761 | C131: 14 | D131: 16799 | K131: 0 | L131: 21
A132: 22 | B132: 16938 | C132: 23 | D132: 16958 | K132: 0 | L132: 22
A133: 11 | B133: 17116 | C133: 21 | D133: 17156 | K133: 0 | L133: 12
A134: 22 | B134: 17253 | C134: 23 | D134: 17313 | K134: 0 | L134: 22
A135: 11 | B135: 17432 | C135: 21 | D135: 17451 | K135: 0 | L135: 12
A136: 11 | B136: 17567 | C136: 21 | D136: 17587 | K136: 0 | L136: 12
A137: 22 | B137: 17747 | C137: 14 | D137: 17762 | K137: 0 | L137: 21
A138: 11 | B138: 17882 | C138: 21 | D138: 17898 | K138: 0 | L138: 12
A139: 11 | B139: 18016 | C139: 21 | D139: 18032 | K139: 0 | L139: 12
A140: 22 | B140: 18156 | C140: 14 | D140: 18178 | K140: 0 | L140: 21
A141: 11 | B141: 18307 | C141: 21 | D141: 18323 | K141: 0 | L141: 12
A142: 22 | B142: 18467 | C142: 14 | D142: 18487 | K142: 0 | L142: 21
A143: 11 | B143: 18606 | C143: 12 | D143: 18616 | K143: 0 | L143: 11
A144: 22 | B144: 18725 | C144: 14 | D144: 18739 | K144: 0 | L144: 21
A145: 22 | B145: 18892 | C145: 23 | D145: 18916 | K145: 0 | L145: 22
A146: 11 | B146: 19038 | C146: 21 | D146: 19058 | K146: 0 | L146: 12
A147: 22 | B147: 19189 | C147: 14 | D147: 19224 | K147: 0 | L147: 21
A148: 11 | B148: 19339 | C148: 21 | D148: 19358 | K148: 0 | L148: 12
A149: 11 | B149: 19466 | C149: 21 | D149: 19482 | K149: 0 | L149: 12
A150: 11 | B150: 19607 | C150: 12 | D150: 19634 | K150: 0 | L150: 11
A151: 11 | B151: 19752 | C151: 21 | D151: 19768 | K151: 0 | L151: 12
A152: 22 | B152: 19902 | C152: 14 | D152: 19932 | K152: 0 | L152: 21
A153: 11 | B153: 20079 | C153: 21 | D153: 20089 | K153: 0 | L153: 12
A154: 22 | B154: 20198 | C154: 14 | D154: 20211 | K154: 0 | L154: 21
A155: 22 | B155: 20334 | C155: 23 | D155: 20361 | K155: 0 | L155: 22
A156: 11 | B156: 20515 | C156: 21 | D156: 20533 | K156: 0 | L156: 12
A157: 22 | B157: 20633 | C157: 14 | D157: 20643 | K157: 0 | L157: 21
A158: 11 | B158: 20763 | C158: 21 | D158: 20779 | K158: 0 | L158: 12
A159: 22 | B159: 20889 | C159: 14 | D159: 20908 | K159: 0 | L159: 21
A160: 11 | B160: 21032 | C160: 21 | D160: 21053 | K160: 0 | L160: 12
A161: 22 | B161: 21165 | C161: 23 | D161: 21198 | K161: 0 | L161: 22
A162: 11 | B162: 21371 | C162: 21 | D162: 21405 | K162: 0 | L162: 12
A163: 22 | B163: 21541 | C163: 23 | D163: 21594 | K163: 0 | L163: 22
A164: 22 | B164: 21723 | C164: 14 | D164: 21740 | K164: 0 | L164: 21
A165: 11 | B165: 21858 | C165: 21 | D165: 21867 | K165: 0 | L165: 12
A166: 11 | B166: 21973 | C166: 21 | D166: 21986 | K166: 1 | L166: 12

Sheet !MC02B50.105
A1: Report for:!MC02B50.105
A2: Date: | B2: <date>
A3: Hen: | B3: <hen> | F3: Correct Sequence | G3: =Start!J2 -> 12 | P3: Total Sequences in Data | Q3: =4994-COUNTBLANK(L7:L5000) -> 97 | V3: Total Sequences in Block Data | W3: =COUNTA(L7:L22) -> 16 | AA3: Total Sequences in Block Data | AB3: =COUNTA(L23:L38) -> 16 | AF3: Total Sequences in Block Data | AG3: =COUNTA(L39:L55) -> 17 | AK3: Total Sequences in Block Data | AL3: =COUNTA(L56:L71) -> 16 | AP3: Total Sequences in Block Data | AQ3: =COUNTA(L72:L87) -> 16 | AU3: Total Sequences in Block Data | AV3: =COUNTA(L88:L103) -> 16
P4: Total Sequences in Summary | Q4: =SUM(O7:O14) -> 97 | V4: Total Sequences in Block Summary | W4: =SUM(U7:U14) -> 16 | AA4: Total Sequences in Block Summary | AB4: =SUM(Z7:Z14) -> 16 | AF4: Total Sequences in Block Summary | AG4: =SUM(AE7:AE14) -> 17 | AK4: Total Sequences in Block Summary | AL4: =SUM(AJ7:AJ14) -> 16 | AP4: Total Sequences in Block Summary | AQ4: =SUM(AO7:AO14) -> 16 | AU4: Total Sequences in Block Summary | AV4: =SUM(AT7:AT14) -> 16
T5: Block 1 | Y5: Block 2 | AD5: Block 3 | AI5: Block 4 | AN5: Block 5 | AS5: Block 6
A6: Sequence Component 1 | B6: Time 1 | C6: Sequence Component 2 | D6: Time 2 | E6: Sequence Component 3 | F6: Time 3 | G6: Sequence Component 4 | H6: Time 4 | I6: Sequence Component 5 | J6: Time 5 | K6: Correct? 0=No 1=Yes | L6: Sequence | N6: Frequency | P6: Relative Frequency | Q6: Variability | T6: Frequency | V6: Relative Frequency | W6: Variability | Y6: Frequency | AA6: Relative Frequency | AB6: Variability | AD6: Frequency | AF6: Relative Frequency | AG6: Variability | AI6: Frequency | AK6: Relative Frequency | AL6: Variability | AN6: Frequency | AP6: Relative Frequency | AQ6: Variability | AS6: Frequency | AU6: Relative Frequency | AV6: Variability
A7: 11 | B7: 8 | C7: 21 | D7: 21 | K7: 0 | L7: 12 | N7: 11 | O7: =COUNTIF($L$7:$L$500,N7) -> 6 | P7: =O7/$Q$4 -> 0.0618556701 | Q7: =IF(P7=0,0,(P7*((LOG(P7))/LOG(2)))) -> -0.2483474438 | T7: =N7 -> 11 | U7: =COUNTIF(L7:L22,T7) -> 1 | V7: =U7/(W4-U8) -> 0.09090909091 | W7: =IF(V7=0,0,(V7*((LOG(V7))/LOG(2)))) -> -0.3144937835 | Y7: =N7 -> 11 | Z7: =COUNTIF(L23:L38,Y7) -> 1 | AA7: =Z7/(AB4-Z8) -> 0.09090909091 | AB7: =IF(AA7=0,0,(AA7*((LOG(AA7))/LOG(2)))) -> -0.3144937835 | AD7: =N7 -> 11 | AE7: =COUNTIF(L39:L55,AD7) -> 1 | AF7: =AE7/(AG4-AE8) -> 0.08333333333 | AG7: =IF(AF7=0,0,(AF7*((LOG(AF7))/LOG(2)))) -> -0.2987468751 | AI7: =N7 -> 11 | AJ7: =COUNTIF(L56:L71,AI7) -> 1 | AK7: =AJ7/(AL4-AJ8) -> 0.1111111111 | AL7: =IF(AK7=0,0,(AK7*((LOG(AK7))/LOG(2)))) -> -0.352213889 | AN7: =N7 -> 11 | AO7: =COUNTIF(L72:L87,AN7) -> 1 | AP7: =AO7/(AQ4-AO8) -> 0.1428571429 | AQ7: =IF(AP7=0,0,(AP7*((LOG(AP7))/LOG(2)))) -> -0.4010507032 | AS7: =N7 -> 11 | AT7: =COUNTIF(L88:L103,AS7) -> 1 | AU7: =AT7/(AV4-AT8) -> 0.125 | AV7: =IF(AU7=0,0,(AU7*((LOG(AU7))/LOG(2)))) -> -0.375
A8: 11 | B8: 107 | C8: 12 | D8: 116 | K8: 0 | L8: 11 | N8: 12 | O8: =COUNTIF($L$7:$L$500,N8) -> 39 | P8: =O8/$Q$4 -> 0.4020618557 | Q8: =IF(P8=0,0,(P8*((LOG(P8))/LOG(2)))) -> -0.5285145805 | T8: =N8 -> 12 | U8: =COUNTIF(L7:L22,T8) -> 5 | Y8: =N8 -> 12 | Z8: =COUNTIF(L23:L38,Y8) -> 5 | AD8: =N8 -> 12 | AE8: =COUNTIF(L39:L55,AD8) -> 5 | AI8: =N8 -> 12 | AJ8: =COUNTIF(L56:L71,AI8) -> 7 | AN8: =N8 -> 12 | AO8: =COUNTIF(L72:L87,AN8) -> 9 | AS8: =N8 -> 12 | AT8: =COUNTIF(L88:L103,AS8) -> 8
A9: 11 | B9: 235 | C9: 21 | D9: 249 | K9: 0 | L9: 12 | N9: 21 | O9: =COUNTIF($L$7:$L$500,N9) -> 34 | P9: =O9/$Q$4 -> 0.3505154639 | Q9: =IF(P9=0,0,(P9*((LOG(P9))/LOG(2)))) -> -0.5301371137 | T9: =N9 -> 21 | U9: =COUNTIF(L7:L22,T9) -> 5 | V9: =U9/(W4-U8) -> 0.4545454545 | W9: =IF(V9=0,0,(V9*((LOG(V9))/LOG(2)))) -> -0.5170470562 | Y9: =N9 -> 21 | Z9: =COUNTIF(L23:L38,Y9) -> 8 | AA9: =Z9/(AB4-Z8) -> 0.7272727273 | AB9: =IF(AA9=0,0,(AA9*((LOG(AA9))/LOG(2)))) -> -0.3341320863 | AD9: =N9 -> 21 | AE9: =COUNTIF(L39:L55,AD9) -> 9 | AF9: =AE9/(AG4-AE8) -> 0.75 | AG9: =IF(AF9=0,0,(AF9*((LOG(AF9))/LOG(2)))) -> -0.3112781245 | AI9: =N9 -> 21 | AJ9: =COUNTIF(L56:L71,AI9) -> 6 | AK9: =AJ9/(AL4-AJ8) -> 0.6666666667 | AL9: =IF(AK9=0,0,(AK9*((LOG(AK9))/LOG(2)))) -> -0.3899750005 | AN9: =N9 -> 21 | AO9: =COUNTIF(L72:L87,AN9) -> 4 | AP9: =AO9/(AQ4-AO8) -> 0.5714285714 | AQ9: =IF(AP9=0,0,(AP9*((LOG(AP9))/LOG(2)))) -> -0.4613456697 | AS9: =N9 -> 21 | AT9: =COUNTIF(L88:L103,AS9) -> 2 | AU9: =AT9/(AV4-AT8) -> 0.25 | AV9: =IF(AU9=0,0,(AU9*((LOG(AU9))/LOG(2)))) -> -0.5
A10: 22 | B10: 348 | C10: 23 | D10: 402 | K10: 0 | L10: 22 | N10: 22 | O10: =COUNTIF($L$7:$L$500,N10) -> 18 | P10: =O10/$Q$4 -> 0.1855670103 | Q10: =IF(P10=0,0,(P10*((LOG(P10))/LOG(2)))) -> -0.4509255787 | T10: =N10 -> 22 | U10: =COUNTIF(L7:L22,T10) -> 5 | V10: =U10/(W4-U8) -> 0.4545454545 | W10: =IF(V10=0,0,(V10*((LOG(V10))/LOG(2)))) -> -0.5170470562 | Y10: =N10 -> 22 | Z10: =COUNTIF(L23:L38,Y10) -> 2 | AA10: =Z10/(AB4-Z8) -> 0.1818181818 | AB10: =IF(AA10=0,0,(AA10*((LOG(AA10))/LOG(2)))) -> -0.4471693852 | AD10: =N10 -> 22 | AE10: =COUNTIF(L39:L55,AD10) -> 2 | AF10: =AE10/(AG4-AE8) -> 0.1666666667 | AG10: =IF(AF10=0,0,(AF10*((LOG(AF10))/LOG(2)))) -> -0.4308270835 | AI10: =N10 -> 22 | AJ10: =COUNTIF(L56:L71,AI10) -> 2 | AK10: =AJ10/(AL4-AJ8) -> 0.2222222222 | AL10: =IF(AK10=0,0,(AK10*((LOG(AK10))/LOG(2)))) -> -0.4822055559 | AN10: =N10 -> 22 | AO10: =COUNTIF(L72:L87,AN10) -> 2 | AP10: =AO10/(AQ4-AO8) -> 0.2857142857 | AQ10: =IF(AP10=0,0,(AP10*((LOG(AP10))/LOG(2)))) -> -0.5163871206 | AS10: =N10 -> 22 | AT10: =COUNTIF(L88:L103,AS10) -> 5 | AU10: =AT10/(AV4-AT8) -> 0.625 | AV10: =IF(AU10=0,0,(AU10*((LOG(AU10))/LOG(2)))) -> -0.4237949407
A11: 22 | B11: 539 | C11: 23 | D11: 576 | K11: 0 | L11: 22 | T11: =N11 -> 0 | U11: =COUNTIF(L7:L22,T11) -> 0 | V11: =U11/(W4-U8) -> 0 | W11: =IF(V11=0,0,(V11*((LOG(V11))/LOG(2)))) -> 0 | Y11: =N11 -> 0 | Z11: =COUNTIF(L23:L38,Y11) -> 0 | AA11: =Z11/(AB4-Z8) -> 0 | AB11: =IF(AA11=0,0,(AA11*((LOG(AA11))/LOG(2)))) -> 0 | AD11: =N11 -> 0 | AE11: =COUNTIF(L39:L55,AD11) -> 0 | AF11: =AE11/(AG4-AE8) -> 0 | AG11: =IF(AF11=0,0,(AF11*((LOG(AF11))/LOG(2)))) -> 0 | AI11: =N11 -> 0 | AJ11: =COUNTIF(L56:L71,AI11) -> 0 | AK11: =AJ11/(AL4-AJ8) -> 0 | AL11: =IF(AK11=0,0,(AK11*((LOG(AK11))/LOG(2)))) -> 0 | AN11: =N11 -> 0 | AO11: =COUNTIF(L72:L87,AN11) -> 0 | AP11: =AO11/(AQ4-AO8) -> 0 | AQ11: =IF(AP11=0,0,(AP11*((LOG(AP11))/LOG(2)))) -> 0 | AS11: =N11 -> 0 | AT11: =COUNTIF(L88:L103,AS11) -> 0 | AU11: =AT11/(AV4-AT8) -> 0 | AV11: =IF(AU11=0,0,(AU11*((LOG(AU11))/LOG(2)))) -> 0
A12: 22 | B12: 713 | C12: 14 | D12: 728 | K12: 0 | L12: 21 | T12: =N12 -> 0 | U12: =COUNTIF(L7:L22,T12) -> 0 | V12: =U12/(W4-U8) -> 0 | W12: =IF(V12=0,0,(V12*((LOG(V12))/LOG(2)))) -> 0 | Y12: =N12 -> 0 | Z12: =COUNTIF(L23:L38,Y12) -> 0 | AA12: =Z12/(AB4-Z8) -> 0 | AB12: =IF(AA12=0,0,(AA12*((LOG(AA12))/LOG(2)))) -> 0 | AD12: =N12 -> 0 | AE12: =COUNTIF(L39:L55,AD12) -> 0 | AF12: =AE12/(AG4-AE8) -> 0 | AG12: =IF(AF12=0,0,(AF12*((LOG(AF12))/LOG(2)))) -> 0 | AI12: =N12 -> 0 | AJ12: =COUNTIF(L56:L71,AI12) -> 0 | AK12: =AJ12/(AL4-AJ8) -> 0 | AL12: =IF(AK12=0,0,(AK12*((LOG(AK12))/LOG(2)))) -> 0 | AN12: =N12 -> 0 | AO12: =COUNTIF(L72:L87,AN12) -> 0 | AP12: =AO12/(AQ4-AO8) -> 0 | AQ12: =IF(AP12=0,0,(AP12*((LOG(AP12))/LOG(2)))) -> 0 | AS12: =N12 -> 0 | AT12: =COUNTIF(L88:L103,AS12) -> 0 | AU12: =AT12/(AV4-AT8) -> 0 | AV12: =IF(AU12=0,0,(AU12*((LOG(AU12))/LOG(2)))) -> 0
A13: 22 | B13: 829 | C13: 14 | D13: 839 | K13: 0 | L13: 21 | T13: =N13 -> 0 | U13: =COUNTIF(L7:L22,T13) -> 0 | V13: =U13/(W4-U8) -> 0 | W13: =IF(V13=0,0,(V13*((LOG(V13))/LOG(2)))) -> 0 | Y13: =N13 -> 0 | Z13: =COUNTIF(L23:L38,Y13) -> 0 | AA13: =Z13/(AB4-Z8) -> 0 | AB13: =IF(AA13=0,0,(AA13*((LOG(AA13))/LOG(2)))) -> 0 | AD13: =N13 -> 0 | AE13: =COUNTIF(L39:L55,AD13) -> 0 | AF13: =AE13/(AG4-AE8) -> 0 | AG13: =IF(AF13=0,0,(AF13*((LOG(AF13))/LOG(2)))) -> 0 | AI13: =N13 -> 0 | AJ13: =COUNTIF(L56:L71,AI13) -> 0 | AK13: =AJ13/(AL4-AJ8) -> 0 | AL13: =IF(AK13=0,0,(AK13*((LOG(AK13))/LOG(2)))) -> 0 | AN13: =N13 -> 0 | AO13: =COUNTIF(L72:L87,AN13) -> 0 | AP13: =AO13/(AQ4-AO8) -> 0 | AQ13: =IF(AP13=0,0,(AP13*((LOG(AP13))/LOG(2)))) -> 0 | AS13: =N13 -> 0 | AT13: =COUNTIF(L88:L103,AS13) -> 0 | AU13: =AT13/(AV4-AT8) -> 0 | AV13: =IF(AU13=0,0,(AU13*((LOG(AU13))/LOG(2)))) -> 0
A14: 11 | B14: 953 | C14: 21 | D14: 967 | K14: 0 | L14: 12 | T14: =N14 -> 0 | U14: =COUNTIF(L7:L22,T14) -> 0 | V14: =U14/(W4-U8) -> 0 | W14: =IF(V14=0,0,(V14*((LOG(V14))/LOG(2)))) -> 0 | Y14: =N14 -> 0 | Z14: =COUNTIF(L23:L38,Y14) -> 0 | AA14: =Z14/(AB4-Z8) -> 0 | AB14: =IF(AA14=0,0,(AA14*((LOG(AA14))/LOG(2)))) -> 0 | AD14: =N14 -> 0 | AE14: =COUNTIF(L39:L55,AD14) -> 0 | AF14: =AE14/(AG4-AE8) -> 0 | AG14: =IF(AF14=0,0,(AF14*((LOG(AF14))/LOG(2)))) -> 0 | AI14: =N14 -> 0 | AJ14: =COUNTIF(L56:L71,AI14) -> 0 | AK14: =AJ14/(AL4-AJ8) -> 0 | AL14: =IF(AK14=0,0,(AK14*((LOG(AK14))/LOG(2)))) -> 0 | AN14: =N14 -> 0 | AO14: =COUNTIF(L72:L87,AN14) -> 0 | AP14: =AO14/(AQ4-AO8) -> 0 | AQ14: =IF(AP14=0,0,(AP14*((LOG(AP14))/LOG(2)))) -> 0 | AS14: =N14 -> 0 | AT14: =COUNTIF(L88:L103,AS14) -> 0 | AU14: =AT14/(AV4-AT8) -> 0 | AV14: =IF(AU14=0,0,(AU14*((LOG(AU14))/LOG(2)))) -> 0
A15: 22 | B15: 1069 | C15: 23 | D15: 1096 | K15: 0 | L15: 22 | P15: =SUM(P7:P14) -> 1 | Q15: =-SUM(Q7:Q14) -> 1.757924717 | V15: =SUM(V7:V14) -> 1 | W15: =-SUM(W7:W14) -> 1.348587896 | AA15: =SUM(AA7:AA14) -> 1 | AB15: =-SUM(AB7:AB14) -> 1.095795255 | AF15: =SUM(AF7:AF14) -> 1 | AG15: =-SUM(AG7:AG14) -> 1.040852083 | AK15: =SUM(AK7:AK14) -> 1 | AL15: =-SUM(AL7:AL14) -> 1.224394445 | AP15: =SUM(AP7:AP14) -> 1 | AQ15: =-SUM(AQ7:AQ14) -> 1.378783493 | AU15: =SUM(AU7:AU14) -> 1 | AV15: =-SUM(AV7:AV14) -> 1.298794941
A16: 22 | B16: 1219 | C16: 14 | D16: 1234 | K16: 0 | L16: 21 | P16: U= | Q16: =Q15/(LOG(Q4)/LOG(2)) -> 0.2663557472 | V16: U1= | W16: =W15/(LOG(W4)/LOG(2)) -> 0.337146974 | AA16: U2= | AB16: =AB15/(LOG(AB4)/LOG(2)) -> 0.2739488138 | AF16: U3= | AG16: =AG15/(LOG(AG4)/LOG(2)) -> 0.2546450264 | AK16: U4= | AL16: =AL15/(LOG(AL4)/LOG(2)) -> 0.3060986114 | AP16: U5= | AQ16: =AQ15/(LOG(AQ4)/LOG(2)) -> 0.3446958734 | AU16: U6= | AV16: =AV15/(LOG(AV4)/LOG(2)) -> 0.3246987352
A17: 11 | B17: 1354 | C17: 21 | D17: 1367 | K17: 0 | L17: 12
A18: 22 | B18: 1481 | C18: 23 | D18: 1515 | K18: 0 | L18: 22
A19: 11 | B19: 1640 | C19: 21 | D19: 1656 | K19: 0 | L19: 12 | N19: Total Target Seq
A20: 22 | B20: 1753 | C20: 14 | D20: 1763 | K20: 0 | L20: 21 | N20: =COUNTIF(L7:L103,G3) -> 39 | P20: 16 | Q20: 16 | R20: 17 | S20: 16 | T20: 16 | U20: 16
A21: 22 | B21: 1893 | C21: 23 | D21: 1933 | K21: 0 | L21: 22 | P21: % of reinforcement given in 6 equal intervals based on number of trials
A22: 22 | B22: 2063 | C22: 14 | D22: 2078 | K22: 0 | L22: 21 | P22: %_1 | Q22: %_2 | R22: %_3 | S22: %_4 | T22: %_5 | U22: %_6
A23: 11 | B23: 2192 | C23: 21 | D23: 2209 | K23: 0 | L23: 12 | O23: target sequence | P23: =$G$3 -> 12 | Q23: =$G$3 -> 12 | R23: =$G$3 -> 12 | S23: =$G$3 -> 12 | T23: =$G$3 -> 12 | U23: =$G$3 -> 12
A24: 22 | B24: 2332 | C24: 14 | D24: 2348 | K24: 0 | L24: 21 | O24: total reinforcement | P24: =U8 -> 5 | Q24: =Z8 -> 5 | R24: =AE8 -> 5 | S24: =AJ8 -> 7 | T24: =AO8 -> 9 | U24: =AT8 -> 8
A25: 22 | B25: 2491 | C25: 14 | D25: 2518 | K25: 0 | L25: 21 | O25: % target
A26: 11 | B26: 2630 | C26: 21 | D26: 2643 | K26: 0 | L26: 12 | O26: CCRF
A27: 22 | B27: 2741 | C27: 14 | D27: 2751 | K27: 0 | L27: 21 | O27: % CCRf
A28: 22 | B28: 2897 | C28: 14 | D28: 2926 | K28: 0 | L28: 21 | O28: average response rate | P28: =D22/P20 -> 129.875 | Q28: =(D38-D22)/Q20 -> 140.0625 | R28: =(D55-D38)/R20 -> 152.8823529 | S28: =(D71-D55)/S20 -> 146.75 | T28: =(D87-D71)/T20 -> 140.25 | U28: =(D103-D87)/U20 -> 148.875
A29: 11 | B29: 3048 | C29: 21 | D29: 3057 | K29: 0 | L29: 12
A30: 22 | B30: 3155 | C30: 14 | D30: 3165 | K30: 0 | L30: 21
A31: 11 | B31: 3282 | C31: 12 | D31: 3310 | K31: 0 | L31: 11
A32: 11 | B32: 3423 | C32: 21 | D32: 3441 | K32: 0 | L32: 12
A33: 22 | B33: 3539 | C33: 23 | D33: 3564 | K33: 0 | L33: 22
A34: 22 | B34: 3699 | C34: 14 | D34: 3729 | K34: 0 | L34: 21
A35: 22 | B35: 3862 | C35: 14 | D35: 3876 | K35: 0 | L35: 21
A36: 22 | B36: 4004 | C36: 23 | D36: 4027 | K36: 0 | L36: 22
A37: 22 | B37: 4172 | C37: 14 | D37: 4187 | K37: 0 | L37: 21
A38: 11 | B38: 4304 | C38: 21 | D38: 4319 | K38: 0 | L38: 12
A39: 22 | B39: 4468 | C39: 14 | D39: 4497 | K39: 0 | L39: 21
A40: 22 | B40: 4644 | C40: 14 | D40: 4676 | K40: 0 | L40: 21
A41: 11 | B41: 4797 | C41: 21 | D41: 4812 | K41: 0 | L41: 12
A42: 22 | B42: 4938 | C42: 14 | D42: 4964 | K42: 0 | L42: 21
A43: 11 | B43: 5083 | C43: 21 | D43: 5093 | K43: 0 | L43: 12
A44: 11 | B44: 5203 | C44: 21 | D44: 5215 | K44: 0 | L44: 12
A45: 22 | B45: 5315 | C45: 23 | D45: 5353 | K45: 0 | L45: 22
A46: 11 | B46: 5468 | C46: 21 | D46: 5483 | K46: 0 | L46: 12
A47: 11 | B47: 5625 | C47: 12 | D47: 5653 | K47: 0 | L47: 11
A48: 22 | B48: 5813 | C48: 14 | D48: 5829 | K48: 0 | L48: 21
A49: 22 | B49: 5969 | C49: 14 | D49: 5984 | K49: 0 | L49: 21
A50: 11 | B50: 6103 | C50: 21 | D50: 6114 | K50: 0 | L50: 12
A51: 22 | B51: 6245 | C51: 14 | D51: 6261 | K51: 0 | L51: 21
A52: 22 | B52: 6366 | C52: 14 | D52: 6389 | K52: 0 | L52: 21
A53: 22 | B53: 6521 | C53: 14 | D53: 6545 | K53: 0 | L53: 21
A54: 22 | B54: 6701 | C54: 23 | D54: 6757 | K54: 0 | L54: 22
A55: 22 | B55: 6902 | C55: 14 | D55: 6918 | K55: 0 | L55: 21
A56: 22 | B56: 7047 | C56: 14 | D56: 7065 | K56: 0 | L56: 21
A57: 11 | B57: 7181 | C57: 21 | D57: 7198 | K57: 0 | L57: 12
A58: 22 | B58: 7337 | C58: 23 | D58: 7369 | K58: 0 | L58: 22
A59: 11 | B59: 7488 | C59: 21 | D59: 7558 | K59: 0 | L59: 12
A60: 22 | B60: 7656 | C60: 14 | D60: 7675 | K60: 0 | L60: 21
A61: 22 | B61: 7808 | C61: 14 | D61: 7824 | K61: 0 | L61: 21
A62: 11 | B62: 7938 | C62: 21 | D62: 7954 | K62: 0 | L62: 12
A63: 11 | B63: 8064 | C63: 12 | D63: 8096 | K63: 0 | L63: 11
A64: 11 | B64: 8221 | C64: 21 | D64: 8236 | K64: 0 | L64: 12
A65: 11 | B65: 8340 | C65: 21 | D65: 8358 | K65: 0 | L65: 12
A66: 22 | B66: 8489 | C66: 14 | D66: 8521 | K66: 0 | L66: 21
A67: 11 | B67: 8637 | C67: 21 | D67: 8649 | K67: 0 | L67: 12
A68: 11 | B68: 8755 | C68: 21 | D68: 8773 | K68: 0 | L68: 12
A69: 22 | B69: 8898 | C69: 14 | D69: 8918 | K69: 0 | L69: 21
A70: 22 | B70: 9022 | C70: 23 | D70: 9058 | K70: 0 | L70: 22
A71: 22 | B71: 9245 | C71: 14 | D71: 9266 | K71: 0 | L71: 21
A72: 11 | B72: 9382 | C72: 21 | D72: 9397 | K72: 0 | L72: 12
A73: 22 | B73: 9515 | C73: 23 | D73: 9539 | K73: 0 | L73: 22
A74: 22 | B74: 9668 | C74: 14 | D74: 9682 | K74: 0 | L74: 21
A75: 22 | B75: 9788 | C75: 23 | D75: 9800 | K75: 0 | L75: 22
A76: 11 | B76: 9926 | C76: 21 | D76: 9942 | K76: 0 | L76: 12
A77: 11 | B77: 10057 | C77: 21 | D77: 10082 | K77: 0 | L77: 12
A78: 22 | B78: 10204 | C78: 14 | D78: 10218 | K78: 0 | L78: 21
A79: 11 | B79: 10378 | C79: 21 | D79: 10392 | K79: 0 | L79: 12
A80: 11 | B80: 10539 | C80: 12 | D80: 10585 | K80: 0 | L80: 11
A81: 11 | B81: 10712 | C81: 21 | D81: 10732 | K81: 0 | L81: 12
A82: 11 | B82: 10844 | C82: 21 | D82: 10860 | K82: 0 | L82: 12
A83: 22 | B83: 10980 | C83: 14 | D83: 10994 | K83: 0 | L83: 21
A84: 11 | B84: 11110 | C84: 21 | D84: 11123 | K84: 0 | L84: 12
A85: 22 | B85: 11238 | C85: 14 | D85: 11253 | K85: 0 | L85: 21
A86: 11 | B86: 11364 | C86: 21 | D86: 11379 | K86: 0 | L86: 12
A87: 11 | B87: 11491 | C87: 21 | D87: 11510 | K87: 0 | L87: 12
A88: 11 | B88: 11621 | C88: 21 | D88: 11686 | K88: 0 | L88: 12
A89: 22 | B89: 11805 | C89: 23 | D89: 11862 | K89: 0 | L89: 22
A90: 22 | B90: 12034 | C90: 23 | D90: 12072 | K90: 0 | L90: 22
A91: 22 | B91: 12200 | C91: 23 | D91: 12225 | K91: 0 | L91: 22
A92: 22 | B92: 12353 | C92: 23 | D92: 12385 | K92: 0 | L92: 22
A93: 22 | B93: 12524 | C93: 14 | D93: 12540 | K93: 0 | L93: 21
A94: 11 | B94: 12653 | C94: 21 | D94: 12668 | K94: 0 | L94: 12
A95: 11 | B95: 12784 | C95: 21 | D95: 12800 | K95: 0 | L95: 12
A96: 22 | B96: 12910 | C96: 14 | D96: 12950 | K96: 0 | L96: 21
A97: 11 | B97: 13064 | C97: 21 | D97: 13077 | K97: 0 | L97: 12
A98: 11 | B98: 13189 | C98: 12 | D98: 13224 | K98: 0 | L98: 11
A99: 11 | B99: 13343 | C99: 21 | D99: 13360 | K99: 0 | L99: 12
A100: 22 | B100: 13483 | C100: 23 | D100: 13509 | K100: 0 | L100: 22
A101: 11 | B101: 13628 | C101: 21 | D101: 13641 | K101: 0 | L101: 12
A102: 11 | B102: 13745 | C102: 21 | D102: 13761 | K102: 0 | L102: 12
A103: 11 | B103: 13875 | C103: 21 | D103: 13892 | K103: 1 | L103: 12

Sheet !MC03950.105
A1: Report for:!MC03950.105
A2: Date: | B2: <date>
A3: Hen: | B3: <hen> | F3: Correct Sequence | G3: =Start!J2 -> 12 | P3: Total Sequences in Data | Q3: =4994-COUNTBLANK(L7:L5000) -> 88 | V3: Total Sequences in Block Data | W3: =COUNTA(L7:L21) -> 15 | AA3: Total Sequences in Block Data | AB3: =COUNTA(L22:L35) -> 14 | AF3: Total Sequences in Block Data | AG3: =COUNTA(L36:L50) -> 15 | AK3: Total Sequences in Block Data | AL3: =COUNTA(L51:L65) -> 15 | AP3: Total Sequences in Block Data | AQ3: =COUNTA(L66:L79) -> 14 | AU3: Total Sequences in Block Data | AV3: =COUNTA(L80:L94) -> 15
P4: Total Sequences in Summary | Q4: =SUM(O7:O14) -> 88 | V4: Total Sequences in Block Summary | W4: =SUM(U7:U14) -> 15 | AA4: Total Sequences in Block Summary | AB4: =SUM(Z7:Z14) -> 14 | AF4: Total Sequences in Block Summary | AG4: =SUM(AE7:AE14) -> 15 | AK4: Total Sequences in Block Summary | AL4: =SUM(AJ7:AJ14) -> 15 | AP4: Total Sequences in Block Summary | AQ4: =SUM(AO7:AO14) -> 14 | AU4: Total Sequences in Block Summary | AV4: =SUM(AT7:AT14) -> 15
T5: Block 1 | Y5: Block 2 | AD5: Block 3 | AI5: Block 4 | AN5: Block 5 | AS5: Block 6
A6: Sequence Component 1 | B6: Time 1 | C6: Sequence Component 2 | D6: Time 2 | E6: Sequence Component 3 | F6: Time 3 | G6: Sequence Component 4 | H6: Time 4 | I6: Sequence Component 5 | J6: Time 5 | K6: Correct? 0=No 1=Yes | L6: Sequence | N6: Frequency | P6: Relative Frequency | Q6: Variability | T6: Frequency | V6: Relative Frequency | W6: Variability | Y6: Frequency | AA6: Relative Frequency | AB6: Variability | AD6: Frequency | AF6: Relative Frequency | AG6: Variability | AI6: Frequency | AK6: Relative Frequency | AL6: Variability | AN6: Frequency | AP6: Relative Frequency | AQ6: Variability | AS6: Frequency | AU6: Relative Frequency | AV6: Variability
A7: 22 | B7: 19 | C7: 14 | D7: 40 | K7: 0 | L7: 21 | N7: 11 | O7: =COUNTIF($L$7:$L$500,N7) -> 1 | P7: =O7/$Q$4 -> 0.01136363636 | Q7: =IF(P7=0,0,(P7*((LOG(P7))/LOG(2)))) -> -0.07340263203 | T7: =N7 -> 11 | U7: =COUNTIF(L7:L21,T7) -> 0 | V7: =U7/(W4-U8) -> 0 | W7: =IF(V7=0,0,(V7*((LOG(V7))/LOG(2)))) -> 0 | Y7: =N7 -> 11 | Z7: =COUNTIF(L22:L35,Y7) -> 0 | AA7: =Z7/(AB4-Z8) -> 0 | AB7: =IF(AA7=0,0,(AA7*((LOG(AA7))/LOG(2)))) -> 0 | AD7: =N7 -> 11 | AE7: =COUNTIF(L36:L50,AD7) -> 0 | AF7: =AE7/(AG4-AE8) -> 0 | AG7: =IF(AF7=0,0,(AF7*((LOG(AF7))/LOG(2)))) -> 0 | AI7: =N7 -> 11 | AJ7: =COUNTIF(L51:L65,AI7) -> 0 | AK7: =AJ7/(AL4-AJ8) -> 0 | AL7: =IF(AK7=0,0,(AK7*((LOG(AK7))/LOG(2)))) -> 0 | AN7: =N7 -> 11 | AO7: =COUNTIF(L66:L79,AN7) -> 1 | AP7: =AO7/(AQ4-AO8) -> 0.125 | AQ7: =IF(AP7=0,0,(AP7*((LOG(AP7))/LOG(2)))) -> -0.375 | AS7: =N7 -> 11 | AT7: =COUNTIF(L80:L94,AS7) -> 0 | AU7: =AT7/(AV4-AT8) -> 0 | AV7: =IF(AU7=0,0,(AU7*((LOG(AU7))/LOG(2)))) -> 0
A8: 22 | B8: 151 | C8: 14 | D8: 165 | K8: 0 | L8: 21 | N8: 12 | O8: =COUNTIF($L$7:$L$500,N8) -> 39 | P8: =O8/$Q$4 -> 0.4431818182 | Q8: =IF(P8=0,0,(P8*((LOG(P8))/LOG(2)))) -> -0.520308484 | T8: =N8 -> 12 | U8: =COUNTIF(L7:L21,T8) -> 4 | Y8: =N8 -> 12 | Z8: =COUNTIF(L22:L35,Y8) -> 8 | AD8: =N8 -> 12 | AE8: =COUNTIF(L36:L50,AD8) -> 8 | AI8: =N8 -> 12 | AJ8: =COUNTIF(L51:L65,AI8) -> 6 | AN8: =N8 -> 12 | AO8: =COUNTIF(L66:L79,AN8) -> 6 | AS8: =N8 -> 12 | AT8: =COUNTIF(L80:L94,AS8) -> 7
A9: 22 | B9: 286 | C9: 14 | D9: 300 | K9: 0 | L9: 21 | N9: 21 | O9: =COUNTIF($L$7:$L$500,N9) -> 33 | P9: =O9/$Q$4 -> 0.375 | Q9: =IF(P9=0,0,(P9*((LOG(P9))/LOG(2)))) -> -0.5306390622 | T9: =N9 -> 21 | U9: =COUNTIF(L7:L21,T9) -> 5 | V9: =U9/(W4-U8) -> 0.4545454545 | W9: =IF(V9=0,0,(V9*((LOG(V9))/LOG(2)))) -> -0.5170470562 | Y9: =N9 -> 21 | Z9: =COUNTIF(L22:L35,Y9) -> 5 | AA9: =Z9/(AB4-Z8) -> 0.8333333333 | AB9: =IF(AA9=0,0,(AA9*((LOG(AA9))/LOG(2)))) -> -0.2191953382 | AD9: =N9 -> 21 | AE9: =COUNTIF(L36:L50,AD9) -> 4 | AF9: =AE9/(AG4-AE8) -> 0.5714285714 | AG9: =IF(AF9=0,0,(AF9*((LOG(AF9))/LOG(2)))) -> -0.4613456697 | AI9: =N9 -> 21 | AJ9: =COUNTIF(L51:L65,AI9) -> 7 | AK9: =AJ9/(AL4-AJ8) -> 0.7777777778 | AL9: =IF(AK9=0,0,(AK9*((LOG(AK9))/LOG(2)))) -> -0.2819989506 | AN9: =N9 -> 21 | AO9: =COUNTIF(L66:L79,AN9) -> 6 | AP9: =AO9/(AQ4-AO8) -> 0.75 | AQ9: =IF(AP9=0,0,(AP9*((LOG(AP9))/LOG(2)))) -> -0.3112781245 | AS9: =N9 -> 21 | AT9: =COUNTIF(L80:L94,AS9) -> 6 | AU9: =AT9/(AV4-AT8) -> 0.75 | AV9: =IF(AU9=0,0,(AU9*((LOG(AU9))/LOG(2)))) -> -0.3112781245
A10: 22 | B10: 427 | C10: 23 | D10: 453 | K10: 0 | L10: 22 | N10: 22 | O10: =COUNTIF($L$7:$L$500,N10) -> 15 | P10: =O10/$Q$4 -> 0.1704545455 | Q10: =IF(P10=0,0,(P10*((LOG(P10))/LOG(2)))) -> -0.4350922198 | T10: =N10 -> 22 | U10: =COUNTIF(L7:L21,T10) -> 6 | V10: =U10/(W4-U8) -> 0.5454545455 | W10: =IF(V10=0,0,(V10*((LOG(V10))/LOG(2)))) -> -0.4769831552 | Y10: =N10 -> 22 | Z10: =COUNTIF(L22:L35,Y10) -> 1 | AA10: =Z10/(AB4-Z8) -> 0.1666666667 | AB10: =IF(AA10=0,0,(AA10*((LOG(AA10))/LOG(2)))) -> -0.4308270835 | AD10: =N10 -> 22 | AE10: =COUNTIF(L36:L50,AD10) -> 3 | AF10: =AE10/(AG4-AE8) -> 0.4285714286 | AG10: =IF(AF10=0,0,(AF10*((LOG(AF10))/LOG(2)))) -> -0.5238824663 | AI10: =N10 -> 22 | AJ10: =COUNTIF(L51:L65,AI10) -> 2 | AK10: =AJ10/(AL4-AJ8) -> 0.2222222222 | AL10: =IF(AK10=0,0,(AK10*((LOG(AK10))/LOG(2)))) -> -0.4822055559 | AN10: =N10 -> 22 | AO10: =COUNTIF(L66:L79,AN10) -> 1 | AP10: =AO10/(AQ4-AO8) -> 0.125 | AQ10: =IF(AP10=0,0,(AP10*((LOG(AP10))/LOG(2)))) -> -0.375 | AS10: =N10 -> 22 | AT10: =COUNTIF(L80:L94,AS10) -> 2 | AU10: =AT10/(AV4-AT8) -> 0.25 | AV10: =IF(AU10=0,0,(AU10*((LOG(AU10))/LOG(2)))) -> -0.5
A11: 22 | B11: 545 | C11: 23 | D11: 562 | K11: 0 | L11: 22 | T11: =N11 -> 0 | U11: =COUNTIF(L7:L21,T11) -> 0 | V11: =U11/(W4-U8) -> 0 | W11: =IF(V11=0,0,(V11*((LOG(V11))/LOG(2)))) -> 0 | Y11: =N11 -> 0 | Z11: =COUNTIF(L22:L35,Y11) -> 0 | AA11: =Z11/(AB4-Z8) -> 0 | AB11: =IF(AA11=0,0,(AA11*((LOG(AA11))/LOG(2)))) -> 0 | AD11: =N11 -> 0 | AE11: =COUNTIF(L36:L50,AD11) -> 0 | AF11: =AE11/(AG4-AE8) -> 0 | AG11: =IF(AF11=0,0,(AF11*((LOG(AF11))/LOG(2)))) -> 0 | AI11: =N11 -> 0 | AJ11: =COUNTIF(L51:L65,AI11) -> 0 | AK11: =AJ11/(AL4-AJ8) -> 0 | AL11: =IF(AK11=0,0,(AK11*((LOG(AK11))/LOG(2)))) -> 0 | AN11: =N11 -> 0 | AO11: =COUNTIF(L66:L79,AN11) -> 0 | AP11: =AO11/(AQ4-AO8) -> 0 | AQ11: =IF(AP11=0,0,(AP11*((LOG(AP11))/LOG(2)))) -> 0 | AS11: =N11 -> 0 | AT11: =COUNTIF(L80:L94,AS11) -> 0 | AU11: =AT11/(AV4-AT8) -> 0 | AV11: =IF(AU11=0,0,(AU11*((LOG(AU11))/LOG(2)))) -> 0
A12: 11 | B12: 685 | C12: 21 | D12: 699 | K12: 0 | L12: 12 | T12: =N12 -> 0 | U12: =COUNTIF(L7:L21,T12) -> 0 | V12: =U12/(W4-U8) -> 0 | W12: =IF(V12=0,0,(V12*((LOG(V12))/LOG(2)))) -> 0 | Y12: =N12 -> 0 | Z12: =COUNTIF(L22:L35,Y12) -> 0 | AA12: =Z12/(AB4-Z8) -> 0 | AB12: =IF(AA12=0,0,(AA12*((LOG(AA12))/LOG(2)))) -> 0 | AD12: =N12 -> 0 | AE12: =COUNTIF(L36:L50,AD12) -> 0 | AF12: =AE12/(AG4-AE8) -> 0 | AG12: =IF(AF12=0,0,(AF12*((LOG(AF12))/LOG(2)))) -> 0 | AI12: =N12 -> 0 | AJ12: =COUNTIF(L51:L65,AI12) -> 0 | AK12: =AJ12/(AL4-AJ8) -> 0 | AL12: =IF(AK12=0,0,(AK12*((LOG(AK12))/LOG(2)))) -> 0 | AN12: =N12 -> 0 | AO12: =COUNTIF(L66:L79,AN12) -> 0 | AP12: =AO12/(AQ4-AO8) -> 0 | AQ12: =IF(AP12=0,0,(AP12*((LOG(AP12))/LOG(2)))) -> 0 | AS12: =N12 -> 0 | AT12: =COUNTIF(L80:L94,AS12) -> 0 | AU12: =AT12/(AV4-AT8) -> 0 | AV12: =IF(AU12=0,0,(AU12*((LOG(AU12))/LOG(2)))) -> 0
A13: 11 | B13: 810 | C13: 21 | D13: 825 | K13: 0 | L13: 12 | T13: =N13 -> 0 | U13: =COUNTIF(L7:L21,T13) -> 0 | V13: =U13/(W4-U8) -> 0 | W13: =IF(V13=0,0,(V13*((LOG(V13))/LOG(2)))) -> 0 | Y13: =N13 -> 0 | Z13: =COUNTIF(L22:L35,Y13) -> 0 | AA13: =Z13/(AB4-Z8) -> 0 | AB13: =IF(AA13=0,0,(AA13*((LOG(AA13))/LOG(2)))) -> 0 | AD13: =N13 -> 0 | AE13: =COUNTIF(L36:L50,AD13) -> 0 | AF13: =AE13/(AG4-AE8) -> 0 | AG13: =IF(AF13=0,0,(AF13*((LOG(AF13))/LOG(2)))) -> 0 | AI13: =N13 -> 0 | AJ13: =COUNTIF(L51:L65,AI13) -> 0 | AK13: =AJ13/(AL4-AJ8) -> 0 | AL13: =IF(AK13=0,0,(AK13*((LOG(AK13))/LOG(2)))) -> 0 | AN13: =N13 -> 0 | AO13: =COUNTIF(L66:L79,AN13) -> 0 | AP13: =AO13/(AQ4-AO8) -> 0 | AQ13: =IF(AP13=0,0,(AP13*((LOG(AP13))/LOG(2)))) -> 0 | AS13: =N13 -> 0 | AT13: =COUNTIF(L80:L94,AS13) -> 0 | AU13: =AT13/(AV4-AT8) -> 0 | AV13: =IF(AU13=0,0,(AU13*((LOG(AU13))/LOG(2)))) -> 0
A14: 22 | B14: 919 | C14: 23 | D14: 933 | K14: 0 | L14: 22 | T14: =N14 -> 0 | U14: =COUNTIF(L7:L21,T14) -> 0 | V14: =U14/(W4-U8) -> 0 | W14: =IF(V14=0,0,(V14*((LOG(V14))/LOG(2)))) -> 0 | Y14: =N14 -> 0 | Z14: =COUNTIF(L22:L35,Y14) -> 0 | AA14: =Z14/(AB4-Z8) -> 0 | AB14: =IF(AA14=0,0,(AA14*((LOG(AA14))/LOG(2)))) -> 0 | AD14: =N14 -> 0 | AE14: =COUNTIF(L36:L50,AD14) -> 0 | AF14: =AE14/(AG4-AE8) -> 0 | AG14: =IF(AF14=0,0,(AF14*((LOG(AF14))/LOG(2)))) -> 0 | AI14: =N14 -> 0 | AJ14: =COUNTIF(L51:L65,AI14) -> 0 | AK14: =AJ14/(AL4-AJ8) -> 0 | AL14: =IF(AK14=0,0,(AK14*((LOG(AK14))/LOG(2)))) -> 0 | AN14: =N14 -> 0 | AO14: =COUNTIF(L66:L79,AN14) -> 0 | AP14: =AO14/(AQ4-AO8) -> 0 | AQ14: =IF(AP14=0,0,(AP14*((LOG(AP14))/LOG(2)))) -> 0 | AS14: =N14 -> 0 | AT14: =COUNTIF(L80:L94,AS14) -> 0 | AU14: =AT14/(AV4-AT8) -> 0 | AV14: =IF(AU14=0,0,(AU14*((LOG(AU14))/LOG(2)))) -> 0
A15: 22 | B15: 1053 | C15: 14 | D15: 1069 | K15: 0 | L15: 21 | P15: =SUM(P7:P14) -> 1 | Q15: =-SUM(Q7:Q14) -> 1.559442398 | V15: =SUM(V7:V14) -> 1 | W15: =-SUM(W7:W14) -> 0.9940302115 | AA15: =SUM(AA7:AA14) -> 1 | AB15: =-SUM(AB7:AB14) -> 0.6500224216 | AF15: =SUM(AF7:AF14) -> 1 | AG15: =-SUM(AG7:AG14) -> 0.985228136 | AK15: =SUM(AK7:AK14) -> 1 | AL15: =-SUM(AL7:AL14) -> 0.7642045065 | AP15: =SUM(AP7:AP14) -> 1 | AQ15: =-SUM(AQ7:AQ14) -> 1.061278124 | AU15: =SUM(AU7:AU14) -> 1 | AV15: =-SUM(AV7:AV14) -> 0.8112781245
A16: 22 | B16: 1256 | C16: 23 | D16: 1297 | K16: 0 | L16: 22 | P16: U= | Q16: =Q15/(LOG(Q4)/LOG(2)) -> 0.2414209934 | V16: U1= | W16: =W15/(LOG(W4)/LOG(2)) -> 0.2544300095 | AA16: U2= | AB16: =AB15/(LOG(AB4)/LOG(2)) -> 0.1707280868 | AF16: U3= | AG16: =AG15/(LOG(AG4)/LOG(2)) -> 0.2521770477 | AK16: U4= | AL16: =AL15/(LOG(AL4)/LOG(2)) -> 0.195604276 | AP16: U5= | AQ16: =AQ15/(LOG(AQ4)/LOG(2)) -> 0.2787442059 | AU16: U6= | AV16: =AV15/(LOG(AV4)/LOG(2)) -> 0.2076531463
A17: 22 | B17: 1436 | C17: 23 | D17: 1465 | K17: 0 | L17: 22
A18: 22 | B18: 1575 | C18: 14 | D18: 1588 | K18: 0 | L18: 21
A19: 11 | B19: 1707 | C19: 21 | D19: 1719 | K19: 0 | L19: 12 | N19: Total Target Seq
A20: 22 | B20: 1858 | C20: 23 | D20: 1897 | K20: 0 | L20: 22 | N20: =COUNTIF(L7:L94,G3) -> 39 | P20: 15 | Q20: 14 | R20: 15 | S20: 15 | T20: 14 | U20: 15
A21: 11 | B21: 2022 | C21: 21 | D21: 2035 | K21: 0 | L21: 12 | P21: % of reinforcement given in 6 equal intervals based on number of trials
A22: 11 | B22: 2136 | C22: 21 | D22: 2150 | K22: 0 | L22: 12 | P22: %_1 | Q22: %_2 | R22: %_3 | S22: %_4 | T22: %_5 | U22: %_6
A23: 22 | B23: 2286 | C23: 14 | D23: 2315 | K23: 0 | L23: 21 | O23: target sequence | P23: =$G$3 -> 12 | Q23: =$G$3 -> 12 | R23: =$G$3 -> 12 | S23: =$G$3 -> 12 | T23: =$G$3 -> 12 | U23: =$G$3 -> 12
A24: 22 | B24: 2449 | C24: 14 | D24: 2464 | K24: 0 | L24: 21 | O24: total reinforcement | P24: =U8 -> 4 | Q24: =Z8 -> 8 | R24: =AE8 -> 8 | S24: =AJ8 -> 6 | T24: =AO8 -> 6 | U24: =AT8 -> 7
A25: 11 | B25: 2581 | C25: 21 | D25: 2594 | K25: 0 | L25: 12 | O25: % target
A26: 11 | B26: 2735 | C26: 21 | D26: 2749 | K26: 0 | L26: 12 | O26: CCRF
A27: 11 | B27: 2855 | C27: 21 | D27: 2869 | K27: 0 | L27: 12 | O27: % CCRf
A28: 22 | B28: 2963 | C28: 23 | D28: 2996 | K28: 0 | L28: 22 | O28: average response rate | P28: =D21/P20 -> 135.6666667 | Q28: =(D35-D21)/Q20 -> 137.6428571 | R28: =(D50-D35)/R20 -> 144.8666667 | S28: =(D65-D50)/S20 -> 150.8666667 | T28: =(D79-D65)/T20 -> 145 | U28: =(D94-D79)/U20 -> 142.3333333
A29: 22 | B29: 3124 | C29: 14 | D29: 3140 | K29: 0 | L29: 21
A30: 11 | B30: 3264 | C30: 21 | D30: 3277 | K30: 0 | L30: 12
A31: 11 | B31: 3389 | C31: 21 | D31: 3403 | K31: 0 | L31: 12
A32: 22 | B32: 3535 | C32: 14 | D32: 3561 | K32: 0 | L32: 21
A33: 11 | B33: 3676 | C33: 21 | D33: 3688 | K33: 0 | L33: 12
A34: 11 | B34: 3796 | C34: 21 | D34: 3810 | K34: 0 | L34: 12
A35: 22 | B35: 3933 | C35: 14 | D35: 3962 | K35: 0 | L35: 21
A36: 11 | B36: 4072 | C36: 21 | D36: 4085 | K36: 0 | L36: 12
A37: 22 | B37: 4217 | C37: 14 | D37: 4241 | K37: 0 | L37: 21
A38: 11 | B38: 4355 | C38: 21 | D38: 4369 | K38: 0 | L38: 12
A39: 22 | B39: 4488 | C39: 23 | D39: 4523 | K39: 0 | L39: 22
A40: 11 | B40: 4636 | C40: 21 | D40: 4650 | K40: 0 | L40: 12
A41: 22 | B41: 4778 | C41: 23 | D41: 4807 | K41: 0 | L41: 22
A42: 11 | B42: 4927 | C42: 21 | D42: 4940 | K42: 0 | L42: 12
A43: 11 | B43: 5044 | C43: 21 | D43: 5090 | K43: 0 | L43: 12
A44: 22 | B44: 5217 | C44: 14 | D44: 5234 | K44: 0 | L44: 21
A45: 11 | B45: 5349 | C45: 21 | D45: 5362 | K45: 0 | L45: 12
A46: 22 | B46: 5497 | C46: 14 | D46: 5516 | K46: 0 | L46: 21
A47: 11 | B47: 5638 | C47: 21 | D47: 5657 | K47: 0 | L47: 12
A48: 22 | B48: 5786 | C48: 23 | D48: 5819 | K48: 0 | L48: 22
A49: 22 | B49: 5975 | C49: 14 | D49: 6001 | K49: 0 | L49: 21
A50: 11 | B50: 6123 | C50: 21 | D50: 6135 | K50: 0 | L50: 12
A51: 22 | B51: 6262 | C51: 14 | D51: 6290 | K51: 0 | L51: 21
A52: 11 | B52: 6414 | C52: 21 | D52: 6429 | K52: 0 | L52: 12
A53: 11 | B53: 6542 | C53: 21 | D53: 6556 | K53: 0 | L53: 12
A54: 11 | B54: 6675 | C54: 21 | D54: 6689 | K54: 0 | L54: 12
A55: 22 | B55: 6783 | C55: 14 | D55: 6795 | K55: 0 | L55: 21
A56: 11 | B56: 6916 | C56: 21 | D56: 6930 | K56: 0 | L56: 12
A57: 22 | B57: 7066 | C57: 14 | D57: 7124 | K57: 0 | L57: 21
A58: 22 | B58: 7249 | C58: 14 | D58: 7266 | K58: 0 | L58: 21
A59: 11 | B59: 7383 | C59: 21 | D59: 7398 | K59: 0 | L59: 12
A60: 22 | B60: 7522 | C60: 14 | D60: 7571 | K60: 0 | L60: 21
A61: 22 | B61: 7709 | C61: 14 | D61: 7724 | K61: 0 | L61: 21
A62: 22 | B62: 7853 | C62: 23 | D62: 7895 | K62: 0 | L62: 22
A63: 22 | B63: 8023 | C63: 23 | D63: 8075 | K63: 0 | L63: 22
A64: 22 | B64: 8229 | C64: 14 | D64: 8259 | K64: 0 | L64: 21
A65: 11 | B65: 8378 | C65: 21 | D65: 8398 | K65: 0 | L65: 12
A66: 11 | B66: 8510 | C66: 21 | D66: 8523 | K66: 0 | L66: 12
A67: 22 | B67: 8649 | C67: 23 | D67: 8685 | K67: 0 | L67: 22
A68: 22 | B68: 8822 | C68: 14 | D68: 8839 | K68: 0 | L68: 21
A69: 11 | B69: 8960 | C69: 21 | D69: 8974 | K69: 0 | L69: 12
A70: 22 | B70: 9132 | C70: 14 | D70: 9156 | K70: 0 | L70: 21
A71: 11 | B71: 9277 | C71: 12 | D71: 9307 | K71: 0 | L71: 11
A72: 22 | B72: 9425 | C72: 14 | D72: 9440 | K72: 0 | L72: 21
A73: 11 | B73: 9561 | C73: 21 | D73: 9579 | K73: 0 | L73: 12
A74: 22 | B74: 9700 | C74: 14 | D74: 9720 | K74: 0 | L74: 21
A75: 11 | B75: 9837 | C75: 21 | D75: 9849 | K75: 0 | L75: 12
A76: 22 | B76: 9973 | C76: 14 | D76: 10008 | K76: 0 | L76: 21
A77: 22 | B77: 10143 | C77: 14 | D77: 10173 | K77: 0 | L77: 21
A78: 11 | B78: 10288 | C78: 21 | D78: 10298 | K78: 0 | L78: 12
A79: 11 | B79: 10412 | C79: 21 | D79: 10428 | K79: 0 | L79: 12
A80: 22 | B80: 10557 | C80: 14 | D80: 10587 | K80: 0 | L80: 21
A81: 22 | B81: 10720 | C81: 14 | D81: 10737 | K81: 0 | L81: 21
A82: 22 | B82: 10863 | C82: 14 | D82: 10880 | K82: 0 | L82: 21
A83: 22 | B83: 11015 | C83: 14 | D83: 11033 | K83: 0 | L83: 21
A84: 11 | B84: 11147 | C84: 21 | D84: 11180 | K84: 0 | L84: 12
A85: 22 | B85: 11275 | C85: 14 | D85: 11285 | K85: 0 | L85: 21
A86: 11 | B86: 11398 | C86: 21 | D86: 11414 | K86: 0 | L86: 12
A87: 22 | B87: 11538 | C87: 14 | D87: 11559 | K87: 0 | L87: 21
A88: 11 | B88: 11680 | C88: 21 | D88: 11692 | K88: 0 | L88: 12
A89: 22 | B89: 11815 | C89: 23 | D89: 11849 | K89: 0 | L89: 22
A90: 11 | B90: 11997 | C90: 21 | D90: 12008 | K90: 0 | L90: 12
A91: 11 | B91: 12111 | C91: 21 | D91: 12121 | K91: 0 | L91: 12
A92: 11 | B92: 12224 | C92: 21 | D92: 12233 | K92: 0 | L92: 12
A93: 22 | B93: 12360 | C93: 23 | D93: 12399 | K93: 0 | L93: 22
A94: 11 | B94: 12515 | C94: 21 | D94: 12563 | K94: 1 | L94: 12

Sheet !MC04B40.105
A1: Report for:!MC04B40.105
A2: Date: | B2: <date>
A3: Hen: | B3: <hen> | F3: Correct Sequence | G3: =Start!J2 -> 12 | P3: Total Sequences in Data | Q3: =4994-COUNTBLANK(L7:L5000) -> 94 | V3: Total Sequences in Block Data | W3: =COUNTA(L7:L22) -> 16 | AA3: Total Sequences in Block Data | AB3: =COUNTA(L23:L37) -> 15 | AF3: Total Sequences in Block Data | AG3: =COUNTA(L38:L53) -> 16 | AK3: Total Sequences in Block Data | AL3: =COUNTA(L54:L69) -> 16 | AP3: Total Sequences in Block Data | AQ3: =COUNTA(L70:L84) -> 15 | AU3: Total Sequences in Block Data | AV3: =COUNTA(L85:L100) -> 16
P4: Total Sequences in Summary | Q4: =SUM(O7:O14) -> 94 | V4: Total Sequences in Block Summary | W4: =SUM(U7:U14) -> 16 | AA4: Total Sequences in Block Summary | AB4: =SUM(Z7:Z14) -> 15 | AF4: Total Sequences in Block Summary | AG4: =SUM(AE7:AE14) -> 16 | AK4: Total Sequences in Block Summary | AL4: =SUM(AJ7:AJ14) -> 16 | AP4: Total Sequences in Block Summary | AQ4: =SUM(AO7:AO14) -> 15 | AU4: Total Sequences in Block Summary | AV4: =SUM(AT7:AT14) -> 16
T5: Block 1 | Y5: Block 2 | AD5: Block 3 | AI5: Block 4 | AN5: Block 5 | AS5: Block 6
A6: Sequence Component 1 | B6: Time 1 | C6: Sequence Component 2 | D6: Time 2 | E6: Sequence Component 3 | F6: Time 3 | G6: Sequence Component 4 | H6: Time 4 | I6: Sequence Component 5 | J6: Time 5 | K6: Correct? 0=No 1=Yes | L6: Sequence | N6: Frequency | P6: Relative Frequency | Q6: Variability | T6: Frequency | V6: Relative Frequency | W6: Variability | Y6: Frequency | AA6: Relative Frequency | AB6: Variability | AD6: Frequency | AF6: Relative Frequency | AG6: Variability | AI6: Frequency | AK6: Relative Frequency | AL6: Variability | AN6: Frequency | AP6: Relative Frequency | AQ6: Variability | AS6: Frequency | AU6: Relative Frequency | AV6: Variability
A7: 22 | B7: 10 | C7: 14 | D7: 20 | K7: 0 | L7: 21 | N7: 11 | O7: =COUNTIF($L$7:$L$500,N7) -> 10 | P7: =O7/$Q$4 -> 0.1063829787 | Q7: =IF(P7=0,0,(P7*((LOG(P7))/LOG(2)))) -> -0.3439000805 | T7: =N7 -> 11 | U7: =COUNTIF(L7:L22,T7) -> 0 | V7: =U7/(W4-U8) -> 0 | W7: =IF(V7=0,0,(V7*((LOG(V7))/LOG(2)))) -> 0 | Y7: =N7 -> 11 | Z7: =COUNTIF(L23:L37,Y7) -> 0 | AA7: =Z7/(AB4-Z8) -> 0 | AB7: =IF(AA7=0,0,(AA7*((LOG(AA7))/LOG(2)))) -> 0 | AD7: =N7 -> 11 | AE7: =COUNTIF(L38:L53,AD7) -> 3 | AF7: =AE7/(AG4-AE8) -> 0.375 | AG7: =IF(AF7=0,0,(AF7*((LOG(AF7))/LOG(2)))) -> -0.5306390622 | AI7: =N7 -> 11 | AJ7: =COUNTIF(L54:L69,AI7) -> 0 | AK7: =AJ7/(AL4-AJ8) -> 0 | AL7: =IF(AK7=0,0,(AK7*((LOG(AK7))/LOG(2)))) -> 0 | AN7: =N7 -> 11 | AO7: =COUNTIF(L70:L84,AN7) -> 4 | AP7: =AO7/(AQ4-AO8) -> 0.4444444444 | AQ7: =IF(AP7=0,0,(AP7*((LOG(AP7))/LOG(2)))) -> -0.5199666673 | AS7: =N7 -> 11 | AT7: =COUNTIF(L85:L100,AS7) -> 3 | AU7: =AT7/(AV4-AT8) -> 0.4285714286 | AV7: =IF(AU7=0,0,(AU7*((LOG(AU7))/LOG(2)))) -> -0.5238824663
A8: 22 | B8: 151 | C8: 14 | D8: 166 | K8: 0 | L8: 21 | N8: 12 | O8: =COUNTIF($L$7:$L$500,N8) -> 39 | P8: =O8/$Q$4 -> 0.414893617 | Q8: =IF(P8=0,0,(P8*((LOG(P8))/LOG(2)))) -> -0.5265774328 | T8: =N8 -> 12 | U8: =COUNTIF(L7:L22,T8) -> 2 | Y8: =N8 -> 12 | Z8: =COUNTIF(L23:L37,Y8) -> 4 | AD8: =N8 -> 12 | AE8: =COUNTIF(L38:L53,AD8) -> 8 | AI8: =N8 -> 12 | AJ8: =COUNTIF(L54:L69,AI8) -> 10 | AN8: =N8 -> 12 | AO8: =COUNTIF(L70:L84,AN8) -> 6 | AS8: =N8 -> 12 | AT8: =COUNTIF(L85:L100,AS8) -> 9
A9: 22 | B9: 296 | C9: 14 | D9: 311 | K9: 0 | L9: 21 | N9: 21 | O9: =COUNTIF($L$7:$L$500,N9) -> 35 | P9: =O9/$Q$4 -> 0.3723404255 | Q9: =IF(P9=0,0,(P9*((LOG(P9))/LOG(2)))) -> -0.530698981 | T9: =N9 -> 21 | U9: =COUNTIF(L7:L22,T9) -> 10 | V9: =U9/(W4-U8) -> 0.7142857143 | W9: =IF(V9=0,0,(V9*((LOG(V9))/LOG(2)))) -> -0.346733448 | Y9: =N9 -> 21 | Z9: =COUNTIF(L23:L37,Y9) -> 10 | AA9: =Z9/(AB4-Z8) -> 0.9090909091 | AB9: =IF(AA9=0,0,(AA9*((LOG(AA9))/LOG(2)))) -> -0.1250032034 | AD9: =N9 -> 21 | AE9: =COUNTIF(L38:L53,AD9) -> 4 | AF9: =AE9/(AG4-AE8) -> 0.5 | AG9: =IF(AF9=0,0,(AF9*((LOG(AF9))/LOG(2)))) -> -0.5 | AI9: =N9 -> 21 | AJ9: =COUNTIF(L54:L69,AI9) -> 6 | AK9: =AJ9/(AL4-AJ8) -> 1 | AL9: =IF(AK9=0,0,(AK9*((LOG(AK9))/LOG(2)))) -> 0 | AN9: =N9 -> 21 | AO9: =COUNTIF(L70:L84,AN9) -> 4 | AP9: =AO9/(AQ4-AO8) -> 0.4444444444 | AQ9: =IF(AP9=0,0,(AP9*((LOG(AP9))/LOG(2)))) -> -0.5199666673 | AS9: =N9 -> 21 | AT9: =COUNTIF(L85:L100,AS9) -> 1 | AU9: =AT9/(AV4-AT8) -> 0.1428571429 | AV9: =IF(AU9=0,0,(AU9*((LOG(AU9))/LOG(2)))) -> -0.4010507032
A10: 22 | B10: 455 | C10: 23 | D10: 493 | K10: 0 | L10: 22 | N10: 22 | O10: =COUNTIF($L$7:$L$500,N10) -> 10 | P10: =O10/$Q$4 -> 0.1063829787 | Q10: =IF(P10=0,0,(P10*((LOG(P10))/LOG(2)))) -> -0.3439000805 | T10: =N10 -> 22 | U10: =COUNTIF(L7:L22,T10) -> 4 | V10: =U10/(W4-U8) -> 0.2857142857 | W10: =IF(V10=0,0,(V10*((LOG(V10))/LOG(2)))) -> -0.5163871206 | Y10: =N10 -> 22 | Z10: =COUNTIF(L23:L37,Y10) -> 1 | AA10: =Z10/(AB4-Z8) -> 0.09090909091 | AB10: =IF(AA10=0,0,(AA10*((LOG(AA10))/LOG(2)))) -> -0.3144937835 | AD10: =N10 -> 22 | AE10: =COUNTIF(L38:L53,AD10) -> 1 | AF10: =AE10/(AG4-AE8) -> 0.125 | AG10: =IF(AF10=0,0,(AF10*((LOG(AF10))/LOG(2)))) -> -0.375 | AI10: =N10 -> 22 | AJ10: =COUNTIF(L54:L69,AI10) -> 0 | AK10: =AJ10/(AL4-AJ8) -> 0 | AL10: =IF(AK10=0,0,(AK10*((LOG(AK10))/LOG(2)))) -> 0 | AN10: =N10 -> 22 | AO10: =COUNTIF(L70:L84,AN10) -> 1 | AP10: =AO10/(AQ4-AO8) -> 0.1111111111 | AQ10: =IF(AP10=0,0,(AP10*((LOG(AP10))/LOG(2)))) -> -0.352213889 | AS10: =N10 -> 22 | AT10: =COUNTIF(L85:L100,AS10) -> 3 | AU10: =AT10/(AV4-AT8) -> 0.4285714286 | AV10: =IF(AU10=0,0,(AU10*((LOG(AU10))/LOG(2)))) -> -0.5238824663
A11: 22 | B11: 653 | C11: 23 | D11: 683 | K11: 0 | L11: 22 | T11: =N11 -> 0 | U11: =COUNTIF(L7:L22,T11) -> 0 | V11: =U11/(W4-U8) -> 0 | W11: =IF(V11=0,0,(V11*((LOG(V11))/LOG(2)))) -> 0 | Y11: =N11 -> 0 | Z11: =COUNTIF(L23:L37,Y11) -> 0 | AA11: =Z11/(AB4-Z8) -> 0 | AB11: =IF(AA11=0,0,(AA11*((LOG(AA11))/LOG(2)))) -> 0 | AD11: =N11 -> 0 | AE11: =COUNTIF(L38:L53,AD11) -> 0 | AF11: =AE11/(AG4-AE8) -> 0 | AG11: =IF(AF11=0,0,(AF11*((LOG(AF11))/LOG(2)))) -> 0 | AI11: =N11 -> 0 | AJ11: =COUNTIF(L54:L69,AI11) -> 0 | AK11: =AJ11/(AL4-AJ8) -> 0 | AL11: =IF(AK11=0,0,(AK11*((LOG(AK11))/LOG(2)))) -> 0 | AN11: =N11 -> 0 | AO11: =COUNTIF(L70:L84,AN11) -> 0 | AP11: =AO11/(AQ4-AO8) -> 0 | AQ11: =IF(AP11=0,0,(AP11*((LOG(AP11))/LOG(2)))) -> 0 | AS11: =N11 -> 0 | AT11: =COUNTIF(L85:L100,AS11) -> 0 | AU11: =AT11/(AV4-AT8) -> 0 | AV11: =IF(AU11=0,0,(AU11*((LOG(AU11))/LOG(2)))) -> 0
A12: 22 | B12: 830 | C12: 23 | D12: 858 | K12: 0 | L12: 22 | T12: =N12 -> 0 | U12: =COUNTIF(L7:L22,T12) -> 0 | V12: =U12/(W4-U8) -> 0 | W12: =IF(V12=0,0,(V12*((LOG(V12))/LOG(2)))) -> 0 | Y12: =N12 -> 0 | Z12: =COUNTIF(L23:L37,Y12) -> 0 | AA12: =Z12/(AB4-Z8) -> 0 | AB12: =IF(AA12=0,0,(AA12*((LOG(AA12))/LOG(2)))) -> 0 | AD12: =N12 -> 0 | AE12: =COUNTIF(L38:L53,AD12) -> 0 | AF12: =AE12/(AG4-AE8) -> 0 | AG12: =IF(AF12=0,0,(AF12*((LOG(AF12))/LOG(2)))) -> 0 | AI12: =N12 -> 0 | AJ12: =COUNTIF(L54:L69,AI12) -> 0 | AK12: =AJ12/(AL4-AJ8) -> 0 | AL12: =IF(AK12=0,0,(AK12*((LOG(AK12))/LOG(2)))) -> 0 | AN12: =N12 -> 0 | AO12: =COUNTIF(L70:L84,AN12) -> 0 | AP12: =AO12/(AQ4-AO8) -> 0 | AQ12: =IF(AP12=0,0,(AP12*((LOG(AP12))/LOG(2)))) -> 0 | AS12: =N12 -> 0 | AT12: =COUNTIF(L85:L100,AS12) -> 0 | AU12: =AT12/(AV4-AT8) -> 0 | AV12: =IF(AU12=0,0,(AU12*((LOG(AU12))/LOG(2)))) -> 0
A13: 22 | B13: 1019 | C13: 23 | D13: 1048 | K13: 0 | L13: 22 | T13: =N13 -> 0 | U13: =COUNTIF(L7:L22,T13) -> 0 | V13: =U13/(W4-U8) -> 0 | W13: =IF(V13=0,0,(V13*((LOG(V13))/LOG(2)))) -> 0 | Y13: =N13 -> 0 | Z13: =COUNTIF(L23:L37,Y13) -> 0 | AA13: =Z13/(AB4-Z8) -> 0 | AB13: =IF(AA13=0,0,(AA13*((LOG(AA13))/LOG(2)))) -> 0 | AD13: =N13 -> 0 | AE13: =COUNTIF(L38:L53,AD13) -> 0 | AF13: =AE13/(AG4-AE8) -> 0 | AG13: =IF(AF13=0,0,(AF13*((LOG(AF13))/LOG(2)))) -> 0 | AI13: =N13 -> 0 | AJ13: =COUNTIF(L54:L69,AI13) -> 0 | AK13: =AJ13/(AL4-AJ8) -> 0 | AL13: =IF(AK13=0,0,(AK13*((LOG(AK13))/LOG(2)))) -> 0 | AN13: =N13 -> 0 | AO13: =COUNTIF(L70:L84,AN13) -> 0 | AP13: =AO13/(AQ4-AO8) -> 0 | AQ13: =IF(AP13=0,0,(AP13*((LOG(AP13))/LOG(2)))) -> 0 | AS13: =N13 -> 0 | AT13: =COUNTIF(L85:L100,AS13) -> 0 | AU13: =AT13/(AV4-AT8) -> 0 | AV13: =IF(AU13=0,0,(AU13*((LOG(AU13))/LOG(2)))) -> 0
A14: 22 | B14: 1181 | C14: 14 | D14: 1197 | K14: 0 | L14: 21 | T14: =N14 -> 0 | U14: =COUNTIF(L7:L22,T14) -> 0 | V14: =U14/(W4-U8) -> 0 | W14: =IF(V14=0,0,(V14*((LOG(V14))/LOG(2)))) -> 0 | Y14: =N14 -> 0 | Z14: =COUNTIF(L23:L37,Y14) -> 0 | AA14: =Z14/(AB4-Z8) -> 0 | AB14: =IF(AA14=0,0,(AA14*((LOG(AA14))/LOG(2)))) -> 0 | AD14: =N14 -> 0 | AE14: =COUNTIF(L38:L53,AD14) -> 0 | AF14: =AE14/(AG4-AE8) -> 0 | AG14: =IF(AF14=0,0,(AF14*((LOG(AF14))/LOG(2)))) -> 0 | AI14: =N14 -> 0 | AJ14: =COUNTIF(L54:L69,AI14) -> 0 | AK14: =AJ14/(AL4-AJ8) -> 0 | AL14: =IF(AK14=0,0,(AK14*((LOG(AK14))/LOG(2)))) -> 0 | AN14: =N14 -> 0 | AO14: =COUNTIF(L70:L84,AN14) -> 0 | AP14: =AO14/(AQ4-AO8) -> 0 | AQ14: =IF(AP14=0,0,(AP14*((LOG(AP14))/LOG(2)))) -> 0 | AS14: =N14 -> 0 | AT14: =COUNTIF(L85:L100,AS14) -> 0 | AU14: =AT14/(AV4-AT8) -> 0 | AV14: =IF(AU14=0,0,(AU14*((LOG(AU14))/LOG(2)))) -> 0
A15: 22 | B15: 1378 | C15: 14 | D15: 1399 | K15: 0 | L15: 21 | P15: =SUM(P7:P14) -> 1 | Q15: =-SUM(Q7:Q14) -> 1.745076575 | V15: =SUM(V7:V14) -> 1 | W15: =-SUM(W7:W14) -> 0.8631205686 | AA15: =SUM(AA7:AA14) -> 1 | AB15: =-SUM(AB7:AB14) -> 0.4394969869 | AF15: =SUM(AF7:AF14) -> 1 | AG15: =-SUM(AG7:AG14) -> 1.405639062 | AK15: =SUM(AK7:AK14) -> 1 | AL15: =-SUM(AL7:AL14) -> 0 | AP15: =SUM(AP7:AP14) -> 1 | AQ15: =-SUM(AQ7:AQ14) -> 1.392147224 | AU15: =SUM(AU7:AU14) -> 1 | AV15: =-SUM(AV7:AV14) -> 1.448815636
A16: 22 | B16: 1535 | C16: 14 | D16: 1548 | K16: 0 | L16: 21 | P16: U= | Q16: =Q15/(LOG(Q4)/LOG(2)) -> 0.2662373818 | V16: U1= | W16: =W15/(LOG(W4)/LOG(2)) -> 0.2157801421 | AA16: U2= | AB16: =AB15/(LOG(AB4)/LOG(2)) -> 0.1124927807 | AF16: U3= | AG16: =AG15/(LOG(AG4)/LOG(2)) -> 0.3514097656 | AK16: U4= | AL16: =AL15/(LOG(AL4)/LOG(2)) -> 0 | AP16: U5= | AQ16: =AQ15/(LOG(AQ4)/LOG(2)) -> 0.3563312536 | AU16: U6= | AV16: =AV15/(LOG(AV4)/LOG(2)) -> 0.3622039089
A17: 11 | B17: 1675 | C17: 21 | D17: 1688 | K17: 0 | L17: 12
A18: 11 | B18: 1798 | C18: 21 | D18: 1815 | K18: 0 | L18: 12
A19: 22 | B19: 1936 | C19: 14 | D19: 1951 | K19: 0 | L19: 21 | N19: Total Target Seq
A20: 22 | B20: 2078 | C20: 14 | D20: 2093 | K20: 0 | L20: 21 | N20: =COUNTIF(L7:L100,G3) -> 39 | P20: 16 | Q20: 15 | R20: 16 | S20: 16 | T20: 15 | U20: 16
A21: 22 | B21: 2223 | C21: 14 | D21: 2239 | K21: 0 | L21: 21 | P21: % of reinforcement given in 6 equal intervals based on number of trials
A22: 22 | B22: 2369 | C22: 14 | D22: 2385 | K22: 0 | L22: 21 | P22: %_1 | Q22: %_2 | R22: %_3 | S22: %_4 | T22: %_5 | U22: %_6
A23: 11 | B23: 2507 | C23: 21 | D23: 2523 | K23: 0 | L23: 12 | O23: target sequence | P23: =$G$3 -> 12 | Q23: =$G$3 -> 12 | R23: =$G$3 -> 12 | S23: =$G$3 -> 12 | T23: =$G$3 -> 12 | U23: =$G$3 -> 12
A24: 22 | B24: 2644 | C24: 14 | D24: 2672 | K24: 0 | L24: 21 | O24: total reinforcement | P24: =U8 -> 2 | Q24: =Z8 -> 4 | R24: =AE8 -> 8 | S24: =AJ8 -> 10 | T24: =AO8 -> 6 | U24: =AT8 -> 9
A25: 22 | B25: 2801 | C25: 14 | D25: 2824 | K25: 0 | L25: 21 | O25: % target
A26: 22 | B26: 2959 | C26: 14 | D26: 2974 | K26: 0 | L26: 21 | O26: CCRF
A27: 22 | B27: 3108 | C27: 14 | D27: 3127 | K27: 0 | L27: 21 | O27: % CCRf
A28: 11 | B28: 3245 | C28: 21 | D28: 3259 | K28: 0 | L28: 12 | O28: average response rate | P28: =D22/P20 -> 149.0625 | Q28: =(D37-D22)/Q20 -> 145.8 | R28: =(D53-D37)/R20 -> 138.6875 | S28: =(D69-D53)/S20 -> 138.4375 | T28: =(D84-D69)/T20 -> 152.5333333 | U28: =(D100-D84)/U20 -> 142.875
A29: 22 | B29: 3385 | C29: 23 | D29: 3412 | K29: 0 | L29: 22
A30: 22 | B30: 3540 | C30: 14 | D30: 3553 | K30: 0 | L30: 21
A31: 11 | B31: 3669 | C31: 21 | D31: 3683 | K31: 0 | L31: 12
A32: 22 | B32: 3801 | C32: 14 | D32: 3827 | K32: 0 | L32: 21
A33: 11 | B33: 3943 | C33: 21 | D33: 3996 | K33: 0 | L33: 12
A34: 22 | B34: 4113 | C34: 14 | D34: 4130 | K34: 0 | L34: 21
A35: 22 | B35: 4259 | C35: 14 | D35: 4275 | K35: 0 | L35: 21
A36: 22 | B36: 4405 | C36: 14 | D36: 4425 | K36: 0 | L36: 21
A37: 22 | B37: 4556 | C37: 14 | D37: 4572 | K37: 0 | L37: 21
A38: 22 | B38: 4699 | C38: 14 | D38: 4716 | K38: 0 | L38: 21
A39: 11 | B39: 4836 | C39: 21 | D39: 4850 | K39: 0 | L39: 12
A40: 11 | B40: 4957 | C40: 12 | D40: 4984 | K40: 0 | L40: 11
A41: 11 | B41: 5090 | C41: 21 | D41: 5123 | K41: 0 | L41: 12
A42: 11 | B42: 5226 | C42: 21 | D42: 5241 | K42: 0 | L42: 12
A43: 22 | B43: 5358 | C43: 14 | D43: 5390 | K43: 0 | L43: 21
A44: 11 | B44: 5506 | C44: 21 | D44: 5520 | K44: 0 | L44: 12
A45: 22 | B45: 5641 | C45: 23 | D45: 5671 | K45: 0 | L45: 22
A46: 11 | B46: 5787 | C46: 21 | D46: 5800 | K46: 0 | L46: 12
A47: 11 | B47: 5908 | C47: 21 | D47: 5922 | K47: 0 | L47: 12
A48: 22 | B48: 6071 | C48: 14 | D48: 6143 | K48: 0 | L48: 21
A49: 22 | B49: 6268 | C49: 14 | D49: 6286 | K49: 0 | L49: 21
A50: 11 | B50: 6399 | C50: 12 | D50: 6420 | K50: 0 | L50: 11
A51: 11 | B51: 6532 | C51: 12 | D51: 6542 | K51: 0 | L51: 11
A52: 11 | B52: 6659 | C52: 21 | D52: 6672 | K52: 0 | L52: 12
A53: 11 | B53: 6776 | C53: 21 | D53: 6791 | K53: 0 | L53: 12
A54: 22 | B54: 6925 | C54: 14 | D54: 6967 | K54: 0 | L54: 21
A55: 22 | B55: 7095 | C55: 14 | D55: 7127 | K55: 0 | L55: 21
A56: 22 | B56: 7255 | C56: 14 | D56: 7276 | K56: 0 | L56: 21
A57: 11 | B57: 7393 | C57: 21 | D57: 7403 | K57: 0 | L57: 12
A58: 11 | B58: 7513 | C58: 21 | D58: 7526 | K58: 0 | L58: 12
A59: 11 | B59: 7637 | C59: 21 | D59: 7651 | K59: 0 | L59: 12
A60: 11 | B60: 7758 | C60: 21 | D60: 7774 | K60: 0 | L60: 12
A61: 22 | B61: 7892 | C61: 14 | D61: 7906 | K61: 0 | L61: 21
A62: 11 | B62: 8018 | C62: 21 | D62: 8032 | K62: 0 | L62: 12
A63: 22 | B63: 8149 | C63: 14 | D63: 8190 | K63: 0 | L63: 21
A64: 11 | B64: 8300 | C64: 21 | D64: 8309 | K64: 0 | L64: 12
A65: 11 | B65: 8417 | C65: 21 | D65: 8436 | K65: 0 | L65: 12
A66: 11 | B66: 8538 | C66: 21 | D66: 8551 | K66: 0 | L66: 12
A67: 11 | B67: 8655 | C67: 21 | D67: 8671 | K67: 0 | L67: 12
A68: 11 | B68: 8773 | C68: 21 | D68: 8782 | K68: 0 | L68: 12
A69: 22 | B69: 8968 | C69: 14 | D69: 9006 | K69: 0 | L69: 21
A70: 11 | B70: 9116 | C70: 21 | D70: 9156 | K70: 0 | L70: 12
A71: 22 | B71: 9298 | C71: 14 | D71: 9325 | K71: 0 | L71: 21
A72: 22 | B72: 9454 | C72: 14 | D72: 9516 | K72: 0 | L72: 21
A73: 11 | B73: 9633 | C73: 12 | D73: 9696 | K73: 0 | L73: 11
A74: 22 | B74: 9852 | C74: 14 | D74: 9877 | K74: 0 | L74: 21
A75: 22 | B75: 10010 | C75: 14 | D75: 10024 | K75: 0 | L75: 21
A76: 11 | B76: 10139 | C76: 12 | D76: 10169 | K76: 0 | L76: 11
A77: 11 | B77: 10286 | C77: 21 | D77: 10303 | K77: 0 | L77: 12
A78: 11 | B78: 10403 | C78: 21 | D78: 10420 | K78: 0 | L78: 12
A79: 22 | B79: 10541 | C79: 23 | D79: 10567 | K79: 0 | L79: 22
A80: 11 | B80: 10682 | C80: 21 | D80: 10699 | K80: 0 | L80: 12
A81: 11 | B81: 10799 | C81: 12 | D81: 10840 | K81: 0 | L81: 11
A82: 11 | B82: 10953 | C82: 21 | D82: 11003 | K82: 0 | L82: 12
A83: 11 | B83: 11107 | C83: 12 | D83: 11167 | K83: 0 | L83: 11
A84: 11 | B84: 11277 | C84: 21 | D84: 11294 | K84: 0 | L84: 12
A85: 11 | B85: 11396 | C85: 21 | D85: 11411 | K85: 0 | L85: 12
A86: 22 | B86: 11535 | C86: 14 | D86: 11551 | K86: 0 | L86: 21
A87: 11 | B87: 11662 | C87: 12 | D87: 11718 | K87: 0 | L87: 11
A88: 11 | B88: 11827 | C88: 21 | D88: 11919 | K88: 0 | L88: 12
A89: 11 | B89: 12030 | C89: 12 | D89: 12051 | K89: 0 | L89: 11
A90: 11 | B90: 12160 | C90: 12 | D90: 12181 | K90: 0 | L90: 11
A91: 11 | B91: 12294 | C91: 21 | D91: 12312 | K91: 0 | L91: 12
A92: 22 | B92: 12432 | C92: 23 | D92: 12465 | K92: 0 | L92: 22
A93: 11 | B93: 12576 | C93: 21 | D93: 12614 | K93: 0 | L93: 12
A94: 11 | B94: 12742 | C94: 21 | D94: 12758 | K94: 0 | L94: 12
A95: 11 | B95: 12875 | C95: 21 | D95: 12886 | K95: 0 | L95: 12
A96: 11 | B96: 12986 | C96: 21 | D96: 13021 | K96: 0 | L96: 12
A97: 11 | B97: 13128 | C97: 21 | D97: 13138 | K97: 0 | L97: 12
A98: 22 | B98: 13261 | C98: 23 | D98: 13296 | K98: 0 | L98: 22
A99: 22 | B99: 13428 | C99: 23 | D99: 13455 | K99: 0 | L99: 22
A100: 11 | B100: 13566 | C100: 21 | D100: 13580 | K100: 1 | L100: 12

Sheet !MC05A10.105
A1: Report for:!MC05A10.105
A2: Date: | B2: <date>
A3: Hen: | B3: <hen> | F3: Correct Sequence | G3: =Start!J2 -> 12 | P3: Total Sequences in Data | Q3: =4994-COUNTBLANK(L7:L5000) -> 79 | V3: Total Sequences in Block Data | W3: =COUNTA(L7:L19) -> 13 | AA3: Total Sequences in Block Data | AB3: =COUNTA(L20:L32) -> 13 | AF3: Total Sequences in Block Data | AG3: =COUNTA(L33:L46) -> 14 | AK3: Total Sequences in Block Data | AL3: =COUNTA(L47:L59) -> 13 | AP3: Total Sequences in Block Data | AQ3: =COUNTA(L60:L72) -> 13 | AU3: Total Sequences in Block Data | AV3: =COUNTA(L73:L85) -> 13
P4: Total Sequences in Summary | Q4: =SUM(O7:O14) -> 79 | V4: Total Sequences in Block Summary | W4: =SUM(U7:U14) -> 13 | AA4: Total Sequences in Block Summary | AB4: =SUM(Z7:Z14) -> 13 | AF4: Total Sequences in Block Summary | AG4: =SUM(AE7:AE14) -> 14 | AK4: Total Sequences in Block Summary | AL4: =SUM(AJ7:AJ14) -> 13 | AP4: Total Sequences in Block Summary | AQ4: =SUM(AO7:AO14) -> 13 | AU4: Total Sequences in Block Summary | AV4: =SUM(AT7:AT14) -> 13
T5: Block 1 | Y5: Block 2 | AD5: Block 3 | AI5: Block 4 | AN5: Block 5 | AS5: Block 6
A6: Sequence Component 1 | B6: Time 1 | C6: Sequence Component 2 | D6: Time 2 | E6: Sequence Component 3 | F6: Time 3 | G6: Sequence Component 4 | H6: Time 4 | I6: Sequence Component 5 | J6: Time 5 | K6: Correct? 0=No 1=Yes | L6: Sequence | N6: Frequency | P6: Relative Frequency | Q6: Variability | T6: Frequency | V6: Relative Frequency | W6: Variability | Y6: Frequency | AA6: Relative Frequency | AB6: Variability | AD6: Frequency | AF6: Relative Frequency | AG6: Variability | AI6: Frequency | AK6: Relative Frequency | AL6: Variability | AN6: Frequency | AP6: Relative Frequency | AQ6: Variability | AS6: Frequency | AU6: Relative Frequency | AV6: Variability
A7: 11 | B7: 21 | C7: 21 | D7: 35 | K7: 0 | L7: 12 | N7: 11 | O7: =COUNTIF($L$7:$L$500,N7) -> 7 | P7: =O7/$Q$4 -> 0.08860759494 | Q7: =IF(P7=0,0,(P7*((LOG(P7))/LOG(2)))) -> -0.3098098833 | T7: =N7 -> 11 | U7: =COUNTIF(L7:L19,T7) -> 0 | V7: =U7/(W4-U8) -> 0 | W7: =IF(V7=0,0,(V7*((LOG(V7))/LOG(2)))) -> 0 | Y7: =N7 -> 11 | Z7: =COUNTIF(L20:L32,Y7) -> 0 | AA7: =Z7/(AB4-Z8) -> 0 | AB7: =IF(AA7=0,0,(AA7*((LOG(AA7))/LOG(2)))) -> 0 | AD7: =N7 -> 11 | AE7: =COUNTIF(L33:L46,AD7) -> 0 | AF7: =AE7/(AG4-AE8) -> 0 | AG7: =IF(AF7=0,0,(AF7*((LOG(AF7))/LOG(2)))) -> 0 | AI7: =N7 -> 11 | AJ7: =COUNTIF(L47:L59,AI7) -> 3 | AK7: =AJ7/(AL4-AJ8) -> 0.375 | AL7: =IF(AK7=0,0,(AK7*((LOG(AK7))/LOG(2)))) -> -0.5306390622 | AN7: =N7 -> 11 | AO7: =COUNTIF(L60:L72,AN7) -> 2 | AP7: =AO7/(AQ4-AO8) -> 0.4 | AQ7: =IF(AP7=0,0,(AP7*((LOG(AP7))/LOG(2)))) -> -0.528771238 | AS7: =N7 -> 11 | AT7: =COUNTIF(L73:L85,AS7) -> 2 | AU7: =AT7/(AV4-AT8) -> 0.4 | AV7: =IF(AU7=0,0,(AU7*((LOG(AU7))/LOG(2)))) -> -0.528771238
A8: 22 | B8: 179 | C8: 23 | D8: 204 | K8: 0 | L8: 22 | N8: 12 | O8: =COUNTIF($L$7:$L$500,N8) -> 39 | P8: =O8/$Q$4 -> 0.4936708861 | Q8: =IF(P8=0,0,(P8*((LOG(P8))/LOG(2)))) -> -0.5027438309 | T8: =N8 -> 12 | U8: =COUNTIF(L7:L19,T8) -> 5 | Y8: =N8 -> 12 | Z8: =COUNTIF(L20:L32,Y8) -> 5 | AD8: =N8 -> 12 | AE8: =COUNTIF(L33:L46,AD8) -> 8 | AI8: =N8 -> 12 | AJ8: =COUNTIF(L47:L59,AI8) -> 5 | AN8: =N8 -> 12 | AO8: =COUNTIF(L60:L72,AN8) -> 8 | AS8: =N8 -> 12 | AT8: =COUNTIF(L73:L85,AS8) -> 8
A9: 22 | B9: 341 | C9: 23 | D9: 371 | K9: 0 | L9: 22 | N9: 21 | O9: =COUNTIF($L$7:$L$500,N9) -> 24 | P9: =O9/$Q$4 -> 0.3037974684 | Q9: =IF(P9=0,0,(P9*((LOG(P9))/LOG(2)))) -> -0.5221726321 | T9: =N9 -> 21 | U9: =COUNTIF(L7:L19,T9) -> 4 | V9: =U9/(W4-U8) -> 0.5 | W9: =IF(V9=0,0,(V9*((LOG(V9))/LOG(2)))) -> -0.5 | Y9: =N9 -> 21 | Z9: =COUNTIF(L20:L32,Y9) -> 6 | AA9: =Z9/(AB4-Z8) -> 0.75 | AB9: =IF(AA9=0,0,(AA9*((LOG(AA9))/LOG(2)))) -> -0.3112781245 | AD9: =N9 -> 21 | AE9: =COUNTIF(L33:L46,AD9) -> 3 | AF9: =AE9/(AG4-AE8) -> 0.5 | AG9: =IF(AF9=0,0,(AF9*((LOG(AF9))/LOG(2)))) -> -0.5 | AI9: =N9 -> 21 | AJ9: =COUNTIF(L47:L59,AI9) -> 5 | AK9: =AJ9/(AL4-AJ8) -> 0.625 | AL9: =IF(AK9=0,0,(AK9*((LOG(AK9))/LOG(2)))) -> -0.4237949407 | AN9: =N9 -> 21 | AO9: =COUNTIF(L60:L72,AN9) -> 3 | AP9: =AO9/(AQ4-AO8) -> 0.6 | AQ9: =IF(AP9=0,0,(AP9*((LOG(AP9))/LOG(2)))) -> -0.4421793565 | AS9: =N9 -> 21 | AT9: =COUNTIF(L73:L85,AS9) -> 3 | AU9: =AT9/(AV4-AT8) -> 0.6 | AV9: =IF(AU9=0,0,(AU9*((LOG(AU9))/LOG(2)))) -> -0.4421793565
A10: 22 | B10: 502 | C10: 23 | D10: 528 | K10: 0 | L10: 22 | N10: 22 | O10: =COUNTIF($L$7:$L$500,N10) -> 9 | P10: =O10/$Q$4 -> 0.1139240506 | Q10: =IF(P10=0,0,(P10*((LOG(P10))/LOG(2)))) -> -0.3570215408 | T10: =N10 -> 22 | U10: =COUNTIF(L7:L19,T10) -> 4 | V10: =U10/(W4-U8) -> 0.5 | W10: =IF(V10=0,0,(V10*((LOG(V10))/LOG(2)))) -> -0.5 | Y10: =N10 -> 22 | Z10: =COUNTIF(L20:L32,Y10) -> 2 | AA10: =Z10/(AB4-Z8) -> 0.25 | AB10: =IF(AA10=0,0,(AA10*((LOG(AA10))/LOG(2)))) -> -0.5 | AD10: =N10 -> 22 | AE10: =COUNTIF(L33:L46,AD10) -> 3 | AF10: =AE10/(AG4-AE8) -> 0.5 | AG10: =IF(AF10=0,0,(AF10*((LOG(AF10))/LOG(2)))) -> -0.5 | AI10: =N10 -> 22 | AJ10: =COUNTIF(L47:L59,AI10) -> 0 | AK10: =AJ10/(AL4-AJ8) -> 0 | AL10: =IF(AK10=0,0,(AK10*((LOG(AK10))/LOG(2)))) -> 0 | AN10: =N10 -> 22 | AO10: =COUNTIF(L60:L72,AN10) -> 0 | AP10: =AO10/(AQ4-AO8) -> 0 | AQ10: =IF(AP10=0,0,(AP10*((LOG(AP10))/LOG(2)))) -> 0 | AS10: =N10 -> 22 | AT10: =COUNTIF(L73:L85,AS10) -> 0 | AU10: =AT10/(AV4-AT8) -> 0 | AV10: =IF(AU10=0,0,(AU10*((LOG(AU10))/LOG(2)))) -> 0
A11: 22 | B11: 647 | C11: 23 | D11: 673 | K11: 0 | L11: 22 | T11: =N11 -> 0 | U11: =COUNTIF(L7:L19,T11) -> 0 | V11: =U11/(W4-U8) -> 0 | W11: =IF(V11=0,0,(V11*((LOG(V11))/LOG(2)))) -> 0 | Y11: =N11 -> 0 | Z11: =COUNTIF(L20:L32,Y11) -> 0 | AA11: =Z11/(AB4-Z8) -> 0 | AB11: =IF(AA11=0,0,(AA11*((LOG(AA11))/LOG(2)))) -> 0 | AD11: =N11 -> 0 | AE11: =COUNTIF(L33:L46,AD11) -> 0 | AF11: =AE11/(AG4-AE8) -> 0 | AG11: =IF(AF11=0,0,(AF11*((LOG(AF11))/LOG(2)))) -> 0 | AI11: =N11 -> 0 | AJ11: =COUNTIF(L47:L59,AI11) -> 0 | AK11: =AJ11/(AL4-AJ8) -> 0 | AL11: =IF(AK11=0,0,(AK11*((LOG(AK11))/LOG(2)))) -> 0 | AN11: =N11 -> 0 | AO11: =COUNTIF(L60:L72,AN11) -> 0 | AP11: =AO11/(AQ4-AO8) -> 0 | AQ11: =IF(AP11=0,0,(AP11*((LOG(AP11))/LOG(2)))) -> 0 | AS11: =N11 -> 0 | AT11: =COUNTIF(L73:L85,AS11) -> 0 | AU11: =AT11/(AV4-AT8) -> 0 | AV11: =IF(AU11=0,0,(AU11*((LOG(AU11))/LOG(2)))) -> 0
A12: 22 | B12: 826 | C12: 14 | D12: 840 | K12: 0 | L12: 21 | T12: =N12 -> 0 | U12: =COUNTIF(L7:L19,T12) -> 0 | V12: =U12/(W4-U8) -> 0 | W12: =IF(V12=0,0,(V12*((LOG(V12))/LOG(2)))) -> 0 | Y12: =N12 -> 0 | Z12: =COUNTIF(L20:L32,Y12) -> 0 | AA12: =Z12/(AB4-Z8) -> 0 | AB12: =IF(AA12=0,0,(AA12*((LOG(AA12))/LOG(2)))) -> 0 | AD12: =N12 -> 0 | AE12: =COUNTIF(L33:L46,AD12) -> 0 | AF12: =AE12/(AG4-AE8) -> 0 | AG12: =IF(AF12=0,0,(AF12*((LOG(AF12))/LOG(2)))) -> 0 | AI12: =N12 -> 0 | AJ12: =COUNTIF(L47:L59,AI12) -> 0 | AK12: =AJ12/(AL4-AJ8) -> 0 | AL12: =IF(AK12=0,0,(AK12*((LOG(AK12))/LOG(2)))) -> 0 | AN12: =N12 -> 0 | AO12: =COUNTIF(L60:L72,AN12) -> 0 | AP12: =AO12/(AQ4-AO8) -> 0 | AQ12: =IF(AP12=0,0,(AP12*((LOG(AP12))/LOG(2)))) -> 0 | AS12: =N12 -> 0 | AT12: =COUNTIF(L73:L85,AS12) -> 0 | AU12: =AT12/(AV4-AT8) -> 0 | AV12: =IF(AU12=0,0,(AU12*((LOG(AU12))/LOG(2)))) -> 0
A13: 11 | B13: 952 | C13: 21 | D13: 967 | K13: 0 | L13: 12 | T13: =N13 -> 0 | U13: =COUNTIF(L7:L19,T13) -> 0 | V13: =U13/(W4-U8) -> 0 | W13: =IF(V13=0,0,(V13*((LOG(V13))/LOG(2)))) -> 0 | Y13: =N13 -> 0 | Z13: =COUNTIF(L20:L32,Y13) -> 0 | AA13: =Z13/(AB4-Z8) -> 0 | AB13: =IF(AA13=0,0,(AA13*((LOG(AA13))/LOG(2)))) -> 0 | AD13: =N13 -> 0 | AE13: =COUNTIF(L33:L46,AD13) -> 0 | AF13: =AE13/(AG4-AE8) -> 0 | AG13: =IF(AF13=0,0,(AF13*((LOG(AF13))/LOG(2)))) -> 0 | AI13: =N13 -> 0 | AJ13: =COUNTIF(L47:L59,AI13) -> 0 | AK13: =AJ13/(AL4-AJ8) -> 0 | AL13: =IF(AK13=0,0,(AK13*((LOG(AK13))/LOG(2)))) -> 0 | AN13: =N13 -> 0 | AO13: =COUNTIF(L60:L72,AN13) -> 0 | AP13: =AO13/(AQ4-AO8) -> 0 | AQ13: =IF(AP13=0,0,(AP13*((LOG(AP13))/LOG(2)))) -> 0 | AS13: =N13 -> 0 | AT13: =COUNTIF(L73:L85,AS13) -> 0 | AU13: =AT13/(AV4-AT8) -> 0 | AV13: =IF(AU13=0,0,(AU13*((LOG(AU13))/LOG(2)))) -> 0
A14: 11 | B14: 1073 | C14: 21 | D14: 1110 | K14: 0 | L14: 12 | T14: =N14 -> 0 | U14: =COUNTIF(L7:L19,T14) -> 0 | V14: =U14/(W4-U8) -> 0 | W14: =IF(V14=0,0,(V14*((LOG(V14))/LOG(2)))) -> 0 | Y14: =N14 -> 0 | Z14: =COUNTIF(L20:L32,Y14) -> 0 | AA14: =Z14/(AB4-Z8) -> 0 | AB14: =IF(AA14=0,0,(AA14*((LOG(AA14))/LOG(2)))) -> 0 | AD14: =N14 -> 0 | AE14: =COUNTIF(L33:L46,AD14) -> 0 | AF14: =AE14/(AG4-AE8) -> 0 | AG14: =IF(AF14=0,0,(AF14*((LOG(AF14))/LOG(2)))) -> 0 | AI14: =N14 -> 0 | AJ14: =COUNTIF(L47:L59,AI14) -> 0 | AK14: =AJ14/(AL4-AJ8) -> 0 | AL14: =IF(AK14=0,0,(AK14*((LOG(AK14))/LOG(2)))) -> 0 | AN14: =N14 -> 0 | AO14: =COUNTIF(L60:L72,AN14) -> 0 | AP14: =AO14/(AQ4-AO8) -> 0 | AQ14: =IF(AP14=0,0,(AP14*((LOG(AP14))/LOG(2)))) -> 0 | AS14: =N14 -> 0 | AT14: =COUNTIF(L73:L85,AS14) -> 0 | AU14: =AT14/(AV4-AT8) -> 0 | AV14: =IF(AU14=0,0,(AU14*((LOG(AU14))/LOG(2)))) -> 0
A15: 11 | B15: 1256 | C15: 21 | D15: 1269 | K15: 0 | L15: 12 | P15: =SUM(P7:P14) -> 1 | Q15: =-SUM(Q7:Q14) -> 1.691747887 | V15: =SUM(V7:V14) -> 1 | W15: =-SUM(W7:W14) -> 1 | AA15: =SUM(AA7:AA14) -> 1 | AB15: =-SUM(AB7:AB14) -> 0.8112781245 | AF15: =SUM(AF7:AF14) -> 1 | AG15: =-SUM(AG7:AG14) -> 1 | AK15: =SUM(AK7:AK14) -> 1 | AL15: =-SUM(AL7:AL14) -> 0.9544340029 | AP15: =SUM(AP7:AP14) -> 1 | AQ15: =-SUM(AQ7:AQ14) -> 0.9709505945 | AU15: =SUM(AU7:AU14) -> 1 | AV15: =-SUM(AV7:AV14) -> 0.9709505945
A16: 22 | B16: 1415 | C16: 14 | D16: 1453 | K16: 0 | L16: 21 | P16: U= | Q16: =Q15/(LOG(Q4)/LOG(2)) -> 0.2683703566 | V16: U1= | W16: =W15/(LOG(W4)/LOG(2)) -> 0.2702381544 | AA16: U2= | AB16: =AB15/(LOG(AB4)/LOG(2)) -> 0.2192383031 | AF16: U3= | AG16: =AG15/(LOG(AG4)/LOG(2)) -> 0.262649535 | AK16: U4= | AL16: =AL15/(LOG(AL4)/LOG(2)) -> 0.2579244835 | AP16: U5= | AQ16: =AQ15/(LOG(AQ4)/LOG(2)) -> 0.2623878967 | AU16: U6= | AV16: =AV15/(LOG(AV4)/LOG(2)) -> 0.2623878967
A17: 11 | B17: 1566 | C17: 21 | D17: 1581 | K17: 0 | L17: 12
A18: 22 | B18: 1731 | C18: 14 | D18: 1754 | K18: 0 | L18: 21
A19: 22 | B19: 1878 | C19: 14 | D19: 1917 | K19: 0 | L19: 21 | N19: Total Target Seq
A20: 22 | B20: 2045 | C20: 14 | D20: 2063 | K20: 0 | L20: 21 | N20: =COUNTIF(L7:L85,G3) -> 39 | P20: 13 | Q20: 13 | R20: 14 | S20: 13 | T20: 13 | U20: 13
A21: 22 | B21: 2189 | C21: 14 | D21: 2225 | K21: 0 | L21: 21 | P21: % of reinforcement given in 6 equal intervals based on number of trials
A22: 22 | B22: 2374 | C22: 14 | D22: 2409 | K22: 0 | L22: 21 | P22: %_1 | Q22: %_2 | R22: %_3 | S22: %_4 | T22: %_5 | U22: %_6
A23: 11 | B23: 2517 | C23: 21 | D23: 2527 | K23: 0 | L23: 12 | O23: target sequence | P23: =$G$3 -> 12 | Q23: =$G$3 -> 12 | R23: =$G$3 -> 12 | S23: =$G$3 -> 12 | T23: =$G$3 -> 12 | U23: =$G$3 -> 12
A24: 22 | B24: 2643 | C24: 14 | D24: 2658 | K24: 0 | L24: 21 | O24: total reinforcement | P24: =U8 -> 5 | Q24: =Z8 -> 5 | R24: =AE8 -> 8 | S24: =AJ8 -> 5 | T24: =AO8 -> 8 | U24: =AT8 -> 8
A25: 22 | B25: 2783 | C25: 23 | D25: 2815 | K25: 0 | L25: 22 | O25: % target
A26: 22 | B26: 2945 | C26: 23 | D26: 2977 | K26: 0 | L26: 22 | O26: CCRF
A27: 11 | B27: 3090 | C27: 21 | D27: 3108 | K27: 0 | L27: 12 | O27: % CCRf
A28: 11 | B28: 3208 | C28: 21 | D28: 3223 | K28: 0 | L28: 12 | O28: average response rate | P28: =D19/P20 -> 147.4615385 | Q28: =(D32-D19)/Q20 -> 148.1538462 | R28: =(D46-D32)/R20 -> 152.7857143 | S28: =(D59-D46)/S20 -> 135.0769231 | T28: =(D72-D59)/T20 -> 135.3076923 | U28: =(D85-D72)/U20 -> 131.3846154
A29: 11 | B29: 3321 | C29: 21 | D29: 3334 | K29: 0 | L29: 12
A30: 22 | B30: 3463 | C30: 14 | D30: 3536 | K30: 0 | L30: 21
A31: 11 | B31: 3648 | C31: 21 | D31: 3661 | K31: 0 | L31: 12
A32: 22 | B32: 3803 | C32: 14 | D32: 3843 | K32: 0 | L32: 21
A33: 11 | B33: 3952 | C33: 21 | D33: 3988 | K33: 0 | L33: 12
A34: 22 | B34: 4126 | C34: 14 | D34: 4187 | K34: 0 | L34: 21
A35: 11 | B35: 4298 | C35: 21 | D35: 4310 | K35: 0 | L35: 12
A36: 22 | B36: 4423 | C36: 14 | D36: 4445 | K36: 0 | L36: 21
A37: 11 | B37: 4556 | C37: 21 | D37: 4569 | K37: 0 | L37: 12
A38: 11 | B38: 4671 | C38: 21 | D38: 4692 | K38: 0 | L38: 12
A39: 11 | B39: 4793 | C39: 21 | D39: 4806 | K39: 0 | L39: 12
A40: 22 | B40: 4951 | C40: 14 | D40: 4975 | K40: 0 | L40: 21
A41: 11 | B41: 5086 | C41: 21 | D41: 5101 | K41: 0 | L41: 12
A42: 22 | B42: 5276 | C42: 23 | D42: 5284 | K42: 0 | L42: 22
A43: 11 | B43: 5394 | C43: 21 | D43: 5408 | K43: 0 | L43: 12
A44: 11 | B44: 5504 | C44: 21 | D44: 5513 | K44: 0 | L44: 12
A45: 22 | B45: 5676 | C45: 23 | D45: 5779 | K45: 0 | L45: 22
A46: 22 | B46: 5912 | C46: 23 | D46: 5982 | K46: 0 | L46: 22
A47: 11 | B47: 6102 | C47: 21 | D47: 6110 | K47: 0 | L47: 12
A48: 22 | B48: 6227 | C48: 14 | D48: 6270 | K48: 0 | L48: 21
A49: 22 | B49: 6388 | C49: 14 | D49: 6415 | K49: 0 | L49: 21
A50: 11 | B50: 6522 | C50: 12 | D50: 6549 | K50: 0 | L50: 11
A51: 22 | B51: 6663 | C51: 14 | D51: 6681 | K51: 0 | L51: 21
A52: 11 | B52: 6791 | C52: 21 | D52: 6805 | K52: 0 | L52: 12
A53: 11 | B53: 6905 | C53: 12 | D53: 6933 | K53: 0 | L53: 11
A54: 22 | B54: 7056 | C54: 14 | D54: 7084 | K54: 0 | L54: 21
A55: 11 | B55: 7194 | C55: 21 | D55: 7230 | K55: 0 | L55: 12
A56: 22 | B56: 7349 | C56: 14 | D56: 7369 | K56: 0 | L56: 21
A57: 11 | B57: 7476 | C57: 12 | D57: 7496 | K57: 0 | L57: 11
A58: 11 | B58: 7617 | C58: 21 | D58: 7628 | K58: 0 | L58: 12
A59: 11 | B59: 7727 | C59: 21 | D59: 7738 | K59: 0 | L59: 12
A60: 22 | B60: 7859 | C60: 14 | D60: 7942 | K60: 0 | L60: 21
A61: 11 | B61: 8054 | C61: 21 | D61: 8070 | K61: 0 | L61: 12
A62: 11 | B62: 8174 | C62: 21 | D62: 8186 | K62: 0 | L62: 12
A63: 11 | B63: 8290 | C63: 21 | D63: 8298 | K63: 0 | L63: 12
A64: 11 | B64: 8402 | C64: 21 | D64: 8415 | K64: 0 | L64: 12
A65: 11 | B65: 8514 | C65: 21 | D65: 8525 | K65: 0 | L65: 12
A66: 11 | B66: 8638 | C66: 21 | D66: 8648 | K66: 0 | L66: 12
A67: 11 | B67: 8748 | C67: 21 | D67: 8767 | K67: 0 | L67: 12
A68: 22 | B68: 8884 | C68: 14 | D68: 8933 | K68: 0 | L68: 21
A69: 11 | B69: 9041 | C69: 12 | D69: 9068 | K69: 0 | L69: 11
A70: 11 | B70: 9180 | C70: 12 | D70: 9209 | K70: 0 | L70: 11
A71: 11 | B71: 9317 | C71: 21 | D71: 9350 | K71: 0 | L71: 12
A72: 22 | B72: 9479 | C72: 14 | D72: 9497 | K72: 0 | L72: 21
A73: 11 | B73: 9613 | C73: 21 | D73: 9625 | K73: 0 | L73: 12
A74: 11 | B74: 9726 | C74: 21 | D74: 9735 | K74: 0 | L74: 12
A75: 22 | B75: 9853 | C75: 14 | D75: 9887 | K75: 0 | L75: 21
A76: 11 | B76: 10000 | C76: 21 | D76: 10013 | K76: 0 | L76: 12
A77: 11 | B77: 10117 | C77: 12 | D77: 10148 | K77: 0 | L77: 11
A78: 11 | B78: 10259 | C78: 12 | D78: 10277 | K78: 0 | L78: 11
A79: 11 | B79: 10387 | C79: 21 | D79: 10397 | K79: 0 | L79: 12
A80: 11 | B80: 10498 | C80: 21 | D80: 10508 | K80: 0 | L80: 12
A81: 11 | B81: 10606 | C81: 21 | D81: 10632 | K81: 0 | L81: 12
A82: 22 | B82: 10768 | C82: 14 | D82: 10789 | K82: 0 | L82: 21
A83: 11 | B83: 10898 | C83: 21 | D83: 10907 | K83: 0 | L83: 12
A84: 22 | B84: 11034 | C84: 14 | D84: 11078 | K84: 0 | L84: 21
A85: 11 | B85: 11187 | C85: 21 | D85: 11205 | K85: 1 | L85: 12

Sheet !MC06B10.105
A1: Report for:!MC06B10.105
A2: Date: | B2: <date>
A3: Hen: | B3: <hen> | F3: Correct Sequence | G3: =Start!J2 -> 12 | P3: Total Sequences in Data | Q3: =4994-COUNTBLANK(L7:L5000) -> 65 | V3: Total Sequences in Block Data | W3: =COUNTA(L7:L17) -> 11 | AA3: Total Sequences in Block Data | AB3: =COUNTA(L18:L28) -> 11 | AF3: Total Sequences in Block Data | AG3: =COUNTA(L29:L38) -> 10 | AK3: Total Sequences in Block Data | AL3: =COUNTA(L39:L49) -> 11 | AP3: Total Sequences in Block Data | AQ3: =COUNTA(L50:L60) -> 11 | AU3: Total Sequences in Block Data | AV3: =COUNTA(L61:L71) -> 11
P4: Total Sequences in Summary | Q4: =SUM(O7:O14) -> 65 | V4: Total Sequences in Block Summary | W4: =SUM(U7:U14) -> 11 | AA4: Total Sequences in Block Summary | AB4: =SUM(Z7:Z14) -> 11 | AF4: Total Sequences in Block Summary | AG4: =SUM(AE7:AE14) -> 10 | AK4: Total Sequences in Block Summary | AL4: =SUM(AJ7:AJ14) -> 11 | AP4: Total Sequences in Block Summary | AQ4: =SUM(AO7:AO14) -> 11 | AU4: Total Sequences in Block Summary | AV4: =SUM(AT7:AT14) -> 11
T5: Block 1 | Y5: Block 2 | AD5: Block 3 | AI5: Block 4 | AN5: Block 5 | AS5: Block 6
A6: Sequence Component 1 | B6: Time 1 | C6: Sequence Component 2 | D6: Time 2 | E6: Sequence Component 3 | F6: Time 3 | G6: Sequence Component 4 | H6: Time 4 | I6: Sequence Component 5 | J6: Time 5 | K6: Correct? 0=No 1=Yes | L6: Sequence | N6: Frequency | P6: Relative Frequency | Q6: Variability | T6: Frequency | V6: Relative Frequency | W6: Variability | Y6: Frequency | AA6: Relative Frequency | AB6: Variability | AD6: Frequency | AF6: Relative Frequency | AG6: Variability | AI6: Frequency | AK6: Relative Frequency | AL6: Variability | AN6: Frequency | AP6: Relative Frequency | AQ6: Variability | AS6: Frequency | AU6: Relative Frequency | AV6: Variability
A7: 11 | B7: 5 | C7: 12 | D7: 15 | K7: 0 | L7: 11 | N7: 11 | O7: =COUNTIF($L$7:$L$500,N7) -> 9 | P7: =O7/$Q$4 -> 0.1384615385 | Q7: =IF(P7=0,0,(P7*((LOG(P7))/LOG(2)))) -> -0.3949536201 | T7: =N7 -> 11 | U7: =COUNTIF(L7:L17,T7) -> 2 | V7: =U7/(W4-U8) -> 0.4 | W7: =IF(V7=0,0,(V7*((LOG(V7))/LOG(2)))) -> -0.528771238 | Y7: =N7 -> 11 | Z7: =COUNTIF(L18:L28,Y7) -> 0 | AA7: =Z7/(AB4-Z8) -> 0 | AB7: =IF(AA7=0,0,(AA7*((LOG(AA7))/LOG(2)))) -> 0 | AD7: =N7 -> 11 | AE7: =COUNTIF(L29:L38,AD7) -> 1 | AF7: =AE7/(AG4-AE8) -> 0.2 | AG7: =IF(AF7=0,0,(AF7*((LOG(AF7))/LOG(2)))) -> -0.464385619 | AI7: =N7 -> 11 | AJ7: =COUNTIF(L39:L49,AI7) -> 1 | AK7: =AJ7/(AL4-AJ8) -> 0.5 | AL7: =IF(AK7=0,0,(AK7*((LOG(AK7))/LOG(2)))) -> -0.5 | AN7: =N7 -> 11 | AO7: =COUNTIF(L50:L60,AN7) -> 2 | AP7: =AO7/(AQ4-AO8) -> 0.5 | AQ7: =IF(AP7=0,0,(AP7*((LOG(AP7))/LOG(2)))) -> -0.5 | AS7: =N7 -> 11 | AT7: =COUNTIF(L61:L71,AS7) -> 3 | AU7: =AT7/(AV4-AT8) -> 1 | AV7: =IF(AU7=0,0,(AU7*((LOG(AU7))/LOG(2)))) -> 0
A8: 11 | B8: 122 | C8: 21 | D8: 131 | K8: 0 | L8: 12 | N8: 12 | O8: =COUNTIF($L$7:$L$500,N8) -> 40 | P8: =O8/$Q$4 -> 0.6153846154 | Q8: =IF(P8=0,0,(P8*((LOG(P8))/LOG(2)))) -> -0.4310398265 | T8: =N8 -> 12 | U8: =COUNTIF(L7:L17,T8) -> 6 | Y8: =N8 -> 12 | Z8: =COUNTIF(L18:L28,Y8) -> 5 | AD8: =N8 -> 12 | AE8: =COUNTIF(L29:L38,AD8) -> 5 | AI8: =N8 -> 12 | AJ8: =COUNTIF(L39:L49,AI8) -> 9 | AN8: =N8 -> 12 | AO8: =COUNTIF(L50:L60,AN8) -> 7 | AS8: =N8 -> 12 | AT8: =COUNTIF(L61:L71,AS8) -> 8
A9: 11 | B9: 240 | C9: 21 | D9: 251 | K9: 0 | L9: 12 | N9: 21 | O9: =COUNTIF($L$7:$L$500,N9) -> 6 | P9: =O9/$Q$4 -> 0.09230769231 | Q9: =IF(P9=0,0,(P9*((LOG(P9))/LOG(2)))) -> -0.3172989519 | T9: =N9 -> 21 | U9: =COUNTIF(L7:L17,T9) -> 2 | V9: =U9/(W4-U8) -> 0.4 | W9: =IF(V9=0,0,(V9*((LOG(V9))/LOG(2)))) -> -0.528771238 | Y9: =N9 -> 21 | Z9: =COUNTIF(L18:L28,Y9) -> 2 | AA9: =Z9/(AB4-Z8) -> 0.3333333333 | AB9: =IF(AA9=0,0,(AA9*((LOG(AA9))/LOG(2)))) -> -0.5283208336 | AD9: =N9 -> 21 | AE9: =COUNTIF(L29:L38,AD9) -> 1 | AF9: =AE9/(AG4-AE8) -> 0.2 | AG9: =IF(AF9=0,0,(AF9*((LOG(AF9))/LOG(2)))) -> -0.464385619 | AI9: =N9 -> 21 | AJ9: =COUNTIF(L39:L49,AI9) -> 0 | AK9: =AJ9/(AL4-AJ8) -> 0 | AL9: =IF(AK9=0,0,(AK9*((LOG(AK9))/LOG(2)))) -> 0 | AN9: =N9 -> 21 | AO9: =COUNTIF(L50:L60,AN9) -> 1 | AP9: =AO9/(AQ4-AO8) -> 0.25 | AQ9: =IF(AP9=0,0,(AP9*((LOG(AP9))/LOG(2)))) -> -0.5 | AS9: =N9 -> 21 | AT9: =COUNTIF(L61:L71,AS9) -> 0 | AU9: =AT9/(AV4-AT8) -> 0 | AV9: =IF(AU9=0,0,(AU9*((LOG(AU9))/LOG(2)))) -> 0
A10: 22 | B10: 362 | C10: 14 | D10: 382 | K10: 0 | L10: 21 | N10: 22 | O10: =COUNTIF($L$7:$L$500,N10) -> 10 | P10: =O10/$Q$4 -> 0.1538461538 | Q10: =IF(P10=0,0,(P10*((LOG(P10))/LOG(2)))) -> -0.4154522643 | T10: =N10 -> 22 | U10: =COUNTIF(L7:L17,T10) -> 1 | V10: =U10/(W4-U8) -> 0.2 | W10: =IF(V10=0,0,(V10*((LOG(V10))/LOG(2)))) -> -0.464385619 | Y10: =N10 -> 22 | Z10: =COUNTIF(L18:L28,Y10) -> 4 | AA10: =Z10/(AB4-Z8) -> 0.6666666667 | AB10: =IF(AA10=0,0,(AA10*((LOG(AA10))/LOG(2)))) -> -0.3899750005 | AD10: =N10 -> 22 | AE10: =COUNTIF(L29:L38,AD10) -> 3 | AF10: =AE10/(AG4-AE8) -> 0.6 | AG10: =IF(AF10=0,0,(AF10*((LOG(AF10))/LOG(2)))) -> -0.4421793565 | AI10: =N10 -> 22 | AJ10: =COUNTIF(L39:L49,AI10) -> 1 | AK10: =AJ10/(AL4-AJ8) -> 0.5 | AL10: =IF(AK10=0,0,(AK10*((LOG(AK10))/LOG(2)))) -> -0.5 | AN10: =N10 -> 22 | AO10: =COUNTIF(L50:L60,AN10) -> 1 | AP10: =AO10/(AQ4-AO8) -> 0.25 | AQ10: =IF(AP10=0,0,(AP10*((LOG(AP10))/LOG(2)))) -> -0.5 | AS10: =N10 -> 22 | AT10: =COUNTIF(L61:L71,AS10) -> 0 | AU10: =AT10/(AV4-AT8) -> 0 | AV10: =IF(AU10=0,0,(AU10*((LOG(AU10))/LOG(2)))) -> 0
A11: 11 | B11: 493 | C11: 21 | D11: 506 | K11: 0 | L11: 12 | T11: =N11 -> 0 | U11: =COUNTIF(L7:L17,T11) -> 0 | V11: =U11/(W4-U8) -> 0 | W11: =IF(V11=0,0,(V11*((LOG(V11))/LOG(2)))) -> 0 | Y11: =N11 -> 0 | Z11: =COUNTIF(L18:L28,Y11) -> 0 | AA11: =Z11/(AB4-Z8) -> 0 | AB11: =IF(AA11=0,0,(AA11*((LOG(AA11))/LOG(2)))) -> 0 | AD11: =N11 -> 0 | AE11: =COUNTIF(L29:L38,AD11) -> 0 | AF11: =AE11/(AG4-AE8) -> 0 | AG11: =IF(AF11=0,0,(AF11*((LOG(AF11))/LOG(2)))) -> 0 | AI11: =N11 -> 0 | AJ11: =COUNTIF(L39:L49,AI11) -> 0 | AK11: =AJ11/(AL4-AJ8) -> 0 | AL11: =IF(AK11=0,0,(AK11*((LOG(AK11))/LOG(2)))) -> 0 | AN11: =N11 -> 0 | AO11: =COUNTIF(L50:L60,AN11) -> 0 | AP11: =AO11/(AQ4-AO8) -> 0 | AQ11: =IF(AP11=0,0,(AP11*((LOG(AP11))/LOG(2)))) -> 0 | AS11: =N11 -> 0 | AT11: =COUNTIF(L61:L71,AS11) -> 0 | AU11: =AT11/(AV4-AT8) -> 0 | AV11: =IF(AU11=0,0,(AU11*((LOG(AU11))/LOG(2)))) -> 0
A12: 11 | B12: 619 | C12: 12 | D12: 642 | K12: 0 | L12: 11 | T12: =N12 -> 0 | U12: =COUNTIF(L7:L17,T12) -> 0 | V12: =U12/(W4-U8) -> 0 | W12: =IF(V12=0,0,(V12*((LOG(V12))/LOG(2)))) -> 0 | Y12: =N12 -> 0 | Z12: =COUNTIF(L18:L28,Y12) -> 0 | AA12: =Z12/(AB4-Z8) -> 0 | AB12: =IF(AA12=0,0,(AA12*((LOG(AA12))/LOG(2)))) -> 0 | AD12: =N12 -> 0 | AE12: =COUNTIF(L29:L38,AD12) -> 0 | AF12: =AE12/(AG4-AE8) -> 0 | AG12: =IF(AF12=0,0,(AF12*((LOG(AF12))/LOG(2)))) -> 0 | AI12: =N12 -> 0 | AJ12: =COUNTIF(L39:L49,AI12) -> 0 | AK12: =AJ12/(AL4-AJ8) -> 0 | AL12: =IF(AK12=0,0,(AK12*((LOG(AK12))/LOG(2)))) -> 0 | AN12: =N12 -> 0 | AO12: =COUNTIF(L50:L60,AN12) -> 0 | AP12: =AO12/(AQ4-AO8) -> 0 | AQ12: =IF(AP12=0,0,(AP12*((LOG(AP12))/LOG(2)))) -> 0 | AS12: =N12 -> 0 | AT12: =COUNTIF(L61:L71,AS12) -> 0 | AU12: =AT12/(AV4-AT8) -> 0 | AV12: =IF(AU12=0,0,(AU12*((LOG(AU12))/LOG(2)))) -> 0
A13: 11 | B13: 753 | C13: 21 | D13: 763 | K13: 0 | L13: 12 | T13: =N13 -> 0 | U13: =COUNTIF(L7:L17,T13) -> 0 | V13: =U13/(W4-U8) -> 0 | W13: =IF(V13=0,0,(V13*((LOG(V13))/LOG(2)))) -> 0 | Y13: =N13 -> 0 | Z13: =COUNTIF(L18:L28,Y13) -> 0 | AA13: =Z13/(AB4-Z8) -> 0 | AB13: =IF(AA13=0,0,(AA13*((LOG(AA13))/LOG(2)))) -> 0 | AD13: =N13 -> 0 | AE13: =COUNTIF(L29:L38,AD13) -> 0 | AF13: =AE13/(AG4-AE8) -> 0 | AG13: =IF(AF13=0,0,(AF13*((LOG(AF13))/LOG(2)))) -> 0 | AI13: =N13 -> 0 | AJ13: =COUNTIF(L39:L49,AI13) -> 0 | AK13: =AJ13/(AL4-AJ8) -> 0 | AL13: =IF(AK13=0,0,(AK13*((LOG(AK13))/LOG(2)))) -> 0 | AN13: =N13 -> 0 | AO13: =COUNTIF(L50:L60,AN13) -> 0 | AP13: =AO13/(AQ4-AO8) -> 0 | AQ13: =IF(AP13=0,0,(AP13*((LOG(AP13))/LOG(2)))) -> 0 | AS13: =N13 -> 0 | AT13: =COUNTIF(L61:L71,AS13) -> 0 | AU13: =AT13/(AV4-AT8) -> 0 | AV13: =IF(AU13=0,0,(AU13*((LOG(AU13))/LOG(2)))) -> 0
A14: 11 | B14: 872 | C14: 21 | D14: 885 | K14: 0 | L14: 12 | T14: =N14 -> 0 | U14: =COUNTIF(L7:L17,T14) -> 0 | V14: =U14/(W4-U8) -> 0 | W14: =IF(V14=0,0,(V14*((LOG(V14))/LOG(2)))) -> 0 | Y14: =N14 -> 0 | Z14: =COUNTIF(L18:L28,Y14) -> 0 | AA14: =Z14/(AB4-Z8) -> 0 | AB14: =IF(AA14=0,0,(AA14*((LOG(AA14))/LOG(2)))) -> 0 | AD14: =N14 -> 0 | AE14: =COUNTIF(L29:L38,AD14) -> 0 | AF14: =AE14/(AG4-AE8) -> 0 | AG14: =IF(AF14=0,0,(AF14*((LOG(AF14))/LOG(2)))) -> 0 | AI14: =N14 -> 0 | AJ14: =COUNTIF(L39:L49,AI14) -> 0 | AK14: =AJ14/(AL4-AJ8) -> 0 | AL14: =IF(AK14=0,0,(AK14*((LOG(AK14))/LOG(2)))) -> 0 | AN14: =N14 -> 0 | AO14: =COUNTIF(L50:L60,AN14) -> 0 | AP14: =AO14/(AQ4-AO8) -> 0 | AQ14: =IF(AP14=0,0,(AP14*((LOG(AP14))/LOG(2)))) -> 0 | AS14: =N14 -> 0 | AT14: =COUNTIF(L61:L71,AS14) -> 0 | AU14: =AT14/(AV4-AT8) -> 0 | AV14: =IF(AU14=0,0,(AU14*((LOG(AU14))/LOG(2)))) -> 0
A15: 22 | B15: 992 | C15: 14 | D15: 1052 | K15: 0 | L15: 21 | P15: =SUM(P7:P14) -> 1 | Q15: =-SUM(Q7:Q14) -> 1.558744663 | V15: =SUM(V7:V14) -> 1 | W15: =-SUM(W7:W14) -> 1.521928095 | AA15: =SUM(AA7:AA14) -> 1 | AB15: =-SUM(AB7:AB14) -> 0.9182958341 | AF15: =SUM(AF7:AF14) -> 1 | AG15: =-SUM(AG7:AG14) -> 1.370950594 | AK15: =SUM(AK7:AK14) -> 1 | AL15: =-SUM(AL7:AL14) -> 1 | AP15: =SUM(AP7:AP14) -> 1 | AQ15: =-SUM(AQ7:AQ14) -> 1.5 | AU15: =SUM(AU7:AU14) -> 1 | AV15: =-SUM(AV7:AV14) -> 0
A16: 22 | B16: 1172 | C16: 23 | D16: 1232 | K16: 0 | L16: 22 | P16: U= | Q16: =Q15/(LOG(Q4)/LOG(2)) -> 0.2588258823 | V16: U1= | W16: =W15/(LOG(W4)/LOG(2)) -> 0.4399358804 | AA16: U2= | AB16: =AB15/(LOG(AB4)/LOG(2)) -> 0.2654470258 | AF16: U3= | AG16: =AG15/(LOG(AG4)/LOG(2)) -> 0.4126972515 | AK16: U4= | AL16: =AL15/(LOG(AL4)/LOG(2)) -> 0.2890648263 | AP16: U5= | AQ16: =AQ15/(LOG(AQ4)/LOG(2)) -> 0.4335972395 | AU16: U6= | AV16: =AV15/(LOG(AV4)/LOG(2)) -> 0
A17: 11 | B17: 1348 | C17: 21 | D17: 1362 | K17: 0 | L17: 12
A18: 22 | B18: 1477 | C18: 23 | D18: 1538 | K18: 0 | L18: 22
A19: 11 | B19: 1650 | C19: 21 | D19: 1663 | K19: 0 | L19: 12 | N19: Total Target Seq
A20: 22 | B20: 1801 | C20: 14 | D20: 1826 | K20: 0 | L20: 21 | N20: =COUNTIF(L7:L71,G3) -> 40 | P20: 11 | Q20: 11 | R20: 10 | S20: 11 | T20: 11 | U20: 11
A21: 11 | B21: 1931 | C21: 21 | D21: 2032 | K21: 0 | L21: 12 | P21: % of reinforcement given in 6 equal intervals based on number of trials
A22: 11 | B22: 2136 | C22: 21 | D22: 2152 | K22: 0 | L22: 12 | P22: %_1 | Q22: %_2 | R22: %_3 | S22: %_4 | T22: %_5 | U22: %_6
A23: 22 | B23: 2261 | C23: 23 | D23: 2360 | K23: 0 | L23: 22 | O23: target sequence | P23: =$G$3 -> 12 | Q23: =$G$3 -> 12 | R23: =$G$3 -> 12 | S23: =$G$3 -> 12 | T23: =$G$3 -> 12 | U23: =$G$3 -> 12
A24: 11 | B24: 2471 | C24: 21 | D24: 2494 | K24: 0 | L24: 12 | O24: total reinforcement | P24: =U8 -> 6 | Q24: =Z8 -> 5 | R24: =AE8 -> 5 | S24: =AJ8 -> 9 | T24: =AO8 -> 7 | U24: =AT8 -> 8
A25: 22 | B25: 2630 | C25: 23 | D25: 2674 | K25: 0 | L25: 22 | O25: % target
A26: 11 | B26: 2785 | C26: 21 | D26: 2801 | K26: 0 | L26: 12 | O26: CCRF
A27: 22 | B27: 2911 | C27: 14 | D27: 2935 | K27: 0 | L27: 21 | O27: % CCRf
A28: 22 | B28: 3053 | C28: 23 | D28: 3088 | K28: 0 | L28: 22 | O28: average response rate | P28: =D17/P20 -> 123.8181818 | Q28: =(D28-D17)/Q20 -> 156.9090909 | R28: =(D38-D28)/R20 -> 137.8 | S28: =(D49-D38)/S20 -> 122 | T28: =(D60-D49)/T20 -> 134.0909091 | U28: =(D71-D60)/U20 -> 116.7272727
A29: 22 | B29: 3221 | C29: 14 | D29: 3244 | K29: 0 | L29: 21
A30: 11 | B30: 3351 | C30: 12 | D30: 3385 | K30: 0 | L30: 11
A31: 11 | B31: 3495 | C31: 21 | D31: 3508 | K31: 0 | L31: 12
A32: 11 | B32: 3630 | C32: 21 | D32: 3652 | K32: 0 | L32: 12
A33: 11 | B33: 3748 | C33: 21 | D33: 3768 | K33: 0 | L33: 12
A34: 11 | B34: 3868 | C34: 21 | D34: 3881 | K34: 0 | L34: 12
A35: 22 | B35: 4002 | C35: 23 | D35: 4028 | K35: 0 | L35: 22
A36: 22 | B36: 4158 | C36: 23 | D36: 4194 | K36: 0 | L36: 22
A37: 11 | B37: 4300 | C37: 21 | D37: 4313 | K37: 0 | L37: 12
A38: 22 | B38: 4436 | C38: 23 | D38: 4466 | K38: 0 | L38: 22
A39: 22 | B39: 4592 | C39: 23 | D39: 4617 | K39: 0 | L39: 22
A40: 11 | B40: 4724 | C40: 21 | D40: 4729 | K40: 0 | L40: 12
A41: 11 | B41: 4835 | C41: 21 | D41: 4849 | K41: 0 | L41: 12
A42: 11 | B42: 4945 | C42: 21 | D42: 4958 | K42: 0 | L42: 12
A43: 11 | B43: 5062 | C43: 21 | D43: 5072 | K43: 0 | L43: 12
A44: 11 | B44: 5171 | C44: 21 | D44: 5183 | K44: 0 | L44: 12
A45: 11 | B45: 5288 | C45: 21 | D45: 5300 | K45: 0 | L45: 12
A46: 11 | B46: 5397 | C46: 12 | D46: 5450 | K46: 0 | L46: 11
A47: 11 | B47: 5577 | C47: 21 | D47: 5589 | K47: 0 | L47: 12
A48: 11 | B48: 5689 | C48: 21 | D48: 5695 | K48: 0 | L48: 12
A49: 11 | B49: 5792 | C49: 21 | D49: 5808 | K49: 0 | L49: 12
A50: 11 | B50: 5901 | C50: 21 | D50: 5925 | K50: 0 | L50: 12
A51: 11 | B51: 6023 | C51: 21 | D51: 6048 | K51: 0 | L51: 12
A52: 11 | B52: 6144 | C52: 12 | D52: 6183 | K52: 0 | L52: 11
A53: 11 | B53: 6291 | C53: 21 | D53: 6306 | K53: 0 | L53: 12
A54: 11 | B54: 6404 | C54: 12 | D54: 6425 | K54: 0 | L54: 11
A55: 11 | B55: 6533 | C55: 21 | D55: 6551 | K55: 0 | L55: 12
A56: 22 | B56: 6664 | C56: 23 | D56: 6706 | K56: 0 | L56: 22
A57: 11 | B57: 6818 | C57: 21 | D57: 6911 | K57: 0 | L57: 12
A58: 11 | B58: 7013 | C58: 21 | D58: 7022 | K58: 0 | L58: 12
A59: 11 | B59: 7120 | C59: 21 | D59: 7129 | K59: 0 | L59: 12
A60: 22 | B60: 7266 | C60: 14 | D60: 7283 | K60: 0 | L60: 21
A61: 11 | B61: 7389 | C61: 21 | D61: 7402 | K61: 0 | L61: 12
A62: 11 | B62: 7504 | C62: 12 | D62: 7528 | K62: 0 | L62: 11
A63: 11 | B63: 7645 | C63: 21 | D63: 7655 | K63: 0 | L63: 12
A64: 11 | B64: 7758 | C64: 21 | D64: 7769 | K64: 0 | L64: 12
A65: 11 | B65: 7863 | C65: 12 | D65: 7882 | K65: 0 | L65: 11
A66: 11 | B66: 7986 | C66: 21 | D66: 7999 | K66: 0 | L66: 12
A67: 11 | B67: 8096 | C67: 21 | D67: 8105 | K67: 0 | L67: 12
A68: 11 | B68: 8200 | C68: 21 | D68: 8214 | K68: 0 | L68: 12
A69: 11 | B69: 8314 | C69: 12 | D69: 8336 | K69: 0 | L69: 11
A70: 11 | B70: 8445 | C70: 21 | D70: 8459 | K70: 0 | L70: 12
A71: 11 | B71: 8558 | C71: 21 | D71: 8567 | K71: 1 | L71: 12

Sheet !MC07B30.105
A1: Report for:!MC07B30.105
A2: Date: | B2: <date>
A3: Hen: | B3: <hen> | F3: Correct Sequence | G3: =Start!J2 -> 12 | P3: Total Sequences in Data | Q3: =4994-COUNTBLANK(L7:L5000) -> 53 | V3: Total Sequences in Block Data | W3: =COUNTA(L7:L15) -> 9 | AA3: Total Sequences in Block Data | AB3: =COUNTA(L16:L24) -> 9 | AF3: Total Sequences in Block Data | AG3: =COUNTA(L25:L32) -> 8 | AK3: Total Sequences in Block Data | AL3: =COUNTA(L33:L41) -> 9 | AP3: Total Sequences in Block Data | AQ3: =COUNTA(L42:L50) -> 9 | AU3: Total Sequences in Block Data | AV3: =COUNTA(L51:L59) -> 9
P4: Total Sequences in Summary | Q4: =SUM(O7:O14) -> 53 | V4: Total Sequences in Block Summary | W4: =SUM(U7:U14) -> 9 | AA4: Total Sequences in Block Summary | AB4: =SUM(Z7:Z14) -> 9 | AF4: Total Sequences in Block Summary | AG4: =SUM(AE7:AE14) -> 8 | AK4: Total Sequences in Block Summary | AL4: =SUM(AJ7:AJ14) -> 9 | AP4: Total Sequences in Block Summary | AQ4: =SUM(AO7:AO14) -> 9 | AU4: Total Sequences in Block Summary | AV4: =SUM(AT7:AT14) -> 9
T5: Block 1 | Y5: Block 2 | AD5: Block 3 | AI5: Block 4 | AN5: Block 5 | AS5: Block 6
A6: Sequence Component 1 | B6: Time 1 | C6: Sequence Component 2 | D6: Time 2 | E6: Sequence Component 3 | F6: Time 3 | G6: Sequence Component 4 | H6: Time 4 | I6: Sequence Component 5 | J6: Time 5 | K6: Correct? 0=No 1=Yes | L6: Sequence | N6: Frequency | P6: Relative Frequency | Q6: Variability | T6: Frequency | V6: Relative Frequency | W6: Variability | Y6: Frequency | AA6: Relative Frequency | AB6: Variability | AD6: Frequency | AF6: Relative Frequency | AG6: Variability | AI6: Frequency | AK6: Relative Frequency | AL6: Variability | AN6: Frequency | AP6: Relative Frequency | AQ6: Variability | AS6: Frequency | AU6: Relative Frequency | AV6: Variability
A7: 11 | B7: 5 | C7: 21 | D7: 22 | K7: 0 | L7: 12 | N7: 11 | O7: =COUNTIF($L$7:$L$500,N7) -> 6 | P7: =O7/$Q$4 -> 0.1132075472 | Q7: =IF(P7=0,0,(P7*((LOG(P7))/LOG(2)))) -> -0.3558065608 | T7: =N7 -> 11 | U7: =COUNTIF(L7:L15,T7) -> 0 | V7: =U7/(W4-U8) -> 0 | W7: =IF(V7=0,0,(V7*((LOG(V7))/LOG(2)))) -> 0 | Y7: =N7 -> 11 | Z7: =COUNTIF(L16:L24,Y7) -> 1 | AA7: =Z7/(AB4-Z8) -> 0.3333333333 | AB7: =IF(AA7=0,0,(AA7*((LOG(AA7))/LOG(2)))) -> -0.5283208336 | AD7: =N7 -> 11 | AE7: =COUNTIF(L25:L32,AD7) -> 2 | AF7: =AE7/(AG4-AE8) -> 0.6666666667 | AG7: =IF(AF7=0,0,(AF7*((LOG(AF7))/LOG(2)))) -> -0.3899750005 | AI7: =N7 -> 11 | AJ7: =COUNTIF(L33:L41,AI7) -> 0 | AK7: =AJ7/(AL4-AJ8) ->  | AL7: =IF(AK7=0,0,(AK7*((LOG(AK7))/LOG(2)))) ->  | AN7: =N7 -> 11 | AO7: =COUNTIF(L42:L50,AN7) -> 1 | AP7: =AO7/(AQ4-AO8) -> 0.5 | AQ7: =IF(AP7=0,0,(AP7*((LOG(AP7))/LOG(2)))) -> -0.5 | AS7: =N7 -> 11 | AT7: =COUNTIF(L51:L59,AS7) -> 2 | AU7: =AT7/(AV4-AT8) -> 0.6666666667 | AV7: =IF(AU7=0,0,(AU7*((LOG(AU7))/LOG(2)))) -> -0.3899750005
A8: 11 | B8: 125 | C8: 21 | D8: 138 | K8: 0 | L8: 12 | N8: 12 | O8: =COUNTIF($L$7:$L$500,N8) -> 39 | P8: =O8/$Q$4 -> 0.7358490566 | Q8: =IF(P8=0,0,(P8*((LOG(P8))/LOG(2)))) -> -0.3256266263 | T8: =N8 -> 12 | U8: =COUNTIF(L7:L15,T8) -> 6 | Y8: =N8 -> 12 | Z8: =COUNTIF(L16:L24,Y8) -> 6 | AD8: =N8 -> 12 | AE8: =COUNTIF(L25:L32,AD8) -> 5 | AI8: =N8 -> 12 | AJ8: =COUNTIF(L33:L41,AI8) -> 9 | AN8: =N8 -> 12 | AO8: =COUNTIF(L42:L50,AN8) -> 7 | AS8: =N8 -> 12 | AT8: =COUNTIF(L51:L59,AS8) -> 6
A9: 22 | B9: 253 | C9: 14 | D9: 272 | K9: 0 | L9: 21 | N9: 21 | O9: =COUNTIF($L$7:$L$500,N9) -> 2 | P9: =O9/$Q$4 -> 0.03773584906 | Q9: =IF(P9=0,0,(P9*((LOG(P9))/LOG(2)))) -> -0.1784120926 | T9: =N9 -> 21 | U9: =COUNTIF(L7:L15,T9) -> 1 | V9: =U9/(W4-U8) -> 0.3333333333 | W9: =IF(V9=0,0,(V9*((LOG(V9))/LOG(2)))) -> -0.5283208336 | Y9: =N9 -> 21 | Z9: =COUNTIF(L16:L24,Y9) -> 0 | AA9: =Z9/(AB4-Z8) -> 0 | AB9: =IF(AA9=0,0,(AA9*((LOG(AA9))/LOG(2)))) -> 0 | AD9: =N9 -> 21 | AE9: =COUNTIF(L25:L32,AD9) -> 0 | AF9: =AE9/(AG4-AE8) -> 0 | AG9: =IF(AF9=0,0,(AF9*((LOG(AF9))/LOG(2)))) -> 0 | AI9: =N9 -> 21 | AJ9: =COUNTIF(L33:L41,AI9) -> 0 | AK9: =AJ9/(AL4-AJ8) ->  | AL9: =IF(AK9=0,0,(AK9*((LOG(AK9))/LOG(2)))) ->  | AN9: =N9 -> 21 | AO9: =COUNTIF(L42:L50,AN9) -> 0 | AP9: =AO9/(AQ4-AO8) -> 0 | AQ9: =IF(AP9=0,0,(AP9*((LOG(AP9))/LOG(2)))) -> 0 | AS9: =N9 -> 21 | AT9: =COUNTIF(L51:L59,AS9) -> 1 | AU9: =AT9/(AV4-AT8) -> 0.3333333333 | AV9: =IF(AU9=0,0,(AU9*((LOG(AU9))/LOG(2)))) -> -0.5283208336
A10: 11 | B10: 384 | C10: 21 | D10: 396 | K10: 0 | L10: 12 | N10: 22 | O10: =COUNTIF($L$7:$L$500,N10) -> 6 | P10: =O10/$Q$4 -> 0.1132075472 | Q10: =IF(P10=0,0,(P10*((LOG(P10))/LOG(2)))) -> -0.3558065608 | T10: =N10 -> 22 | U10: =COUNTIF(L7:L15,T10) -> 2 | V10: =U10/(W4-U8) -> 0.6666666667 | W10: =IF(V10=0,0,(V10*((LOG(V10))/LOG(2)))) -> -0.3899750005 | Y10: =N10 -> 22 | Z10: =COUNTIF(L16:L24,Y10) -> 2 | AA10: =Z10/(AB4-Z8) -> 0.6666666667 | AB10: =IF(AA10=0,0,(AA10*((LOG(AA10))/LOG(2)))) -> -0.3899750005 | AD10: =N10 -> 22 | AE10: =COUNTIF(L25:L32,AD10) -> 1 | AF10: =AE10/(AG4-AE8) -> 0.3333333333 | AG10: =IF(AF10=0,0,(AF10*((LOG(AF10))/LOG(2)))) -> -0.5283208336 | AI10: =N10 -> 22 | AJ10: =COUNTIF(L33:L41,AI10) -> 0 | AK10: =AJ10/(AL4-AJ8) ->  | AL10: =IF(AK10=0,0,(AK10*((LOG(AK10))/LOG(2)))) ->  | AN10: =N10 -> 22 | AO10: =COUNTIF(L42:L50,AN10) -> 1 | AP10: =AO10/(AQ4-AO8) -> 0.5 | AQ10: =IF(AP10=0,0,(AP10*((LOG(AP10))/LOG(2)))) -> -0.5 | AS10: =N10 -> 22 | AT10: =COUNTIF(L51:L59,AS10) -> 0 | AU10: =AT10/(AV4-AT8) -> 0 | AV10: =IF(AU10=0,0,(AU10*((LOG(AU10))/LOG(2)))) -> 0
A11: 11 | B11: 500 | C11: 21 | D11: 515 | K11: 0 | L11: 12 | T11: =N11 -> 0 | U11: =COUNTIF(L7:L15,T11) -> 0 | V11: =U11/(W4-U8) -> 0 | W11: =IF(V11=0,0,(V11*((LOG(V11))/LOG(2)))) -> 0 | Y11: =N11 -> 0 | Z11: =COUNTIF(L16:L24,Y11) -> 0 | AA11: =Z11/(AB4-Z8) -> 0 | AB11: =IF(AA11=0,0,(AA11*((LOG(AA11))/LOG(2)))) -> 0 | AD11: =N11 -> 0 | AE11: =COUNTIF(L25:L32,AD11) -> 0 | AF11: =AE11/(AG4-AE8) -> 0 | AG11: =IF(AF11=0,0,(AF11*((LOG(AF11))/LOG(2)))) -> 0 | AI11: =N11 -> 0 | AJ11: =COUNTIF(L33:L41,AI11) -> 0 | AK11: =AJ11/(AL4-AJ8) ->  | AL11: =IF(AK11=0,0,(AK11*((LOG(AK11))/LOG(2)))) ->  | AN11: =N11 -> 0 | AO11: =COUNTIF(L42:L50,AN11) -> 0 | AP11: =AO11/(AQ4-AO8) -> 0 | AQ11: =IF(AP11=0,0,(AP11*((LOG(AP11))/LOG(2)))) -> 0 | AS11: =N11 -> 0 | AT11: =COUNTIF(L51:L59,AS11) -> 0 | AU11: =AT11/(AV4-AT8) -> 0 | AV11: =IF(AU11=0,0,(AU11*((LOG(AU11))/LOG(2)))) -> 0
A12: 22 | B12: 626 | C12: 23 | D12: 649 | K12: 0 | L12: 22 | T12: =N12 -> 0 | U12: =COUNTIF(L7:L15,T12) -> 0 | V12: =U12/(W4-U8) -> 0 | W12: =IF(V12=0,0,(V12*((LOG(V12))/LOG(2)))) -> 0 | Y12: =N12 -> 0 | Z12: =COUNTIF(L16:L24,Y12) -> 0 | AA12: =Z12/(AB4-Z8) -> 0 | AB12: =IF(AA12=0,0,(AA12*((LOG(AA12))/LOG(2)))) -> 0 | AD12: =N12 -> 0 | AE12: =COUNTIF(L25:L32,AD12) -> 0 | AF12: =AE12/(AG4-AE8) -> 0 | AG12: =IF(AF12=0,0,(AF12*((LOG(AF12))/LOG(2)))) -> 0 | AI12: =N12 -> 0 | AJ12: =COUNTIF(L33:L41,AI12) -> 0 | AK12: =AJ12/(AL4-AJ8) ->  | AL12: =IF(AK12=0,0,(AK12*((LOG(AK12))/LOG(2)))) ->  | AN12: =N12 -> 0 | AO12: =COUNTIF(L42:L50,AN12) -> 0 | AP12: =AO12/(AQ4-AO8) -> 0 | AQ12: =IF(AP12=0,0,(AP12*((LOG(AP12))/LOG(2)))) -> 0 | AS12: =N12 -> 0 | AT12: =COUNTIF(L51:L59,AS12) -> 0 | AU12: =AT12/(AV4-AT8) -> 0 | AV12: =IF(AU12=0,0,(AU12*((LOG(AU12))/LOG(2)))) -> 0
A13: 11 | B13: 750 | C13: 21 | D13: 759 | K13: 0 | L13: 12 | T13: =N13 -> 0 | U13: =COUNTIF(L7:L15,T13) -> 0 | V13: =U13/(W4-U8) -> 0 | W13: =IF(V13=0,0,(V13*((LOG(V13))/LOG(2)))) -> 0 | Y13: =N13 -> 0 | Z13: =COUNTIF(L16:L24,Y13) -> 0 | AA13: =Z13/(AB4-Z8) -> 0 | AB13: =IF(AA13=0,0,(AA13*((LOG(AA13))/LOG(2)))) -> 0 | AD13: =N13 -> 0 | AE13: =COUNTIF(L25:L32,AD13) -> 0 | AF13: =AE13/(AG4-AE8) -> 0 | AG13: =IF(AF13=0,0,(AF13*((LOG(AF13))/LOG(2)))) -> 0 | AI13: =N13 -> 0 | AJ13: =COUNTIF(L33:L41,AI13) -> 0 | AK13: =AJ13/(AL4-AJ8) ->  | AL13: =IF(AK13=0,0,(AK13*((LOG(AK13))/LOG(2)))) ->  | AN13: =N13 -> 0 | AO13: =COUNTIF(L42:L50,AN13) -> 0 | AP13: =AO13/(AQ4-AO8) -> 0 | AQ13: =IF(AP13=0,0,(AP13*((LOG(AP13))/LOG(2)))) -> 0 | AS13: =N13 -> 0 | AT13: =COUNTIF(L51:L59,AS13) -> 0 | AU13: =AT13/(AV4-AT8) -> 0 | AV13: =IF(AU13=0,0,(AU13*((LOG(AU13))/LOG(2)))) -> 0
A14: 22 | B14: 868 | C14: 23 | D14: 896 | K14: 0 | L14: 22 | T14: =N14 -> 0 | U14: =COUNTIF(L7:L15,T14) -> 0 | V14: =U14/(W4-U8) -> 0 | W14: =IF(V14=0,0,(V14*((LOG(V14))/LOG(2)))) -> 0 | Y14: =N14 -> 0 | Z14: =COUNTIF(L16:L24,Y14) -> 0 | AA14: =Z14/(AB4-Z8) -> 0 | AB14: =IF(AA14=0,0,(AA14*((LOG(AA14))/LOG(2)))) -> 0 | AD14: =N14 -> 0 | AE14: =COUNTIF(L25:L32,AD14) -> 0 | AF14: =AE14/(AG4-AE8) -> 0 | AG14: =IF(AF14=0,0,(AF14*((LOG(AF14))/LOG(2)))) -> 0 | AI14: =N14 -> 0 | AJ14: =COUNTIF(L33:L41,AI14) -> 0 | AK14: =AJ14/(AL4-AJ8) ->  | AL14: =IF(AK14=0,0,(AK14*((LOG(AK14))/LOG(2)))) ->  | AN14: =N14 -> 0 | AO14: =COUNTIF(L42:L50,AN14) -> 0 | AP14: =AO14/(AQ4-AO8) -> 0 | AQ14: =IF(AP14=0,0,(AP14*((LOG(AP14))/LOG(2)))) -> 0 | AS14: =N14 -> 0 | AT14: =COUNTIF(L51:L59,AS14) -> 0 | AU14: =AT14/(AV4-AT8) -> 0 | AV14: =IF(AU14=0,0,(AU14*((LOG(AU14))/LOG(2)))) -> 0
A15: 11 | B15: 1004 | C15: 21 | D15: 1012 | K15: 0 | L15: 12 | P15: =SUM(P7:P14) -> 1 | Q15: =-SUM(Q7:Q14) -> 1.215651841 | V15: =SUM(V7:V14) -> 1 | W15: =-SUM(W7:W14) -> 0.9182958341 | AA15: =SUM(AA7:AA14) -> 1 | AB15: =-SUM(AB7:AB14) -> 0.9182958341 | AF15: =SUM(AF7:AF14) -> 1 | AG15: =-SUM(AG7:AG14) -> 0.9182958341 | AK15: =SUM(AK7:AK14) ->  | AL15: =-SUM(AL7:AL14) ->  | AP15: =SUM(AP7:AP14) -> 1 | AQ15: =-SUM(AQ7:AQ14) -> 1 | AU15: =SUM(AU7:AU14) -> 1 | AV15: =-SUM(AV7:AV14) -> 0.9182958341
A16: 11 | B16: 1114 | C16: 21 | D16: 1123 | K16: 0 | L16: 12 | P16: U= | Q16: =Q15/(LOG(Q4)/LOG(2)) -> 0.2122326681 | V16: U1= | W16: =W15/(LOG(W4)/LOG(2)) -> 0.2896900821 | AA16: U2= | AB16: =AB15/(LOG(AB4)/LOG(2)) -> 0.2896900821 | AF16: U3= | AG16: =AG15/(LOG(AG4)/LOG(2)) -> 0.3060986114 | AK16: U4= | AL16: =AL15/(LOG(AL4)/LOG(2)) ->  | AP16: U5= | AQ16: =AQ15/(LOG(AQ4)/LOG(2)) -> 0.3154648768 | AU16: U6= | AV16: =AV15/(LOG(AV4)/LOG(2)) -> 0.2896900821
A17: 22 | B17: 1229 | C17: 23 | D17: 1256 | K17: 0 | L17: 22
A18: 11 | B18: 1363 | C18: 21 | D18: 1395 | K18: 0 | L18: 12
A19: 22 | B19: 1506 | C19: 23 | D19: 1534 | K19: 0 | L19: 22 | N19: Total Target Seq
A20: 11 | B20: 1646 | C20: 21 | D20: 1657 | K20: 0 | L20: 12 | N20: =COUNTIF(L7:L59,G3) -> 39 | P20: 9 | Q20: 9 | R20: 8 | S20: 9 | T20: 9 | U20: 9
A21: 11 | B21: 1763 | C21: 21 | D21: 1801 | K21: 0 | L21: 12 | P21: % of reinforcement given in 6 equal intervals based on number of trials
A22: 11 | B22: 1901 | C22: 21 | D22: 1909 | K22: 0 | L22: 12 | P22: %_1 | Q22: %_2 | R22: %_3 | S22: %_4 | T22: %_5 | U22: %_6
A23: 11 | B23: 2008 | C23: 12 | D23: 2032 | K23: 0 | L23: 11 | O23: target sequence | P23: =$G$3 -> 12 | Q23: =$G$3 -> 12 | R23: =$G$3 -> 12 | S23: =$G$3 -> 12 | T23: =$G$3 -> 12 | U23: =$G$3 -> 12
A24: 11 | B24: 2143 | C24: 21 | D24: 2159 | K24: 0 | L24: 12 | O24: total reinforcement | P24: =U8 -> 6 | Q24: =Z8 -> 6 | R24: =AE8 -> 5 | S24: =AJ8 -> 9 | T24: =AO8 -> 7 | U24: =AT8 -> 6
A25: 11 | B25: 2263 | C25: 21 | D25: 2275 | K25: 0 | L25: 12 | O25: % target
A26: 11 | B26: 2376 | C26: 21 | D26: 2390 | K26: 0 | L26: 12 | O26: CCRF
A27: 22 | B27: 2503 | C27: 23 | D27: 2530 | K27: 0 | L27: 22 | O27: % CCRf
A28: 11 | B28: 2640 | C28: 12 | D28: 2665 | K28: 0 | L28: 11 | O28: average response rate | P28: =D15/P20 -> 112.4444444 | Q28: =(D24-D15)/Q20 -> 127.4444444 | R28: =(D32-D24)/R20 -> 119 | S28: =(D41-D32)/S20 -> 116.7777778 | T28: =(D50-D41)/T20 -> 117 | U28: =(D59-D50)/U20 -> 116.8888889
A29: 11 | B29: 2770 | C29: 12 | D29: 2774 | K29: 0 | L29: 11
A30: 11 | B30: 2884 | C30: 21 | D30: 2896 | K30: 0 | L30: 12
A31: 11 | B31: 2996 | C31: 21 | D31: 3004 | K31: 0 | L31: 12
A32: 11 | B32: 3097 | C32: 21 | D32: 3111 | K32: 0 | L32: 12
A33: 11 | B33: 3208 | C33: 21 | D33: 3214 | K33: 0 | L33: 12
A34: 11 | B34: 3315 | C34: 21 | D34: 3348 | K34: 0 | L34: 12
A35: 11 | B35: 3443 | C35: 21 | D35: 3488 | K35: 0 | L35: 12
A36: 11 | B36: 3593 | C36: 21 | D36: 3602 | K36: 0 | L36: 12
A37: 11 | B37: 3699 | C37: 21 | D37: 3708 | K37: 0 | L37: 12
A38: 11 | B38: 3804 | C38: 21 | D38: 3814 | K38: 0 | L38: 12
A39: 11 | B39: 3910 | C39: 21 | D39: 3920 | K39: 0 | L39: 12
A40: 11 | B40: 4018 | C40: 21 | D40: 4050 | K40: 0 | L40: 12
A41: 11 | B41: 4152 | C41: 21 | D41: 4162 | K41: 0 | L41: 12
A42: 11 | B42: 4268 | C42: 21 | D42: 4280 | K42: 0 | L42: 12
A43: 11 | B43: 4377 | C43: 21 | D43: 4391 | K43: 0 | L43: 12
A44: 11 | B44: 4486 | C44: 21 | D44: 4498 | K44: 0 | L44: 12
A45: 22 | B45: 4606 | C45: 23 | D45: 4631 | K45: 0 | L45: 22
A46: 11 | B46: 4741 | C46: 21 | D46: 4752 | K46: 0 | L46: 12
A47: 11 | B47: 4851 | C47: 21 | D47: 4860 | K47: 0 | L47: 12
A48: 11 | B48: 4960 | C48: 12 | D48: 4981 | K48: 0 | L48: 11
A49: 11 | B49: 5093 | C49: 21 | D49: 5102 | K49: 0 | L49: 12
A50: 11 | B50: 5201 | C50: 21 | D50: 5215 | K50: 0 | L50: 12
A51: 11 | B51: 5319 | C51: 21 | D51: 5331 | K51: 0 | L51: 12
A52: 22 | B52: 5435 | C52: 14 | D52: 5450 | K52: 0 | L52: 21
A53: 11 | B53: 5556 | C53: 12 | D53: 5585 | K53: 0 | L53: 11
A54: 11 | B54: 5691 | C54: 12 | D54: 5708 | K54: 0 | L54: 11
A55: 11 | B55: 5817 | C55: 21 | D55: 5829 | K55: 0 | L55: 12
A56: 11 | B56: 5929 | C56: 21 | D56: 5938 | K56: 0 | L56: 12
A57: 11 | B57: 6038 | C57: 21 | D57: 6050 | K57: 0 | L57: 12
A58: 11 | B58: 6154 | C58: 21 | D58: 6164 | K58: 0 | L58: 12
A59: 11 | B59: 6258 | C59: 21 | D59: 6267 | K59: 1 | L59: 12

Sheet !MC08B20.105
A1: Report for:!MC08B20.105
A2: Date: | B2: <date>
A3: Hen: | B3: <hen> | F3: Correct Sequence | G3: =Start!J2 -> 12 | P3: Total Sequences in Data | Q3: =4994-COUNTBLANK(L7:L5000) -> 55 | V3: Total Sequences in Block Data | W3: =COUNTA(L7:L15) -> 9 | AA3: Total Sequences in Block Data | AB3: =COUNTA(L16:L24) -> 9 | AF3: Total Sequences in Block Data | AG3: =COUNTA(L25:L34) -> 10 | AK3: Total Sequences in Block Data | AL3: =COUNTA(L35:L43) -> 9 | AP3: Total Sequences in Block Data | AQ3: =COUNTA(L44:L52) -> 9 | AU3: Total Sequences in Block Data | AV3: =COUNTA(L53:L61) -> 9
P4: Total Sequences in Summary | Q4: =SUM(O7:O14) -> 55 | V4: Total Sequences in Block Summary | W4: =SUM(U7:U14) -> 9 | AA4: Total Sequences in Block Summary | AB4: =SUM(Z7:Z14) -> 9 | AF4: Total Sequences in Block Summary | AG4: =SUM(AE7:AE14) -> 10 | AK4: Total Sequences in Block Summary | AL4: =SUM(AJ7:AJ14) -> 9 | AP4: Total Sequences in Block Summary | AQ4: =SUM(AO7:AO14) -> 9 | AU4: Total Sequences in Block Summary | AV4: =SUM(AT7:AT14) -> 9
T5: Block 1 | Y5: Block 2 | AD5: Block 3 | AI5: Block 4 | AN5: Block 5 | AS5: Block 6
A6: Sequence Component 1 | B6: Time 1 | C6: Sequence Component 2 | D6: Time 2 | E6: Sequence Component 3 | F6: Time 3 | G6: Sequence Component 4 | H6: Time 4 | I6: Sequence Component 5 | J6: Time 5 | K6: Correct? 0=No 1=Yes | L6: Sequence | N6: Frequency | P6: Relative Frequency | Q6: Variability | T6: Frequency | V6: Relative Frequency | W6: Variability | Y6: Frequency | AA6: Relative Frequency | AB6: Variability | AD6: Frequency | AF6: Relative Frequency | AG6: Variability | AI6: Frequency | AK6: Relative Frequency | AL6: Variability | AN6: Frequency | AP6: Relative Frequency | AQ6: Variability | AS6: Frequency | AU6: Relative Frequency | AV6: Variability
A7: 11 | B7: 6 | C7: 21 | D7: 19 | K7: 0 | L7: 12 | N7: 11 | O7: =COUNTIF($L$7:$L$500,N7) -> 12 | P7: =O7/$Q$4 -> 0.2181818182 | Q7: =IF(P7=0,0,(P7*((LOG(P7))/LOG(2)))) -> -0.4792139373 | T7: =N7 -> 11 | U7: =COUNTIF(L7:L15,T7) -> 3 | V7: =U7/(W4-U8) -> 0.75 | W7: =IF(V7=0,0,(V7*((LOG(V7))/LOG(2)))) -> -0.3112781245 | Y7: =N7 -> 11 | Z7: =COUNTIF(L16:L24,Y7) -> 2 | AA7: =Z7/(AB4-Z8) -> 1 | AB7: =IF(AA7=0,0,(AA7*((LOG(AA7))/LOG(2)))) -> 0 | AD7: =N7 -> 11 | AE7: =COUNTIF(L25:L34,AD7) -> 2 | AF7: =AE7/(AG4-AE8) -> 0.6666666667 | AG7: =IF(AF7=0,0,(AF7*((LOG(AF7))/LOG(2)))) -> -0.3899750005 | AI7: =N7 -> 11 | AJ7: =COUNTIF(L35:L43,AI7) -> 3 | AK7: =AJ7/(AL4-AJ8) -> 1 | AL7: =IF(AK7=0,0,(AK7*((LOG(AK7))/LOG(2)))) -> 0 | AN7: =N7 -> 11 | AO7: =COUNTIF(L44:L52,AN7) -> 2 | AP7: =AO7/(AQ4-AO8) -> 0.6666666667 | AQ7: =IF(AP7=0,0,(AP7*((LOG(AP7))/LOG(2)))) -> -0.3899750005 | AS7: =N7 -> 11 | AT7: =COUNTIF(L53:L61,AS7) -> 0 | AU7: =AT7/(AV4-AT8) -> 0 | AV7: =IF(AU7=0,0,(AU7*((LOG(AU7))/LOG(2)))) -> 0
A8: 11 | B8: 118 | C8: 21 | D8: 124 | K8: 0 | L8: 12 | N8: 12 | O8: =COUNTIF($L$7:$L$500,N8) -> 39 | P8: =O8/$Q$4 -> 0.7090909091 | Q8: =IF(P8=0,0,(P8*((LOG(P8))/LOG(2)))) -> -0.3516789508 | T8: =N8 -> 12 | U8: =COUNTIF(L7:L15,T8) -> 5 | Y8: =N8 -> 12 | Z8: =COUNTIF(L16:L24,Y8) -> 7 | AD8: =N8 -> 12 | AE8: =COUNTIF(L25:L34,AD8) -> 7 | AI8: =N8 -> 12 | AJ8: =COUNTIF(L35:L43,AI8) -> 6 | AN8: =N8 -> 12 | AO8: =COUNTIF(L44:L52,AN8) -> 6 | AS8: =N8 -> 12 | AT8: =COUNTIF(L53:L61,AS8) -> 8
A9: 22 | B9: 217 | C9: 23 | D9: 230 | K9: 0 | L9: 22 | N9: 21 | O9: =COUNTIF($L$7:$L$500,N9) -> 1 | P9: =O9/$Q$4 -> 0.01818181818 | Q9: =IF(P9=0,0,(P9*((LOG(P9))/LOG(2)))) -> -0.1051156312 | T9: =N9 -> 21 | U9: =COUNTIF(L7:L15,T9) -> 0 | V9: =U9/(W4-U8) -> 0 | W9: =IF(V9=0,0,(V9*((LOG(V9))/LOG(2)))) -> 0 | Y9: =N9 -> 21 | Z9: =COUNTIF(L16:L24,Y9) -> 0 | AA9: =Z9/(AB4-Z8) -> 0 | AB9: =IF(AA9=0,0,(AA9*((LOG(AA9))/LOG(2)))) -> 0 | AD9: =N9 -> 21 | AE9: =COUNTIF(L25:L34,AD9) -> 0 | AF9: =AE9/(AG4-AE8) -> 0 | AG9: =IF(AF9=0,0,(AF9*((LOG(AF9))/LOG(2)))) -> 0 | AI9: =N9 -> 21 | AJ9: =COUNTIF(L35:L43,AI9) -> 0 | AK9: =AJ9/(AL4-AJ8) -> 0 | AL9: =IF(AK9=0,0,(AK9*((LOG(AK9))/LOG(2)))) -> 0 | AN9: =N9 -> 21 | AO9: =COUNTIF(L44:L52,AN9) -> 1 | AP9: =AO9/(AQ4-AO8) -> 0.3333333333 | AQ9: =IF(AP9=0,0,(AP9*((LOG(AP9))/LOG(2)))) -> -0.5283208336 | AS9: =N9 -> 21 | AT9: =COUNTIF(L53:L61,AS9) -> 0 | AU9: =AT9/(AV4-AT8) -> 0 | AV9: =IF(AU9=0,0,(AU9*((LOG(AU9))/LOG(2)))) -> 0
A10: 11 | B10: 334 | C10: 21 | D10: 344 | K10: 0 | L10: 12 | N10: 22 | O10: =COUNTIF($L$7:$L$500,N10) -> 3 | P10: =O10/$Q$4 -> 0.05454545455 | Q10: =IF(P10=0,0,(P10*((LOG(P10))/LOG(2)))) -> -0.2288943934 | T10: =N10 -> 22 | U10: =COUNTIF(L7:L15,T10) -> 1 | V10: =U10/(W4-U8) -> 0.25 | W10: =IF(V10=0,0,(V10*((LOG(V10))/LOG(2)))) -> -0.5 | Y10: =N10 -> 22 | Z10: =COUNTIF(L16:L24,Y10) -> 0 | AA10: =Z10/(AB4-Z8) -> 0 | AB10: =IF(AA10=0,0,(AA10*((LOG(AA10))/LOG(2)))) -> 0 | AD10: =N10 -> 22 | AE10: =COUNTIF(L25:L34,AD10) -> 1 | AF10: =AE10/(AG4-AE8) -> 0.3333333333 | AG10: =IF(AF10=0,0,(AF10*((LOG(AF10))/LOG(2)))) -> -0.5283208336 | AI10: =N10 -> 22 | AJ10: =COUNTIF(L35:L43,AI10) -> 0 | AK10: =AJ10/(AL4-AJ8) -> 0 | AL10: =IF(AK10=0,0,(AK10*((LOG(AK10))/LOG(2)))) -> 0 | AN10: =N10 -> 22 | AO10: =COUNTIF(L44:L52,AN10) -> 0 | AP10: =AO10/(AQ4-AO8) -> 0 | AQ10: =IF(AP10=0,0,(AP10*((LOG(AP10))/LOG(2)))) -> 0 | AS10: =N10 -> 22 | AT10: =COUNTIF(L53:L61,AS10) -> 1 | AU10: =AT10/(AV4-AT8) -> 1 | AV10: =IF(AU10=0,0,(AU10*((LOG(AU10))/LOG(2)))) -> 0
A11: 11 | B11: 445 | C11: 21 | D11: 458 | K11: 0 | L11: 12 | T11: =N11 -> 0 | U11: =COUNTIF(L7:L15,T11) -> 0 | V11: =U11/(W4-U8) -> 0 | W11: =IF(V11=0,0,(V11*((LOG(V11))/LOG(2)))) -> 0 | Y11: =N11 -> 0 | Z11: =COUNTIF(L16:L24,Y11) -> 0 | AA11: =Z11/(AB4-Z8) -> 0 | AB11: =IF(AA11=0,0,(AA11*((LOG(AA11))/LOG(2)))) -> 0 | AD11: =N11 -> 0 | AE11: =COUNTIF(L25:L34,AD11) -> 0 | AF11: =AE11/(AG4-AE8) -> 0 | AG11: =IF(AF11=0,0,(AF11*((LOG(AF11))/LOG(2)))) -> 0 | AI11: =N11 -> 0 | AJ11: =COUNTIF(L35:L43,AI11) -> 0 | AK11: =AJ11/(AL4-AJ8) -> 0 | AL11: =IF(AK11=0,0,(AK11*((LOG(AK11))/LOG(2)))) -> 0 | AN11: =N11 -> 0 | AO11: =COUNTIF(L44:L52,AN11) -> 0 | AP11: =AO11/(AQ4-AO8) -> 0 | AQ11: =IF(AP11=0,0,(AP11*((LOG(AP11))/LOG(2)))) -> 0 | AS11: =N11 -> 0 | AT11: =COUNTIF(L53:L61,AS11) -> 0 | AU11: =AT11/(AV4-AT8) -> 0 | AV11: =IF(AU11=0,0,(AU11*((LOG(AU11))/LOG(2)))) -> 0
A12: 11 | B12: 557 | C12: 12 | D12: 578 | K12: 0 | L12: 11 | T12: =N12 -> 0 | U12: =COUNTIF(L7:L15,T12) -> 0 | V12: =U12/(W4-U8) -> 0 | W12: =IF(V12=0,0,(V12*((LOG(V12))/LOG(2)))) -> 0 | Y12: =N12 -> 0 | Z12: =COUNTIF(L16:L24,Y12) -> 0 | AA12: =Z12/(AB4-Z8) -> 0 | AB12: =IF(AA12=0,0,(AA12*((LOG(AA12))/LOG(2)))) -> 0 | AD12: =N12 -> 0 | AE12: =COUNTIF(L25:L34,AD12) -> 0 | AF12: =AE12/(AG4-AE8) -> 0 | AG12: =IF(AF12=0,0,(AF12*((LOG(AF12))/LOG(2)))) -> 0 | AI12: =N12 -> 0 | AJ12: =COUNTIF(L35:L43,AI12) -> 0 | AK12: =AJ12/(AL4-AJ8) -> 0 | AL12: =IF(AK12=0,0,(AK12*((LOG(AK12))/LOG(2)))) -> 0 | AN12: =N12 -> 0 | AO12: =COUNTIF(L44:L52,AN12) -> 0 | AP12: =AO12/(AQ4-AO8) -> 0 | AQ12: =IF(AP12=0,0,(AP12*((LOG(AP12))/LOG(2)))) -> 0 | AS12: =N12 -> 0 | AT12: =COUNTIF(L53:L61,AS12) -> 0 | AU12: =AT12/(AV4-AT8) -> 0 | AV12: =IF(AU12=0,0,(AU12*((LOG(AU12))/LOG(2)))) -> 0
A13: 11 | B13: 685 | C13: 12 | D13: 704 | K13: 0 | L13: 11 | T13: =N13 -> 0 | U13: =COUNTIF(L7:L15,T13) -> 0 | V13: =U13/(W4-U8) -> 0 | W13: =IF(V13=0,0,(V13*((LOG(V13))/LOG(2)))) -> 0 | Y13: =N13 -> 0 | Z13: =COUNTIF(L16:L24,Y13) -> 0 | AA13: =Z13/(AB4-Z8) -> 0 | AB13: =IF(AA13=0,0,(AA13*((LOG(AA13))/LOG(2)))) -> 0 | AD13: =N13 -> 0 | AE13: =COUNTIF(L25:L34,AD13) -> 0 | AF13: =AE13/(AG4-AE8) -> 0 | AG13: =IF(AF13=0,0,(AF13*((LOG(AF13))/LOG(2)))) -> 0 | AI13: =N13 -> 0 | AJ13: =COUNTIF(L35:L43,AI13) -> 0 | AK13: =AJ13/(AL4-AJ8) -> 0 | AL13: =IF(AK13=0,0,(AK13*((LOG(AK13))/LOG(2)))) -> 0 | AN13: =N13 -> 0 | AO13: =COUNTIF(L44:L52,AN13) -> 0 | AP13: =AO13/(AQ4-AO8) -> 0 | AQ13: =IF(AP13=0,0,(AP13*((LOG(AP13))/LOG(2)))) -> 0 | AS13: =N13 -> 0 | AT13: =COUNTIF(L53:L61,AS13) -> 0 | AU13: =AT13/(AV4-AT8) -> 0 | AV13: =IF(AU13=0,0,(AU13*((LOG(AU13))/LOG(2)))) -> 0
A14: 11 | B14: 816 | C14: 21 | D14: 829 | K14: 0 | L14: 12 | T14: =N14 -> 0 | U14: =COUNTIF(L7:L15,T14) -> 0 | V14: =U14/(W4-U8) -> 0 | W14: =IF(V14=0,0,(V14*((LOG(V14))/LOG(2)))) -> 0 | Y14: =N14 -> 0 | Z14: =COUNTIF(L16:L24,Y14) -> 0 | AA14: =Z14/(AB4-Z8) -> 0 | AB14: =IF(AA14=0,0,(AA14*((LOG(AA14))/LOG(2)))) -> 0 | AD14: =N14 -> 0 | AE14: =COUNTIF(L25:L34,AD14) -> 0 | AF14: =AE14/(AG4-AE8) -> 0 | AG14: =IF(AF14=0,0,(AF14*((LOG(AF14))/LOG(2)))) -> 0 | AI14: =N14 -> 0 | AJ14: =COUNTIF(L35:L43,AI14) -> 0 | AK14: =AJ14/(AL4-AJ8) -> 0 | AL14: =IF(AK14=0,0,(AK14*((LOG(AK14))/LOG(2)))) -> 0 | AN14: =N14 -> 0 | AO14: =COUNTIF(L44:L52,AN14) -> 0 | AP14: =AO14/(AQ4-AO8) -> 0 | AQ14: =IF(AP14=0,0,(AP14*((LOG(AP14))/LOG(2)))) -> 0 | AS14: =N14 -> 0 | AT14: =COUNTIF(L53:L61,AS14) -> 0 | AU14: =AT14/(AV4-AT8) -> 0 | AV14: =IF(AU14=0,0,(AU14*((LOG(AU14))/LOG(2)))) -> 0
A15: 11 | B15: 926 | C15: 12 | D15: 941 | K15: 0 | L15: 11 | P15: =SUM(P7:P14) -> 1 | Q15: =-SUM(Q7:Q14) -> 1.164902913 | V15: =SUM(V7:V14) -> 1 | W15: =-SUM(W7:W14) -> 0.8112781245 | AA15: =SUM(AA7:AA14) -> 1 | AB15: =-SUM(AB7:AB14) -> 0 | AF15: =SUM(AF7:AF14) -> 1 | AG15: =-SUM(AG7:AG14) -> 0.9182958341 | AK15: =SUM(AK7:AK14) -> 1 | AL15: =-SUM(AL7:AL14) -> 0 | AP15: =SUM(AP7:AP14) -> 1 | AQ15: =-SUM(AQ7:AQ14) -> 0.9182958341 | AU15: =SUM(AU7:AU14) -> 1 | AV15: =-SUM(AV7:AV14) -> 0
A16: 11 | B16: 1049 | C16: 21 | D16: 1062 | K16: 0 | L16: 12 | P16: U= | Q16: =Q15/(LOG(Q4)/LOG(2)) -> 0.2014928962 | V16: U1= | W16: =W15/(LOG(W4)/LOG(2)) -> 0.2559297536 | AA16: U2= | AB16: =AB15/(LOG(AB4)/LOG(2)) -> 0 | AF16: U3= | AG16: =AG15/(LOG(AG4)/LOG(2)) -> 0.2764345909 | AK16: U4= | AL16: =AL15/(LOG(AL4)/LOG(2)) -> 0 | AP16: U5= | AQ16: =AQ15/(LOG(AQ4)/LOG(2)) -> 0.2896900821 | AU16: U6= | AV16: =AV15/(LOG(AV4)/LOG(2)) -> 0
A17: 11 | B17: 1164 | C17: 21 | D17: 1174 | K17: 0 | L17: 12
A18: 11 | B18: 1275 | C18: 21 | D18: 1284 | K18: 0 | L18: 12
A19: 11 | B19: 1377 | C19: 21 | D19: 1391 | K19: 0 | L19: 12 | N19: Total Target Seq
A20: 11 | B20: 1490 | C20: 21 | D20: 1500 | K20: 0 | L20: 12 | N20: =COUNTIF(L7:L61,G3) -> 39 | P20: 9 | Q20: 9 | R20: 10 | S20: 9 | T20: 9 | U20: 9
A21: 11 | B21: 1600 | C21: 12 | D21: 1622 | K21: 0 | L21: 11 | P21: % of reinforcement given in 6 equal intervals based on number of trials
A22: 11 | B22: 1729 | C22: 21 | D22: 1742 | K22: 0 | L22: 12 | P22: %_1 | Q22: %_2 | R22: %_3 | S22: %_4 | T22: %_5 | U22: %_6
A23: 11 | B23: 1844 | C23: 21 | D23: 1853 | K23: 0 | L23: 12 | O23: target sequence | P23: =$G$3 -> 12 | Q23: =$G$3 -> 12 | R23: =$G$3 -> 12 | S23: =$G$3 -> 12 | T23: =$G$3 -> 12 | U23: =$G$3 -> 12
A24: 11 | B24: 1951 | C24: 12 | D24: 1976 | K24: 0 | L24: 11 | O24: total reinforcement | P24: =U8 -> 5 | Q24: =Z8 -> 7 | R24: =AE8 -> 7 | S24: =AJ8 -> 6 | T24: =AO8 -> 6 | U24: =AT8 -> 8
A25: 11 | B25: 2086 | C25: 21 | D25: 2100 | K25: 0 | L25: 12 | O25: % target
A26: 11 | B26: 2203 | C26: 12 | D26: 2226 | K26: 0 | L26: 11 | O26: CCRF
A27: 11 | B27: 2337 | C27: 21 | D27: 2346 | K27: 0 | L27: 12 | O27: % CCRf
A28: 11 | B28: 2443 | C28: 21 | D28: 2457 | K28: 0 | L28: 12 | O28: average response rate | P28: =D15/P20 -> 104.5555556 | Q28: =(D24-D15)/Q20 -> 115 | R28: =(D34-D24)/R20 -> 118.8 | S28: =(D43-D34)/S20 -> 118.3333333 | T28: =(D52-D43)/T20 -> 120.7777778 | U28: =(D61-D52)/U20 -> 120.8888889
A29: 11 | B29: 2555 | C29: 21 | D29: 2561 | K29: 0 | L29: 12
A30: 11 | B30: 2662 | C30: 21 | D30: 2672 | K30: 0 | L30: 12
A31: 22 | B31: 2783 | C31: 23 | D31: 2819 | K31: 0 | L31: 22
A32: 11 | B32: 2924 | C32: 12 | D32: 2934 | K32: 0 | L32: 11
A33: 11 | B33: 3043 | C33: 21 | D33: 3052 | K33: 0 | L33: 12
A34: 11 | B34: 3152 | C34: 21 | D34: 3164 | K34: 0 | L34: 12
A35: 11 | B35: 3264 | C35: 21 | D35: 3276 | K35: 0 | L35: 12
A36: 11 | B36: 3372 | C36: 21 | D36: 3382 | K36: 0 | L36: 12
A37: 11 | B37: 3477 | C37: 21 | D37: 3490 | K37: 0 | L37: 12
A38: 11 | B38: 3587 | C38: 12 | D38: 3608 | K38: 0 | L38: 11
A39: 11 | B39: 3721 | C39: 21 | D39: 3734 | K39: 0 | L39: 12
A40: 11 | B40: 3838 | C40: 12 | D40: 3866 | K40: 0 | L40: 11
A41: 11 | B41: 3973 | C41: 12 | D41: 3997 | K41: 0 | L41: 11
A42: 11 | B42: 4107 | C42: 21 | D42: 4121 | K42: 0 | L42: 12
A43: 11 | B43: 4217 | C43: 21 | D43: 4229 | K43: 0 | L43: 12
A44: 11 | B44: 4328 | C44: 21 | D44: 4341 | K44: 0 | L44: 12
A45: 11 | B45: 4438 | C45: 21 | D45: 4450 | K45: 0 | L45: 12
A46: 11 | B46: 4545 | C46: 21 | D46: 4565 | K46: 0 | L46: 12
A47: 11 | B47: 4660 | C47: 12 | D47: 4688 | K47: 0 | L47: 11
A48: 11 | B48: 4793 | C48: 21 | D48: 4807 | K48: 0 | L48: 12
A49: 11 | B49: 4908 | C49: 21 | D49: 4935 | K49: 0 | L49: 12
A50: 11 | B50: 5037 | C50: 12 | D50: 5062 | K50: 0 | L50: 11
A51: 11 | B51: 5172 | C51: 21 | D51: 5178 | K51: 0 | L51: 12
A52: 22 | B52: 5285 | C52: 14 | D52: 5316 | K52: 0 | L52: 21
A53: 11 | B53: 5419 | C53: 21 | D53: 5433 | K53: 0 | L53: 12
A54: 11 | B54: 5535 | C54: 21 | D54: 5557 | K54: 0 | L54: 12
A55: 22 | B55: 5670 | C55: 23 | D55: 5711 | K55: 0 | L55: 22
A56: 11 | B56: 5818 | C56: 21 | D56: 5831 | K56: 0 | L56: 12
A57: 11 | B57: 5927 | C57: 21 | D57: 5937 | K57: 0 | L57: 12
A58: 11 | B58: 6044 | C58: 21 | D58: 6053 | K58: 0 | L58: 12
A59: 11 | B59: 6172 | C59: 21 | D59: 6183 | K59: 0 | L59: 12
A60: 11 | B60: 6281 | C60: 21 | D60: 6295 | K60: 0 | L60: 12
A61: 11 | B61: 6394 | C61: 21 | D61: 6404 | K61: 1 | L61: 12

Sheet !MC09B20.105
A1: Report for:!MC09B20.105
A2: Date: | B2: <date>
A3: Hen: | B3: <hen> | F3: Correct Sequence | G3: =Start!J2 -> 12 | P3: Total Sequences in Data | Q3: =4994-COUNTBLANK(L7:L5000) -> 57 | V3: Total Sequences in Block Data | W3: =COUNTA(L7:L16) -> 10 | AA3: Total Sequences in Block Data | AB3: =COUNTA(L17:L25) -> 9 | AF3: Total Sequences in Block Data | AG3: =COUNTA(L26:L35) -> 10 | AK3: Total Sequences in Block Data | AL3: =COUNTA(L36:L44) -> 9 | AP3: Total Sequences in Block Data | AQ3: =COUNTA(L45:L54) -> 10 | AU3: Total Sequences in Block Data | AV3: =COUNTA(L55:L63) -> 9
P4: Total Sequences in Summary | Q4: =SUM(O7:O14) -> 57 | V4: Total Sequences in Block Summary | W4: =SUM(U7:U14) -> 10 | AA4: Total Sequences in Block Summary | AB4: =SUM(Z7:Z14) -> 9 | AF4: Total Sequences in Block Summary | AG4: =SUM(AE7:AE14) -> 10 | AK4: Total Sequences in Block Summary | AL4: =SUM(AJ7:AJ14) -> 9 | AP4: Total Sequences in Block Summary | AQ4: =SUM(AO7:AO14) -> 10 | AU4: Total Sequences in Block Summary | AV4: =SUM(AT7:AT14) -> 9
T5: Block 1 | Y5: Block 2 | AD5: Block 3 | AI5: Block 4 | AN5: Block 5 | AS5: Block 6
A6: Sequence Component 1 | B6: Time 1 | C6: Sequence Component 2 | D6: Time 2 | E6: Sequence Component 3 | F6: Time 3 | G6: Sequence Component 4 | H6: Time 4 | I6: Sequence Component 5 | J6: Time 5 | K6: Correct? 0=No 1=Yes | L6: Sequence | N6: Frequency | P6: Relative Frequency | Q6: Variability | T6: Frequency | V6: Relative Frequency | W6: Variability | Y6: Frequency | AA6: Relative Frequency | AB6: Variability | AD6: Frequency | AF6: Relative Frequency | AG6: Variability | AI6: Frequency | AK6: Relative Frequency | AL6: Variability | AN6: Frequency | AP6: Relative Frequency | AQ6: Variability | AS6: Frequency | AU6: Relative Frequency | AV6: Variability
A7: 11 | B7: 1 | C7: 12 | D7: 25 | K7: 0 | L7: 11 | N7: 11 | O7: =COUNTIF($L$7:$L$500,N7) -> 9 | P7: =O7/$Q$4 -> 0.1578947368 | Q7: =IF(P7=0,0,(P7*((LOG(P7))/LOG(2)))) -> -0.4204681599 | T7: =N7 -> 11 | U7: =COUNTIF(L7:L16,T7) -> 5 | V7: =U7/(W4-U8) -> 0.7142857143 | W7: =IF(V7=0,0,(V7*((LOG(V7))/LOG(2)))) -> -0.346733448 | Y7: =N7 -> 11 | Z7: =COUNTIF(L17:L25,Y7) -> 1 | AA7: =Z7/(AB4-Z8) -> 1 | AB7: =IF(AA7=0,0,(AA7*((LOG(AA7))/LOG(2)))) -> 0 | AD7: =N7 -> 11 | AE7: =COUNTIF(L26:L35,AD7) -> 0 | AF7: =AE7/(AG4-AE8) -> 0 | AG7: =IF(AF7=0,0,(AF7*((LOG(AF7))/LOG(2)))) -> 0 | AI7: =N7 -> 11 | AJ7: =COUNTIF(L36:L44,AI7) -> 1 | AK7: =AJ7/(AL4-AJ8) -> 0.5 | AL7: =IF(AK7=0,0,(AK7*((LOG(AK7))/LOG(2)))) -> -0.5 | AN7: =N7 -> 11 | AO7: =COUNTIF(L45:L54,AN7) -> 1 | AP7: =AO7/(AQ4-AO8) -> 0.2 | AQ7: =IF(AP7=0,0,(AP7*((LOG(AP7))/LOG(2)))) -> -0.464385619 | AS7: =N7 -> 11 | AT7: =COUNTIF(L55:L63,AS7) -> 1 | AU7: =AT7/(AV4-AT8) -> 0.5 | AV7: =IF(AU7=0,0,(AU7*((LOG(AU7))/LOG(2)))) -> -0.5
A8: 11 | B8: 166 | C8: 12 | D8: 175 | K8: 0 | L8: 11 | N8: 12 | O8: =COUNTIF($L$7:$L$500,N8) -> 39 | P8: =O8/$Q$4 -> 0.6842105263 | Q8: =IF(P8=0,0,(P8*((LOG(P8))/LOG(2)))) -> -0.3745969126 | T8: =N8 -> 12 | U8: =COUNTIF(L7:L16,T8) -> 3 | Y8: =N8 -> 12 | Z8: =COUNTIF(L17:L25,Y8) -> 8 | AD8: =N8 -> 12 | AE8: =COUNTIF(L26:L35,AD8) -> 9 | AI8: =N8 -> 12 | AJ8: =COUNTIF(L36:L44,AI8) -> 7 | AN8: =N8 -> 12 | AO8: =COUNTIF(L45:L54,AN8) -> 5 | AS8: =N8 -> 12 | AT8: =COUNTIF(L55:L63,AS8) -> 7
A9: 22 | B9: 322 | C9: 14 | D9: 337 | K9: 0 | L9: 21 | N9: 21 | O9: =COUNTIF($L$7:$L$500,N9) -> 5 | P9: =O9/$Q$4 -> 0.08771929825 | Q9: =IF(P9=0,0,(P9*((LOG(P9))/LOG(2)))) -> -0.3079791157 | T9: =N9 -> 21 | U9: =COUNTIF(L7:L16,T9) -> 2 | V9: =U9/(W4-U8) -> 0.2857142857 | W9: =IF(V9=0,0,(V9*((LOG(V9))/LOG(2)))) -> -0.5163871206 | Y9: =N9 -> 21 | Z9: =COUNTIF(L17:L25,Y9) -> 0 | AA9: =Z9/(AB4-Z8) -> 0 | AB9: =IF(AA9=0,0,(AA9*((LOG(AA9))/LOG(2)))) -> 0 | AD9: =N9 -> 21 | AE9: =COUNTIF(L26:L35,AD9) -> 0 | AF9: =AE9/(AG4-AE8) -> 0 | AG9: =IF(AF9=0,0,(AF9*((LOG(AF9))/LOG(2)))) -> 0 | AI9: =N9 -> 21 | AJ9: =COUNTIF(L36:L44,AI9) -> 0 | AK9: =AJ9/(AL4-AJ8) -> 0 | AL9: =IF(AK9=0,0,(AK9*((LOG(AK9))/LOG(2)))) -> 0 | AN9: =N9 -> 21 | AO9: =COUNTIF(L45:L54,AN9) -> 2 | AP9: =AO9/(AQ4-AO8) -> 0.4 | AQ9: =IF(AP9=0,0,(AP9*((LOG(AP9))/LOG(2)))) -> -0.528771238 | AS9: =N9 -> 21 | AT9: =COUNTIF(L55:L63,AS9) -> 1 | AU9: =AT9/(AV4-AT8) -> 0.5 | AV9: =IF(AU9=0,0,(AU9*((LOG(AU9))/LOG(2)))) -> -0.5
A10: 11 | B10: 449 | C10: 21 | D10: 476 | K10: 0 | L10: 12 | N10: 22 | O10: =COUNTIF($L$7:$L$500,N10) -> 4 | P10: =O10/$Q$4 -> 0.0701754386 | Q10: =IF(P10=0,0,(P10*((LOG(P10))/LOG(2)))) -> -0.2689747378 | T10: =N10 -> 22 | U10: =COUNTIF(L7:L16,T10) -> 0 | V10: =U10/(W4-U8) -> 0 | W10: =IF(V10=0,0,(V10*((LOG(V10))/LOG(2)))) -> 0 | Y10: =N10 -> 22 | Z10: =COUNTIF(L17:L25,Y10) -> 0 | AA10: =Z10/(AB4-Z8) -> 0 | AB10: =IF(AA10=0,0,(AA10*((LOG(AA10))/LOG(2)))) -> 0 | AD10: =N10 -> 22 | AE10: =COUNTIF(L26:L35,AD10) -> 1 | AF10: =AE10/(AG4-AE8) -> 1 | AG10: =IF(AF10=0,0,(AF10*((LOG(AF10))/LOG(2)))) -> 0 | AI10: =N10 -> 22 | AJ10: =COUNTIF(L36:L44,AI10) -> 1 | AK10: =AJ10/(AL4-AJ8) -> 0.5 | AL10: =IF(AK10=0,0,(AK10*((LOG(AK10))/LOG(2)))) -> -0.5 | AN10: =N10 -> 22 | AO10: =COUNTIF(L45:L54,AN10) -> 2 | AP10: =AO10/(AQ4-AO8) -> 0.4 | AQ10: =IF(AP10=0,0,(AP10*((LOG(AP10))/LOG(2)))) -> -0.528771238 | AS10: =N10 -> 22 | AT10: =COUNTIF(L55:L63,AS10) -> 0 | AU10: =AT10/(AV4-AT8) -> 0 | AV10: =IF(AU10=0,0,(AU10*((LOG(AU10))/LOG(2)))) -> 0
A11: 11 | B11: 581 | C11: 12 | D11: 590 | K11: 0 | L11: 11 | T11: =N11 -> 0 | U11: =COUNTIF(L7:L16,T11) -> 0 | V11: =U11/(W4-U8) -> 0 | W11: =IF(V11=0,0,(V11*((LOG(V11))/LOG(2)))) -> 0 | Y11: =N11 -> 0 | Z11: =COUNTIF(L17:L25,Y11) -> 0 | AA11: =Z11/(AB4-Z8) -> 0 | AB11: =IF(AA11=0,0,(AA11*((LOG(AA11))/LOG(2)))) -> 0 | AD11: =N11 -> 0 | AE11: =COUNTIF(L26:L35,AD11) -> 0 | AF11: =AE11/(AG4-AE8) -> 0 | AG11: =IF(AF11=0,0,(AF11*((LOG(AF11))/LOG(2)))) -> 0 | AI11: =N11 -> 0 | AJ11: =COUNTIF(L36:L44,AI11) -> 0 | AK11: =AJ11/(AL4-AJ8) -> 0 | AL11: =IF(AK11=0,0,(AK11*((LOG(AK11))/LOG(2)))) -> 0 | AN11: =N11 -> 0 | AO11: =COUNTIF(L45:L54,AN11) -> 0 | AP11: =AO11/(AQ4-AO8) -> 0 | AQ11: =IF(AP11=0,0,(AP11*((LOG(AP11))/LOG(2)))) -> 0 | AS11: =N11 -> 0 | AT11: =COUNTIF(L55:L63,AS11) -> 0 | AU11: =AT11/(AV4-AT8) -> 0 | AV11: =IF(AU11=0,0,(AU11*((LOG(AU11))/LOG(2)))) -> 0
A12: 11 | B12: 699 | C12: 12 | D12: 715 | K12: 0 | L12: 11 | T12: =N12 -> 0 | U12: =COUNTIF(L7:L16,T12) -> 0 | V12: =U12/(W4-U8) -> 0 | W12: =IF(V12=0,0,(V12*((LOG(V12))/LOG(2)))) -> 0 | Y12: =N12 -> 0 | Z12: =COUNTIF(L17:L25,Y12) -> 0 | AA12: =Z12/(AB4-Z8) -> 0 | AB12: =IF(AA12=0,0,(AA12*((LOG(AA12))/LOG(2)))) -> 0 | AD12: =N12 -> 0 | AE12: =COUNTIF(L26:L35,AD12) -> 0 | AF12: =AE12/(AG4-AE8) -> 0 | AG12: =IF(AF12=0,0,(AF12*((LOG(AF12))/LOG(2)))) -> 0 | AI12: =N12 -> 0 | AJ12: =COUNTIF(L36:L44,AI12) -> 0 | AK12: =AJ12/(AL4-AJ8) -> 0 | AL12: =IF(AK12=0,0,(AK12*((LOG(AK12))/LOG(2)))) -> 0 | AN12: =N12 -> 0 | AO12: =COUNTIF(L45:L54,AN12) -> 0 | AP12: =AO12/(AQ4-AO8) -> 0 | AQ12: =IF(AP12=0,0,(AP12*((LOG(AP12))/LOG(2)))) -> 0 | AS12: =N12 -> 0 | AT12: =COUNTIF(L55:L63,AS12) -> 0 | AU12: =AT12/(AV4-AT8) -> 0 | AV12: =IF(AU12=0,0,(AU12*((LOG(AU12))/LOG(2)))) -> 0
A13: 11 | B13: 852 | C13: 12 | D13: 867 | K13: 0 | L13: 11 | T13: =N13 -> 0 | U13: =COUNTIF(L7:L16,T13) -> 0 | V13: =U13/(W4-U8) -> 0 | W13: =IF(V13=0,0,(V13*((LOG(V13))/LOG(2)))) -> 0 | Y13: =N13 -> 0 | Z13: =COUNTIF(L17:L25,Y13) -> 0 | AA13: =Z13/(AB4-Z8) -> 0 | AB13: =IF(AA13=0,0,(AA13*((LOG(AA13))/LOG(2)))) -> 0 | AD13: =N13 -> 0 | AE13: =COUNTIF(L26:L35,AD13) -> 0 | AF13: =AE13/(AG4-AE8) -> 0 | AG13: =IF(AF13=0,0,(AF13*((LOG(AF13))/LOG(2)))) -> 0 | AI13: =N13 -> 0 | AJ13: =COUNTIF(L36:L44,AI13) -> 0 | AK13: =AJ13/(AL4-AJ8) -> 0 | AL13: =IF(AK13=0,0,(AK13*((LOG(AK13))/LOG(2)))) -> 0 | AN13: =N13 -> 0 | AO13: =COUNTIF(L45:L54,AN13) -> 0 | AP13: =AO13/(AQ4-AO8) -> 0 | AQ13: =IF(AP13=0,0,(AP13*((LOG(AP13))/LOG(2)))) -> 0 | AS13: =N13 -> 0 | AT13: =COUNTIF(L55:L63,AS13) -> 0 | AU13: =AT13/(AV4-AT8) -> 0 | AV13: =IF(AU13=0,0,(AU13*((LOG(AU13))/LOG(2)))) -> 0
A14: 11 | B14: 983 | C14: 21 | D14: 997 | K14: 0 | L14: 12 | T14: =N14 -> 0 | U14: =COUNTIF(L7:L16,T14) -> 0 | V14: =U14/(W4-U8) -> 0 | W14: =IF(V14=0,0,(V14*((LOG(V14))/LOG(2)))) -> 0 | Y14: =N14 -> 0 | Z14: =COUNTIF(L17:L25,Y14) -> 0 | AA14: =Z14/(AB4-Z8) -> 0 | AB14: =IF(AA14=0,0,(AA14*((LOG(AA14))/LOG(2)))) -> 0 | AD14: =N14 -> 0 | AE14: =COUNTIF(L26:L35,AD14) -> 0 | AF14: =AE14/(AG4-AE8) -> 0 | AG14: =IF(AF14=0,0,(AF14*((LOG(AF14))/LOG(2)))) -> 0 | AI14: =N14 -> 0 | AJ14: =COUNTIF(L36:L44,AI14) -> 0 | AK14: =AJ14/(AL4-AJ8) -> 0 | AL14: =IF(AK14=0,0,(AK14*((LOG(AK14))/LOG(2)))) -> 0 | AN14: =N14 -> 0 | AO14: =COUNTIF(L45:L54,AN14) -> 0 | AP14: =AO14/(AQ4-AO8) -> 0 | AQ14: =IF(AP14=0,0,(AP14*((LOG(AP14))/LOG(2)))) -> 0 | AS14: =N14 -> 0 | AT14: =COUNTIF(L55:L63,AS14) -> 0 | AU14: =AT14/(AV4-AT8) -> 0 | AV14: =IF(AU14=0,0,(AU14*((LOG(AU14))/LOG(2)))) -> 0
A15: 11 | B15: 1098 | C15: 21 | D15: 1139 | K15: 0 | L15: 12 | P15: =SUM(P7:P14) -> 1 | Q15: =-SUM(Q7:Q14) -> 1.372018926 | V15: =SUM(V7:V14) -> 1 | W15: =-SUM(W7:W14) -> 0.8631205686 | AA15: =SUM(AA7:AA14) -> 1 | AB15: =-SUM(AB7:AB14) -> 0 | AF15: =SUM(AF7:AF14) -> 1 | AG15: =-SUM(AG7:AG14) -> 0 | AK15: =SUM(AK7:AK14) -> 1 | AL15: =-SUM(AL7:AL14) -> 1 | AP15: =SUM(AP7:AP14) -> 1 | AQ15: =-SUM(AQ7:AQ14) -> 1.521928095 | AU15: =SUM(AU7:AU14) -> 1 | AV15: =-SUM(AV7:AV14) -> 1
A16: 22 | B16: 1257 | C16: 14 | D16: 1275 | K16: 0 | L16: 21 | P16: U= | Q16: =Q15/(LOG(Q4)/LOG(2)) -> 0.2352211207 | V16: U1= | W16: =W15/(LOG(W4)/LOG(2)) -> 0.259825181 | AA16: U2= | AB16: =AB15/(LOG(AB4)/LOG(2)) -> 0 | AF16: U3= | AG16: =AG15/(LOG(AG4)/LOG(2)) -> 0 | AK16: U4= | AL16: =AL15/(LOG(AL4)/LOG(2)) -> 0.3154648768 | AP16: U5= | AQ16: =AQ15/(LOG(AQ4)/LOG(2)) -> 0.4581460078 | AU16: U6= | AV16: =AV15/(LOG(AV4)/LOG(2)) -> 0.3154648768
A17: 11 | B17: 1385 | C17: 21 | D17: 1417 | K17: 0 | L17: 12
A18: 11 | B18: 1525 | C18: 21 | D18: 1554 | K18: 0 | L18: 12
A19: 11 | B19: 1661 | C19: 21 | D19: 1670 | K19: 0 | L19: 12 | N19: Total Target Seq
A20: 11 | B20: 1774 | C20: 12 | D20: 1802 | K20: 0 | L20: 11 | N20: =COUNTIF(L7:L63,G3) -> 39 | P20: 10 | Q20: 9 | R20: 10 | S20: 9 | T20: 10 | U20: 9
A21: 11 | B21: 1921 | C21: 21 | D21: 1934 | K21: 0 | L21: 12 | P21: % of reinforcement given in 6 equal intervals based on number of trials
A22: 11 | B22: 2039 | C22: 21 | D22: 2063 | K22: 0 | L22: 12 | P22: %_1 | Q22: %_2 | R22: %_3 | S22: %_4 | T22: %_5 | U22: %_6
A23: 11 | B23: 2167 | C23: 21 | D23: 2177 | K23: 0 | L23: 12 | O23: target sequence | P23: =$G$3 -> 12 | Q23: =$G$3 -> 12 | R23: =$G$3 -> 12 | S23: =$G$3 -> 12 | T23: =$G$3 -> 12 | U23: =$G$3 -> 12
A24: 11 | B24: 2273 | C24: 21 | D24: 2299 | K24: 0 | L24: 12 | O24: total reinforcement | P24: =U8 -> 3 | Q24: =Z8 -> 8 | R24: =AE8 -> 9 | S24: =AJ8 -> 7 | T24: =AO8 -> 5 | U24: =AT8 -> 7
A25: 11 | B25: 2399 | C25: 21 | D25: 2435 | K25: 0 | L25: 12 | O25: % target
A26: 11 | B26: 2531 | C26: 21 | D26: 2590 | K26: 0 | L26: 12 | O26: CCRF
A27: 11 | B27: 2689 | C27: 21 | D27: 2700 | K27: 0 | L27: 12 | O27: % CCRf
A28: 11 | B28: 2797 | C28: 21 | D28: 2816 | K28: 0 | L28: 12 | O28: average response rate | P28: =D16/P20 -> 127.5 | Q28: =(D25-D16)/Q20 -> 128.8888889 | R28: =(D35-D25)/R20 -> 133.6 | S28: =(D44-D35)/S20 -> 129.5555556 | T28: =(D54-D44)/T20 -> 134.6 | U28: =(D63-D54)/U20 -> 127.6666667
A29: 11 | B29: 2921 | C29: 21 | D29: 2934 | K29: 0 | L29: 12
A30: 11 | B30: 3063 | C30: 21 | D30: 3075 | K30: 0 | L30: 12
A31: 11 | B31: 3172 | C31: 21 | D31: 3185 | K31: 0 | L31: 12
A32: 11 | B32: 3286 | C32: 21 | D32: 3301 | K32: 0 | L32: 12
A33: 22 | B33: 3415 | C33: 23 | D33: 3470 | K33: 0 | L33: 22
A34: 11 | B34: 3566 | C34: 21 | D34: 3626 | K34: 0 | L34: 12
A35: 11 | B35: 3757 | C35: 21 | D35: 3771 | K35: 0 | L35: 12
A36: 11 | B36: 3879 | C36: 12 | D36: 3908 | K36: 0 | L36: 11
A37: 11 | B37: 4020 | C37: 21 | D37: 4030 | K37: 0 | L37: 12
A38: 11 | B38: 4131 | C38: 21 | D38: 4150 | K38: 0 | L38: 12
A39: 11 | B39: 4250 | C39: 21 | D39: 4272 | K39: 0 | L39: 12
A40: 11 | B40: 4364 | C40: 21 | D40: 4374 | K40: 0 | L40: 12
A41: 22 | B41: 4509 | C41: 23 | D41: 4547 | K41: 0 | L41: 22
A42: 11 | B42: 4665 | C42: 21 | D42: 4694 | K42: 0 | L42: 12
A43: 11 | B43: 4801 | C43: 21 | D43: 4811 | K43: 0 | L43: 12
A44: 11 | B44: 4918 | C44: 21 | D44: 4937 | K44: 0 | L44: 12
A45: 22 | B45: 5048 | C45: 23 | D45: 5093 | K45: 0 | L45: 22
A46: 22 | B46: 5213 | C46: 23 | D46: 5241 | K46: 0 | L46: 22
A47: 22 | B47: 5388 | C47: 14 | D47: 5413 | K47: 0 | L47: 21
A48: 11 | B48: 5519 | C48: 21 | D48: 5562 | K48: 0 | L48: 12
A49: 22 | B49: 5676 | C49: 14 | D49: 5704 | K49: 0 | L49: 21
A50: 11 | B50: 5816 | C50: 21 | D50: 5825 | K50: 0 | L50: 12
A51: 11 | B51: 5925 | C51: 21 | D51: 5937 | K51: 0 | L51: 12
A52: 11 | B52: 6045 | C52: 21 | D52: 6058 | K52: 0 | L52: 12
A53: 11 | B53: 6160 | C53: 21 | D53: 6172 | K53: 0 | L53: 12
A54: 11 | B54: 6273 | C54: 12 | D54: 6283 | K54: 0 | L54: 11
A55: 11 | B55: 6395 | C55: 21 | D55: 6405 | K55: 0 | L55: 12
A56: 22 | B56: 6515 | C56: 14 | D56: 6541 | K56: 0 | L56: 21
A57: 11 | B57: 6652 | C57: 21 | D57: 6664 | K57: 0 | L57: 12
A58: 11 | B58: 6771 | C58: 12 | D58: 6803 | K58: 0 | L58: 11
A59: 11 | B59: 6916 | C59: 21 | D59: 6928 | K59: 0 | L59: 12
A60: 11 | B60: 7032 | C60: 21 | D60: 7038 | K60: 0 | L60: 12
A61: 11 | B61: 7136 | C61: 21 | D61: 7175 | K61: 0 | L61: 12
A62: 11 | B62: 7271 | C62: 21 | D62: 7284 | K62: 0 | L62: 12
A63: 11 | B63: 7418 | C63: 21 | D63: 7432 | K63: 1 | L63: 12

Sheet !MC10C10.105
A1: Report for:!MC10C10.105
A2: Date: | B2: <date>
A3: Hen: | B3: <hen> | F3: Correct Sequence | G3: =Start!J2 -> 12 | P3: Total Sequences in Data | Q3: =4994-COUNTBLANK(L7:L5000) -> 61 | V3: Total Sequences in Block Data | W3: =COUNTA(L7:L16) -> 10 | AA3: Total Sequences in Block Data | AB3: =COUNTA(L17:L26) -> 10 | AF3: Total Sequences in Block Data | AG3: =COUNTA(L27:L37) -> 11 | AK3: Total Sequences in Block Data | AL3: =COUNTA(L38:L47) -> 10 | AP3: Total Sequences in Block Data | AQ3: =COUNTA(L48:L57) -> 10 | AU3: Total Sequences in Block Data | AV3: =COUNTA(L58:L67) -> 10
P4: Total Sequences in Summary | Q4: =SUM(O7:O14) -> 61 | V4: Total Sequences in Block Summary | W4: =SUM(U7:U14) -> 10 | AA4: Total Sequences in Block Summary | AB4: =SUM(Z7:Z14) -> 10 | AF4: Total Sequences in Block Summary | AG4: =SUM(AE7:AE14) -> 11 | AK4: Total Sequences in Block Summary | AL4: =SUM(AJ7:AJ14) -> 10 | AP4: Total Sequences in Block Summary | AQ4: =SUM(AO7:AO14) -> 10 | AU4: Total Sequences in Block Summary | AV4: =SUM(AT7:AT14) -> 10
T5: Block 1 | Y5: Block 2 | AD5: Block 3 | AI5: Block 4 | AN5: Block 5 | AS5: Block 6
A6: Sequence Component 1 | B6: Time 1 | C6: Sequence Component 2 | D6: Time 2 | E6: Sequence Component 3 | F6: Time 3 | G6: Sequence Component 4 | H6: Time 4 | I6: Sequence Component 5 | J6: Time 5 | K6: Correct? 0=No 1=Yes | L6: Sequence | N6: Frequency | P6: Relative Frequency | Q6: Variability | T6: Frequency | V6: Relative Frequency | W6: Variability | Y6: Frequency | AA6: Relative Frequency | AB6: Variability | AD6: Frequency | AF6: Relative Frequency | AG6: Variability | AI6: Frequency | AK6: Relative Frequency | AL6: Variability | AN6: Frequency | AP6: Relative Frequency | AQ6: Variability | AS6: Frequency | AU6: Relative Frequency | AV6: Variability
A7: 11 | B7: 19 | C7: 21 | D7: 32 | K7: 0 | L7: 12 | N7: 11 | O7: =COUNTIF($L$7:$L$500,N7) -> 7 | P7: =O7/$Q$4 -> 0.1147540984 | Q7: =IF(P7=0,0,(P7*((LOG(P7))/LOG(2)))) -> -0.3584209329 | T7: =N7 -> 11 | U7: =COUNTIF(L7:L16,T7) -> 1 | V7: =U7/(W4-U8) -> 0.3333333333 | W7: =IF(V7=0,0,(V7*((LOG(V7))/LOG(2)))) -> -0.5283208336 | Y7: =N7 -> 11 | Z7: =COUNTIF(L17:L26,Y7) -> 0 | AA7: =Z7/(AB4-Z8) -> 0 | AB7: =IF(AA7=0,0,(AA7*((LOG(AA7))/LOG(2)))) -> 0 | AD7: =N7 -> 11 | AE7: =COUNTIF(L27:L37,AD7) -> 0 | AF7: =AE7/(AG4-AE8) -> 0 | AG7: =IF(AF7=0,0,(AF7*((LOG(AF7))/LOG(2)))) -> 0 | AI7: =N7 -> 11 | AJ7: =COUNTIF(L38:L47,AI7) -> 2 | AK7: =AJ7/(AL4-AJ8) -> 0.6666666667 | AL7: =IF(AK7=0,0,(AK7*((LOG(AK7))/LOG(2)))) -> -0.3899750005 | AN7: =N7 -> 11 | AO7: =COUNTIF(L48:L57,AN7) -> 1 | AP7: =AO7/(AQ4-AO8) -> 0.2 | AQ7: =IF(AP7=0,0,(AP7*((LOG(AP7))/LOG(2)))) -> -0.464385619 | AS7: =N7 -> 11 | AT7: =COUNTIF(L58:L67,AS7) -> 3 | AU7: =AT7/(AV4-AT8) -> 0.6 | AV7: =IF(AU7=0,0,(AU7*((LOG(AU7))/LOG(2)))) -> -0.4421793565
A8: 22 | B8: 138 | C8: 14 | D8: 163 | K8: 0 | L8: 21 | N8: 12 | O8: =COUNTIF($L$7:$L$500,N8) -> 39 | P8: =O8/$Q$4 -> 0.6393442623 | Q8: =IF(P8=0,0,(P8*((LOG(P8))/LOG(2)))) -> -0.4125913054 | T8: =N8 -> 12 | U8: =COUNTIF(L7:L16,T8) -> 7 | Y8: =N8 -> 12 | Z8: =COUNTIF(L17:L26,Y8) -> 8 | AD8: =N8 -> 12 | AE8: =COUNTIF(L27:L37,AD8) -> 7 | AI8: =N8 -> 12 | AJ8: =COUNTIF(L38:L47,AI8) -> 7 | AN8: =N8 -> 12 | AO8: =COUNTIF(L48:L57,AN8) -> 5 | AS8: =N8 -> 12 | AT8: =COUNTIF(L58:L67,AS8) -> 5
A9: 11 | B9: 272 | C9: 12 | D9: 300 | K9: 0 | L9: 11 | N9: 21 | O9: =COUNTIF($L$7:$L$500,N9) -> 8 | P9: =O9/$Q$4 -> 0.131147541 | Q9: =IF(P9=0,0,(P9*((LOG(P9))/LOG(2)))) -> -0.3843589951 | T9: =N9 -> 21 | U9: =COUNTIF(L7:L16,T9) -> 1 | V9: =U9/(W4-U8) -> 0.3333333333 | W9: =IF(V9=0,0,(V9*((LOG(V9))/LOG(2)))) -> -0.5283208336 | Y9: =N9 -> 21 | Z9: =COUNTIF(L17:L26,Y9) -> 1 | AA9: =Z9/(AB4-Z8) -> 0.5 | AB9: =IF(AA9=0,0,(AA9*((LOG(AA9))/LOG(2)))) -> -0.5 | AD9: =N9 -> 21 | AE9: =COUNTIF(L27:L37,AD9) -> 1 | AF9: =AE9/(AG4-AE8) -> 0.25 | AG9: =IF(AF9=0,0,(AF9*((LOG(AF9))/LOG(2)))) -> -0.5 | AI9: =N9 -> 21 | AJ9: =COUNTIF(L38:L47,AI9) -> 1 | AK9: =AJ9/(AL4-AJ8) -> 0.3333333333 | AL9: =IF(AK9=0,0,(AK9*((LOG(AK9))/LOG(2)))) -> -0.5283208336 | AN9: =N9 -> 21 | AO9: =COUNTIF(L48:L57,AN9) -> 3 | AP9: =AO9/(AQ4-AO8) -> 0.6 | AQ9: =IF(AP9=0,0,(AP9*((LOG(AP9))/LOG(2)))) -> -0.4421793565 | AS9: =N9 -> 21 | AT9: =COUNTIF(L58:L67,AS9) -> 1 | AU9: =AT9/(AV4-AT8) -> 0.2 | AV9: =IF(AU9=0,0,(AU9*((LOG(AU9))/LOG(2)))) -> -0.464385619
A10: 11 | B10: 412 | C10: 21 | D10: 425 | K10: 0 | L10: 12 | N10: 22 | O10: =COUNTIF($L$7:$L$500,N10) -> 7 | P10: =O10/$Q$4 -> 0.1147540984 | Q10: =IF(P10=0,0,(P10*((LOG(P10))/LOG(2)))) -> -0.3584209329 | T10: =N10 -> 22 | U10: =COUNTIF(L7:L16,T10) -> 1 | V10: =U10/(W4-U8) -> 0.3333333333 | W10: =IF(V10=0,0,(V10*((LOG(V10))/LOG(2)))) -> -0.5283208336 | Y10: =N10 -> 22 | Z10: =COUNTIF(L17:L26,Y10) -> 1 | AA10: =Z10/(AB4-Z8) -> 0.5 | AB10: =IF(AA10=0,0,(AA10*((LOG(AA10))/LOG(2)))) -> -0.5 | AD10: =N10 -> 22 | AE10: =COUNTIF(L27:L37,AD10) -> 3 | AF10: =AE10/(AG4-AE8) -> 0.75 | AG10: =IF(AF10=0,0,(AF10*((LOG(AF10))/LOG(2)))) -> -0.3112781245 | AI10: =N10 -> 22 | AJ10: =COUNTIF(L38:L47,AI10) -> 0 | AK10: =AJ10/(AL4-AJ8) -> 0 | AL10: =IF(AK10=0,0,(AK10*((LOG(AK10))/LOG(2)))) -> 0 | AN10: =N10 -> 22 | AO10: =COUNTIF(L48:L57,AN10) -> 1 | AP10: =AO10/(AQ4-AO8) -> 0.2 | AQ10: =IF(AP10=0,0,(AP10*((LOG(AP10))/LOG(2)))) -> -0.464385619 | AS10: =N10 -> 22 | AT10: =COUNTIF(L58:L67,AS10) -> 1 | AU10: =AT10/(AV4-AT8) -> 0.2 | AV10: =IF(AU10=0,0,(AU10*((LOG(AU10))/LOG(2)))) -> -0.464385619
A11: 11 | B11: 523 | C11: 21 | D11: 535 | K11: 0 | L11: 12 | T11: =N11 -> 0 | U11: =COUNTIF(L7:L16,T11) -> 0 | V11: =U11/(W4-U8) -> 0 | W11: =IF(V11=0,0,(V11*((LOG(V11))/LOG(2)))) -> 0 | Y11: =N11 -> 0 | Z11: =COUNTIF(L17:L26,Y11) -> 0 | AA11: =Z11/(AB4-Z8) -> 0 | AB11: =IF(AA11=0,0,(AA11*((LOG(AA11))/LOG(2)))) -> 0 | AD11: =N11 -> 0 | AE11: =COUNTIF(L27:L37,AD11) -> 0 | AF11: =AE11/(AG4-AE8) -> 0 | AG11: =IF(AF11=0,0,(AF11*((LOG(AF11))/LOG(2)))) -> 0 | AI11: =N11 -> 0 | AJ11: =COUNTIF(L38:L47,AI11) -> 0 | AK11: =AJ11/(AL4-AJ8) -> 0 | AL11: =IF(AK11=0,0,(AK11*((LOG(AK11))/LOG(2)))) -> 0 | AN11: =N11 -> 0 | AO11: =COUNTIF(L48:L57,AN11) -> 0 | AP11: =AO11/(AQ4-AO8) -> 0 | AQ11: =IF(AP11=0,0,(AP11*((LOG(AP11))/LOG(2)))) -> 0 | AS11: =N11 -> 0 | AT11: =COUNTIF(L58:L67,AS11) -> 0 | AU11: =AT11/(AV4-AT8) -> 0 | AV11: =IF(AU11=0,0,(AU11*((LOG(AU11))/LOG(2)))) -> 0
A12: 11 | B12: 640 | C12: 21 | D12: 651 | K12: 0 | L12: 12 | T12: =N12 -> 0 | U12: =COUNTIF(L7:L16,T12) -> 0 | V12: =U12/(W4-U8) -> 0 | W12: =IF(V12=0,0,(V12*((LOG(V12))/LOG(2)))) -> 0 | Y12: =N12 -> 0 | Z12: =COUNTIF(L17:L26,Y12) -> 0 | AA12: =Z12/(AB4-Z8) -> 0 | AB12: =IF(AA12=0,0,(AA12*((LOG(AA12))/LOG(2)))) -> 0 | AD12: =N12 -> 0 | AE12: =COUNTIF(L27:L37,AD12) -> 0 | AF12: =AE12/(AG4-AE8) -> 0 | AG12: =IF(AF12=0,0,(AF12*((LOG(AF12))/LOG(2)))) -> 0 | AI12: =N12 -> 0 | AJ12: =COUNTIF(L38:L47,AI12) -> 0 | AK12: =AJ12/(AL4-AJ8) -> 0 | AL12: =IF(AK12=0,0,(AK12*((LOG(AK12))/LOG(2)))) -> 0 | AN12: =N12 -> 0 | AO12: =COUNTIF(L48:L57,AN12) -> 0 | AP12: =AO12/(AQ4-AO8) -> 0 | AQ12: =IF(AP12=0,0,(AP12*((LOG(AP12))/LOG(2)))) -> 0 | AS12: =N12 -> 0 | AT12: =COUNTIF(L58:L67,AS12) -> 0 | AU12: =AT12/(AV4-AT8) -> 0 | AV12: =IF(AU12=0,0,(AU12*((LOG(AU12))/LOG(2)))) -> 0
A13: 11 | B13: 748 | C13: 21 | D13: 758 | K13: 0 | L13: 12 | T13: =N13 -> 0 | U13: =COUNTIF(L7:L16,T13) -> 0 | V13: =U13/(W4-U8) -> 0 | W13: =IF(V13=0,0,(V13*((LOG(V13))/LOG(2)))) -> 0 | Y13: =N13 -> 0 | Z13: =COUNTIF(L17:L26,Y13) -> 0 | AA13: =Z13/(AB4-Z8) -> 0 | AB13: =IF(AA13=0,0,(AA13*((LOG(AA13))/LOG(2)))) -> 0 | AD13: =N13 -> 0 | AE13: =COUNTIF(L27:L37,AD13) -> 0 | AF13: =AE13/(AG4-AE8) -> 0 | AG13: =IF(AF13=0,0,(AF13*((LOG(AF13))/LOG(2)))) -> 0 | AI13: =N13 -> 0 | AJ13: =COUNTIF(L38:L47,AI13) -> 0 | AK13: =AJ13/(AL4-AJ8) -> 0 | AL13: =IF(AK13=0,0,(AK13*((LOG(AK13))/LOG(2)))) -> 0 | AN13: =N13 -> 0 | AO13: =COUNTIF(L48:L57,AN13) -> 0 | AP13: =AO13/(AQ4-AO8) -> 0 | AQ13: =IF(AP13=0,0,(AP13*((LOG(AP13))/LOG(2)))) -> 0 | AS13: =N13 -> 0 | AT13: =COUNTIF(L58:L67,AS13) -> 0 | AU13: =AT13/(AV4-AT8) -> 0 | AV13: =IF(AU13=0,0,(AU13*((LOG(AU13))/LOG(2)))) -> 0
A14: 11 | B14: 861 | C14: 21 | D14: 872 | K14: 0 | L14: 12 | T14: =N14 -> 0 | U14: =COUNTIF(L7:L16,T14) -> 0 | V14: =U14/(W4-U8) -> 0 | W14: =IF(V14=0,0,(V14*((LOG(V14))/LOG(2)))) -> 0 | Y14: =N14 -> 0 | Z14: =COUNTIF(L17:L26,Y14) -> 0 | AA14: =Z14/(AB4-Z8) -> 0 | AB14: =IF(AA14=0,0,(AA14*((LOG(AA14))/LOG(2)))) -> 0 | AD14: =N14 -> 0 | AE14: =COUNTIF(L27:L37,AD14) -> 0 | AF14: =AE14/(AG4-AE8) -> 0 | AG14: =IF(AF14=0,0,(AF14*((LOG(AF14))/LOG(2)))) -> 0 | AI14: =N14 -> 0 | AJ14: =COUNTIF(L38:L47,AI14) -> 0 | AK14: =AJ14/(AL4-AJ8) -> 0 | AL14: =IF(AK14=0,0,(AK14*((LOG(AK14))/LOG(2)))) -> 0 | AN14: =N14 -> 0 | AO14: =COUNTIF(L48:L57,AN14) -> 0 | AP14: =AO14/(AQ4-AO8) -> 0 | AQ14: =IF(AP14=0,0,(AP14*((LOG(AP14))/LOG(2)))) -> 0 | AS14: =N14 -> 0 | AT14: =COUNTIF(L58:L67,AS14) -> 0 | AU14: =AT14/(AV4-AT8) -> 0 | AV14: =IF(AU14=0,0,(AU14*((LOG(AU14))/LOG(2)))) -> 0
A15: 11 | B15: 972 | C15: 21 | D15: 1018 | K15: 0 | L15: 12 | P15: =SUM(P7:P14) -> 1 | Q15: =-SUM(Q7:Q14) -> 1.513792166 | V15: =SUM(V7:V14) -> 1 | W15: =-SUM(W7:W14) -> 1.584962501 | AA15: =SUM(AA7:AA14) -> 1 | AB15: =-SUM(AB7:AB14) -> 1 | AF15: =SUM(AF7:AF14) -> 1 | AG15: =-SUM(AG7:AG14) -> 0.8112781245 | AK15: =SUM(AK7:AK14) -> 1 | AL15: =-SUM(AL7:AL14) -> 0.9182958341 | AP15: =SUM(AP7:AP14) -> 1 | AQ15: =-SUM(AQ7:AQ14) -> 1.370950594 | AU15: =SUM(AU7:AU14) -> 1 | AV15: =-SUM(AV7:AV14) -> 1.370950594
A16: 22 | B16: 1129 | C16: 23 | D16: 1158 | K16: 0 | L16: 22 | P16: U= | Q16: =Q15/(LOG(Q4)/LOG(2)) -> 0.2552451879 | V16: U1= | W16: =W15/(LOG(W4)/LOG(2)) -> 0.4771212547 | AA16: U2= | AB16: =AB15/(LOG(AB4)/LOG(2)) -> 0.3010299957 | AF16: U3= | AG16: =AG15/(LOG(AG4)/LOG(2)) -> 0.2345119701 | AK16: U4= | AL16: =AL15/(LOG(AL4)/LOG(2)) -> 0.2764345909 | AP16: U5= | AQ16: =AQ15/(LOG(AQ4)/LOG(2)) -> 0.4126972515 | AU16: U6= | AV16: =AV15/(LOG(AV4)/LOG(2)) -> 0.4126972515
A17: 11 | B17: 1253 | C17: 21 | D17: 1265 | K17: 0 | L17: 12
A18: 22 | B18: 1375 | C18: 23 | D18: 1415 | K18: 0 | L18: 22
A19: 11 | B19: 1538 | C19: 21 | D19: 1558 | K19: 0 | L19: 12 | N19: Total Target Seq
A20: 11 | B20: 1657 | C20: 21 | D20: 1668 | K20: 0 | L20: 12 | N20: =COUNTIF(L7:L67,G3) -> 39 | P20: 10 | Q20: 10 | R20: 11 | S20: 10 | T20: 10 | U20: 10
A21: 11 | B21: 1765 | C21: 21 | D21: 1776 | K21: 0 | L21: 12 | P21: % of reinforcement given in 6 equal intervals based on number of trials
A22: 22 | B22: 1889 | C22: 14 | D22: 1911 | K22: 0 | L22: 21 | P22: %_1 | Q22: %_2 | R22: %_3 | S22: %_4 | T22: %_5 | U22: %_6
A23: 11 | B23: 2033 | C23: 21 | D23: 2075 | K23: 0 | L23: 12 | O23: target sequence | P23: =$G$3 -> 12 | Q23: =$G$3 -> 12 | R23: =$G$3 -> 12 | S23: =$G$3 -> 12 | T23: =$G$3 -> 12 | U23: =$G$3 -> 12
A24: 11 | B24: 2175 | C24: 21 | D24: 2187 | K24: 0 | L24: 12 | O24: total reinforcement | P24: =U8 -> 7 | Q24: =Z8 -> 8 | R24: =AE8 -> 7 | S24: =AJ8 -> 7 | T24: =AO8 -> 5 | U24: =AT8 -> 5
A25: 11 | B25: 2283 | C25: 21 | D25: 2300 | K25: 0 | L25: 12 | O25: % target
A26: 11 | B26: 2400 | C26: 21 | D26: 2415 | K26: 0 | L26: 12 | O26: CCRF
A27: 11 | B27: 2516 | C27: 21 | D27: 2528 | K27: 0 | L27: 12 | O27: % CCRf
A28: 11 | B28: 2625 | C28: 21 | D28: 2639 | K28: 0 | L28: 12 | O28: average response rate | P28: =D16/P20 -> 115.8 | Q28: =(D26-D16)/Q20 -> 125.7 | R28: =(D37-D26)/R20 -> 130.6363636 | S28: =(D47-D37)/S20 -> 129.8 | T28: =(D57-D47)/T20 -> 128 | U28: =(D67-D57)/U20 -> 131.3
A29: 22 | B29: 2751 | C29: 23 | D29: 2784 | K29: 0 | L29: 22
A30: 22 | B30: 2905 | C30: 23 | D30: 2931 | K30: 0 | L30: 22
A31: 22 | B31: 3076 | C31: 14 | D31: 3097 | K31: 0 | L31: 21
A32: 11 | B32: 3204 | C32: 21 | D32: 3241 | K32: 0 | L32: 12
A33: 11 | B33: 3338 | C33: 21 | D33: 3349 | K33: 0 | L33: 12
A34: 11 | B34: 3444 | C34: 21 | D34: 3459 | K34: 0 | L34: 12
A35: 11 | B35: 3559 | C35: 21 | D35: 3572 | K35: 0 | L35: 12
A36: 11 | B36: 3668 | C36: 21 | D36: 3680 | K36: 0 | L36: 12
A37: 22 | B37: 3812 | C37: 23 | D37: 3852 | K37: 0 | L37: 22
A38: 11 | B38: 3961 | C38: 21 | D38: 3973 | K38: 0 | L38: 12
A39: 11 | B39: 4075 | C39: 21 | D39: 4088 | K39: 0 | L39: 12
A40: 11 | B40: 4184 | C40: 21 | D40: 4194 | K40: 0 | L40: 12
A41: 11 | B41: 4294 | C41: 21 | D41: 4309 | K41: 0 | L41: 12
A42: 22 | B42: 4438 | C42: 14 | D42: 4516 | K42: 0 | L42: 21
A43: 11 | B43: 4624 | C43: 12 | D43: 4643 | K43: 0 | L43: 11
A44: 11 | B44: 4754 | C44: 12 | D44: 4808 | K44: 0 | L44: 11
A45: 11 | B45: 4915 | C45: 21 | D45: 4926 | K45: 0 | L45: 12
A46: 11 | B46: 5025 | C46: 21 | D46: 5038 | K46: 0 | L46: 12
A47: 11 | B47: 5137 | C47: 21 | D47: 5150 | K47: 0 | L47: 12
A48: 11 | B48: 5251 | C48: 21 | D48: 5261 | K48: 0 | L48: 12
A49: 22 | B49: 5370 | C49: 23 | D49: 5405 | K49: 0 | L49: 22
A50: 11 | B50: 5510 | C50: 12 | D50: 5536 | K50: 0 | L50: 11
A51: 11 | B51: 5645 | C51: 21 | D51: 5657 | K51: 0 | L51: 12
A52: 11 | B52: 5749 | C52: 21 | D52: 5761 | K52: 0 | L52: 12
A53: 22 | B53: 5867 | C53: 14 | D53: 5890 | K53: 0 | L53: 21
A54: 11 | B54: 5997 | C54: 21 | D54: 6010 | K54: 0 | L54: 12
A55: 22 | B55: 6122 | C55: 14 | D55: 6169 | K55: 0 | L55: 21
A56: 11 | B56: 6278 | C56: 21 | D56: 6296 | K56: 0 | L56: 12
A57: 22 | B57: 6415 | C57: 14 | D57: 6430 | K57: 0 | L57: 21
A58: 11 | B58: 6542 | C58: 12 | D58: 6571 | K58: 0 | L58: 11
A59: 11 | B59: 6697 | C59: 12 | D59: 6725 | K59: 0 | L59: 11
A60: 11 | B60: 6835 | C60: 12 | D60: 6862 | K60: 0 | L60: 11
A61: 11 | B61: 6969 | C61: 21 | D61: 6986 | K61: 0 | L61: 12
A62: 11 | B62: 7082 | C62: 21 | D62: 7099 | K62: 0 | L62: 12
A63: 22 | B63: 7205 | C63: 14 | D63: 7218 | K63: 0 | L63: 21
A64: 22 | B64: 7353 | C64: 23 | D64: 7396 | K64: 0 | L64: 22
A65: 11 | B65: 7506 | C65: 21 | D65: 7518 | K65: 0 | L65: 12
A66: 11 | B66: 7623 | C66: 21 | D66: 7634 | K66: 0 | L66: 12
A67: 11 | B67: 7730 | C67: 21 | D67: 7743 | K67: 1 | L67: 12

Sheet !MC11B10.105
A1: Report for:!MC11B10.105
A2: Date: | B2: <date>
A3: Hen: | B3: <hen> | F3: Correct Sequence | G3: =Start!J2 -> 12 | P3: Total Sequences in Data | Q3: =4994-COUNTBLANK(L7:L5000) -> 55 | V3: Total Sequences in Block Data | W3: =COUNTA(L7:L15) -> 9 | AA3: Total Sequences in Block Data | AB3: =COUNTA(L16:L24) -> 9 | AF3: Total Sequences in Block Data | AG3: =COUNTA(L25:L34) -> 10 | AK3: Total Sequences in Block Data | AL3: =COUNTA(L35:L43) -> 9 | AP3: Total Sequences in Block Data | AQ3: =COUNTA(L44:L52) -> 9 | AU3: Total Sequences in Block Data | AV3: =COUNTA(L53:L61) -> 9
P4: Total Sequences in Summary | Q4: =SUM(O7:O14) -> 55 | V4: Total Sequences in Block Summary | W4: =SUM(U7:U14) -> 9 | AA4: Total Sequences in Block Summary | AB4: =SUM(Z7:Z14) -> 9 | AF4: Total Sequences in Block Summary | AG4: =SUM(AE7:AE14) -> 10 | AK4: Total Sequences in Block Summary | AL4: =SUM(AJ7:AJ14) -> 9 | AP4: Total Sequences in Block Summary | AQ4: =SUM(AO7:AO14) -> 9 | AU4: Total Sequences in Block Summary | AV4: =SUM(AT7:AT14) -> 9
T5: Block 1 | Y5: Block 2 | AD5: Block 3 | AI5: Block 4 | AN5: Block 5 | AS5: Block 6
A6: Sequence Component 1 | B6: Time 1 | C6: Sequence Component 2 | D6: Time 2 | E6: Sequence Component 3 | F6: Time 3 | G6: Sequence Component 4 | H6: Time 4 | I6: Sequence Component 5 | J6: Time 5 | K6: Correct? 0=No 1=Yes | L6: Sequence | N6: Frequency | P6: Relative Frequency | Q6: Variability | T6: Frequency | V6: Relative Frequency | W6: Variability | Y6: Frequency | AA6: Relative Frequency | AB6: Variability | AD6: Frequency | AF6: Relative Frequency | AG6: Variability | AI6: Frequency | AK6: Relative Frequency | AL6: Variability | AN6: Frequency | AP6: Relative Frequency | AQ6: Variability | AS6: Frequency | AU6: Relative Frequency | AV6: Variability
A7: 11 | B7: 20 | C7: 12 | D7: 31 | K7: 0 | L7: 11 | N7: 11 | O7: =COUNTIF($L$7:$L$500,N7) -> 1 | P7: =O7/$Q$4 -> 0.01818181818 | Q7: =IF(P7=0,0,(P7*((LOG(P7))/LOG(2)))) -> -0.1051156312 | T7: =N7 -> 11 | U7: =COUNTIF(L7:L15,T7) -> 1 | V7: =U7/(W4-U8) -> 0.1666666667 | W7: =IF(V7=0,0,(V7*((LOG(V7))/LOG(2)))) -> -0.4308270835 | Y7: =N7 -> 11 | Z7: =COUNTIF(L16:L24,Y7) -> 0 | AA7: =Z7/(AB4-Z8) ->  | AB7: =IF(AA7=0,0,(AA7*((LOG(AA7))/LOG(2)))) ->  | AD7: =N7 -> 11 | AE7: =COUNTIF(L25:L34,AD7) -> 0 | AF7: =AE7/(AG4-AE8) -> 0 | AG7: =IF(AF7=0,0,(AF7*((LOG(AF7))/LOG(2)))) -> 0 | AI7: =N7 -> 11 | AJ7: =COUNTIF(L35:L43,AI7) -> 0 | AK7: =AJ7/(AL4-AJ8) -> 0 | AL7: =IF(AK7=0,0,(AK7*((LOG(AK7))/LOG(2)))) -> 0 | AN7: =N7 -> 11 | AO7: =COUNTIF(L44:L52,AN7) -> 0 | AP7: =AO7/(AQ4-AO8) -> 0 | AQ7: =IF(AP7=0,0,(AP7*((LOG(AP7))/LOG(2)))) -> 0 | AS7: =N7 -> 11 | AT7: =COUNTIF(L53:L61,AS7) -> 0 | AU7: =AT7/(AV4-AT8) -> 0 | AV7: =IF(AU7=0,0,(AU7*((LOG(AU7))/LOG(2)))) -> 0
A8: 11 | B8: 136 | C8: 21 | D8: 156 | K8: 0 | L8: 12 | N8: 12 | O8: =COUNTIF($L$7:$L$500,N8) -> 39 | P8: =O8/$Q$4 -> 0.7090909091 | Q8: =IF(P8=0,0,(P8*((LOG(P8))/LOG(2)))) -> -0.3516789508 | T8: =N8 -> 12 | U8: =COUNTIF(L7:L15,T8) -> 3 | Y8: =N8 -> 12 | Z8: =COUNTIF(L16:L24,Y8) -> 9 | AD8: =N8 -> 12 | AE8: =COUNTIF(L25:L34,AD8) -> 6 | AI8: =N8 -> 12 | AJ8: =COUNTIF(L35:L43,AI8) -> 7 | AN8: =N8 -> 12 | AO8: =COUNTIF(L44:L52,AN8) -> 8 | AS8: =N8 -> 12 | AT8: =COUNTIF(L53:L61,AS8) -> 6
A9: 11 | B9: 251 | C9: 21 | D9: 286 | K9: 0 | L9: 12 | N9: 21 | O9: =COUNTIF($L$7:$L$500,N9) -> 2 | P9: =O9/$Q$4 -> 0.03636363636 | Q9: =IF(P9=0,0,(P9*((LOG(P9))/LOG(2)))) -> -0.1738676259 | T9: =N9 -> 21 | U9: =COUNTIF(L7:L15,T9) -> 0 | V9: =U9/(W4-U8) -> 0 | W9: =IF(V9=0,0,(V9*((LOG(V9))/LOG(2)))) -> 0 | Y9: =N9 -> 21 | Z9: =COUNTIF(L16:L24,Y9) -> 0 | AA9: =Z9/(AB4-Z8) ->  | AB9: =IF(AA9=0,0,(AA9*((LOG(AA9))/LOG(2)))) ->  | AD9: =N9 -> 21 | AE9: =COUNTIF(L25:L34,AD9) -> 0 | AF9: =AE9/(AG4-AE8) -> 0 | AG9: =IF(AF9=0,0,(AF9*((LOG(AF9))/LOG(2)))) -> 0 | AI9: =N9 -> 21 | AJ9: =COUNTIF(L35:L43,AI9) -> 0 | AK9: =AJ9/(AL4-AJ8) -> 0 | AL9: =IF(AK9=0,0,(AK9*((LOG(AK9))/LOG(2)))) -> 0 | AN9: =N9 -> 21 | AO9: =COUNTIF(L44:L52,AN9) -> 1 | AP9: =AO9/(AQ4-AO8) -> 1 | AQ9: =IF(AP9=0,0,(AP9*((LOG(AP9))/LOG(2)))) -> 0 | AS9: =N9 -> 21 | AT9: =COUNTIF(L53:L61,AS9) -> 1 | AU9: =AT9/(AV4-AT8) -> 0.3333333333 | AV9: =IF(AU9=0,0,(AU9*((LOG(AU9))/LOG(2)))) -> -0.5283208336
A10: 22 | B10: 389 | C10: 23 | D10: 411 | K10: 0 | L10: 22 | N10: 22 | O10: =COUNTIF($L$7:$L$500,N10) -> 13 | P10: =O10/$Q$4 -> 0.2363636364 | Q10: =IF(P10=0,0,(P10*((LOG(P10))/LOG(2)))) -> -0.4918538171 | T10: =N10 -> 22 | U10: =COUNTIF(L7:L15,T10) -> 5 | V10: =U10/(W4-U8) -> 0.8333333333 | W10: =IF(V10=0,0,(V10*((LOG(V10))/LOG(2)))) -> -0.2191953382 | Y10: =N10 -> 22 | Z10: =COUNTIF(L16:L24,Y10) -> 0 | AA10: =Z10/(AB4-Z8) ->  | AB10: =IF(AA10=0,0,(AA10*((LOG(AA10))/LOG(2)))) ->  | AD10: =N10 -> 22 | AE10: =COUNTIF(L25:L34,AD10) -> 4 | AF10: =AE10/(AG4-AE8) -> 1 | AG10: =IF(AF10=0,0,(AF10*((LOG(AF10))/LOG(2)))) -> 0 | AI10: =N10 -> 22 | AJ10: =COUNTIF(L35:L43,AI10) -> 2 | AK10: =AJ10/(AL4-AJ8) -> 1 | AL10: =IF(AK10=0,0,(AK10*((LOG(AK10))/LOG(2)))) -> 0 | AN10: =N10 -> 22 | AO10: =COUNTIF(L44:L52,AN10) -> 0 | AP10: =AO10/(AQ4-AO8) -> 0 | AQ10: =IF(AP10=0,0,(AP10*((LOG(AP10))/LOG(2)))) -> 0 | AS10: =N10 -> 22 | AT10: =COUNTIF(L53:L61,AS10) -> 2 | AU10: =AT10/(AV4-AT8) -> 0.6666666667 | AV10: =IF(AU10=0,0,(AU10*((LOG(AU10))/LOG(2)))) -> -0.3899750005
A11: 22 | B11: 526 | C11: 23 | D11: 552 | K11: 0 | L11: 22 | T11: =N11 -> 0 | U11: =COUNTIF(L7:L15,T11) -> 0 | V11: =U11/(W4-U8) -> 0 | W11: =IF(V11=0,0,(V11*((LOG(V11))/LOG(2)))) -> 0 | Y11: =N11 -> 0 | Z11: =COUNTIF(L16:L24,Y11) -> 0 | AA11: =Z11/(AB4-Z8) ->  | AB11: =IF(AA11=0,0,(AA11*((LOG(AA11))/LOG(2)))) ->  | AD11: =N11 -> 0 | AE11: =COUNTIF(L25:L34,AD11) -> 0 | AF11: =AE11/(AG4-AE8) -> 0 | AG11: =IF(AF11=0,0,(AF11*((LOG(AF11))/LOG(2)))) -> 0 | AI11: =N11 -> 0 | AJ11: =COUNTIF(L35:L43,AI11) -> 0 | AK11: =AJ11/(AL4-AJ8) -> 0 | AL11: =IF(AK11=0,0,(AK11*((LOG(AK11))/LOG(2)))) -> 0 | AN11: =N11 -> 0 | AO11: =COUNTIF(L44:L52,AN11) -> 0 | AP11: =AO11/(AQ4-AO8) -> 0 | AQ11: =IF(AP11=0,0,(AP11*((LOG(AP11))/LOG(2)))) -> 0 | AS11: =N11 -> 0 | AT11: =COUNTIF(L53:L61,AS11) -> 0 | AU11: =AT11/(AV4-AT8) -> 0 | AV11: =IF(AU11=0,0,(AU11*((LOG(AU11))/LOG(2)))) -> 0
A12: 22 | B12: 667 | C12: 23 | D12: 696 | K12: 0 | L12: 22 | T12: =N12 -> 0 | U12: =COUNTIF(L7:L15,T12) -> 0 | V12: =U12/(W4-U8) -> 0 | W12: =IF(V12=0,0,(V12*((LOG(V12))/LOG(2)))) -> 0 | Y12: =N12 -> 0 | Z12: =COUNTIF(L16:L24,Y12) -> 0 | AA12: =Z12/(AB4-Z8) ->  | AB12: =IF(AA12=0,0,(AA12*((LOG(AA12))/LOG(2)))) ->  | AD12: =N12 -> 0 | AE12: =COUNTIF(L25:L34,AD12) -> 0 | AF12: =AE12/(AG4-AE8) -> 0 | AG12: =IF(AF12=0,0,(AF12*((LOG(AF12))/LOG(2)))) -> 0 | AI12: =N12 -> 0 | AJ12: =COUNTIF(L35:L43,AI12) -> 0 | AK12: =AJ12/(AL4-AJ8) -> 0 | AL12: =IF(AK12=0,0,(AK12*((LOG(AK12))/LOG(2)))) -> 0 | AN12: =N12 -> 0 | AO12: =COUNTIF(L44:L52,AN12) -> 0 | AP12: =AO12/(AQ4-AO8) -> 0 | AQ12: =IF(AP12=0,0,(AP12*((LOG(AP12))/LOG(2)))) -> 0 | AS12: =N12 -> 0 | AT12: =COUNTIF(L53:L61,AS12) -> 0 | AU12: =AT12/(AV4-AT8) -> 0 | AV12: =IF(AU12=0,0,(AU12*((LOG(AU12))/LOG(2)))) -> 0
A13: 11 | B13: 802 | C13: 21 | D13: 811 | K13: 0 | L13: 12 | T13: =N13 -> 0 | U13: =COUNTIF(L7:L15,T13) -> 0 | V13: =U13/(W4-U8) -> 0 | W13: =IF(V13=0,0,(V13*((LOG(V13))/LOG(2)))) -> 0 | Y13: =N13 -> 0 | Z13: =COUNTIF(L16:L24,Y13) -> 0 | AA13: =Z13/(AB4-Z8) ->  | AB13: =IF(AA13=0,0,(AA13*((LOG(AA13))/LOG(2)))) ->  | AD13: =N13 -> 0 | AE13: =COUNTIF(L25:L34,AD13) -> 0 | AF13: =AE13/(AG4-AE8) -> 0 | AG13: =IF(AF13=0,0,(AF13*((LOG(AF13))/LOG(2)))) -> 0 | AI13: =N13 -> 0 | AJ13: =COUNTIF(L35:L43,AI13) -> 0 | AK13: =AJ13/(AL4-AJ8) -> 0 | AL13: =IF(AK13=0,0,(AK13*((LOG(AK13))/LOG(2)))) -> 0 | AN13: =N13 -> 0 | AO13: =COUNTIF(L44:L52,AN13) -> 0 | AP13: =AO13/(AQ4-AO8) -> 0 | AQ13: =IF(AP13=0,0,(AP13*((LOG(AP13))/LOG(2)))) -> 0 | AS13: =N13 -> 0 | AT13: =COUNTIF(L53:L61,AS13) -> 0 | AU13: =AT13/(AV4-AT8) -> 0 | AV13: =IF(AU13=0,0,(AU13*((LOG(AU13))/LOG(2)))) -> 0
A14: 22 | B14: 923 | C14: 23 | D14: 953 | K14: 0 | L14: 22 | T14: =N14 -> 0 | U14: =COUNTIF(L7:L15,T14) -> 0 | V14: =U14/(W4-U8) -> 0 | W14: =IF(V14=0,0,(V14*((LOG(V14))/LOG(2)))) -> 0 | Y14: =N14 -> 0 | Z14: =COUNTIF(L16:L24,Y14) -> 0 | AA14: =Z14/(AB4-Z8) ->  | AB14: =IF(AA14=0,0,(AA14*((LOG(AA14))/LOG(2)))) ->  | AD14: =N14 -> 0 | AE14: =COUNTIF(L25:L34,AD14) -> 0 | AF14: =AE14/(AG4-AE8) -> 0 | AG14: =IF(AF14=0,0,(AF14*((LOG(AF14))/LOG(2)))) -> 0 | AI14: =N14 -> 0 | AJ14: =COUNTIF(L35:L43,AI14) -> 0 | AK14: =AJ14/(AL4-AJ8) -> 0 | AL14: =IF(AK14=0,0,(AK14*((LOG(AK14))/LOG(2)))) -> 0 | AN14: =N14 -> 0 | AO14: =COUNTIF(L44:L52,AN14) -> 0 | AP14: =AO14/(AQ4-AO8) -> 0 | AQ14: =IF(AP14=0,0,(AP14*((LOG(AP14))/LOG(2)))) -> 0 | AS14: =N14 -> 0 | AT14: =COUNTIF(L53:L61,AS14) -> 0 | AU14: =AT14/(AV4-AT8) -> 0 | AV14: =IF(AU14=0,0,(AU14*((LOG(AU14))/LOG(2)))) -> 0
A15: 22 | B15: 1069 | C15: 23 | D15: 1096 | K15: 0 | L15: 22 | P15: =SUM(P7:P14) -> 1 | Q15: =-SUM(Q7:Q14) -> 1.122516025 | V15: =SUM(V7:V14) -> 1 | W15: =-SUM(W7:W14) -> 0.6500224216 | AA15: =SUM(AA7:AA14) ->  | AB15: =-SUM(AB7:AB14) ->  | AF15: =SUM(AF7:AF14) -> 1 | AG15: =-SUM(AG7:AG14) -> 0 | AK15: =SUM(AK7:AK14) -> 1 | AL15: =-SUM(AL7:AL14) -> 0 | AP15: =SUM(AP7:AP14) -> 1 | AQ15: =-SUM(AQ7:AQ14) -> 0 | AU15: =SUM(AU7:AU14) -> 1 | AV15: =-SUM(AV7:AV14) -> 0.9182958341
A16: 11 | B16: 1209 | C16: 21 | D16: 1219 | K16: 0 | L16: 12 | P16: U= | Q16: =Q15/(LOG(Q4)/LOG(2)) -> 0.1941612494 | V16: U1= | W16: =W15/(LOG(W4)/LOG(2)) -> 0.2050592432 | AA16: U2= | AB16: =AB15/(LOG(AB4)/LOG(2)) ->  | AF16: U3= | AG16: =AG15/(LOG(AG4)/LOG(2)) -> 0 | AK16: U4= | AL16: =AL15/(LOG(AL4)/LOG(2)) -> 0 | AP16: U5= | AQ16: =AQ15/(LOG(AQ4)/LOG(2)) -> 0 | AU16: U6= | AV16: =AV15/(LOG(AV4)/LOG(2)) -> 0.2896900821
A17: 11 | B17: 1331 | C17: 21 | D17: 1346 | K17: 0 | L17: 12
A18: 11 | B18: 1447 | C18: 21 | D18: 1460 | K18: 0 | L18: 12
A19: 11 | B19: 1565 | C19: 21 | D19: 1581 | K19: 0 | L19: 12 | N19: Total Target Seq
A20: 11 | B20: 1690 | C20: 21 | D20: 1701 | K20: 0 | L20: 12 | N20: =COUNTIF(L7:L61,G3) -> 39 | P20: 9 | Q20: 9 | R20: 10 | S20: 9 | T20: 9 | U20: 9
A21: 11 | B21: 1804 | C21: 21 | D21: 1838 | K21: 0 | L21: 12 | P21: % of reinforcement given in 6 equal intervals based on number of trials
A22: 11 | B22: 1941 | C22: 21 | D22: 1952 | K22: 0 | L22: 12 | P22: %_1 | Q22: %_2 | R22: %_3 | S22: %_4 | T22: %_5 | U22: %_6
A23: 11 | B23: 2050 | C23: 21 | D23: 2060 | K23: 0 | L23: 12 | O23: target sequence | P23: =$G$3 -> 12 | Q23: =$G$3 -> 12 | R23: =$G$3 -> 12 | S23: =$G$3 -> 12 | T23: =$G$3 -> 12 | U23: =$G$3 -> 12
A24: 11 | B24: 2152 | C24: 21 | D24: 2164 | K24: 0 | L24: 12 | O24: total reinforcement | P24: =U8 -> 3 | Q24: =Z8 -> 9 | R24: =AE8 -> 6 | S24: =AJ8 -> 7 | T24: =AO8 -> 8 | U24: =AT8 -> 6
A25: 22 | B25: 2272 | C25: 23 | D25: 2300 | K25: 0 | L25: 22 | O25: % target
A26: 22 | B26: 2414 | C26: 23 | D26: 2461 | K26: 0 | L26: 22 | O26: CCRF
A27: 11 | B27: 2566 | C27: 21 | D27: 2579 | K27: 0 | L27: 12 | O27: % CCRf
A28: 11 | B28: 2680 | C28: 21 | D28: 2695 | K28: 0 | L28: 12 | O28: average response rate | P28: =D15/P20 -> 121.7777778 | Q28: =(D24-D15)/Q20 -> 118.6666667 | R28: =(D34-D24)/R20 -> 128.8 | S28: =(D43-D34)/S20 -> 127.6666667 | T28: =(D52-D43)/T20 -> 121.2222222 | U28: =(D61-D52)/U20 -> 124.8888889
A29: 11 | B29: 2792 | C29: 21 | D29: 2806 | K29: 0 | L29: 12
A30: 11 | B30: 2903 | C30: 21 | D30: 2915 | K30: 0 | L30: 12
A31: 22 | B31: 3022 | C31: 23 | D31: 3059 | K31: 0 | L31: 22
A32: 22 | B32: 3176 | C32: 23 | D32: 3221 | K32: 0 | L32: 22
A33: 11 | B33: 3329 | C33: 21 | D33: 3341 | K33: 0 | L33: 12
A34: 11 | B34: 3440 | C34: 21 | D34: 3452 | K34: 0 | L34: 12
A35: 11 | B35: 3550 | C35: 21 | D35: 3563 | K35: 0 | L35: 12
A36: 11 | B36: 3661 | C36: 21 | D36: 3704 | K36: 0 | L36: 12
A37: 11 | B37: 3800 | C37: 21 | D37: 3840 | K37: 0 | L37: 12
A38: 11 | B38: 3937 | C38: 21 | D38: 3946 | K38: 0 | L38: 12
A39: 11 | B39: 4045 | C39: 21 | D39: 4070 | K39: 0 | L39: 12
A40: 22 | B40: 4181 | C40: 23 | D40: 4203 | K40: 0 | L40: 22
A41: 11 | B41: 4310 | C41: 21 | D41: 4324 | K41: 0 | L41: 12
A42: 11 | B42: 4421 | C42: 21 | D42: 4433 | K42: 0 | L42: 12
A43: 22 | B43: 4558 | C43: 23 | D43: 4601 | K43: 0 | L43: 22
A44: 11 | B44: 4708 | C44: 21 | D44: 4735 | K44: 0 | L44: 12
A45: 11 | B45: 4835 | C45: 21 | D45: 4851 | K45: 0 | L45: 12
A46: 11 | B46: 4949 | C46: 21 | D46: 4962 | K46: 0 | L46: 12
A47: 11 | B47: 5061 | C47: 21 | D47: 5075 | K47: 0 | L47: 12
A48: 22 | B48: 5186 | C48: 14 | D48: 5215 | K48: 0 | L48: 21
A49: 11 | B49: 5315 | C49: 21 | D49: 5356 | K49: 0 | L49: 12
A50: 11 | B50: 5455 | C50: 21 | D50: 5467 | K50: 0 | L50: 12
A51: 11 | B51: 5565 | C51: 21 | D51: 5583 | K51: 0 | L51: 12
A52: 11 | B52: 5679 | C52: 21 | D52: 5692 | K52: 0 | L52: 12
A53: 11 | B53: 5793 | C53: 21 | D53: 5803 | K53: 0 | L53: 12
A54: 22 | B54: 5912 | C54: 23 | D54: 5953 | K54: 0 | L54: 22
A55: 22 | B55: 6084 | C55: 23 | D55: 6111 | K55: 0 | L55: 22
A56: 11 | B56: 6214 | C56: 21 | D56: 6227 | K56: 0 | L56: 12
A57: 22 | B57: 6339 | C57: 14 | D57: 6364 | K57: 0 | L57: 21
A58: 11 | B58: 6470 | C58: 21 | D58: 6481 | K58: 0 | L58: 12
A59: 11 | B59: 6583 | C59: 21 | D59: 6597 | K59: 0 | L59: 12
A60: 11 | B60: 6695 | C60: 21 | D60: 6704 | K60: 0 | L60: 12
A61: 11 | B61: 6805 | C61: 21 | D61: 6816 | K61: 1 | L61: 12

Sheet !MC12A10.105
A1: Report for:!MC12A10.105
A2: Date: | B2: <date>
A3: Hen: | B3: <hen> | F3: Correct Sequence | G3: =Start!J2 -> 12 | P3: Total Sequences in Data | Q3: =4994-COUNTBLANK(L7:L5000) -> 56 | V3: Total Sequences in Block Data | W3: =COUNTA(L7:L15) -> 9 | AA3: Total Sequences in Block Data | AB3: =COUNTA(L16:L25) -> 10 | AF3: Total Sequences in Block Data | AG3: =COUNTA(L26:L34) -> 9 | AK3: Total Sequences in Block Data | AL3: =COUNTA(L35:L43) -> 9 | AP3: Total Sequences in Block Data | AQ3: =COUNTA(L44:L53) -> 10 | AU3: Total Sequences in Block Data | AV3: =COUNTA(L54:L62) -> 9
P4: Total Sequences in Summary | Q4: =SUM(O7:O14) -> 56 | V4: Total Sequences in Block Summary | W4: =SUM(U7:U14) -> 9 | AA4: Total Sequences in Block Summary | AB4: =SUM(Z7:Z14) -> 10 | AF4: Total Sequences in Block Summary | AG4: =SUM(AE7:AE14) -> 9 | AK4: Total Sequences in Block Summary | AL4: =SUM(AJ7:AJ14) -> 9 | AP4: Total Sequences in Block Summary | AQ4: =SUM(AO7:AO14) -> 10 | AU4: Total Sequences in Block Summary | AV4: =SUM(AT7:AT14) -> 9
T5: Block 1 | Y5: Block 2 | AD5: Block 3 | AI5: Block 4 | AN5: Block 5 | AS5: Block 6
A6: Sequence Component 1 | B6: Time 1 | C6: Sequence Component 2 | D6: Time 2 | E6: Sequence Component 3 | F6: Time 3 | G6: Sequence Component 4 | H6: Time 4 | I6: Sequence Component 5 | J6: Time 5 | K6: Correct? 0=No 1=Yes | L6: Sequence | N6: Frequency | P6: Relative Frequency | Q6: Variability | T6: Frequency | V6: Relative Frequency | W6: Variability | Y6: Frequency | AA6: Relative Frequency | AB6: Variability | AD6: Frequency | AF6: Relative Frequency | AG6: Variability | AI6: Frequency | AK6: Relative Frequency | AL6: Variability | AN6: Frequency | AP6: Relative Frequency | AQ6: Variability | AS6: Frequency | AU6: Relative Frequency | AV6: Variability
A7: 22 | B7: 14 | C7: 14 | D7: 33 | K7: 0 | L7: 21 | N7: 11 | O7: =COUNTIF($L$7:$L$500,N7) -> 0 | P7: =O7/$Q$4 -> 0 | Q7: =IF(P7=0,0,(P7*((LOG(P7))/LOG(2)))) -> 0 | T7: =N7 -> 11 | U7: =COUNTIF(L7:L15,T7) -> 0 | V7: =U7/(W4-U8) -> 0 | W7: =IF(V7=0,0,(V7*((LOG(V7))/LOG(2)))) -> 0 | Y7: =N7 -> 11 | Z7: =COUNTIF(L16:L25,Y7) -> 0 | AA7: =Z7/(AB4-Z8) -> 0 | AB7: =IF(AA7=0,0,(AA7*((LOG(AA7))/LOG(2)))) -> 0 | AD7: =N7 -> 11 | AE7: =COUNTIF(L26:L34,AD7) -> 0 | AF7: =AE7/(AG4-AE8) -> 0 | AG7: =IF(AF7=0,0,(AF7*((LOG(AF7))/LOG(2)))) -> 0 | AI7: =N7 -> 11 | AJ7: =COUNTIF(L35:L43,AI7) -> 0 | AK7: =AJ7/(AL4-AJ8) -> 0 | AL7: =IF(AK7=0,0,(AK7*((LOG(AK7))/LOG(2)))) -> 0 | AN7: =N7 -> 11 | AO7: =COUNTIF(L44:L53,AN7) -> 0 | AP7: =AO7/(AQ4-AO8) -> 0 | AQ7: =IF(AP7=0,0,(AP7*((LOG(AP7))/LOG(2)))) -> 0 | AS7: =N7 -> 11 | AT7: =COUNTIF(L54:L62,AS7) -> 0 | AU7: =AT7/(AV4-AT8) -> 0 | AV7: =IF(AU7=0,0,(AU7*((LOG(AU7))/LOG(2)))) -> 0
A8: 11 | B8: 138 | C8: 21 | D8: 149 | K8: 0 | L8: 12 | N8: 12 | O8: =COUNTIF($L$7:$L$500,N8) -> 39 | P8: =O8/$Q$4 -> 0.6964285714 | Q8: =IF(P8=0,0,(P8*((LOG(P8))/LOG(2)))) -> -0.3635027754 | T8: =N8 -> 12 | U8: =COUNTIF(L7:L15,T8) -> 6 | Y8: =N8 -> 12 | Z8: =COUNTIF(L16:L25,Y8) -> 6 | AD8: =N8 -> 12 | AE8: =COUNTIF(L26:L34,AD8) -> 8 | AI8: =N8 -> 12 | AJ8: =COUNTIF(L35:L43,AI8) -> 6 | AN8: =N8 -> 12 | AO8: =COUNTIF(L44:L53,AN8) -> 6 | AS8: =N8 -> 12 | AT8: =COUNTIF(L54:L62,AS8) -> 7
A9: 22 | B9: 248 | C9: 14 | D9: 282 | K9: 0 | L9: 21 | N9: 21 | O9: =COUNTIF($L$7:$L$500,N9) -> 7 | P9: =O9/$Q$4 -> 0.125 | Q9: =IF(P9=0,0,(P9*((LOG(P9))/LOG(2)))) -> -0.375 | T9: =N9 -> 21 | U9: =COUNTIF(L7:L15,T9) -> 2 | V9: =U9/(W4-U8) -> 0.6666666667 | W9: =IF(V9=0,0,(V9*((LOG(V9))/LOG(2)))) -> -0.3899750005 | Y9: =N9 -> 21 | Z9: =COUNTIF(L16:L25,Y9) -> 2 | AA9: =Z9/(AB4-Z8) -> 0.5 | AB9: =IF(AA9=0,0,(AA9*((LOG(AA9))/LOG(2)))) -> -0.5 | AD9: =N9 -> 21 | AE9: =COUNTIF(L26:L34,AD9) -> 0 | AF9: =AE9/(AG4-AE8) -> 0 | AG9: =IF(AF9=0,0,(AF9*((LOG(AF9))/LOG(2)))) -> 0 | AI9: =N9 -> 21 | AJ9: =COUNTIF(L35:L43,AI9) -> 0 | AK9: =AJ9/(AL4-AJ8) -> 0 | AL9: =IF(AK9=0,0,(AK9*((LOG(AK9))/LOG(2)))) -> 0 | AN9: =N9 -> 21 | AO9: =COUNTIF(L44:L53,AN9) -> 2 | AP9: =AO9/(AQ4-AO8) -> 0.5 | AQ9: =IF(AP9=0,0,(AP9*((LOG(AP9))/LOG(2)))) -> -0.5 | AS9: =N9 -> 21 | AT9: =COUNTIF(L54:L62,AS9) -> 1 | AU9: =AT9/(AV4-AT8) -> 0.5 | AV9: =IF(AU9=0,0,(AU9*((LOG(AU9))/LOG(2)))) -> -0.5
A10: 11 | B10: 388 | C10: 21 | D10: 402 | K10: 0 | L10: 12 | N10: 22 | O10: =COUNTIF($L$7:$L$500,N10) -> 10 | P10: =O10/$Q$4 -> 0.1785714286 | Q10: =IF(P10=0,0,(P10*((LOG(P10))/LOG(2)))) -> -0.4438262191 | T10: =N10 -> 22 | U10: =COUNTIF(L7:L15,T10) -> 1 | V10: =U10/(W4-U8) -> 0.3333333333 | W10: =IF(V10=0,0,(V10*((LOG(V10))/LOG(2)))) -> -0.5283208336 | Y10: =N10 -> 22 | Z10: =COUNTIF(L16:L25,Y10) -> 2 | AA10: =Z10/(AB4-Z8) -> 0.5 | AB10: =IF(AA10=0,0,(AA10*((LOG(AA10))/LOG(2)))) -> -0.5 | AD10: =N10 -> 22 | AE10: =COUNTIF(L26:L34,AD10) -> 1 | AF10: =AE10/(AG4-AE8) -> 1 | AG10: =IF(AF10=0,0,(AF10*((LOG(AF10))/LOG(2)))) -> 0 | AI10: =N10 -> 22 | AJ10: =COUNTIF(L35:L43,AI10) -> 3 | AK10: =AJ10/(AL4-AJ8) -> 1 | AL10: =IF(AK10=0,0,(AK10*((LOG(AK10))/LOG(2)))) -> 0 | AN10: =N10 -> 22 | AO10: =COUNTIF(L44:L53,AN10) -> 2 | AP10: =AO10/(AQ4-AO8) -> 0.5 | AQ10: =IF(AP10=0,0,(AP10*((LOG(AP10))/LOG(2)))) -> -0.5 | AS10: =N10 -> 22 | AT10: =COUNTIF(L54:L62,AS10) -> 1 | AU10: =AT10/(AV4-AT8) -> 0.5 | AV10: =IF(AU10=0,0,(AU10*((LOG(AU10))/LOG(2)))) -> -0.5
A11: 11 | B11: 494 | C11: 21 | D11: 508 | K11: 0 | L11: 12 | T11: =N11 -> 0 | U11: =COUNTIF(L7:L15,T11) -> 0 | V11: =U11/(W4-U8) -> 0 | W11: =IF(V11=0,0,(V11*((LOG(V11))/LOG(2)))) -> 0 | Y11: =N11 -> 0 | Z11: =COUNTIF(L16:L25,Y11) -> 0 | AA11: =Z11/(AB4-Z8) -> 0 | AB11: =IF(AA11=0,0,(AA11*((LOG(AA11))/LOG(2)))) -> 0 | AD11: =N11 -> 0 | AE11: =COUNTIF(L26:L34,AD11) -> 0 | AF11: =AE11/(AG4-AE8) -> 0 | AG11: =IF(AF11=0,0,(AF11*((LOG(AF11))/LOG(2)))) -> 0 | AI11: =N11 -> 0 | AJ11: =COUNTIF(L35:L43,AI11) -> 0 | AK11: =AJ11/(AL4-AJ8) -> 0 | AL11: =IF(AK11=0,0,(AK11*((LOG(AK11))/LOG(2)))) -> 0 | AN11: =N11 -> 0 | AO11: =COUNTIF(L44:L53,AN11) -> 0 | AP11: =AO11/(AQ4-AO8) -> 0 | AQ11: =IF(AP11=0,0,(AP11*((LOG(AP11))/LOG(2)))) -> 0 | AS11: =N11 -> 0 | AT11: =COUNTIF(L54:L62,AS11) -> 0 | AU11: =AT11/(AV4-AT8) -> 0 | AV11: =IF(AU11=0,0,(AU11*((LOG(AU11))/LOG(2)))) -> 0
A12: 22 | B12: 613 | C12: 23 | D12: 639 | K12: 0 | L12: 22 | T12: =N12 -> 0 | U12: =COUNTIF(L7:L15,T12) -> 0 | V12: =U12/(W4-U8) -> 0 | W12: =IF(V12=0,0,(V12*((LOG(V12))/LOG(2)))) -> 0 | Y12: =N12 -> 0 | Z12: =COUNTIF(L16:L25,Y12) -> 0 | AA12: =Z12/(AB4-Z8) -> 0 | AB12: =IF(AA12=0,0,(AA12*((LOG(AA12))/LOG(2)))) -> 0 | AD12: =N12 -> 0 | AE12: =COUNTIF(L26:L34,AD12) -> 0 | AF12: =AE12/(AG4-AE8) -> 0 | AG12: =IF(AF12=0,0,(AF12*((LOG(AF12))/LOG(2)))) -> 0 | AI12: =N12 -> 0 | AJ12: =COUNTIF(L35:L43,AI12) -> 0 | AK12: =AJ12/(AL4-AJ8) -> 0 | AL12: =IF(AK12=0,0,(AK12*((LOG(AK12))/LOG(2)))) -> 0 | AN12: =N12 -> 0 | AO12: =COUNTIF(L44:L53,AN12) -> 0 | AP12: =AO12/(AQ4-AO8) -> 0 | AQ12: =IF(AP12=0,0,(AP12*((LOG(AP12))/LOG(2)))) -> 0 | AS12: =N12 -> 0 | AT12: =COUNTIF(L54:L62,AS12) -> 0 | AU12: =AT12/(AV4-AT8) -> 0 | AV12: =IF(AU12=0,0,(AU12*((LOG(AU12))/LOG(2)))) -> 0
A13: 11 | B13: 743 | C13: 21 | D13: 753 | K13: 0 | L13: 12 | T13: =N13 -> 0 | U13: =COUNTIF(L7:L15,T13) -> 0 | V13: =U13/(W4-U8) -> 0 | W13: =IF(V13=0,0,(V13*((LOG(V13))/LOG(2)))) -> 0 | Y13: =N13 -> 0 | Z13: =COUNTIF(L16:L25,Y13) -> 0 | AA13: =Z13/(AB4-Z8) -> 0 | AB13: =IF(AA13=0,0,(AA13*((LOG(AA13))/LOG(2)))) -> 0 | AD13: =N13 -> 0 | AE13: =COUNTIF(L26:L34,AD13) -> 0 | AF13: =AE13/(AG4-AE8) -> 0 | AG13: =IF(AF13=0,0,(AF13*((LOG(AF13))/LOG(2)))) -> 0 | AI13: =N13 -> 0 | AJ13: =COUNTIF(L35:L43,AI13) -> 0 | AK13: =AJ13/(AL4-AJ8) -> 0 | AL13: =IF(AK13=0,0,(AK13*((LOG(AK13))/LOG(2)))) -> 0 | AN13: =N13 -> 0 | AO13: =COUNTIF(L44:L53,AN13) -> 0 | AP13: =AO13/(AQ4-AO8) -> 0 | AQ13: =IF(AP13=0,0,(AP13*((LOG(AP13))/LOG(2)))) -> 0 | AS13: =N13 -> 0 | AT13: =COUNTIF(L54:L62,AS13) -> 0 | AU13: =AT13/(AV4-AT8) -> 0 | AV13: =IF(AU13=0,0,(AU13*((LOG(AU13))/LOG(2)))) -> 0
A14: 11 | B14: 853 | C14: 21 | D14: 866 | K14: 0 | L14: 12 | T14: =N14 -> 0 | U14: =COUNTIF(L7:L15,T14) -> 0 | V14: =U14/(W4-U8) -> 0 | W14: =IF(V14=0,0,(V14*((LOG(V14))/LOG(2)))) -> 0 | Y14: =N14 -> 0 | Z14: =COUNTIF(L16:L25,Y14) -> 0 | AA14: =Z14/(AB4-Z8) -> 0 | AB14: =IF(AA14=0,0,(AA14*((LOG(AA14))/LOG(2)))) -> 0 | AD14: =N14 -> 0 | AE14: =COUNTIF(L26:L34,AD14) -> 0 | AF14: =AE14/(AG4-AE8) -> 0 | AG14: =IF(AF14=0,0,(AF14*((LOG(AF14))/LOG(2)))) -> 0 | AI14: =N14 -> 0 | AJ14: =COUNTIF(L35:L43,AI14) -> 0 | AK14: =AJ14/(AL4-AJ8) -> 0 | AL14: =IF(AK14=0,0,(AK14*((LOG(AK14))/LOG(2)))) -> 0 | AN14: =N14 -> 0 | AO14: =COUNTIF(L44:L53,AN14) -> 0 | AP14: =AO14/(AQ4-AO8) -> 0 | AQ14: =IF(AP14=0,0,(AP14*((LOG(AP14))/LOG(2)))) -> 0 | AS14: =N14 -> 0 | AT14: =COUNTIF(L54:L62,AS14) -> 0 | AU14: =AT14/(AV4-AT8) -> 0 | AV14: =IF(AU14=0,0,(AU14*((LOG(AU14))/LOG(2)))) -> 0
A15: 11 | B15: 963 | C15: 21 | D15: 975 | K15: 0 | L15: 12 | P15: =SUM(P7:P14) -> 1 | Q15: =-SUM(Q7:Q14) -> 1.182328995 | V15: =SUM(V7:V14) -> 1 | W15: =-SUM(W7:W14) -> 0.9182958341 | AA15: =SUM(AA7:AA14) -> 1 | AB15: =-SUM(AB7:AB14) -> 1 | AF15: =SUM(AF7:AF14) -> 1 | AG15: =-SUM(AG7:AG14) -> 0 | AK15: =SUM(AK7:AK14) -> 1 | AL15: =-SUM(AL7:AL14) -> 0 | AP15: =SUM(AP7:AP14) -> 1 | AQ15: =-SUM(AQ7:AQ14) -> 1 | AU15: =SUM(AU7:AU14) -> 1 | AV15: =-SUM(AV7:AV14) -> 1
A16: 22 | B16: 1085 | C16: 23 | D16: 1110 | K16: 0 | L16: 22 | P16: U= | Q16: =Q15/(LOG(Q4)/LOG(2)) -> 0.2035916541 | V16: U1= | W16: =W15/(LOG(W4)/LOG(2)) -> 0.2896900821 | AA16: U2= | AB16: =AB15/(LOG(AB4)/LOG(2)) -> 0.3010299957 | AF16: U3= | AG16: =AG15/(LOG(AG4)/LOG(2)) -> 0 | AK16: U4= | AL16: =AL15/(LOG(AL4)/LOG(2)) -> 0 | AP16: U5= | AQ16: =AQ15/(LOG(AQ4)/LOG(2)) -> 0.3010299957 | AU16: U6= | AV16: =AV15/(LOG(AV4)/LOG(2)) -> 0.3154648768
A17: 22 | B17: 1228 | C17: 14 | D17: 1249 | K17: 0 | L17: 21
A18: 11 | B18: 1355 | C18: 21 | D18: 1376 | K18: 0 | L18: 12
A19: 11 | B19: 1475 | C19: 21 | D19: 1486 | K19: 0 | L19: 12 | N19: Total Target Seq
A20: 11 | B20: 1579 | C20: 21 | D20: 1593 | K20: 0 | L20: 12 | N20: =COUNTIF(L7:L62,G3) -> 39 | P20: 9 | Q20: 10 | R20: 9 | S20: 9 | T20: 10 | U20: 9
A21: 11 | B21: 1690 | C21: 21 | D21: 1703 | K21: 0 | L21: 12 | P21: % of reinforcement given in 6 equal intervals based on number of trials
A22: 22 | B22: 1812 | C22: 23 | D22: 1840 | K22: 0 | L22: 22 | P22: %_1 | Q22: %_2 | R22: %_3 | S22: %_4 | T22: %_5 | U22: %_6
A23: 11 | B23: 1949 | C23: 21 | D23: 1962 | K23: 0 | L23: 12 | O23: target sequence | P23: =$G$3 -> 12 | Q23: =$G$3 -> 12 | R23: =$G$3 -> 12 | S23: =$G$3 -> 12 | T23: =$G$3 -> 12 | U23: =$G$3 -> 12
A24: 11 | B24: 2062 | C24: 21 | D24: 2075 | K24: 0 | L24: 12 | O24: total reinforcement | P24: =U8 -> 6 | Q24: =Z8 -> 6 | R24: =AE8 -> 8 | S24: =AJ8 -> 6 | T24: =AO8 -> 6 | U24: =AT8 -> 7
A25: 22 | B25: 2185 | C25: 14 | D25: 2206 | K25: 0 | L25: 21 | O25: % target
A26: 11 | B26: 2310 | C26: 21 | D26: 2325 | K26: 0 | L26: 12 | O26: CCRF
A27: 11 | B27: 2421 | C27: 21 | D27: 2434 | K27: 0 | L27: 12 | O27: % CCRf
A28: 11 | B28: 2530 | C28: 21 | D28: 2540 | K28: 0 | L28: 12 | O28: average response rate | P28: =D15/P20 -> 108.3333333 | Q28: =(D25-D15)/Q20 -> 123.1 | R28: =(D34-D25)/R20 -> 112.8888889 | S28: =(D43-D34)/S20 -> 119.1111111 | T28: =(D53-D43)/T20 -> 120.6 | U28: =(D62-D53)/U20 -> 119.3333333
A29: 11 | B29: 2639 | C29: 21 | D29: 2653 | K29: 0 | L29: 12
A30: 11 | B30: 2749 | C30: 21 | D30: 2759 | K30: 0 | L30: 12
A31: 11 | B31: 2850 | C31: 21 | D31: 2862 | K31: 0 | L31: 12
A32: 11 | B32: 2961 | C32: 21 | D32: 2970 | K32: 0 | L32: 12
A33: 22 | B33: 3078 | C33: 23 | D33: 3106 | K33: 0 | L33: 22
A34: 11 | B34: 3210 | C34: 21 | D34: 3222 | K34: 0 | L34: 12
A35: 11 | B35: 3318 | C35: 21 | D35: 3327 | K35: 0 | L35: 12
A36: 11 | B36: 3422 | C36: 21 | D36: 3434 | K36: 0 | L36: 12
A37: 22 | B37: 3544 | C37: 23 | D37: 3579 | K37: 0 | L37: 22
A38: 11 | B38: 3685 | C38: 21 | D38: 3697 | K38: 0 | L38: 12
A39: 11 | B39: 3791 | C39: 21 | D39: 3801 | K39: 0 | L39: 12
A40: 22 | B40: 3907 | C40: 23 | D40: 3942 | K40: 0 | L40: 22
A41: 11 | B41: 4047 | C41: 21 | D41: 4056 | K41: 0 | L41: 12
A42: 11 | B42: 4151 | C42: 21 | D42: 4161 | K42: 0 | L42: 12
A43: 22 | B43: 4270 | C43: 23 | D43: 4294 | K43: 0 | L43: 22
A44: 11 | B44: 4401 | C44: 21 | D44: 4410 | K44: 0 | L44: 12
A45: 22 | B45: 4514 | C45: 23 | D45: 4541 | K45: 0 | L45: 22
A46: 22 | B46: 4656 | C46: 23 | D46: 4686 | K46: 0 | L46: 22
A47: 11 | B47: 4792 | C47: 21 | D47: 4805 | K47: 0 | L47: 12
A48: 22 | B48: 4915 | C48: 14 | D48: 4932 | K48: 0 | L48: 21
A49: 22 | B49: 5045 | C49: 14 | D49: 5060 | K49: 0 | L49: 21
A50: 11 | B50: 5165 | C50: 21 | D50: 5179 | K50: 0 | L50: 12
A51: 11 | B51: 5271 | C51: 21 | D51: 5285 | K51: 0 | L51: 12
A52: 11 | B52: 5384 | C52: 21 | D52: 5394 | K52: 0 | L52: 12
A53: 11 | B53: 5490 | C53: 21 | D53: 5500 | K53: 0 | L53: 12
A54: 11 | B54: 5592 | C54: 21 | D54: 5605 | K54: 0 | L54: 12
A55: 22 | B55: 5717 | C55: 23 | D55: 5745 | K55: 0 | L55: 22
A56: 11 | B56: 5853 | C56: 21 | D56: 5864 | K56: 0 | L56: 12
A57: 22 | B57: 5970 | C57: 14 | D57: 5990 | K57: 0 | L57: 21
A58: 11 | B58: 6097 | C58: 21 | D58: 6111 | K58: 0 | L58: 12
A59: 11 | B59: 6216 | C59: 21 | D59: 6226 | K59: 0 | L59: 12
A60: 11 | B60: 6319 | C60: 21 | D60: 6332 | K60: 0 | L60: 12
A61: 11 | B61: 6431 | C61: 21 | D61: 6441 | K61: 0 | L61: 12
A62: 11 | B62: 6541 | C62: 21 | D62: 6574 | K62: 1 | L62: 12

Sheet !MC13B30.105
A1: Report for:!MC13B30.105
A2: Date: | B2: <date>
A3: Hen: | B3: <hen> | F3: Correct Sequence | G3: =Start!J2 -> 12 | P3: Total Sequences in Data | Q3: =4994-COUNTBLANK(L7:L5000) -> 58 | V3: Total Sequences in Block Data | W3: =COUNTA(L7:L16) -> 10 | AA3: Total Sequences in Block Data | AB3: =COUNTA(L17:L25) -> 9 | AF3: Total Sequences in Block Data | AG3: =COUNTA(L26:L35) -> 10 | AK3: Total Sequences in Block Data | AL3: =COUNTA(L36:L45) -> 10 | AP3: Total Sequences in Block Data | AQ3: =COUNTA(L46:L54) -> 9 | AU3: Total Sequences in Block Data | AV3: =COUNTA(L55:L64) -> 10
P4: Total Sequences in Summary | Q4: =SUM(O7:O14) -> 58 | V4: Total Sequences in Block Summary | W4: =SUM(U7:U14) -> 10 | AA4: Total Sequences in Block Summary | AB4: =SUM(Z7:Z14) -> 9 | AF4: Total Sequences in Block Summary | AG4: =SUM(AE7:AE14) -> 10 | AK4: Total Sequences in Block Summary | AL4: =SUM(AJ7:AJ14) -> 10 | AP4: Total Sequences in Block Summary | AQ4: =SUM(AO7:AO14) -> 9 | AU4: Total Sequences in Block Summary | AV4: =SUM(AT7:AT14) -> 10
T5: Block 1 | Y5: Block 2 | AD5: Block 3 | AI5: Block 4 | AN5: Block 5 | AS5: Block 6
A6: Sequence Component 1 | B6: Time 1 | C6: Sequence Component 2 | D6: Time 2 | E6: Sequence Component 3 | F6: Time 3 | G6: Sequence Component 4 | H6: Time 4 | I6: Sequence Component 5 | J6: Time 5 | K6: Correct? 0=No 1=Yes | L6: Sequence | N6: Frequency | P6: Relative Frequency | Q6: Variability | T6: Frequency | V6: Relative Frequency | W6: Variability | Y6: Frequency | AA6: Relative Frequency | AB6: Variability | AD6: Frequency | AF6: Relative Frequency | AG6: Variability | AI6: Frequency | AK6: Relative Frequency | AL6: Variability | AN6: Frequency | AP6: Relative Frequency | AQ6: Variability | AS6: Frequency | AU6: Relative Frequency | AV6: Variability
A7: 22 | B7: 31 | C7: 23 | D7: 59 | K7: 0 | L7: 22 | N7: 11 | O7: =COUNTIF($L$7:$L$500,N7) -> 0 | P7: =O7/$Q$4 -> 0 | Q7: =IF(P7=0,0,(P7*((LOG(P7))/LOG(2)))) -> 0 | T7: =N7 -> 11 | U7: =COUNTIF(L7:L16,T7) -> 0 | V7: =U7/(W4-U8) -> 0 | W7: =IF(V7=0,0,(V7*((LOG(V7))/LOG(2)))) -> 0 | Y7: =N7 -> 11 | Z7: =COUNTIF(L17:L25,Y7) -> 0 | AA7: =Z7/(AB4-Z8) -> 0 | AB7: =IF(AA7=0,0,(AA7*((LOG(AA7))/LOG(2)))) -> 0 | AD7: =N7 -> 11 | AE7: =COUNTIF(L26:L35,AD7) -> 0 | AF7: =AE7/(AG4-AE8) -> 0 | AG7: =IF(AF7=0,0,(AF7*((LOG(AF7))/LOG(2)))) -> 0 | AI7: =N7 -> 11 | AJ7: =COUNTIF(L36:L45,AI7) -> 0 | AK7: =AJ7/(AL4-AJ8) -> 0 | AL7: =IF(AK7=0,0,(AK7*((LOG(AK7))/LOG(2)))) -> 0 | AN7: =N7 -> 11 | AO7: =COUNTIF(L46:L54,AN7) -> 0 | AP7: =AO7/(AQ4-AO8) -> 0 | AQ7: =IF(AP7=0,0,(AP7*((LOG(AP7))/LOG(2)))) -> 0 | AS7: =N7 -> 11 | AT7: =COUNTIF(L55:L64,AS7) -> 0 | AU7: =AT7/(AV4-AT8) -> 0 | AV7: =IF(AU7=0,0,(AU7*((LOG(AU7))/LOG(2)))) -> 0
A8: 11 | B8: 168 | C8: 21 | D8: 178 | K8: 0 | L8: 12 | N8: 12 | O8: =COUNTIF($L$7:$L$500,N8) -> 39 | P8: =O8/$Q$4 -> 0.6724137931 | Q8: =IF(P8=0,0,(P8*((LOG(P8))/LOG(2)))) -> -0.3850098668 | T8: =N8 -> 12 | U8: =COUNTIF(L7:L16,T8) -> 4 | Y8: =N8 -> 12 | Z8: =COUNTIF(L17:L25,Y8) -> 6 | AD8: =N8 -> 12 | AE8: =COUNTIF(L26:L35,AD8) -> 8 | AI8: =N8 -> 12 | AJ8: =COUNTIF(L36:L45,AI8) -> 6 | AN8: =N8 -> 12 | AO8: =COUNTIF(L46:L54,AN8) -> 7 | AS8: =N8 -> 12 | AT8: =COUNTIF(L55:L64,AS8) -> 8
A9: 11 | B9: 276 | C9: 21 | D9: 289 | K9: 0 | L9: 12 | N9: 21 | O9: =COUNTIF($L$7:$L$500,N9) -> 7 | P9: =O9/$Q$4 -> 0.1206896552 | Q9: =IF(P9=0,0,(P9*((LOG(P9))/LOG(2)))) -> -0.3681790088 | T9: =N9 -> 21 | U9: =COUNTIF(L7:L16,T9) -> 0 | V9: =U9/(W4-U8) -> 0 | W9: =IF(V9=0,0,(V9*((LOG(V9))/LOG(2)))) -> 0 | Y9: =N9 -> 21 | Z9: =COUNTIF(L17:L25,Y9) -> 1 | AA9: =Z9/(AB4-Z8) -> 0.3333333333 | AB9: =IF(AA9=0,0,(AA9*((LOG(AA9))/LOG(2)))) -> -0.5283208336 | AD9: =N9 -> 21 | AE9: =COUNTIF(L26:L35,AD9) -> 0 | AF9: =AE9/(AG4-AE8) -> 0 | AG9: =IF(AF9=0,0,(AF9*((LOG(AF9))/LOG(2)))) -> 0 | AI9: =N9 -> 21 | AJ9: =COUNTIF(L36:L45,AI9) -> 3 | AK9: =AJ9/(AL4-AJ8) -> 0.75 | AL9: =IF(AK9=0,0,(AK9*((LOG(AK9))/LOG(2)))) -> -0.3112781245 | AN9: =N9 -> 21 | AO9: =COUNTIF(L46:L54,AN9) -> 2 | AP9: =AO9/(AQ4-AO8) -> 1 | AQ9: =IF(AP9=0,0,(AP9*((LOG(AP9))/LOG(2)))) -> 0 | AS9: =N9 -> 21 | AT9: =COUNTIF(L55:L64,AS9) -> 1 | AU9: =AT9/(AV4-AT8) -> 0.5 | AV9: =IF(AU9=0,0,(AU9*((LOG(AU9))/LOG(2)))) -> -0.5
A10: 11 | B10: 382 | C10: 21 | D10: 397 | K10: 0 | L10: 12 | N10: 22 | O10: =COUNTIF($L$7:$L$500,N10) -> 12 | P10: =O10/$Q$4 -> 0.2068965517 | Q10: =IF(P10=0,0,(P10*((LOG(P10))/LOG(2)))) -> -0.4702796885 | T10: =N10 -> 22 | U10: =COUNTIF(L7:L16,T10) -> 6 | V10: =U10/(W4-U8) -> 1 | W10: =IF(V10=0,0,(V10*((LOG(V10))/LOG(2)))) -> 0 | Y10: =N10 -> 22 | Z10: =COUNTIF(L17:L25,Y10) -> 2 | AA10: =Z10/(AB4-Z8) -> 0.6666666667 | AB10: =IF(AA10=0,0,(AA10*((LOG(AA10))/LOG(2)))) -> -0.3899750005 | AD10: =N10 -> 22 | AE10: =COUNTIF(L26:L35,AD10) -> 2 | AF10: =AE10/(AG4-AE8) -> 1 | AG10: =IF(AF10=0,0,(AF10*((LOG(AF10))/LOG(2)))) -> 0 | AI10: =N10 -> 22 | AJ10: =COUNTIF(L36:L45,AI10) -> 1 | AK10: =AJ10/(AL4-AJ8) -> 0.25 | AL10: =IF(AK10=0,0,(AK10*((LOG(AK10))/LOG(2)))) -> -0.5 | AN10: =N10 -> 22 | AO10: =COUNTIF(L46:L54,AN10) -> 0 | AP10: =AO10/(AQ4-AO8) -> 0 | AQ10: =IF(AP10=0,0,(AP10*((LOG(AP10))/LOG(2)))) -> 0 | AS10: =N10 -> 22 | AT10: =COUNTIF(L55:L64,AS10) -> 1 | AU10: =AT10/(AV4-AT8) -> 0.5 | AV10: =IF(AU10=0,0,(AU10*((LOG(AU10))/LOG(2)))) -> -0.5
A11: 22 | B11: 507 | C11: 23 | D11: 537 | K11: 0 | L11: 22 | T11: =N11 -> 0 | U11: =COUNTIF(L7:L16,T11) -> 0 | V11: =U11/(W4-U8) -> 0 | W11: =IF(V11=0,0,(V11*((LOG(V11))/LOG(2)))) -> 0 | Y11: =N11 -> 0 | Z11: =COUNTIF(L17:L25,Y11) -> 0 | AA11: =Z11/(AB4-Z8) -> 0 | AB11: =IF(AA11=0,0,(AA11*((LOG(AA11))/LOG(2)))) -> 0 | AD11: =N11 -> 0 | AE11: =COUNTIF(L26:L35,AD11) -> 0 | AF11: =AE11/(AG4-AE8) -> 0 | AG11: =IF(AF11=0,0,(AF11*((LOG(AF11))/LOG(2)))) -> 0 | AI11: =N11 -> 0 | AJ11: =COUNTIF(L36:L45,AI11) -> 0 | AK11: =AJ11/(AL4-AJ8) -> 0 | AL11: =IF(AK11=0,0,(AK11*((LOG(AK11))/LOG(2)))) -> 0 | AN11: =N11 -> 0 | AO11: =COUNTIF(L46:L54,AN11) -> 0 | AP11: =AO11/(AQ4-AO8) -> 0 | AQ11: =IF(AP11=0,0,(AP11*((LOG(AP11))/LOG(2)))) -> 0 | AS11: =N11 -> 0 | AT11: =COUNTIF(L55:L64,AS11) -> 0 | AU11: =AT11/(AV4-AT8) -> 0 | AV11: =IF(AU11=0,0,(AU11*((LOG(AU11))/LOG(2)))) -> 0
A12: 22 | B12: 645 | C12: 23 | D12: 671 | K12: 0 | L12: 22 | T12: =N12 -> 0 | U12: =COUNTIF(L7:L16,T12) -> 0 | V12: =U12/(W4-U8) -> 0 | W12: =IF(V12=0,0,(V12*((LOG(V12))/LOG(2)))) -> 0 | Y12: =N12 -> 0 | Z12: =COUNTIF(L17:L25,Y12) -> 0 | AA12: =Z12/(AB4-Z8) -> 0 | AB12: =IF(AA12=0,0,(AA12*((LOG(AA12))/LOG(2)))) -> 0 | AD12: =N12 -> 0 | AE12: =COUNTIF(L26:L35,AD12) -> 0 | AF12: =AE12/(AG4-AE8) -> 0 | AG12: =IF(AF12=0,0,(AF12*((LOG(AF12))/LOG(2)))) -> 0 | AI12: =N12 -> 0 | AJ12: =COUNTIF(L36:L45,AI12) -> 0 | AK12: =AJ12/(AL4-AJ8) -> 0 | AL12: =IF(AK12=0,0,(AK12*((LOG(AK12))/LOG(2)))) -> 0 | AN12: =N12 -> 0 | AO12: =COUNTIF(L46:L54,AN12) -> 0 | AP12: =AO12/(AQ4-AO8) -> 0 | AQ12: =IF(AP12=0,0,(AP12*((LOG(AP12))/LOG(2)))) -> 0 | AS12: =N12 -> 0 | AT12: =COUNTIF(L55:L64,AS12) -> 0 | AU12: =AT12/(AV4-AT8) -> 0 | AV12: =IF(AU12=0,0,(AU12*((LOG(AU12))/LOG(2)))) -> 0
A13: 11 | B13: 781 | C13: 21 | D13: 794 | K13: 0 | L13: 12 | T13: =N13 -> 0 | U13: =COUNTIF(L7:L16,T13) -> 0 | V13: =U13/(W4-U8) -> 0 | W13: =IF(V13=0,0,(V13*((LOG(V13))/LOG(2)))) -> 0 | Y13: =N13 -> 0 | Z13: =COUNTIF(L17:L25,Y13) -> 0 | AA13: =Z13/(AB4-Z8) -> 0 | AB13: =IF(AA13=0,0,(AA13*((LOG(AA13))/LOG(2)))) -> 0 | AD13: =N13 -> 0 | AE13: =COUNTIF(L26:L35,AD13) -> 0 | AF13: =AE13/(AG4-AE8) -> 0 | AG13: =IF(AF13=0,0,(AF13*((LOG(AF13))/LOG(2)))) -> 0 | AI13: =N13 -> 0 | AJ13: =COUNTIF(L36:L45,AI13) -> 0 | AK13: =AJ13/(AL4-AJ8) -> 0 | AL13: =IF(AK13=0,0,(AK13*((LOG(AK13))/LOG(2)))) -> 0 | AN13: =N13 -> 0 | AO13: =COUNTIF(L46:L54,AN13) -> 0 | AP13: =AO13/(AQ4-AO8) -> 0 | AQ13: =IF(AP13=0,0,(AP13*((LOG(AP13))/LOG(2)))) -> 0 | AS13: =N13 -> 0 | AT13: =COUNTIF(L55:L64,AS13) -> 0 | AU13: =AT13/(AV4-AT8) -> 0 | AV13: =IF(AU13=0,0,(AU13*((LOG(AU13))/LOG(2)))) -> 0
A14: 22 | B14: 916 | C14: 23 | D14: 938 | K14: 0 | L14: 22 | T14: =N14 -> 0 | U14: =COUNTIF(L7:L16,T14) -> 0 | V14: =U14/(W4-U8) -> 0 | W14: =IF(V14=0,0,(V14*((LOG(V14))/LOG(2)))) -> 0 | Y14: =N14 -> 0 | Z14: =COUNTIF(L17:L25,Y14) -> 0 | AA14: =Z14/(AB4-Z8) -> 0 | AB14: =IF(AA14=0,0,(AA14*((LOG(AA14))/LOG(2)))) -> 0 | AD14: =N14 -> 0 | AE14: =COUNTIF(L26:L35,AD14) -> 0 | AF14: =AE14/(AG4-AE8) -> 0 | AG14: =IF(AF14=0,0,(AF14*((LOG(AF14))/LOG(2)))) -> 0 | AI14: =N14 -> 0 | AJ14: =COUNTIF(L36:L45,AI14) -> 0 | AK14: =AJ14/(AL4-AJ8) -> 0 | AL14: =IF(AK14=0,0,(AK14*((LOG(AK14))/LOG(2)))) -> 0 | AN14: =N14 -> 0 | AO14: =COUNTIF(L46:L54,AN14) -> 0 | AP14: =AO14/(AQ4-AO8) -> 0 | AQ14: =IF(AP14=0,0,(AP14*((LOG(AP14))/LOG(2)))) -> 0 | AS14: =N14 -> 0 | AT14: =COUNTIF(L55:L64,AS14) -> 0 | AU14: =AT14/(AV4-AT8) -> 0 | AV14: =IF(AU14=0,0,(AU14*((LOG(AU14))/LOG(2)))) -> 0
A15: 22 | B15: 1051 | C15: 23 | D15: 1085 | K15: 0 | L15: 22 | P15: =SUM(P7:P14) -> 1 | Q15: =-SUM(Q7:Q14) -> 1.223468564 | V15: =SUM(V7:V14) -> 1 | W15: =-SUM(W7:W14) -> 0 | AA15: =SUM(AA7:AA14) -> 1 | AB15: =-SUM(AB7:AB14) -> 0.9182958341 | AF15: =SUM(AF7:AF14) -> 1 | AG15: =-SUM(AG7:AG14) -> 0 | AK15: =SUM(AK7:AK14) -> 1 | AL15: =-SUM(AL7:AL14) -> 0.8112781245 | AP15: =SUM(AP7:AP14) -> 1 | AQ15: =-SUM(AQ7:AQ14) -> 0 | AU15: =SUM(AU7:AU14) -> 1 | AV15: =-SUM(AV7:AV14) -> 1
A16: 22 | B16: 1188 | C16: 23 | D16: 1215 | K16: 0 | L16: 22 | P16: U= | Q16: =Q15/(LOG(Q4)/LOG(2)) -> 0.2088549903 | V16: U1= | W16: =W15/(LOG(W4)/LOG(2)) -> 0 | AA16: U2= | AB16: =AB15/(LOG(AB4)/LOG(2)) -> 0.2896900821 | AF16: U3= | AG16: =AG15/(LOG(AG4)/LOG(2)) -> 0 | AK16: U4= | AL16: =AL15/(LOG(AL4)/LOG(2)) -> 0.2442190503 | AP16: U5= | AQ16: =AQ15/(LOG(AQ4)/LOG(2)) -> 0 | AU16: U6= | AV16: =AV15/(LOG(AV4)/LOG(2)) -> 0.3010299957
A17: 11 | B17: 1320 | C17: 21 | D17: 1333 | K17: 0 | L17: 12
A18: 11 | B18: 1434 | C18: 21 | D18: 1443 | K18: 0 | L18: 12
A19: 22 | B19: 1552 | C19: 23 | D19: 1586 | K19: 0 | L19: 22 | N19: Total Target Seq
A20: 11 | B20: 1691 | C20: 21 | D20: 1703 | K20: 0 | L20: 12 | N20: =COUNTIF(L7:L64,G3) -> 39 | P20: 10 | Q20: 9 | R20: 10 | S20: 10 | T20: 9 | U20: 10
A21: 22 | B21: 1810 | C21: 14 | D21: 1839 | K21: 0 | L21: 21 | P21: % of reinforcement given in 6 equal intervals based on number of trials
A22: 22 | B22: 1949 | C22: 23 | D22: 1990 | K22: 0 | L22: 22 | P22: %_1 | Q22: %_2 | R22: %_3 | S22: %_4 | T22: %_5 | U22: %_6
A23: 11 | B23: 2097 | C23: 21 | D23: 2106 | K23: 0 | L23: 12 | O23: target sequence | P23: =$G$3 -> 12 | Q23: =$G$3 -> 12 | R23: =$G$3 -> 12 | S23: =$G$3 -> 12 | T23: =$G$3 -> 12 | U23: =$G$3 -> 12
A24: 11 | B24: 2204 | C24: 21 | D24: 2218 | K24: 0 | L24: 12 | O24: total reinforcement | P24: =U8 -> 4 | Q24: =Z8 -> 6 | R24: =AE8 -> 8 | S24: =AJ8 -> 6 | T24: =AO8 -> 7 | U24: =AT8 -> 8
A25: 11 | B25: 2315 | C25: 21 | D25: 2329 | K25: 0 | L25: 12 | O25: % target
A26: 22 | B26: 2443 | C26: 23 | D26: 2474 | K26: 0 | L26: 22 | O26: CCRF
A27: 11 | B27: 2579 | C27: 21 | D27: 2588 | K27: 0 | L27: 12 | O27: % CCRf
A28: 11 | B28: 2686 | C28: 21 | D28: 2704 | K28: 0 | L28: 12 | O28: average response rate | P28: =D16/P20 -> 121.5 | Q28: =(D25-D16)/Q20 -> 123.7777778 | R28: =(D35-D25)/R20 -> 119.6 | S28: =(D45-D35)/S20 -> 118.4 | T28: =(D54-D45)/T20 -> 119.1111111 | U28: =(D64-D54)/U20 -> 117.2
A29: 11 | B29: 2800 | C29: 21 | D29: 2813 | K29: 0 | L29: 12
A30: 22 | B30: 2946 | C30: 23 | D30: 2974 | K30: 0 | L30: 22
A31: 11 | B31: 3084 | C31: 21 | D31: 3094 | K31: 0 | L31: 12
A32: 11 | B32: 3193 | C32: 21 | D32: 3206 | K32: 0 | L32: 12
A33: 11 | B33: 3301 | C33: 21 | D33: 3312 | K33: 0 | L33: 12
A34: 11 | B34: 3407 | C34: 21 | D34: 3421 | K34: 0 | L34: 12
A35: 11 | B35: 3519 | C35: 21 | D35: 3525 | K35: 0 | L35: 12
A36: 11 | B36: 3622 | C36: 21 | D36: 3634 | K36: 0 | L36: 12
A37: 11 | B37: 3727 | C37: 21 | D37: 3736 | K37: 0 | L37: 12
A38: 22 | B38: 3837 | C38: 14 | D38: 3853 | K38: 0 | L38: 21
A39: 11 | B39: 3959 | C39: 21 | D39: 3981 | K39: 0 | L39: 12
A40: 11 | B40: 4079 | C40: 21 | D40: 4090 | K40: 0 | L40: 12
A41: 11 | B41: 4182 | C41: 21 | D41: 4195 | K41: 0 | L41: 12
A42: 11 | B42: 4289 | C42: 21 | D42: 4302 | K42: 0 | L42: 12
A43: 22 | B43: 4405 | C43: 14 | D43: 4427 | K43: 0 | L43: 21
A44: 22 | B44: 4550 | C44: 23 | D44: 4574 | K44: 0 | L44: 22
A45: 22 | B45: 4689 | C45: 14 | D45: 4709 | K45: 0 | L45: 21
A46: 22 | B46: 4823 | C46: 14 | D46: 4843 | K46: 0 | L46: 21
A47: 11 | B47: 4948 | C47: 21 | D47: 4960 | K47: 0 | L47: 12
A48: 11 | B48: 5055 | C48: 21 | D48: 5071 | K48: 0 | L48: 12
A49: 11 | B49: 5196 | C49: 21 | D49: 5208 | K49: 0 | L49: 12
A50: 11 | B50: 5309 | C50: 21 | D50: 5320 | K50: 0 | L50: 12
A51: 11 | B51: 5418 | C51: 21 | D51: 5432 | K51: 0 | L51: 12
A52: 11 | B52: 5526 | C52: 21 | D52: 5540 | K52: 0 | L52: 12
A53: 22 | B53: 5643 | C53: 14 | D53: 5667 | K53: 0 | L53: 21
A54: 11 | B54: 5769 | C54: 21 | D54: 5781 | K54: 0 | L54: 12
A55: 11 | B55: 5878 | C55: 21 | D55: 5889 | K55: 0 | L55: 12
A56: 11 | B56: 5981 | C56: 21 | D56: 6000 | K56: 0 | L56: 12
A57: 11 | B57: 6094 | C57: 21 | D57: 6132 | K57: 0 | L57: 12
A58: 11 | B58: 6228 | C58: 21 | D58: 6241 | K58: 0 | L58: 12
A59: 11 | B59: 6333 | C59: 21 | D59: 6347 | K59: 0 | L59: 12
A60: 11 | B60: 6440 | C60: 21 | D60: 6452 | K60: 0 | L60: 12
A61: 22 | B61: 6560 | C61: 23 | D61: 6586 | K61: 0 | L61: 22
A62: 22 | B62: 6704 | C62: 14 | D62: 6723 | K62: 0 | L62: 21
A63: 11 | B63: 6830 | C63: 21 | D63: 6843 | K63: 0 | L63: 12
A64: 11 | B64: 6937 | C64: 21 | D64: 6953 | K64: 1 | L64: 12

Sheet !MC14B00.105
A1: Report for:!MC14B00.105
A2: Date: | B2: <date>
A3: Hen: | B3: <hen> | F3: Correct Sequence | G3: =Start!J2 -> 12 | P3: Total Sequences in Data | Q3: =4994-COUNTBLANK(L7:L5000) -> 49 | V3: Total Sequences in Block Data | W3: =COUNTA(L7:L14) -> 8 | AA3: Total Sequences in Block Data | AB3: =COUNTA(L15:L22) -> 8 | AF3: Total Sequences in Block Data | AG3: =COUNTA(L23:L31) -> 9 | AK3: Total Sequences in Block Data | AL3: =COUNTA(L32:L39) -> 8 | AP3: Total Sequences in Block Data | AQ3: =COUNTA(L40:L47) -> 8 | AU3: Total Sequences in Block Data | AV3: =COUNTA(L48:L55) -> 8
P4: Total Sequences in Summary | Q4: =SUM(O7:O14) -> 49 | V4: Total Sequences in Block Summary | W4: =SUM(U7:U14) -> 8 | AA4: Total Sequences in Block Summary | AB4: =SUM(Z7:Z14) -> 8 | AF4: Total Sequences in Block Summary | AG4: =SUM(AE7:AE14) -> 9 | AK4: Total Sequences in Block Summary | AL4: =SUM(AJ7:AJ14) -> 8 | AP4: Total Sequences in Block Summary | AQ4: =SUM(AO7:AO14) -> 8 | AU4: Total Sequences in Block Summary | AV4: =SUM(AT7:AT14) -> 8
T5: Block 1 | Y5: Block 2 | AD5: Block 3 | AI5: Block 4 | AN5: Block 5 | AS5: Block 6
A6: Sequence Component 1 | B6: Time 1 | C6: Sequence Component 2 | D6: Time 2 | E6: Sequence Component 3 | F6: Time 3 | G6: Sequence Component 4 | H6: Time 4 | I6: Sequence Component 5 | J6: Time 5 | K6: Correct? 0=No 1=Yes | L6: Sequence | N6: Frequency | P6: Relative Frequency | Q6: Variability | T6: Frequency | V6: Relative Frequency | W6: Variability | Y6: Frequency | AA6: Relative Frequency | AB6: Variability | AD6: Frequency | AF6: Relative Frequency | AG6: Variability | AI6: Frequency | AK6: Relative Frequency | AL6: Variability | AN6: Frequency | AP6: Relative Frequency | AQ6: Variability | AS6: Frequency | AU6: Relative Frequency | AV6: Variability
A7: 11 | B7: 24 | C7: 21 | D7: 31 | K7: 0 | L7: 12 | N7: 11 | O7: =COUNTIF($L$7:$L$500,N7) -> 6 | P7: =O7/$Q$4 -> 0.1224489796 | Q7: =IF(P7=0,0,(P7*((LOG(P7))/LOG(2)))) -> -0.3709894706 | T7: =N7 -> 11 | U7: =COUNTIF(L7:L14,T7) -> 0 | V7: =U7/(W4-U8) -> 0 | W7: =IF(V7=0,0,(V7*((LOG(V7))/LOG(2)))) -> 0 | Y7: =N7 -> 11 | Z7: =COUNTIF(L15:L22,Y7) -> 0 | AA7: =Z7/(AB4-Z8) -> 0 | AB7: =IF(AA7=0,0,(AA7*((LOG(AA7))/LOG(2)))) -> 0 | AD7: =N7 -> 11 | AE7: =COUNTIF(L23:L31,AD7) -> 0 | AF7: =AE7/(AG4-AE8) ->  | AG7: =IF(AF7=0,0,(AF7*((LOG(AF7))/LOG(2)))) ->  | AI7: =N7 -> 11 | AJ7: =COUNTIF(L32:L39,AI7) -> 3 | AK7: =AJ7/(AL4-AJ8) -> 1 | AL7: =IF(AK7=0,0,(AK7*((LOG(AK7))/LOG(2)))) -> 0 | AN7: =N7 -> 11 | AO7: =COUNTIF(L40:L47,AN7) -> 3 | AP7: =AO7/(AQ4-AO8) -> 1 | AQ7: =IF(AP7=0,0,(AP7*((LOG(AP7))/LOG(2)))) -> 0 | AS7: =N7 -> 11 | AT7: =COUNTIF(L48:L55,AS7) -> 0 | AU7: =AT7/(AV4-AT8) ->  | AV7: =IF(AU7=0,0,(AU7*((LOG(AU7))/LOG(2)))) -> 
A8: 11 | B8: 129 | C8: 21 | D8: 142 | K8: 0 | L8: 12 | N8: 12 | O8: =COUNTIF($L$7:$L$500,N8) -> 38 | P8: =O8/$Q$4 -> 0.7755102041 | Q8: =IF(P8=0,0,(P8*((LOG(P8))/LOG(2)))) -> -0.2844434401 | T8: =N8 -> 12 | U8: =COUNTIF(L7:L14,T8) -> 5 | Y8: =N8 -> 12 | Z8: =COUNTIF(L15:L22,Y8) -> 6 | AD8: =N8 -> 12 | AE8: =COUNTIF(L23:L31,AD8) -> 9 | AI8: =N8 -> 12 | AJ8: =COUNTIF(L32:L39,AI8) -> 5 | AN8: =N8 -> 12 | AO8: =COUNTIF(L40:L47,AN8) -> 5 | AS8: =N8 -> 12 | AT8: =COUNTIF(L48:L55,AS8) -> 8
A9: 11 | B9: 238 | C9: 21 | D9: 248 | K9: 0 | L9: 12 | N9: 21 | O9: =COUNTIF($L$7:$L$500,N9) -> 5 | P9: =O9/$Q$4 -> 0.1020408163 | Q9: =IF(P9=0,0,(P9*((LOG(P9))/LOG(2)))) -> -0.3359981377 | T9: =N9 -> 21 | U9: =COUNTIF(L7:L14,T9) -> 3 | V9: =U9/(W4-U8) -> 1 | W9: =IF(V9=0,0,(V9*((LOG(V9))/LOG(2)))) -> 0 | Y9: =N9 -> 21 | Z9: =COUNTIF(L15:L22,Y9) -> 2 | AA9: =Z9/(AB4-Z8) -> 1 | AB9: =IF(AA9=0,0,(AA9*((LOG(AA9))/LOG(2)))) -> 0 | AD9: =N9 -> 21 | AE9: =COUNTIF(L23:L31,AD9) -> 0 | AF9: =AE9/(AG4-AE8) ->  | AG9: =IF(AF9=0,0,(AF9*((LOG(AF9))/LOG(2)))) ->  | AI9: =N9 -> 21 | AJ9: =COUNTIF(L32:L39,AI9) -> 0 | AK9: =AJ9/(AL4-AJ8) -> 0 | AL9: =IF(AK9=0,0,(AK9*((LOG(AK9))/LOG(2)))) -> 0 | AN9: =N9 -> 21 | AO9: =COUNTIF(L40:L47,AN9) -> 0 | AP9: =AO9/(AQ4-AO8) -> 0 | AQ9: =IF(AP9=0,0,(AP9*((LOG(AP9))/LOG(2)))) -> 0 | AS9: =N9 -> 21 | AT9: =COUNTIF(L48:L55,AS9) -> 0 | AU9: =AT9/(AV4-AT8) ->  | AV9: =IF(AU9=0,0,(AU9*((LOG(AU9))/LOG(2)))) -> 
A10: 22 | B10: 354 | C10: 14 | D10: 374 | K10: 0 | L10: 21 | N10: 22 | O10: =COUNTIF($L$7:$L$500,N10) -> 0 | P10: =O10/$Q$4 -> 0 | Q10: =IF(P10=0,0,(P10*((LOG(P10))/LOG(2)))) -> 0 | T10: =N10 -> 22 | U10: =COUNTIF(L7:L14,T10) -> 0 | V10: =U10/(W4-U8) -> 0 | W10: =IF(V10=0,0,(V10*((LOG(V10))/LOG(2)))) -> 0 | Y10: =N10 -> 22 | Z10: =COUNTIF(L15:L22,Y10) -> 0 | AA10: =Z10/(AB4-Z8) -> 0 | AB10: =IF(AA10=0,0,(AA10*((LOG(AA10))/LOG(2)))) -> 0 | AD10: =N10 -> 22 | AE10: =COUNTIF(L23:L31,AD10) -> 0 | AF10: =AE10/(AG4-AE8) ->  | AG10: =IF(AF10=0,0,(AF10*((LOG(AF10))/LOG(2)))) ->  | AI10: =N10 -> 22 | AJ10: =COUNTIF(L32:L39,AI10) -> 0 | AK10: =AJ10/(AL4-AJ8) -> 0 | AL10: =IF(AK10=0,0,(AK10*((LOG(AK10))/LOG(2)))) -> 0 | AN10: =N10 -> 22 | AO10: =COUNTIF(L40:L47,AN10) -> 0 | AP10: =AO10/(AQ4-AO8) -> 0 | AQ10: =IF(AP10=0,0,(AP10*((LOG(AP10))/LOG(2)))) -> 0 | AS10: =N10 -> 22 | AT10: =COUNTIF(L48:L55,AS10) -> 0 | AU10: =AT10/(AV4-AT8) ->  | AV10: =IF(AU10=0,0,(AU10*((LOG(AU10))/LOG(2)))) -> 
A11: 11 | B11: 471 | C11: 21 | D11: 485 | K11: 0 | L11: 12 | T11: =N11 -> 0 | U11: =COUNTIF(L7:L14,T11) -> 0 | V11: =U11/(W4-U8) -> 0 | W11: =IF(V11=0,0,(V11*((LOG(V11))/LOG(2)))) -> 0 | Y11: =N11 -> 0 | Z11: =COUNTIF(L15:L22,Y11) -> 0 | AA11: =Z11/(AB4-Z8) -> 0 | AB11: =IF(AA11=0,0,(AA11*((LOG(AA11))/LOG(2)))) -> 0 | AD11: =N11 -> 0 | AE11: =COUNTIF(L23:L31,AD11) -> 0 | AF11: =AE11/(AG4-AE8) ->  | AG11: =IF(AF11=0,0,(AF11*((LOG(AF11))/LOG(2)))) ->  | AI11: =N11 -> 0 | AJ11: =COUNTIF(L32:L39,AI11) -> 0 | AK11: =AJ11/(AL4-AJ8) -> 0 | AL11: =IF(AK11=0,0,(AK11*((LOG(AK11))/LOG(2)))) -> 0 | AN11: =N11 -> 0 | AO11: =COUNTIF(L40:L47,AN11) -> 0 | AP11: =AO11/(AQ4-AO8) -> 0 | AQ11: =IF(AP11=0,0,(AP11*((LOG(AP11))/LOG(2)))) -> 0 | AS11: =N11 -> 0 | AT11: =COUNTIF(L48:L55,AS11) -> 0 | AU11: =AT11/(AV4-AT8) ->  | AV11: =IF(AU11=0,0,(AU11*((LOG(AU11))/LOG(2)))) -> 
A12: 22 | B12: 591 | C12: 14 | D12: 611 | K12: 0 | L12: 21 | T12: =N12 -> 0 | U12: =COUNTIF(L7:L14,T12) -> 0 | V12: =U12/(W4-U8) -> 0 | W12: =IF(V12=0,0,(V12*((LOG(V12))/LOG(2)))) -> 0 | Y12: =N12 -> 0 | Z12: =COUNTIF(L15:L22,Y12) -> 0 | AA12: =Z12/(AB4-Z8) -> 0 | AB12: =IF(AA12=0,0,(AA12*((LOG(AA12))/LOG(2)))) -> 0 | AD12: =N12 -> 0 | AE12: =COUNTIF(L23:L31,AD12) -> 0 | AF12: =AE12/(AG4-AE8) ->  | AG12: =IF(AF12=0,0,(AF12*((LOG(AF12))/LOG(2)))) ->  | AI12: =N12 -> 0 | AJ12: =COUNTIF(L32:L39,AI12) -> 0 | AK12: =AJ12/(AL4-AJ8) -> 0 | AL12: =IF(AK12=0,0,(AK12*((LOG(AK12))/LOG(2)))) -> 0 | AN12: =N12 -> 0 | AO12: =COUNTIF(L40:L47,AN12) -> 0 | AP12: =AO12/(AQ4-AO8) -> 0 | AQ12: =IF(AP12=0,0,(AP12*((LOG(AP12))/LOG(2)))) -> 0 | AS12: =N12 -> 0 | AT12: =COUNTIF(L48:L55,AS12) -> 0 | AU12: =AT12/(AV4-AT8) ->  | AV12: =IF(AU12=0,0,(AU12*((LOG(AU12))/LOG(2)))) -> 
A13: 22 | B13: 730 | C13: 14 | D13: 747 | K13: 0 | L13: 21 | T13: =N13 -> 0 | U13: =COUNTIF(L7:L14,T13) -> 0 | V13: =U13/(W4-U8) -> 0 | W13: =IF(V13=0,0,(V13*((LOG(V13))/LOG(2)))) -> 0 | Y13: =N13 -> 0 | Z13: =COUNTIF(L15:L22,Y13) -> 0 | AA13: =Z13/(AB4-Z8) -> 0 | AB13: =IF(AA13=0,0,(AA13*((LOG(AA13))/LOG(2)))) -> 0 | AD13: =N13 -> 0 | AE13: =COUNTIF(L23:L31,AD13) -> 0 | AF13: =AE13/(AG4-AE8) ->  | AG13: =IF(AF13=0,0,(AF13*((LOG(AF13))/LOG(2)))) ->  | AI13: =N13 -> 0 | AJ13: =COUNTIF(L32:L39,AI13) -> 0 | AK13: =AJ13/(AL4-AJ8) -> 0 | AL13: =IF(AK13=0,0,(AK13*((LOG(AK13))/LOG(2)))) -> 0 | AN13: =N13 -> 0 | AO13: =COUNTIF(L40:L47,AN13) -> 0 | AP13: =AO13/(AQ4-AO8) -> 0 | AQ13: =IF(AP13=0,0,(AP13*((LOG(AP13))/LOG(2)))) -> 0 | AS13: =N13 -> 0 | AT13: =COUNTIF(L48:L55,AS13) -> 0 | AU13: =AT13/(AV4-AT8) ->  | AV13: =IF(AU13=0,0,(AU13*((LOG(AU13))/LOG(2)))) -> 
A14: 11 | B14: 854 | C14: 21 | D14: 866 | K14: 0 | L14: 12 | T14: =N14 -> 0 | U14: =COUNTIF(L7:L14,T14) -> 0 | V14: =U14/(W4-U8) -> 0 | W14: =IF(V14=0,0,(V14*((LOG(V14))/LOG(2)))) -> 0 | Y14: =N14 -> 0 | Z14: =COUNTIF(L15:L22,Y14) -> 0 | AA14: =Z14/(AB4-Z8) -> 0 | AB14: =IF(AA14=0,0,(AA14*((LOG(AA14))/LOG(2)))) -> 0 | AD14: =N14 -> 0 | AE14: =COUNTIF(L23:L31,AD14) -> 0 | AF14: =AE14/(AG4-AE8) ->  | AG14: =IF(AF14=0,0,(AF14*((LOG(AF14))/LOG(2)))) ->  | AI14: =N14 -> 0 | AJ14: =COUNTIF(L32:L39,AI14) -> 0 | AK14: =AJ14/(AL4-AJ8) -> 0 | AL14: =IF(AK14=0,0,(AK14*((LOG(AK14))/LOG(2)))) -> 0 | AN14: =N14 -> 0 | AO14: =COUNTIF(L40:L47,AN14) -> 0 | AP14: =AO14/(AQ4-AO8) -> 0 | AQ14: =IF(AP14=0,0,(AP14*((LOG(AP14))/LOG(2)))) -> 0 | AS14: =N14 -> 0 | AT14: =COUNTIF(L48:L55,AS14) -> 0 | AU14: =AT14/(AV4-AT8) ->  | AV14: =IF(AU14=0,0,(AU14*((LOG(AU14))/LOG(2)))) -> 
A15: 11 | B15: 969 | C15: 21 | D15: 976 | K15: 0 | L15: 12 | P15: =SUM(P7:P14) -> 1 | Q15: =-SUM(Q7:Q14) -> 0.9914310484 | V15: =SUM(V7:V14) -> 1 | W15: =-SUM(W7:W14) -> 0 | AA15: =SUM(AA7:AA14) -> 1 | AB15: =-SUM(AB7:AB14) -> 0 | AF15: =SUM(AF7:AF14) ->  | AG15: =-SUM(AG7:AG14) ->  | AK15: =SUM(AK7:AK14) -> 1 | AL15: =-SUM(AL7:AL14) -> 0 | AP15: =SUM(AP7:AP14) -> 1 | AQ15: =-SUM(AQ7:AQ14) -> 0 | AU15: =SUM(AU7:AU14) ->  | AV15: =-SUM(AV7:AV14) -> 
A16: 11 | B16: 1075 | C16: 21 | D16: 1087 | K16: 0 | L16: 12 | P16: U= | Q16: =Q15/(LOG(Q4)/LOG(2)) -> 0.1765774325 | V16: U1= | W16: =W15/(LOG(W4)/LOG(2)) -> 0 | AA16: U2= | AB16: =AB15/(LOG(AB4)/LOG(2)) -> 0 | AF16: U3= | AG16: =AG15/(LOG(AG4)/LOG(2)) ->  | AK16: U4= | AL16: =AL15/(LOG(AL4)/LOG(2)) -> 0 | AP16: U5= | AQ16: =AQ15/(LOG(AQ4)/LOG(2)) -> 0 | AU16: U6= | AV16: =AV15/(LOG(AV4)/LOG(2)) -> 
A17: 11 | B17: 1182 | C17: 21 | D17: 1195 | K17: 0 | L17: 12
A18: 11 | B18: 1287 | C18: 21 | D18: 1301 | K18: 0 | L18: 12
A19: 22 | B19: 1404 | C19: 14 | D19: 1433 | K19: 0 | L19: 21 | N19: Total Target Seq
A20: 22 | B20: 1548 | C20: 14 | D20: 1576 | K20: 0 | L20: 21 | N20: =COUNTIF(L7:L55,G3) -> 38 | P20: 8 | Q20: 8 | R20: 9 | S20: 8 | T20: 8 | U20: 8
A21: 11 | B21: 1677 | C21: 21 | D21: 1694 | K21: 0 | L21: 12 | P21: % of reinforcement given in 6 equal intervals based on number of trials
A22: 11 | B22: 1790 | C22: 21 | D22: 1799 | K22: 0 | L22: 12 | P22: %_1 | Q22: %_2 | R22: %_3 | S22: %_4 | T22: %_5 | U22: %_6
A23: 11 | B23: 1895 | C23: 21 | D23: 1906 | K23: 0 | L23: 12 | O23: target sequence | P23: =$G$3 -> 12 | Q23: =$G$3 -> 12 | R23: =$G$3 -> 12 | S23: =$G$3 -> 12 | T23: =$G$3 -> 12 | U23: =$G$3 -> 12
A24: 11 | B24: 2004 | C24: 21 | D24: 2018 | K24: 0 | L24: 12 | O24: total reinforcement | P24: =U8 -> 5 | Q24: =Z8 -> 6 | R24: =AE8 -> 9 | S24: =AJ8 -> 5 | T24: =AO8 -> 5 | U24: =AT8 -> 8
A25: 11 | B25: 2114 | C25: 21 | D25: 2125 | K25: 0 | L25: 12 | O25: % target
A26: 11 | B26: 2224 | C26: 21 | D26: 2246 | K26: 0 | L26: 12 | O26: CCRF
A27: 11 | B27: 2341 | C27: 21 | D27: 2351 | K27: 0 | L27: 12 | O27: % CCRf
A28: 11 | B28: 2444 | C28: 21 | D28: 2457 | K28: 0 | L28: 12 | O28: average response rate | P28: =D14/P20 -> 108.25 | Q28: =(D22-D14)/Q20 -> 116.625 | R28: =(D31-D22)/R20 -> 111.1111111 | S28: =(D39-D31)/S20 -> 115.375 | T28: =(D47-D39)/T20 -> 117.75 | U28: =(D55-D47)/U20 -> 106.125
A29: 11 | B29: 2551 | C29: 21 | D29: 2557 | K29: 0 | L29: 12
A30: 11 | B30: 2654 | C30: 21 | D30: 2664 | K30: 0 | L30: 12
A31: 11 | B31: 2759 | C31: 21 | D31: 2799 | K31: 0 | L31: 12
A32: 11 | B32: 2898 | C32: 21 | D32: 2907 | K32: 0 | L32: 12
A33: 11 | B33: 3002 | C33: 21 | D33: 3019 | K33: 0 | L33: 12
A34: 11 | B34: 3112 | C34: 21 | D34: 3120 | K34: 0 | L34: 12
A35: 11 | B35: 3216 | C35: 21 | D35: 3222 | K35: 0 | L35: 12
A36: 11 | B36: 3318 | C36: 12 | D36: 3343 | K36: 0 | L36: 11
A37: 11 | B37: 3439 | C37: 12 | D37: 3467 | K37: 0 | L37: 11
A38: 11 | B38: 3573 | C38: 12 | D38: 3596 | K38: 0 | L38: 11
A39: 11 | B39: 3704 | C39: 21 | D39: 3722 | K39: 0 | L39: 12
A40: 11 | B40: 3815 | C40: 21 | D40: 3828 | K40: 0 | L40: 12
A41: 11 | B41: 3922 | C41: 21 | D41: 3933 | K41: 0 | L41: 12
A42: 11 | B42: 4027 | C42: 21 | D42: 4040 | K42: 0 | L42: 12
A43: 11 | B43: 4137 | C43: 12 | D43: 4161 | K43: 0 | L43: 11
A44: 11 | B44: 4265 | C44: 21 | D44: 4275 | K44: 0 | L44: 12
A45: 11 | B45: 4370 | C45: 12 | D45: 4410 | K45: 0 | L45: 11
A46: 11 | B46: 4518 | C46: 12 | D46: 4546 | K46: 0 | L46: 11
A47: 11 | B47: 4651 | C47: 21 | D47: 4664 | K47: 0 | L47: 12
A48: 11 | B48: 4760 | C48: 21 | D48: 4769 | K48: 0 | L48: 12
A49: 11 | B49: 4863 | C49: 21 | D49: 4872 | K49: 0 | L49: 12
A50: 11 | B50: 4966 | C50: 21 | D50: 4998 | K50: 0 | L50: 12
A51: 11 | B51: 5091 | C51: 21 | D51: 5097 | K51: 0 | L51: 12
A52: 11 | B52: 5194 | C52: 21 | D52: 5203 | K52: 0 | L52: 12
A53: 11 | B53: 5297 | C53: 21 | D53: 5306 | K53: 0 | L53: 12
A54: 11 | B54: 5398 | C54: 21 | D54: 5409 | K54: 0 | L54: 12
A55: 11 | B55: 5502 | C55: 21 | D55: 5513 | K55: 1 | L55: 12

Sheet !MC15C20.105
A1: Report for:!MC15C20.105
A2: Date: | B2: <date>
A3: Hen: | B3: <hen> | F3: Correct Sequence | G3: =Start!J2 -> 12 | P3: Total Sequences in Data | Q3: =4994-COUNTBLANK(L7:L5000) -> 43 | V3: Total Sequences in Block Data | W3: =COUNTA(L7:L13) -> 7 | AA3: Total Sequences in Block Data | AB3: =COUNTA(L14:L20) -> 7 | AF3: Total Sequences in Block Data | AG3: =COUNTA(L21:L28) -> 8 | AK3: Total Sequences in Block Data | AL3: =COUNTA(L29:L35) -> 7 | AP3: Total Sequences in Block Data | AQ3: =COUNTA(L36:L42) -> 7 | AU3: Total Sequences in Block Data | AV3: =COUNTA(L43:L49) -> 7
P4: Total Sequences in Summary | Q4: =SUM(O7:O14) -> 43 | V4: Total Sequences in Block Summary | W4: =SUM(U7:U14) -> 7 | AA4: Total Sequences in Block Summary | AB4: =SUM(Z7:Z14) -> 7 | AF4: Total Sequences in Block Summary | AG4: =SUM(AE7:AE14) -> 8 | AK4: Total Sequences in Block Summary | AL4: =SUM(AJ7:AJ14) -> 7 | AP4: Total Sequences in Block Summary | AQ4: =SUM(AO7:AO14) -> 7 | AU4: Total Sequences in Block Summary | AV4: =SUM(AT7:AT14) -> 7
T5: Block 1 | Y5: Block 2 | AD5: Block 3 | AI5: Block 4 | AN5: Block 5 | AS5: Block 6
A6: Sequence Component 1 | B6: Time 1 | C6: Sequence Component 2 | D6: Time 2 | E6: Sequence Component 3 | F6: Time 3 | G6: Sequence Component 4 | H6: Time 4 | I6: Sequence Component 5 | J6: Time 5 | K6: Correct? 0=No 1=Yes | L6: Sequence | N6: Frequency | P6: Relative Frequency | Q6: Variability | T6: Frequency | V6: Relative Frequency | W6: Variability | Y6: Frequency | AA6: Relative Frequency | AB6: Variability | AD6: Frequency | AF6: Relative Frequency | AG6: Variability | AI6: Frequency | AK6: Relative Frequency | AL6: Variability | AN6: Frequency | AP6: Relative Frequency | AQ6: Variability | AS6: Frequency | AU6: Relative Frequency | AV6: Variability
A7: 11 | B7: 17 | C7: 21 | D7: 23 | K7: 0 | L7: 12 | N7: 11 | O7: =COUNTIF($L$7:$L$500,N7) -> 1 | P7: =O7/$Q$4 -> 0.02325581395 | Q7: =IF(P7=0,0,(P7*((LOG(P7))/LOG(2)))) -> -0.1261922036 | T7: =N7 -> 11 | U7: =COUNTIF(L7:L13,T7) -> 0 | V7: =U7/(W4-U8) -> 0 | W7: =IF(V7=0,0,(V7*((LOG(V7))/LOG(2)))) -> 0 | Y7: =N7 -> 11 | Z7: =COUNTIF(L14:L20,Y7) -> 0 | AA7: =Z7/(AB4-Z8) ->  | AB7: =IF(AA7=0,0,(AA7*((LOG(AA7))/LOG(2)))) ->  | AD7: =N7 -> 11 | AE7: =COUNTIF(L21:L28,AD7) -> 0 | AF7: =AE7/(AG4-AE8) ->  | AG7: =IF(AF7=0,0,(AF7*((LOG(AF7))/LOG(2)))) ->  | AI7: =N7 -> 11 | AJ7: =COUNTIF(L29:L35,AI7) -> 1 | AK7: =AJ7/(AL4-AJ8) -> 1 | AL7: =IF(AK7=0,0,(AK7*((LOG(AK7))/LOG(2)))) -> 0 | AN7: =N7 -> 11 | AO7: =COUNTIF(L36:L42,AN7) -> 0 | AP7: =AO7/(AQ4-AO8) ->  | AQ7: =IF(AP7=0,0,(AP7*((LOG(AP7))/LOG(2)))) ->  | AS7: =N7 -> 11 | AT7: =COUNTIF(L43:L49,AS7) -> 0 | AU7: =AT7/(AV4-AT8) ->  | AV7: =IF(AU7=0,0,(AU7*((LOG(AU7))/LOG(2)))) -> 
A8: 11 | B8: 118 | C8: 21 | D8: 132 | K8: 0 | L8: 12 | N8: 12 | O8: =COUNTIF($L$7:$L$500,N8) -> 39 | P8: =O8/$Q$4 -> 0.9069767442 | Q8: =IF(P8=0,0,(P8*((LOG(P8))/LOG(2)))) -> -0.1277590441 | T8: =N8 -> 12 | U8: =COUNTIF(L7:L13,T8) -> 4 | Y8: =N8 -> 12 | Z8: =COUNTIF(L14:L20,Y8) -> 7 | AD8: =N8 -> 12 | AE8: =COUNTIF(L21:L28,AD8) -> 8 | AI8: =N8 -> 12 | AJ8: =COUNTIF(L29:L35,AI8) -> 6 | AN8: =N8 -> 12 | AO8: =COUNTIF(L36:L42,AN8) -> 7 | AS8: =N8 -> 12 | AT8: =COUNTIF(L43:L49,AS8) -> 7
A9: 11 | B9: 230 | C9: 21 | D9: 241 | K9: 0 | L9: 12 | N9: 21 | O9: =COUNTIF($L$7:$L$500,N9) -> 3 | P9: =O9/$Q$4 -> 0.06976744186 | Q9: =IF(P9=0,0,(P9*((LOG(P9))/LOG(2)))) -> -0.2679978317 | T9: =N9 -> 21 | U9: =COUNTIF(L7:L13,T9) -> 3 | V9: =U9/(W4-U8) -> 1 | W9: =IF(V9=0,0,(V9*((LOG(V9))/LOG(2)))) -> 0 | Y9: =N9 -> 21 | Z9: =COUNTIF(L14:L20,Y9) -> 0 | AA9: =Z9/(AB4-Z8) ->  | AB9: =IF(AA9=0,0,(AA9*((LOG(AA9))/LOG(2)))) ->  | AD9: =N9 -> 21 | AE9: =COUNTIF(L21:L28,AD9) -> 0 | AF9: =AE9/(AG4-AE8) ->  | AG9: =IF(AF9=0,0,(AF9*((LOG(AF9))/LOG(2)))) ->  | AI9: =N9 -> 21 | AJ9: =COUNTIF(L29:L35,AI9) -> 0 | AK9: =AJ9/(AL4-AJ8) -> 0 | AL9: =IF(AK9=0,0,(AK9*((LOG(AK9))/LOG(2)))) -> 0 | AN9: =N9 -> 21 | AO9: =COUNTIF(L36:L42,AN9) -> 0 | AP9: =AO9/(AQ4-AO8) ->  | AQ9: =IF(AP9=0,0,(AP9*((LOG(AP9))/LOG(2)))) ->  | AS9: =N9 -> 21 | AT9: =COUNTIF(L43:L49,AS9) -> 0 | AU9: =AT9/(AV4-AT8) ->  | AV9: =IF(AU9=0,0,(AU9*((LOG(AU9))/LOG(2)))) -> 
A10: 22 | B10: 346 | C10: 14 | D10: 370 | K10: 0 | L10: 21 | N10: 22 | O10: =COUNTIF($L$7:$L$500,N10) -> 0 | P10: =O10/$Q$4 -> 0 | Q10: =IF(P10=0,0,(P10*((LOG(P10))/LOG(2)))) -> 0 | T10: =N10 -> 22 | U10: =COUNTIF(L7:L13,T10) -> 0 | V10: =U10/(W4-U8) -> 0 | W10: =IF(V10=0,0,(V10*((LOG(V10))/LOG(2)))) -> 0 | Y10: =N10 -> 22 | Z10: =COUNTIF(L14:L20,Y10) -> 0 | AA10: =Z10/(AB4-Z8) ->  | AB10: =IF(AA10=0,0,(AA10*((LOG(AA10))/LOG(2)))) ->  | AD10: =N10 -> 22 | AE10: =COUNTIF(L21:L28,AD10) -> 0 | AF10: =AE10/(AG4-AE8) ->  | AG10: =IF(AF10=0,0,(AF10*((LOG(AF10))/LOG(2)))) ->  | AI10: =N10 -> 22 | AJ10: =COUNTIF(L29:L35,AI10) -> 0 | AK10: =AJ10/(AL4-AJ8) -> 0 | AL10: =IF(AK10=0,0,(AK10*((LOG(AK10))/LOG(2)))) -> 0 | AN10: =N10 -> 22 | AO10: =COUNTIF(L36:L42,AN10) -> 0 | AP10: =AO10/(AQ4-AO8) ->  | AQ10: =IF(AP10=0,0,(AP10*((LOG(AP10))/LOG(2)))) ->  | AS10: =N10 -> 22 | AT10: =COUNTIF(L43:L49,AS10) -> 0 | AU10: =AT10/(AV4-AT8) ->  | AV10: =IF(AU10=0,0,(AU10*((LOG(AU10))/LOG(2)))) -> 
A11: 22 | B11: 477 | C11: 14 | D11: 493 | K11: 0 | L11: 21 | T11: =N11 -> 0 | U11: =COUNTIF(L7:L13,T11) -> 0 | V11: =U11/(W4-U8) -> 0 | W11: =IF(V11=0,0,(V11*((LOG(V11))/LOG(2)))) -> 0 | Y11: =N11 -> 0 | Z11: =COUNTIF(L14:L20,Y11) -> 0 | AA11: =Z11/(AB4-Z8) ->  | AB11: =IF(AA11=0,0,(AA11*((LOG(AA11))/LOG(2)))) ->  | AD11: =N11 -> 0 | AE11: =COUNTIF(L21:L28,AD11) -> 0 | AF11: =AE11/(AG4-AE8) ->  | AG11: =IF(AF11=0,0,(AF11*((LOG(AF11))/LOG(2)))) ->  | AI11: =N11 -> 0 | AJ11: =COUNTIF(L29:L35,AI11) -> 0 | AK11: =AJ11/(AL4-AJ8) -> 0 | AL11: =IF(AK11=0,0,(AK11*((LOG(AK11))/LOG(2)))) -> 0 | AN11: =N11 -> 0 | AO11: =COUNTIF(L36:L42,AN11) -> 0 | AP11: =AO11/(AQ4-AO8) ->  | AQ11: =IF(AP11=0,0,(AP11*((LOG(AP11))/LOG(2)))) ->  | AS11: =N11 -> 0 | AT11: =COUNTIF(L43:L49,AS11) -> 0 | AU11: =AT11/(AV4-AT8) ->  | AV11: =IF(AU11=0,0,(AU11*((LOG(AU11))/LOG(2)))) -> 
A12: 22 | B12: 616 | C12: 14 | D12: 637 | K12: 0 | L12: 21 | T12: =N12 -> 0 | U12: =COUNTIF(L7:L13,T12) -> 0 | V12: =U12/(W4-U8) -> 0 | W12: =IF(V12=0,0,(V12*((LOG(V12))/LOG(2)))) -> 0 | Y12: =N12 -> 0 | Z12: =COUNTIF(L14:L20,Y12) -> 0 | AA12: =Z12/(AB4-Z8) ->  | AB12: =IF(AA12=0,0,(AA12*((LOG(AA12))/LOG(2)))) ->  | AD12: =N12 -> 0 | AE12: =COUNTIF(L21:L28,AD12) -> 0 | AF12: =AE12/(AG4-AE8) ->  | AG12: =IF(AF12=0,0,(AF12*((LOG(AF12))/LOG(2)))) ->  | AI12: =N12 -> 0 | AJ12: =COUNTIF(L29:L35,AI12) -> 0 | AK12: =AJ12/(AL4-AJ8) -> 0 | AL12: =IF(AK12=0,0,(AK12*((LOG(AK12))/LOG(2)))) -> 0 | AN12: =N12 -> 0 | AO12: =COUNTIF(L36:L42,AN12) -> 0 | AP12: =AO12/(AQ4-AO8) ->  | AQ12: =IF(AP12=0,0,(AP12*((LOG(AP12))/LOG(2)))) ->  | AS12: =N12 -> 0 | AT12: =COUNTIF(L43:L49,AS12) -> 0 | AU12: =AT12/(AV4-AT8) ->  | AV12: =IF(AU12=0,0,(AU12*((LOG(AU12))/LOG(2)))) -> 
A13: 11 | B13: 741 | C13: 21 | D13: 757 | K13: 0 | L13: 12 | T13: =N13 -> 0 | U13: =COUNTIF(L7:L13,T13) -> 0 | V13: =U13/(W4-U8) -> 0 | W13: =IF(V13=0,0,(V13*((LOG(V13))/LOG(2)))) -> 0 | Y13: =N13 -> 0 | Z13: =COUNTIF(L14:L20,Y13) -> 0 | AA13: =Z13/(AB4-Z8) ->  | AB13: =IF(AA13=0,0,(AA13*((LOG(AA13))/LOG(2)))) ->  | AD13: =N13 -> 0 | AE13: =COUNTIF(L21:L28,AD13) -> 0 | AF13: =AE13/(AG4-AE8) ->  | AG13: =IF(AF13=0,0,(AF13*((LOG(AF13))/LOG(2)))) ->  | AI13: =N13 -> 0 | AJ13: =COUNTIF(L29:L35,AI13) -> 0 | AK13: =AJ13/(AL4-AJ8) -> 0 | AL13: =IF(AK13=0,0,(AK13*((LOG(AK13))/LOG(2)))) -> 0 | AN13: =N13 -> 0 | AO13: =COUNTIF(L36:L42,AN13) -> 0 | AP13: =AO13/(AQ4-AO8) ->  | AQ13: =IF(AP13=0,0,(AP13*((LOG(AP13))/LOG(2)))) ->  | AS13: =N13 -> 0 | AT13: =COUNTIF(L43:L49,AS13) -> 0 | AU13: =AT13/(AV4-AT8) ->  | AV13: =IF(AU13=0,0,(AU13*((LOG(AU13))/LOG(2)))) -> 
A14: 11 | B14: 857 | C14: 21 | D14: 869 | K14: 0 | L14: 12 | T14: =N14 -> 0 | U14: =COUNTIF(L7:L13,T14) -> 0 | V14: =U14/(W4-U8) -> 0 | W14: =IF(V14=0,0,(V14*((LOG(V14))/LOG(2)))) -> 0 | Y14: =N14 -> 0 | Z14: =COUNTIF(L14:L20,Y14) -> 0 | AA14: =Z14/(AB4-Z8) ->  | AB14: =IF(AA14=0,0,(AA14*((LOG(AA14))/LOG(2)))) ->  | AD14: =N14 -> 0 | AE14: =COUNTIF(L21:L28,AD14) -> 0 | AF14: =AE14/(AG4-AE8) ->  | AG14: =IF(AF14=0,0,(AF14*((LOG(AF14))/LOG(2)))) ->  | AI14: =N14 -> 0 | AJ14: =COUNTIF(L29:L35,AI14) -> 0 | AK14: =AJ14/(AL4-AJ8) -> 0 | AL14: =IF(AK14=0,0,(AK14*((LOG(AK14))/LOG(2)))) -> 0 | AN14: =N14 -> 0 | AO14: =COUNTIF(L36:L42,AN14) -> 0 | AP14: =AO14/(AQ4-AO8) ->  | AQ14: =IF(AP14=0,0,(AP14*((LOG(AP14))/LOG(2)))) ->  | AS14: =N14 -> 0 | AT14: =COUNTIF(L43:L49,AS14) -> 0 | AU14: =AT14/(AV4-AT8) ->  | AV14: =IF(AU14=0,0,(AU14*((LOG(AU14))/LOG(2)))) -> 
A15: 11 | B15: 967 | C15: 21 | D15: 981 | K15: 0 | L15: 12 | P15: =SUM(P7:P14) -> 1 | Q15: =-SUM(Q7:Q14) -> 0.5219490794 | V15: =SUM(V7:V14) -> 1 | W15: =-SUM(W7:W14) -> 0 | AA15: =SUM(AA7:AA14) ->  | AB15: =-SUM(AB7:AB14) ->  | AF15: =SUM(AF7:AF14) ->  | AG15: =-SUM(AG7:AG14) ->  | AK15: =SUM(AK7:AK14) -> 1 | AL15: =-SUM(AL7:AL14) -> 0 | AP15: =SUM(AP7:AP14) ->  | AQ15: =-SUM(AQ7:AQ14) ->  | AU15: =SUM(AU7:AU14) ->  | AV15: =-SUM(AV7:AV14) -> 
A16: 11 | B16: 1078 | C16: 21 | D16: 1091 | K16: 0 | L16: 12 | P16: U= | Q16: =Q15/(LOG(Q4)/LOG(2)) -> 0.09618938681 | V16: U1= | W16: =W15/(LOG(W4)/LOG(2)) -> 0 | AA16: U2= | AB16: =AB15/(LOG(AB4)/LOG(2)) ->  | AF16: U3= | AG16: =AG15/(LOG(AG4)/LOG(2)) ->  | AK16: U4= | AL16: =AL15/(LOG(AL4)/LOG(2)) -> 0 | AP16: U5= | AQ16: =AQ15/(LOG(AQ4)/LOG(2)) ->  | AU16: U6= | AV16: =AV15/(LOG(AV4)/LOG(2)) -> 
A17: 11 | B17: 1188 | C17: 21 | D17: 1200 | K17: 0 | L17: 12
A18: 11 | B18: 1291 | C18: 21 | D18: 1304 | K18: 0 | L18: 12
A19: 11 | B19: 1402 | C19: 21 | D19: 1414 | K19: 0 | L19: 12 | N19: Total Target Seq
A20: 11 | B20: 1509 | C20: 21 | D20: 1520 | K20: 0 | L20: 12 | N20: =COUNTIF(L7:L49,G3) -> 39 | P20: 7 | Q20: 7 | R20: 8 | S20: 7 | T20: 7 | U20: 7
A21: 11 | B21: 1616 | C21: 21 | D21: 1631 | K21: 0 | L21: 12 | P21: % of reinforcement given in 6 equal intervals based on number of trials
A22: 11 | B22: 1730 | C22: 21 | D22: 1739 | K22: 0 | L22: 12 | P22: %_1 | Q22: %_2 | R22: %_3 | S22: %_4 | T22: %_5 | U22: %_6
A23: 11 | B23: 1834 | C23: 21 | D23: 1864 | K23: 0 | L23: 12 | O23: target sequence | P23: =$G$3 -> 12 | Q23: =$G$3 -> 12 | R23: =$G$3 -> 12 | S23: =$G$3 -> 12 | T23: =$G$3 -> 12 | U23: =$G$3 -> 12
A24: 11 | B24: 1960 | C24: 21 | D24: 2001 | K24: 0 | L24: 12 | O24: total reinforcement | P24: =U8 -> 4 | Q24: =Z8 -> 7 | R24: =AE8 -> 8 | S24: =AJ8 -> 6 | T24: =AO8 -> 7 | U24: =AT8 -> 7
A25: 11 | B25: 2095 | C25: 21 | D25: 2106 | K25: 0 | L25: 12 | O25: % target
A26: 11 | B26: 2200 | C26: 21 | D26: 2212 | K26: 0 | L26: 12 | O26: CCRF
A27: 11 | B27: 2306 | C27: 21 | D27: 2320 | K27: 0 | L27: 12 | O27: % CCRf
A28: 11 | B28: 2417 | C28: 21 | D28: 2427 | K28: 0 | L28: 12 | O28: average response rate | P28: =D13/P20 -> 108.1428571 | Q28: =(D20-D13)/Q20 -> 109 | R28: =(D28-D20)/R20 -> 113.375 | S28: =(D35-D28)/S20 -> 113.8571429 | T28: =(D42-D35)/T20 -> 113.4285714 | U28: =(D49-D42)/U20 -> 112.2857143
A29: 11 | B29: 2521 | C29: 12 | D29: 2571 | K29: 0 | L29: 11
A30: 11 | B30: 2677 | C30: 21 | D30: 2690 | K30: 0 | L30: 12
A31: 11 | B31: 2785 | C31: 21 | D31: 2794 | K31: 0 | L31: 12
A32: 11 | B32: 2892 | C32: 21 | D32: 2906 | K32: 0 | L32: 12
A33: 11 | B33: 3000 | C33: 21 | D33: 3015 | K33: 0 | L33: 12
A34: 11 | B34: 3109 | C34: 21 | D34: 3119 | K34: 0 | L34: 12
A35: 11 | B35: 3213 | C35: 21 | D35: 3224 | K35: 0 | L35: 12
A36: 11 | B36: 3317 | C36: 21 | D36: 3330 | K36: 0 | L36: 12
A37: 11 | B37: 3425 | C37: 21 | D37: 3435 | K37: 0 | L37: 12
A38: 11 | B38: 3529 | C38: 21 | D38: 3563 | K38: 0 | L38: 12
A39: 11 | B39: 3659 | C39: 21 | D39: 3666 | K39: 0 | L39: 12
A40: 11 | B40: 3760 | C40: 21 | D40: 3771 | K40: 0 | L40: 12
A41: 11 | B41: 3865 | C41: 21 | D41: 3908 | K41: 0 | L41: 12
A42: 11 | B42: 4005 | C42: 21 | D42: 4018 | K42: 0 | L42: 12
A43: 11 | B43: 4113 | C43: 21 | D43: 4123 | K43: 0 | L43: 12
A44: 11 | B44: 4218 | C44: 21 | D44: 4231 | K44: 0 | L44: 12
A45: 11 | B45: 4325 | C45: 21 | D45: 4339 | K45: 0 | L45: 12
A46: 11 | B46: 4432 | C46: 21 | D46: 4444 | K46: 0 | L46: 12
A47: 11 | B47: 4539 | C47: 21 | D47: 4553 | K47: 0 | L47: 12
A48: 11 | B48: 4647 | C48: 21 | D48: 4699 | K48: 0 | L48: 12
A49: 11 | B49: 4792 | C49: 21 | D49: 4804 | K49: 1 | L49: 12

Sheet !MC16A20.105
A1: Report for:!MC16A20.105
A2: Date: | B2: <date>
A3: Hen: | B3: <hen> | F3: Correct Sequence | G3: =Start!J2 -> 12 | P3: Total Sequences in Data | Q3: =4994-COUNTBLANK(L7:L5000) -> 43 | V3: Total Sequences in Block Data | W3: =COUNTA(L7:L13) -> 7 | AA3: Total Sequences in Block Data | AB3: =COUNTA(L14:L20) -> 7 | AF3: Total Sequences in Block Data | AG3: =COUNTA(L21:L28) -> 8 | AK3: Total Sequences in Block Data | AL3: =COUNTA(L29:L35) -> 7 | AP3: Total Sequences in Block Data | AQ3: =COUNTA(L36:L42) -> 7 | AU3: Total Sequences in Block Data | AV3: =COUNTA(L43:L49) -> 7
P4: Total Sequences in Summary | Q4: =SUM(O7:O14) -> 43 | V4: Total Sequences in Block Summary | W4: =SUM(U7:U14) -> 7 | AA4: Total Sequences in Block Summary | AB4: =SUM(Z7:Z14) -> 7 | AF4: Total Sequences in Block Summary | AG4: =SUM(AE7:AE14) -> 8 | AK4: Total Sequences in Block Summary | AL4: =SUM(AJ7:AJ14) -> 7 | AP4: Total Sequences in Block Summary | AQ4: =SUM(AO7:AO14) -> 7 | AU4: Total Sequences in Block Summary | AV4: =SUM(AT7:AT14) -> 7
T5: Block 1 | Y5: Block 2 | AD5: Block 3 | AI5: Block 4 | AN5: Block 5 | AS5: Block 6
A6: Sequence Component 1 | B6: Time 1 | C6: Sequence Component 2 | D6: Time 2 | E6: Sequence Component 3 | F6: Time 3 | G6: Sequence Component 4 | H6: Time 4 | I6: Sequence Component 5 | J6: Time 5 | K6: Correct? 0=No 1=Yes | L6: Sequence | N6: Frequency | P6: Relative Frequency | Q6: Variability | T6: Frequency | V6: Relative Frequency | W6: Variability | Y6: Frequency | AA6: Relative Frequency | AB6: Variability | AD6: Frequency | AF6: Relative Frequency | AG6: Variability | AI6: Frequency | AK6: Relative Frequency | AL6: Variability | AN6: Frequency | AP6: Relative Frequency | AQ6: Variability | AS6: Frequency | AU6: Relative Frequency | AV6: Variability
A7: 11 | B7: 14 | C7: 21 | D7: 26 | K7: 0 | L7: 12 | N7: 11 | O7: =COUNTIF($L$7:$L$500,N7) -> 2 | P7: =O7/$Q$4 -> 0.04651162791 | Q7: =IF(P7=0,0,(P7*((LOG(P7))/LOG(2)))) -> -0.2058727793 | T7: =N7 -> 11 | U7: =COUNTIF(L7:L13,T7) -> 0 | V7: =U7/(W4-U8) ->  | W7: =IF(V7=0,0,(V7*((LOG(V7))/LOG(2)))) ->  | Y7: =N7 -> 11 | Z7: =COUNTIF(L14:L20,Y7) -> 1 | AA7: =Z7/(AB4-Z8) -> 1 | AB7: =IF(AA7=0,0,(AA7*((LOG(AA7))/LOG(2)))) -> 0 | AD7: =N7 -> 11 | AE7: =COUNTIF(L21:L28,AD7) -> 0 | AF7: =AE7/(AG4-AE8) -> 0 | AG7: =IF(AF7=0,0,(AF7*((LOG(AF7))/LOG(2)))) -> 0 | AI7: =N7 -> 11 | AJ7: =COUNTIF(L29:L35,AI7) -> 1 | AK7: =AJ7/(AL4-AJ8) -> 1 | AL7: =IF(AK7=0,0,(AK7*((LOG(AK7))/LOG(2)))) -> 0 | AN7: =N7 -> 11 | AO7: =COUNTIF(L36:L42,AN7) -> 0 | AP7: =AO7/(AQ4-AO8) -> 0 | AQ7: =IF(AP7=0,0,(AP7*((LOG(AP7))/LOG(2)))) -> 0 | AS7: =N7 -> 11 | AT7: =COUNTIF(L43:L49,AS7) -> 0 | AU7: =AT7/(AV4-AT8) ->  | AV7: =IF(AU7=0,0,(AU7*((LOG(AU7))/LOG(2)))) -> 
A8: 11 | B8: 133 | C8: 21 | D8: 145 | K8: 0 | L8: 12 | N8: 12 | O8: =COUNTIF($L$7:$L$500,N8) -> 39 | P8: =O8/$Q$4 -> 0.9069767442 | Q8: =IF(P8=0,0,(P8*((LOG(P8))/LOG(2)))) -> -0.1277590441 | T8: =N8 -> 12 | U8: =COUNTIF(L7:L13,T8) -> 7 | Y8: =N8 -> 12 | Z8: =COUNTIF(L14:L20,Y8) -> 6 | AD8: =N8 -> 12 | AE8: =COUNTIF(L21:L28,AD8) -> 7 | AI8: =N8 -> 12 | AJ8: =COUNTIF(L29:L35,AI8) -> 6 | AN8: =N8 -> 12 | AO8: =COUNTIF(L36:L42,AN8) -> 6 | AS8: =N8 -> 12 | AT8: =COUNTIF(L43:L49,AS8) -> 7
A9: 11 | B9: 242 | C9: 21 | D9: 253 | K9: 0 | L9: 12 | N9: 21 | O9: =COUNTIF($L$7:$L$500,N9) -> 0 | P9: =O9/$Q$4 -> 0 | Q9: =IF(P9=0,0,(P9*((LOG(P9))/LOG(2)))) -> 0 | T9: =N9 -> 21 | U9: =COUNTIF(L7:L13,T9) -> 0 | V9: =U9/(W4-U8) ->  | W9: =IF(V9=0,0,(V9*((LOG(V9))/LOG(2)))) ->  | Y9: =N9 -> 21 | Z9: =COUNTIF(L14:L20,Y9) -> 0 | AA9: =Z9/(AB4-Z8) -> 0 | AB9: =IF(AA9=0,0,(AA9*((LOG(AA9))/LOG(2)))) -> 0 | AD9: =N9 -> 21 | AE9: =COUNTIF(L21:L28,AD9) -> 0 | AF9: =AE9/(AG4-AE8) -> 0 | AG9: =IF(AF9=0,0,(AF9*((LOG(AF9))/LOG(2)))) -> 0 | AI9: =N9 -> 21 | AJ9: =COUNTIF(L29:L35,AI9) -> 0 | AK9: =AJ9/(AL4-AJ8) -> 0 | AL9: =IF(AK9=0,0,(AK9*((LOG(AK9))/LOG(2)))) -> 0 | AN9: =N9 -> 21 | AO9: =COUNTIF(L36:L42,AN9) -> 0 | AP9: =AO9/(AQ4-AO8) -> 0 | AQ9: =IF(AP9=0,0,(AP9*((LOG(AP9))/LOG(2)))) -> 0 | AS9: =N9 -> 21 | AT9: =COUNTIF(L43:L49,AS9) -> 0 | AU9: =AT9/(AV4-AT8) ->  | AV9: =IF(AU9=0,0,(AU9*((LOG(AU9))/LOG(2)))) -> 
A10: 11 | B10: 353 | C10: 21 | D10: 366 | K10: 0 | L10: 12 | N10: 22 | O10: =COUNTIF($L$7:$L$500,N10) -> 2 | P10: =O10/$Q$4 -> 0.04651162791 | Q10: =IF(P10=0,0,(P10*((LOG(P10))/LOG(2)))) -> -0.2058727793 | T10: =N10 -> 22 | U10: =COUNTIF(L7:L13,T10) -> 0 | V10: =U10/(W4-U8) ->  | W10: =IF(V10=0,0,(V10*((LOG(V10))/LOG(2)))) ->  | Y10: =N10 -> 22 | Z10: =COUNTIF(L14:L20,Y10) -> 0 | AA10: =Z10/(AB4-Z8) -> 0 | AB10: =IF(AA10=0,0,(AA10*((LOG(AA10))/LOG(2)))) -> 0 | AD10: =N10 -> 22 | AE10: =COUNTIF(L21:L28,AD10) -> 1 | AF10: =AE10/(AG4-AE8) -> 1 | AG10: =IF(AF10=0,0,(AF10*((LOG(AF10))/LOG(2)))) -> 0 | AI10: =N10 -> 22 | AJ10: =COUNTIF(L29:L35,AI10) -> 0 | AK10: =AJ10/(AL4-AJ8) -> 0 | AL10: =IF(AK10=0,0,(AK10*((LOG(AK10))/LOG(2)))) -> 0 | AN10: =N10 -> 22 | AO10: =COUNTIF(L36:L42,AN10) -> 1 | AP10: =AO10/(AQ4-AO8) -> 1 | AQ10: =IF(AP10=0,0,(AP10*((LOG(AP10))/LOG(2)))) -> 0 | AS10: =N10 -> 22 | AT10: =COUNTIF(L43:L49,AS10) -> 0 | AU10: =AT10/(AV4-AT8) ->  | AV10: =IF(AU10=0,0,(AU10*((LOG(AU10))/LOG(2)))) -> 
A11: 11 | B11: 465 | C11: 21 | D11: 479 | K11: 0 | L11: 12 | T11: =N11 -> 0 | U11: =COUNTIF(L7:L13,T11) -> 0 | V11: =U11/(W4-U8) ->  | W11: =IF(V11=0,0,(V11*((LOG(V11))/LOG(2)))) ->  | Y11: =N11 -> 0 | Z11: =COUNTIF(L14:L20,Y11) -> 0 | AA11: =Z11/(AB4-Z8) -> 0 | AB11: =IF(AA11=0,0,(AA11*((LOG(AA11))/LOG(2)))) -> 0 | AD11: =N11 -> 0 | AE11: =COUNTIF(L21:L28,AD11) -> 0 | AF11: =AE11/(AG4-AE8) -> 0 | AG11: =IF(AF11=0,0,(AF11*((LOG(AF11))/LOG(2)))) -> 0 | AI11: =N11 -> 0 | AJ11: =COUNTIF(L29:L35,AI11) -> 0 | AK11: =AJ11/(AL4-AJ8) -> 0 | AL11: =IF(AK11=0,0,(AK11*((LOG(AK11))/LOG(2)))) -> 0 | AN11: =N11 -> 0 | AO11: =COUNTIF(L36:L42,AN11) -> 0 | AP11: =AO11/(AQ4-AO8) -> 0 | AQ11: =IF(AP11=0,0,(AP11*((LOG(AP11))/LOG(2)))) -> 0 | AS11: =N11 -> 0 | AT11: =COUNTIF(L43:L49,AS11) -> 0 | AU11: =AT11/(AV4-AT8) ->  | AV11: =IF(AU11=0,0,(AU11*((LOG(AU11))/LOG(2)))) -> 
A12: 11 | B12: 575 | C12: 21 | D12: 592 | K12: 0 | L12: 12 | T12: =N12 -> 0 | U12: =COUNTIF(L7:L13,T12) -> 0 | V12: =U12/(W4-U8) ->  | W12: =IF(V12=0,0,(V12*((LOG(V12))/LOG(2)))) ->  | Y12: =N12 -> 0 | Z12: =COUNTIF(L14:L20,Y12) -> 0 | AA12: =Z12/(AB4-Z8) -> 0 | AB12: =IF(AA12=0,0,(AA12*((LOG(AA12))/LOG(2)))) -> 0 | AD12: =N12 -> 0 | AE12: =COUNTIF(L21:L28,AD12) -> 0 | AF12: =AE12/(AG4-AE8) -> 0 | AG12: =IF(AF12=0,0,(AF12*((LOG(AF12))/LOG(2)))) -> 0 | AI12: =N12 -> 0 | AJ12: =COUNTIF(L29:L35,AI12) -> 0 | AK12: =AJ12/(AL4-AJ8) -> 0 | AL12: =IF(AK12=0,0,(AK12*((LOG(AK12))/LOG(2)))) -> 0 | AN12: =N12 -> 0 | AO12: =COUNTIF(L36:L42,AN12) -> 0 | AP12: =AO12/(AQ4-AO8) -> 0 | AQ12: =IF(AP12=0,0,(AP12*((LOG(AP12))/LOG(2)))) -> 0 | AS12: =N12 -> 0 | AT12: =COUNTIF(L43:L49,AS12) -> 0 | AU12: =AT12/(AV4-AT8) ->  | AV12: =IF(AU12=0,0,(AU12*((LOG(AU12))/LOG(2)))) -> 
A13: 11 | B13: 686 | C13: 21 | D13: 703 | K13: 0 | L13: 12 | T13: =N13 -> 0 | U13: =COUNTIF(L7:L13,T13) -> 0 | V13: =U13/(W4-U8) ->  | W13: =IF(V13=0,0,(V13*((LOG(V13))/LOG(2)))) ->  | Y13: =N13 -> 0 | Z13: =COUNTIF(L14:L20,Y13) -> 0 | AA13: =Z13/(AB4-Z8) -> 0 | AB13: =IF(AA13=0,0,(AA13*((LOG(AA13))/LOG(2)))) -> 0 | AD13: =N13 -> 0 | AE13: =COUNTIF(L21:L28,AD13) -> 0 | AF13: =AE13/(AG4-AE8) -> 0 | AG13: =IF(AF13=0,0,(AF13*((LOG(AF13))/LOG(2)))) -> 0 | AI13: =N13 -> 0 | AJ13: =COUNTIF(L29:L35,AI13) -> 0 | AK13: =AJ13/(AL4-AJ8) -> 0 | AL13: =IF(AK13=0,0,(AK13*((LOG(AK13))/LOG(2)))) -> 0 | AN13: =N13 -> 0 | AO13: =COUNTIF(L36:L42,AN13) -> 0 | AP13: =AO13/(AQ4-AO8) -> 0 | AQ13: =IF(AP13=0,0,(AP13*((LOG(AP13))/LOG(2)))) -> 0 | AS13: =N13 -> 0 | AT13: =COUNTIF(L43:L49,AS13) -> 0 | AU13: =AT13/(AV4-AT8) ->  | AV13: =IF(AU13=0,0,(AU13*((LOG(AU13))/LOG(2)))) -> 
A14: 11 | B14: 799 | C14: 12 | D14: 810 | K14: 0 | L14: 11 | T14: =N14 -> 0 | U14: =COUNTIF(L7:L13,T14) -> 0 | V14: =U14/(W4-U8) ->  | W14: =IF(V14=0,0,(V14*((LOG(V14))/LOG(2)))) ->  | Y14: =N14 -> 0 | Z14: =COUNTIF(L14:L20,Y14) -> 0 | AA14: =Z14/(AB4-Z8) -> 0 | AB14: =IF(AA14=0,0,(AA14*((LOG(AA14))/LOG(2)))) -> 0 | AD14: =N14 -> 0 | AE14: =COUNTIF(L21:L28,AD14) -> 0 | AF14: =AE14/(AG4-AE8) -> 0 | AG14: =IF(AF14=0,0,(AF14*((LOG(AF14))/LOG(2)))) -> 0 | AI14: =N14 -> 0 | AJ14: =COUNTIF(L29:L35,AI14) -> 0 | AK14: =AJ14/(AL4-AJ8) -> 0 | AL14: =IF(AK14=0,0,(AK14*((LOG(AK14))/LOG(2)))) -> 0 | AN14: =N14 -> 0 | AO14: =COUNTIF(L36:L42,AN14) -> 0 | AP14: =AO14/(AQ4-AO8) -> 0 | AQ14: =IF(AP14=0,0,(AP14*((LOG(AP14))/LOG(2)))) -> 0 | AS14: =N14 -> 0 | AT14: =COUNTIF(L43:L49,AS14) -> 0 | AU14: =AT14/(AV4-AT8) ->  | AV14: =IF(AU14=0,0,(AU14*((LOG(AU14))/LOG(2)))) -> 
A15: 11 | B15: 914 | C15: 21 | D15: 933 | K15: 0 | L15: 12 | P15: =SUM(P7:P14) -> 1 | Q15: =-SUM(Q7:Q14) -> 0.5395046027 | V15: =SUM(V7:V14) ->  | W15: =-SUM(W7:W14) ->  | AA15: =SUM(AA7:AA14) -> 1 | AB15: =-SUM(AB7:AB14) -> 0 | AF15: =SUM(AF7:AF14) -> 1 | AG15: =-SUM(AG7:AG14) -> 0 | AK15: =SUM(AK7:AK14) -> 1 | AL15: =-SUM(AL7:AL14) -> 0 | AP15: =SUM(AP7:AP14) -> 1 | AQ15: =-SUM(AQ7:AQ14) -> 0 | AU15: =SUM(AU7:AU14) ->  | AV15: =-SUM(AV7:AV14) -> 
A16: 11 | B16: 1031 | C16: 21 | D16: 1044 | K16: 0 | L16: 12 | P16: U= | Q16: =Q15/(LOG(Q4)/LOG(2)) -> 0.09942467371 | V16: U1= | W16: =W15/(LOG(W4)/LOG(2)) ->  | AA16: U2= | AB16: =AB15/(LOG(AB4)/LOG(2)) -> 0 | AF16: U3= | AG16: =AG15/(LOG(AG4)/LOG(2)) -> 0 | AK16: U4= | AL16: =AL15/(LOG(AL4)/LOG(2)) -> 0 | AP16: U5= | AQ16: =AQ15/(LOG(AQ4)/LOG(2)) -> 0 | AU16: U6= | AV16: =AV15/(LOG(AV4)/LOG(2)) -> 
A17: 11 | B17: 1140 | C17: 21 | D17: 1154 | K17: 0 | L17: 12
A18: 11 | B18: 1248 | C18: 21 | D18: 1266 | K18: 0 | L18: 12
A19: 11 | B19: 1362 | C19: 21 | D19: 1376 | K19: 0 | L19: 12 | N19: Total Target Seq
A20: 11 | B20: 1469 | C20: 21 | D20: 1484 | K20: 0 | L20: 12 | N20: =COUNTIF(L7:L49,G3) -> 39 | P20: 7 | Q20: 7 | R20: 8 | S20: 7 | T20: 7 | U20: 7
A21: 11 | B21: 1579 | C21: 21 | D21: 1594 | K21: 0 | L21: 12 | P21: % of reinforcement given in 6 equal intervals based on number of trials
A22: 11 | B22: 1691 | C22: 21 | D22: 1731 | K22: 0 | L22: 12 | P22: %_1 | Q22: %_2 | R22: %_3 | S22: %_4 | T22: %_5 | U22: %_6
A23: 11 | B23: 1828 | C23: 21 | D23: 1845 | K23: 0 | L23: 12 | O23: target sequence | P23: =$G$3 -> 12 | Q23: =$G$3 -> 12 | R23: =$G$3 -> 12 | S23: =$G$3 -> 12 | T23: =$G$3 -> 12 | U23: =$G$3 -> 12
A24: 11 | B24: 1943 | C24: 21 | D24: 1957 | K24: 0 | L24: 12 | O24: total reinforcement | P24: =U8 -> 7 | Q24: =Z8 -> 6 | R24: =AE8 -> 7 | S24: =AJ8 -> 6 | T24: =AO8 -> 6 | U24: =AT8 -> 7
A25: 11 | B25: 2052 | C25: 21 | D25: 2066 | K25: 0 | L25: 12 | O25: % target
A26: 11 | B26: 2164 | C26: 21 | D26: 2175 | K26: 0 | L26: 12 | O26: CCRF
A27: 11 | B27: 2270 | C27: 21 | D27: 2279 | K27: 0 | L27: 12 | O27: % CCRf
A28: 22 | B28: 2426 | C28: 23 | D28: 2461 | K28: 0 | L28: 22 | O28: average response rate | P28: =D13/P20 -> 100.4285714 | Q28: =(D20-D13)/Q20 -> 111.5714286 | R28: =(D28-D20)/R20 -> 122.125 | S28: =(D35-D28)/S20 -> 116 | T28: =(D42-D35)/T20 -> 122.2857143 | U28: =(D49-D42)/U20 -> 116.1428571
A29: 11 | B29: 2571 | C29: 21 | D29: 2584 | K29: 0 | L29: 12
A30: 11 | B30: 2681 | C30: 21 | D30: 2690 | K30: 0 | L30: 12
A31: 11 | B31: 2788 | C31: 12 | D31: 2818 | K31: 0 | L31: 11
A32: 11 | B32: 2923 | C32: 21 | D32: 2937 | K32: 0 | L32: 12
A33: 11 | B33: 3033 | C33: 21 | D33: 3046 | K33: 0 | L33: 12
A34: 11 | B34: 3144 | C34: 21 | D34: 3159 | K34: 0 | L34: 12
A35: 11 | B35: 3260 | C35: 21 | D35: 3273 | K35: 0 | L35: 12
A36: 11 | B36: 3367 | C36: 21 | D36: 3380 | K36: 0 | L36: 12
A37: 11 | B37: 3474 | C37: 21 | D37: 3515 | K37: 0 | L37: 12
A38: 11 | B38: 3613 | C38: 21 | D38: 3627 | K38: 0 | L38: 12
A39: 11 | B39: 3724 | C39: 21 | D39: 3735 | K39: 0 | L39: 12
A40: 11 | B40: 3832 | C40: 21 | D40: 3866 | K40: 0 | L40: 12
A41: 22 | B41: 3996 | C41: 23 | D41: 4012 | K41: 0 | L41: 22
A42: 11 | B42: 4116 | C42: 21 | D42: 4129 | K42: 0 | L42: 12
A43: 11 | B43: 4227 | C43: 21 | D43: 4240 | K43: 0 | L43: 12
A44: 11 | B44: 4335 | C44: 21 | D44: 4379 | K44: 0 | L44: 12
A45: 11 | B45: 4476 | C45: 21 | D45: 4489 | K45: 0 | L45: 12
A46: 11 | B46: 4585 | C46: 21 | D46: 4615 | K46: 0 | L46: 12
A47: 11 | B47: 4723 | C47: 21 | D47: 4732 | K47: 0 | L47: 12
A48: 11 | B48: 4826 | C48: 21 | D48: 4837 | K48: 0 | L48: 12
A49: 11 | B49: 4931 | C49: 21 | D49: 4942 | K49: 1 | L49: 12

Sheet !MC17950.105
A1: Report for:!MC17950.105
A2: Date: | B2: <date>
A3: Hen: | B3: <hen> | F3: Correct Sequence | G3: =Start!J2 -> 12 | P3: Total Sequences in Data | Q3: =4994-COUNTBLANK(L7:L5000) -> 47 | V3: Total Sequences in Block Data | W3: =COUNTA(L7:L14) -> 8 | AA3: Total Sequences in Block Data | AB3: =COUNTA(L15:L22) -> 8 | AF3: Total Sequences in Block Data | AG3: =COUNTA(L23:L29) -> 7 | AK3: Total Sequences in Block Data | AL3: =COUNTA(L30:L37) -> 8 | AP3: Total Sequences in Block Data | AQ3: =COUNTA(L38:L45) -> 8 | AU3: Total Sequences in Block Data | AV3: =COUNTA(L46:L53) -> 8
P4: Total Sequences in Summary | Q4: =SUM(O7:O14) -> 47 | V4: Total Sequences in Block Summary | W4: =SUM(U7:U14) -> 8 | AA4: Total Sequences in Block Summary | AB4: =SUM(Z7:Z14) -> 8 | AF4: Total Sequences in Block Summary | AG4: =SUM(AE7:AE14) -> 7 | AK4: Total Sequences in Block Summary | AL4: =SUM(AJ7:AJ14) -> 8 | AP4: Total Sequences in Block Summary | AQ4: =SUM(AO7:AO14) -> 8 | AU4: Total Sequences in Block Summary | AV4: =SUM(AT7:AT14) -> 8
T5: Block 1 | Y5: Block 2 | AD5: Block 3 | AI5: Block 4 | AN5: Block 5 | AS5: Block 6
A6: Sequence Component 1 | B6: Time 1 | C6: Sequence Component 2 | D6: Time 2 | E6: Sequence Component 3 | F6: Time 3 | G6: Sequence Component 4 | H6: Time 4 | I6: Sequence Component 5 | J6: Time 5 | K6: Correct? 0=No 1=Yes | L6: Sequence | N6: Frequency | P6: Relative Frequency | Q6: Variability | T6: Frequency | V6: Relative Frequency | W6: Variability | Y6: Frequency | AA6: Relative Frequency | AB6: Variability | AD6: Frequency | AF6: Relative Frequency | AG6: Variability | AI6: Frequency | AK6: Relative Frequency | AL6: Variability | AN6: Frequency | AP6: Relative Frequency | AQ6: Variability | AS6: Frequency | AU6: Relative Frequency | AV6: Variability
A7: 11 | B7: 20 | C7: 21 | D7: 41 | K7: 0 | L7: 12 | N7: 11 | O7: =COUNTIF($L$7:$L$500,N7) -> 1 | P7: =O7/$Q$4 -> 0.02127659574 | Q7: =IF(P7=0,0,(P7*((LOG(P7))/LOG(2)))) -> -0.1181827415 | T7: =N7 -> 11 | U7: =COUNTIF(L7:L14,T7) -> 1 | V7: =U7/(W4-U8) -> 0.3333333333 | W7: =IF(V7=0,0,(V7*((LOG(V7))/LOG(2)))) -> -0.5283208336 | Y7: =N7 -> 11 | Z7: =COUNTIF(L15:L22,Y7) -> 0 | AA7: =Z7/(AB4-Z8) ->  | AB7: =IF(AA7=0,0,(AA7*((LOG(AA7))/LOG(2)))) ->  | AD7: =N7 -> 11 | AE7: =COUNTIF(L23:L29,AD7) -> 0 | AF7: =AE7/(AG4-AE8) ->  | AG7: =IF(AF7=0,0,(AF7*((LOG(AF7))/LOG(2)))) ->  | AI7: =N7 -> 11 | AJ7: =COUNTIF(L30:L37,AI7) -> 0 | AK7: =AJ7/(AL4-AJ8) ->  | AL7: =IF(AK7=0,0,(AK7*((LOG(AK7))/LOG(2)))) ->  | AN7: =N7 -> 11 | AO7: =COUNTIF(L38:L45,AN7) -> 0 | AP7: =AO7/(AQ4-AO8) -> 0 | AQ7: =IF(AP7=0,0,(AP7*((LOG(AP7))/LOG(2)))) -> 0 | AS7: =N7 -> 11 | AT7: =COUNTIF(L46:L53,AS7) -> 0 | AU7: =AT7/(AV4-AT8) -> 0 | AV7: =IF(AU7=0,0,(AU7*((LOG(AU7))/LOG(2)))) -> 0
A8: 11 | B8: 134 | C8: 21 | D8: 148 | K8: 0 | L8: 12 | N8: 12 | O8: =COUNTIF($L$7:$L$500,N8) -> 39 | P8: =O8/$Q$4 -> 0.829787234 | Q8: =IF(P8=0,0,(P8*((LOG(P8))/LOG(2)))) -> -0.2233676315 | T8: =N8 -> 12 | U8: =COUNTIF(L7:L14,T8) -> 5 | Y8: =N8 -> 12 | Z8: =COUNTIF(L15:L22,Y8) -> 8 | AD8: =N8 -> 12 | AE8: =COUNTIF(L23:L29,AD8) -> 7 | AI8: =N8 -> 12 | AJ8: =COUNTIF(L30:L37,AI8) -> 8 | AN8: =N8 -> 12 | AO8: =COUNTIF(L38:L45,AN8) -> 5 | AS8: =N8 -> 12 | AT8: =COUNTIF(L46:L53,AS8) -> 6
A9: 11 | B9: 250 | C9: 21 | D9: 276 | K9: 0 | L9: 12 | N9: 21 | O9: =COUNTIF($L$7:$L$500,N9) -> 1 | P9: =O9/$Q$4 -> 0.02127659574 | Q9: =IF(P9=0,0,(P9*((LOG(P9))/LOG(2)))) -> -0.1181827415 | T9: =N9 -> 21 | U9: =COUNTIF(L7:L14,T9) -> 1 | V9: =U9/(W4-U8) -> 0.3333333333 | W9: =IF(V9=0,0,(V9*((LOG(V9))/LOG(2)))) -> -0.5283208336 | Y9: =N9 -> 21 | Z9: =COUNTIF(L15:L22,Y9) -> 0 | AA9: =Z9/(AB4-Z8) ->  | AB9: =IF(AA9=0,0,(AA9*((LOG(AA9))/LOG(2)))) ->  | AD9: =N9 -> 21 | AE9: =COUNTIF(L23:L29,AD9) -> 0 | AF9: =AE9/(AG4-AE8) ->  | AG9: =IF(AF9=0,0,(AF9*((LOG(AF9))/LOG(2)))) ->  | AI9: =N9 -> 21 | AJ9: =COUNTIF(L30:L37,AI9) -> 0 | AK9: =AJ9/(AL4-AJ8) ->  | AL9: =IF(AK9=0,0,(AK9*((LOG(AK9))/LOG(2)))) ->  | AN9: =N9 -> 21 | AO9: =COUNTIF(L38:L45,AN9) -> 0 | AP9: =AO9/(AQ4-AO8) -> 0 | AQ9: =IF(AP9=0,0,(AP9*((LOG(AP9))/LOG(2)))) -> 0 | AS9: =N9 -> 21 | AT9: =COUNTIF(L46:L53,AS9) -> 0 | AU9: =AT9/(AV4-AT8) -> 0 | AV9: =IF(AU9=0,0,(AU9*((LOG(AU9))/LOG(2)))) -> 0
A10: 22 | B10: 400 | C10: 23 | D10: 421 | K10: 0 | L10: 22 | N10: 22 | O10: =COUNTIF($L$7:$L$500,N10) -> 6 | P10: =O10/$Q$4 -> 0.1276595745 | Q10: =IF(P10=0,0,(P10*((LOG(P10))/LOG(2)))) -> -0.3791012363 | T10: =N10 -> 22 | U10: =COUNTIF(L7:L14,T10) -> 1 | V10: =U10/(W4-U8) -> 0.3333333333 | W10: =IF(V10=0,0,(V10*((LOG(V10))/LOG(2)))) -> -0.5283208336 | Y10: =N10 -> 22 | Z10: =COUNTIF(L15:L22,Y10) -> 0 | AA10: =Z10/(AB4-Z8) ->  | AB10: =IF(AA10=0,0,(AA10*((LOG(AA10))/LOG(2)))) ->  | AD10: =N10 -> 22 | AE10: =COUNTIF(L23:L29,AD10) -> 0 | AF10: =AE10/(AG4-AE8) ->  | AG10: =IF(AF10=0,0,(AF10*((LOG(AF10))/LOG(2)))) ->  | AI10: =N10 -> 22 | AJ10: =COUNTIF(L30:L37,AI10) -> 0 | AK10: =AJ10/(AL4-AJ8) ->  | AL10: =IF(AK10=0,0,(AK10*((LOG(AK10))/LOG(2)))) ->  | AN10: =N10 -> 22 | AO10: =COUNTIF(L38:L45,AN10) -> 3 | AP10: =AO10/(AQ4-AO8) -> 1 | AQ10: =IF(AP10=0,0,(AP10*((LOG(AP10))/LOG(2)))) -> 0 | AS10: =N10 -> 22 | AT10: =COUNTIF(L46:L53,AS10) -> 2 | AU10: =AT10/(AV4-AT8) -> 1 | AV10: =IF(AU10=0,0,(AU10*((LOG(AU10))/LOG(2)))) -> 0
A11: 11 | B11: 529 | C11: 21 | D11: 568 | K11: 0 | L11: 12 | T11: =N11 -> 0 | U11: =COUNTIF(L7:L14,T11) -> 0 | V11: =U11/(W4-U8) -> 0 | W11: =IF(V11=0,0,(V11*((LOG(V11))/LOG(2)))) -> 0 | Y11: =N11 -> 0 | Z11: =COUNTIF(L15:L22,Y11) -> 0 | AA11: =Z11/(AB4-Z8) ->  | AB11: =IF(AA11=0,0,(AA11*((LOG(AA11))/LOG(2)))) ->  | AD11: =N11 -> 0 | AE11: =COUNTIF(L23:L29,AD11) -> 0 | AF11: =AE11/(AG4-AE8) ->  | AG11: =IF(AF11=0,0,(AF11*((LOG(AF11))/LOG(2)))) ->  | AI11: =N11 -> 0 | AJ11: =COUNTIF(L30:L37,AI11) -> 0 | AK11: =AJ11/(AL4-AJ8) ->  | AL11: =IF(AK11=0,0,(AK11*((LOG(AK11))/LOG(2)))) ->  | AN11: =N11 -> 0 | AO11: =COUNTIF(L38:L45,AN11) -> 0 | AP11: =AO11/(AQ4-AO8) -> 0 | AQ11: =IF(AP11=0,0,(AP11*((LOG(AP11))/LOG(2)))) -> 0 | AS11: =N11 -> 0 | AT11: =COUNTIF(L46:L53,AS11) -> 0 | AU11: =AT11/(AV4-AT8) -> 0 | AV11: =IF(AU11=0,0,(AU11*((LOG(AU11))/LOG(2)))) -> 0
A12: 22 | B12: 680 | C12: 14 | D12: 699 | K12: 0 | L12: 21 | T12: =N12 -> 0 | U12: =COUNTIF(L7:L14,T12) -> 0 | V12: =U12/(W4-U8) -> 0 | W12: =IF(V12=0,0,(V12*((LOG(V12))/LOG(2)))) -> 0 | Y12: =N12 -> 0 | Z12: =COUNTIF(L15:L22,Y12) -> 0 | AA12: =Z12/(AB4-Z8) ->  | AB12: =IF(AA12=0,0,(AA12*((LOG(AA12))/LOG(2)))) ->  | AD12: =N12 -> 0 | AE12: =COUNTIF(L23:L29,AD12) -> 0 | AF12: =AE12/(AG4-AE8) ->  | AG12: =IF(AF12=0,0,(AF12*((LOG(AF12))/LOG(2)))) ->  | AI12: =N12 -> 0 | AJ12: =COUNTIF(L30:L37,AI12) -> 0 | AK12: =AJ12/(AL4-AJ8) ->  | AL12: =IF(AK12=0,0,(AK12*((LOG(AK12))/LOG(2)))) ->  | AN12: =N12 -> 0 | AO12: =COUNTIF(L38:L45,AN12) -> 0 | AP12: =AO12/(AQ4-AO8) -> 0 | AQ12: =IF(AP12=0,0,(AP12*((LOG(AP12))/LOG(2)))) -> 0 | AS12: =N12 -> 0 | AT12: =COUNTIF(L46:L53,AS12) -> 0 | AU12: =AT12/(AV4-AT8) -> 0 | AV12: =IF(AU12=0,0,(AU12*((LOG(AU12))/LOG(2)))) -> 0
